Workbook

Sheet TEST PAGE (hidden)
C1: USM | D1: CSI | E1: NWC | F1: UAM | G1: L&C | H1: BGSU | I1: MTSU | J1: PLNU | AV1: Head to Head | AW1: H/L | AX1: 7th Tourn. | AY1: 8th Tourn.
A2: Participant Count | C2: =IF(COUNTIFS(C$4:C$1000,"<>"),COUNTIFS(C$4:C$1000,"<>")," ") -> 22 | D2: =IF(COUNTIFS(D$4:D$1000,"<>"),COUNTIFS(D$4:D$1000,"<>")," ") -> 11 | E2: 5 | F2: 5 | G2: 5 | I2: 8 | J2: 4 | K2: 11 | L2: 3 | M2: 4 | N2: 9 | O2: 6 | P2: 5 | Q2: 6 | R2: 2 | S2: 6 | T2: 9 | U2: 3 | V2: 2 | W2: 6 | X2: 1 | Y2: 13 | Z2: 2 | AB2: 4 | AC2: 5 | AH2: 1
B3: Novice Indivudual | C3: USM (9/25-26) | D3: CSI (9/24-25) | E3: NW College (9/24-25) | F3: UAM (10/8-10) | G3: L & C / Whitman (10/8-10) | H3: BGSU (10/16-17) | I3: MTSU (10/22-23) | J3: PLNU (10/22-23) | AR3: over 6/2nd host | AS3: Total Points | AT3: Tournament Count | AU3: Best Top 6 | AV3: 1st Tie Breaker | AW3: 2nd Tie Breaker | AX3: 3rd Tie Breaker | AY3: 4th Tie Breaker | AZ3: 5th Tie Breaker
A4: =IF(ISBLANK(B4)," ",(LEFT(B4,FIND("@",SUBSTITUTE(B4,"-","@",LEN(B4)-LEN(SUBSTITUTE(B4,"-",""))))-1))) -> UT | B4: UT- Jenkins | F4: 4 | I4: 13 | M4: 11 | O4: 16 | Q4: 13 | AS4: =SUM($C4:$AR4) -> 57 | AT4: =COUNTA(C4:AQ4) -> 5 | AU4: =IF($AT4<=6,SUM($C4:$AQ4),SUMPRODUCT(LARGE($C4:$AQ4,{1,2,3,4,5,6}))) -> 57 | AV4: =IF(AND($AT4>=6,AU4=AU5),"Manual Calc Needed","") ->  | AW4: =IF(AND($AT4>=6,$AV4="Tie"),"Manual Calc Needed"," ") ->  | AX4: =IFERROR(SUMPRODUCT(LARGE($C4:$AQ4,{1,2,3,4})), "") -> 53 | AY4: =IF(AND($AT4>=6,$AV4="Tie",AX4=AX5),"Manual Calc Needed"," ") ->  | AZ4: =IFERROR(SUMPRODUCT(LARGE($C4:$AQ4,{1,2,3,4,5,6,7,8})), "") -> 
A5: =IF(ISBLANK(B5)," ",(LEFT(B5,FIND("@",SUBSTITUTE(B5,"-","@",LEN(B5)-LEN(SUBSTITUTE(B5,"-",""))))-1))) -> Lee | B5: Lee- Kinder | I5: 5 | K5: 11 | N5: 8 | S5: 5 | T5: 10 | W5: 7 | Y5: 6 | AC5: 15 | AR5: -10 | AS5: =SUM($C5:$AR5) -> 57 | AT5: =COUNTA(C5:AQ5) -> 8 | AU5: =IF($AT5<=6,SUM($C5:$AQ5),SUMPRODUCT(LARGE($C5:$AQ5,{1,2,3,4,5,6}))) -> 57 | AV5: =IF(AND($AT5>=6,AU5=AU6),"Manual Calc Needed","") ->  | AX5: =IFERROR(SUMPRODUCT(LARGE($C5:$AQ5,{1,2,3,4})), "") -> 44 | AY5: =IF(AND($AT5>=6,$AV5="Tie",AX5=AX6),"Manual Calc Needed"," ") ->  | AZ5: =IFERROR(SUMPRODUCT(LARGE($C5:$AQ5,{1,2,3,4,5,6,7,8})), "") -> 67
A6: UCA | B6: UCA- King | D6: 5 | F6: 8 | K6: 8 | T6: 12 | Y6: 9 | AB6: 7 | AS6: 49 | AT6: =COUNTA(C6:AQ6) -> 6 | AU6: =IF($AT6<=6,SUM($C6:$AQ6),SUMPRODUCT(LARGE($C6:$AQ6,{1,2,3,4,5,6}))) -> 49 | AX6: =IFERROR(SUMPRODUCT(LARGE($C6:$AQ6,{1,2,3,4})), "") -> 37 | AZ6: =IFERROR(SUMPRODUCT(LARGE($C6:$AQ6,{1,2,3,4,5,6,7,8})), "") -> 
A7: OkBU | B7: OkBU- Webber | D7: 7 | E7: 4 | K7: 17 | Q7: 3 | W7: 8 | AB7: 8 | AS7: 47 | AT7: 6 | AU7: =IF($AT7<=6,SUM($C7:$AQ7),SUMPRODUCT(LARGE($C7:$AQ7,{1,2,3,4,5,6}))) -> 47 | AX7: =IFERROR(SUMPRODUCT(LARGE($C7:$AQ7,{1,2,3,4})), "") -> 40 | AZ7: =IFERROR(SUMPRODUCT(LARGE($C7:$AQ7,{1,2,3,4,5,6,7,8})), "") -> 
A8: LTU | B8: LTU- Dean | I8: 5 | K8: 7 | N8: 13 | Q8: 3 | T8: 5 | Y8: 2 | AC8: 13 | AR8: -2 | AS8: 46 | AT8: 7 | AU8: =IF($AT8<=6,SUM($C8:$AQ8),SUMPRODUCT(LARGE($C8:$AQ8,{1,2,3,4,5,6}))) -> 46 | AX8: =IFERROR(SUMPRODUCT(LARGE($C8:$AQ8,{1,2,3,4})), "") -> 38 | AZ8: =IFERROR(SUMPRODUCT(LARGE($C8:$AQ8,{1,2,3,4,5,6,7,8})), "") -> 
A9: SMU | B9: SMU- Waite | E9: 5 | L9: 12 | N9: 7 | W9: 4 | Y9: 8 | AC9: 8 | AS9: 44 | AT9: 6 | AU9: =IF($AT9<=6,SUM($C9:$AQ9),SUMPRODUCT(LARGE($C9:$AQ9,{1,2,3,4,5,6}))) -> 44 | AV9: Manual Calc Needed | AX9: =IFERROR(SUMPRODUCT(LARGE($C9:$AQ9,{1,2,3,4})), "") -> 35 | AZ9: =IFERROR(SUMPRODUCT(LARGE($C9:$AQ9,{1,2,3,4,5,6,7,8})), "") -> 
A10: USM | B10: USM- Duley | F10: 5 | S10: 9 | T10: 15 | Y10: 15 | AS10: 44 | AT10: 4 | AU10: =IF($AT10<=6,SUM($C10:$AQ10),SUMPRODUCT(LARGE($C10:$AQ10,{1,2,3,4,5,6}))) -> 44 | AX10: =IFERROR(SUMPRODUCT(LARGE($C10:$AQ10,{1,2,3,4})), "") -> 44 | AZ10: =IFERROR(SUMPRODUCT(LARGE($C10:$AQ10,{1,2,3,4,5,6,7,8})), "") -> 
A11: UU | B11: UU- Huddleston | D11: 15 | F11: 4 | I11: 15 | M11: 5 | AS11: 39 | AT11: 4 | AU11: =IF($AT11<=6,SUM($C11:$AQ11),SUMPRODUCT(LARGE($C11:$AQ11,{1,2,3,4,5,6}))) -> 39 | AX11: =IFERROR(SUMPRODUCT(LARGE($C11:$AQ11,{1,2,3,4})), "") -> 39 | AZ11: =IFERROR(SUMPRODUCT(LARGE($C11:$AQ11,{1,2,3,4,5,6,7,8})), "") -> 
A12: SFA | B12: SFA- Kemp | K12: 8 | L12: 8 | N12: 4 | W12: 5 | Y12: 6 | AC12: 6 | AS12: 37 | AT12: 6 | AU12: =IF($AT12<=6,SUM($C12:$AQ12),SUMPRODUCT(LARGE($C12:$AQ12,{1,2,3,4,5,6}))) -> 37 | AX12: =IFERROR(SUMPRODUCT(LARGE($C12:$AQ12,{1,2,3,4})), "") -> 28 | AZ12: =IFERROR(SUMPRODUCT(LARGE($C12:$AQ12,{1,2,3,4,5,6,7,8})), "") -> 
A13: LC | B13: LC- Baugh | E13: 7 | K13: 9 | N13: 7 | Y13: 13 | AS13: 36 | AT13: 4 | AU13: =IF($AT13<=6,SUM($C13:$AQ13),SUMPRODUCT(LARGE($C13:$AQ13,{1,2,3,4,5,6}))) -> 36 | AX13: =IFERROR(SUMPRODUCT(LARGE($C13:$AQ13,{1,2,3,4})), "") -> 36 | AZ13: =IFERROR(SUMPRODUCT(LARGE($C13:$AQ13,{1,2,3,4,5,6,7,8})), "") -> 
A14: LTU | B14: LTU- Kruskie | D14: 6 | I14: 6 | K14: 4 | N14: 7 | Q14: 7 | T14: 5 | Y14: 5 | AR14: -4 | AS14: 36 | AT14: 7 | AU14: =IF($AT14<=6,SUM($C14:$AQ14),SUMPRODUCT(LARGE($C14:$AQ14,{1,2,3,4,5,6}))) -> 36 | AX14: =IFERROR(SUMPRODUCT(LARGE($C14:$AQ14,{1,2,3,4})), "") -> 26 | AZ14: =IFERROR(SUMPRODUCT(LARGE($C14:$AQ14,{1,2,3,4,5,6,7,8})), "") -> 
A15: UU | B15: UU- Thompson | D15: 8 | I15: 7 | O15: 15 | Y15: 4 | AS15: 34 | AT15: 4 | AU15: =IF($AT15<=6,SUM($C15:$AQ15),SUMPRODUCT(LARGE($C15:$AQ15,{1,2,3,4,5,6}))) -> 34 | AX15: =IFERROR(SUMPRODUCT(LARGE($C15:$AQ15,{1,2,3,4})), "") -> 34 | AZ15: =IFERROR(SUMPRODUCT(LARGE($C15:$AQ15,{1,2,3,4,5,6,7,8})), "") -> 
A16: BPCC | B16: BPCC- Stoneman | D16: 3 | E16: 4 | I16: 3 | K16: 3 | N16: 8 | S16: 6 | T16: 9 | AR16: -3 | AS16: 33 | AT16: 7 | AU16: =IF($AT16<=6,SUM($C16:$AQ16),SUMPRODUCT(LARGE($C16:$AQ16,{1,2,3,4,5,6}))) -> 33 | AX16: =IFERROR(SUMPRODUCT(LARGE($C16:$AQ16,{1,2,3,4})), "") -> 27 | AZ16: =IFERROR(SUMPRODUCT(LARGE($C16:$AQ16,{1,2,3,4,5,6,7,8})), "") -> 
A17: OkBU | B17: OkBU- Pipes | D17: 3 | E17: 3 | K17: 9 | Q17: 4 | W17: 2 | AB17: 10 | AS17: 31 | AT17: 6 | AU17: =IF($AT17<=6,SUM($C17:$AQ17),SUMPRODUCT(LARGE($C17:$AQ17,{1,2,3,4,5,6}))) -> 31 | AV17: Manual Calc Needed | AX17: =IFERROR(SUMPRODUCT(LARGE($C17:$AQ17,{1,2,3,4})), "") -> 26 | AZ17: =IFERROR(SUMPRODUCT(LARGE($C17:$AQ17,{1,2,3,4,5,6,7,8})), "") -> 
A18: UU | B18: UU- Sheilley | D18: 9 | M18: 10 | O18: 10 | Y18: 2 | AS18: 31 | AT18: 4 | AU18: =IF($AT18<=6,SUM($C18:$AQ18),SUMPRODUCT(LARGE($C18:$AQ18,{1,2,3,4,5,6}))) -> 31 | AX18: =IFERROR(SUMPRODUCT(LARGE($C18:$AQ18,{1,2,3,4})), "") -> 31 | AZ18: =IFERROR(SUMPRODUCT(LARGE($C18:$AQ18,{1,2,3,4,5,6,7,8})), "") -> 
A19: NACC | B19: NACC- Ivy | D19: 3 | K19: 3 | S19: 4 | T19: 7 | Y19: 11 | AS19: 28 | AT19: 5 | AU19: =IF($AT19<=6,SUM($C19:$AQ19),SUMPRODUCT(LARGE($C19:$AQ19,{1,2,3,4,5,6}))) -> 28 | AX19: =IFERROR(SUMPRODUCT(LARGE($C19:$AQ19,{1,2,3,4})), "") -> 25 | AZ19: =IFERROR(SUMPRODUCT(LARGE($C19:$AQ19,{1,2,3,4,5,6,7,8})), "") -> 
A20: WhU | B20: WhU- Lorenc | G20: 11 | J20: 5 | P20: 12 | AS20: 28 | AT20: 3 | AU20: =IF($AT20<=6,SUM($C20:$AQ20),SUMPRODUCT(LARGE($C20:$AQ20,{1,2,3,4,5,6}))) -> 28 | AX20: =IFERROR(SUMPRODUCT(LARGE($C20:$AQ20,{1,2,3,4})), "") ->  | AZ20: =IFERROR(SUMPRODUCT(LARGE($C20:$AQ20,{1,2,3,4,5,6,7,8})), "") -> 
A21: ACU | B21: ACU- Kahongo | L21: 11 | N21: 13 | X21: 2 | AS21: 26 | AT21: 3 | AU21: =IF($AT21<=6,SUM($C21:$AQ21),SUMPRODUCT(LARGE($C21:$AQ21,{1,2,3,4,5,6}))) -> 26 | AX21: =IFERROR(SUMPRODUCT(LARGE($C21:$AQ21,{1,2,3,4})), "") ->  | AZ21: =IFERROR(SUMPRODUCT(LARGE($C21:$AQ21,{1,2,3,4,5,6,7,8})), "") -> 
A22: LCC | B22: LCC- Brown | G22: 2 | P22: 4 | R22: 8 | U22: 8 | Z22: 4 | AS22: 26 | AT22: 5 | AU22: =IF($AT22<=6,SUM($C22:$AQ22),SUMPRODUCT(LARGE($C22:$AQ22,{1,2,3,4,5,6}))) -> 26 | AX22: =IFERROR(SUMPRODUCT(LARGE($C22:$AQ22,{1,2,3,4})), "") -> 24 | AZ22: =IFERROR(SUMPRODUCT(LARGE($C22:$AQ22,{1,2,3,4,5,6,7,8})), "") -> 
A23: UT | B23: UT- Winningham | F23: 3 | I23: 6 | O23: 3 | Q23: 7 | V23: 7 | AS23: 26 | AT23: 5 | AU23: =IF($AT23<=6,SUM($C23:$AQ23),SUMPRODUCT(LARGE($C23:$AQ23,{1,2,3,4,5,6}))) -> 26 | AX23: =IFERROR(SUMPRODUCT(LARGE($C23:$AQ23,{1,2,3,4})), "") -> 23 | AZ23: =IFERROR(SUMPRODUCT(LARGE($C23:$AQ23,{1,2,3,4,5,6,7,8})), "") -> 
A24: WhU | B24: WhU- Plunkett | G24: 3 | J24: 3 | P24: 3 | U24: 3 | Y24: 9 | AH24: 5 | AS24: 26 | AT24: 6 | AU24: =IF($AT24<=6,SUM($C24:$AQ24),SUMPRODUCT(LARGE($C24:$AQ24,{1,2,3,4,5,6}))) -> 26 | AX24: =IFERROR(SUMPRODUCT(LARGE($C24:$AQ24,{1,2,3,4})), "") -> 20 | AZ24: =IFERROR(SUMPRODUCT(LARGE($C24:$AQ24,{1,2,3,4,5,6,7,8})), "") -> 
A25: CoM | B25: CoM- Pannell | D25: 4 | K25: 4 | N25: 11 | S25: 6 | AS25: 25 | AT25: 4 | AU25: =IF($AT25<=6,SUM($C25:$AQ25),SUMPRODUCT(LARGE($C25:$AQ25,{1,2,3,4,5,6}))) -> 25 | AX25: =IFERROR(SUMPRODUCT(LARGE($C25:$AQ25,{1,2,3,4})), "") -> 25 | AZ25: =IFERROR(SUMPRODUCT(LARGE($C25:$AQ25,{1,2,3,4,5,6,7,8})), "") -> 
A26: LCC | B26: LCC- Mahoney | G26: 2 | J26: 3 | P26: 7 | R26: 4 | U26: 3 | Z26: 6 | AS26: 25 | AT26: 6 | AU26: =IF($AT26<=6,SUM($C26:$AQ26),SUMPRODUCT(LARGE($C26:$AQ26,{1,2,3,4,5,6}))) -> 25 | AV26: Manual Calc Needed | AX26: =IFERROR(SUMPRODUCT(LARGE($C26:$AQ26,{1,2,3,4})), "") -> 20 | AZ26: =IFERROR(SUMPRODUCT(LARGE($C26:$AQ26,{1,2,3,4,5,6,7,8})), "") -> 
A27: LCC | B27: LCC- Tovar | G27: 5 | J27: 11 | P27: 9 | AS27: 25 | AT27: 3 | AU27: =IF($AT27<=6,SUM($C27:$AQ27),SUMPRODUCT(LARGE($C27:$AQ27,{1,2,3,4,5,6}))) -> 25 | AX27: =IFERROR(SUMPRODUCT(LARGE($C27:$AQ27,{1,2,3,4})), "") ->  | AZ27: =IFERROR(SUMPRODUCT(LARGE($C27:$AQ27,{1,2,3,4,5,6,7,8})), "") -> 
A28: MiSU | B28: MiSU- Kroneberger | O28: 3 | T28: 5 | V28: 8 | Y28: 7 | AB28: 2 | AS28: 25 | AT28: 5 | AU28: =IF($AT28<=6,SUM($C28:$AQ28),SUMPRODUCT(LARGE($C28:$AQ28,{1,2,3,4,5,6}))) -> 25 | AX28: =IFERROR(SUMPRODUCT(LARGE($C28:$AQ28,{1,2,3,4})), "") -> 23 | AZ28: =IFERROR(SUMPRODUCT(LARGE($C28:$AQ28,{1,2,3,4,5,6,7,8})), "") -> 
A29: UU | B29: UU- Geary | D29: 11 | M29: 7 | O29: 7 | AS29: 25 | AT29: 3 | AU29: =IF($AT29<=6,SUM($C29:$AQ29),SUMPRODUCT(LARGE($C29:$AQ29,{1,2,3,4,5,6}))) -> 25 | AX29: =IFERROR(SUMPRODUCT(LARGE($C29:$AQ29,{1,2,3,4})), "") ->  | AZ29: =IFERROR(SUMPRODUCT(LARGE($C29:$AQ29,{1,2,3,4,5,6,7,8})), "") -> 
A30: BPCC | B30: BPCC- Robison | S30: 1 | T30: 1 | W30: 9 | AC30: 13 | AS30: 24 | AT30: 4 | AU30: =IF($AT30<=6,SUM($C30:$AQ30),SUMPRODUCT(LARGE($C30:$AQ30,{1,2,3,4,5,6}))) -> 24 | AX30: =IFERROR(SUMPRODUCT(LARGE($C30:$AQ30,{1,2,3,4})), "") -> 24 | AZ30: =IFERROR(SUMPRODUCT(LARGE($C30:$AQ30,{1,2,3,4,5,6,7,8})), "") -> 
A31: OKBU | B31: OKBU- Jenkins | C31: 3 | AS31: 3 | AT31: 1 | AU31: =IF($AT31<=6,SUM($C31:$AQ31),SUMPRODUCT(LARGE($C31:$AQ31,{1,2,3,4,5,6}))) -> 3 | AX31: =IFERROR(SUMPRODUCT(LARGE($C31:$AQ31,{1,2,3,4})), "") ->  | AZ31: =IFERROR(SUMPRODUCT(LARGE($C31:$AQ31,{1,2,3,4,5,6,7,8})), "") -> 
A32: OKBU | B32: OKBU- Kolacny | C32: 3 | AS32: 3 | AT32: 1 | AU32: =IF($AT32<=6,SUM($C32:$AQ32),SUMPRODUCT(LARGE($C32:$AQ32,{1,2,3,4,5,6}))) -> 3 | AX32: =IFERROR(SUMPRODUCT(LARGE($C32:$AQ32,{1,2,3,4})), "") ->  | AZ32: =IFERROR(SUMPRODUCT(LARGE($C32:$AQ32,{1,2,3,4,5,6,7,8})), "") -> 
A33: OKBU | B33: OKBU- Witt | C33: 2 | AS33: 2 | AT33: 1 | AU33: =IF($AT33<=6,SUM($C33:$AQ33),SUMPRODUCT(LARGE($C33:$AQ33,{1,2,3,4,5,6}))) -> 2 | AX33: =IFERROR(SUMPRODUCT(LARGE($C33:$AQ33,{1,2,3,4})), "") ->  | AZ33: =IFERROR(SUMPRODUCT(LARGE($C33:$AQ33,{1,2,3,4,5,6,7,8})), "") -> 
A34: PU | B34: PU- Powell | C34: 4 | AS34: 4 | AT34: 1 | AU34: =IF($AT34<=6,SUM($C34:$AQ34),SUMPRODUCT(LARGE($C34:$AQ34,{1,2,3,4,5,6}))) -> 4 | AX34: =IFERROR(SUMPRODUCT(LARGE($C34:$AQ34,{1,2,3,4})), "") ->  | AZ34: =IFERROR(SUMPRODUCT(LARGE($C34:$AQ34,{1,2,3,4,5,6,7,8})), "") -> 
A35: SMU | B35: SMU- Hazen | C35: 7 | AS35: 7 | AT35: 1 | AU35: =IF($AT35<=6,SUM($C35:$AQ35),SUMPRODUCT(LARGE($C35:$AQ35,{1,2,3,4,5,6}))) -> 7 | AX35: =IFERROR(SUMPRODUCT(LARGE($C35:$AQ35,{1,2,3,4})), "") ->  | AZ35: =IFERROR(SUMPRODUCT(LARGE($C35:$AQ35,{1,2,3,4,5,6,7,8})), "") -> 
A36: SMU | B36: SMU- LaRoe | C36: 7 | AS36: 7 | AT36: 1 | AU36: =IF($AT36<=6,SUM($C36:$AQ36),SUMPRODUCT(LARGE($C36:$AQ36,{1,2,3,4,5,6}))) -> 7 | AX36: =IFERROR(SUMPRODUCT(LARGE($C36:$AQ36,{1,2,3,4})), "") ->  | AZ36: =IFERROR(SUMPRODUCT(LARGE($C36:$AQ36,{1,2,3,4,5,6,7,8})), "") -> 
A37: UA | B37: UA- Appleton | C37: 2 | AS37: 2 | AT37: 1 | AU37: =IF($AT37<=6,SUM($C37:$AQ37),SUMPRODUCT(LARGE($C37:$AQ37,{1,2,3,4,5,6}))) -> 2 | AX37: =IFERROR(SUMPRODUCT(LARGE($C37:$AQ37,{1,2,3,4})), "") ->  | AZ37: =IFERROR(SUMPRODUCT(LARGE($C37:$AQ37,{1,2,3,4,5,6,7,8})), "") -> 
A38: UA | B38: UA- Hubbard | C38: 2 | AS38: 2 | AT38: 1 | AU38: =IF($AT38<=6,SUM($C38:$AQ38),SUMPRODUCT(LARGE($C38:$AQ38,{1,2,3,4,5,6}))) -> 2 | AX38: =IFERROR(SUMPRODUCT(LARGE($C38:$AQ38,{1,2,3,4})), "") ->  | AZ38: =IFERROR(SUMPRODUCT(LARGE($C38:$AQ38,{1,2,3,4,5,6,7,8})), "") -> 
A39: UA | B39: UA- Jamison | C39: 3 | AS39: 3 | AT39: 1 | AU39: =IF($AT39<=6,SUM($C39:$AQ39),SUMPRODUCT(LARGE($C39:$AQ39,{1,2,3,4,5,6}))) -> 3 | AX39: =IFERROR(SUMPRODUCT(LARGE($C39:$AQ39,{1,2,3,4})), "") ->  | AZ39: =IFERROR(SUMPRODUCT(LARGE($C39:$AQ39,{1,2,3,4,5,6,7,8})), "") -> 
A40: UA | B40: UA- Onisei | C40: 2 | AS40: 2 | AT40: 1 | AU40: =IF($AT40<=6,SUM($C40:$AQ40),SUMPRODUCT(LARGE($C40:$AQ40,{1,2,3,4,5,6}))) -> 2 | AX40: =IFERROR(SUMPRODUCT(LARGE($C40:$AQ40,{1,2,3,4})), "") ->  | AZ40: =IFERROR(SUMPRODUCT(LARGE($C40:$AQ40,{1,2,3,4,5,6,7,8})), "") -> 
A41: UF | B41: UF- Benerjee | C41: 3 | AS41: 3 | AT41: 1 | AU41: =IF($AT41<=6,SUM($C41:$AQ41),SUMPRODUCT(LARGE($C41:$AQ41,{1,2,3,4,5,6}))) -> 3 | AX41: =IFERROR(SUMPRODUCT(LARGE($C41:$AQ41,{1,2,3,4})), "") ->  | AZ41: =IFERROR(SUMPRODUCT(LARGE($C41:$AQ41,{1,2,3,4,5,6,7,8})), "") -> 
A42: UF | B42: UF- Levis Betancour | C42: 2 | AS42: 2 | AT42: 1 | AU42: =IF($AT42<=6,SUM($C42:$AQ42),SUMPRODUCT(LARGE($C42:$AQ42,{1,2,3,4,5,6}))) -> 2 | AX42: =IFERROR(SUMPRODUCT(LARGE($C42:$AQ42,{1,2,3,4})), "") ->  | AZ42: =IFERROR(SUMPRODUCT(LARGE($C42:$AQ42,{1,2,3,4,5,6,7,8})), "") -> 
A43: UNT | B43: UNT- Posca | C43: 3 | AS43: 3 | AT43: 1 | AU43: =IF($AT43<=6,SUM($C43:$AQ43),SUMPRODUCT(LARGE($C43:$AQ43,{1,2,3,4,5,6}))) -> 3 | AX43: =IFERROR(SUMPRODUCT(LARGE($C43:$AQ43,{1,2,3,4})), "") ->  | AZ43: =IFERROR(SUMPRODUCT(LARGE($C43:$AQ43,{1,2,3,4,5,6,7,8})), "") -> 
A44: UTK | B44: UTK- Deshpande | C44: 4 | AS44: 4 | AT44: 1 | AU44: =IF($AT44<=6,SUM($C44:$AQ44),SUMPRODUCT(LARGE($C44:$AQ44,{1,2,3,4,5,6}))) -> 4 | AX44: =IFERROR(SUMPRODUCT(LARGE($C44:$AQ44,{1,2,3,4})), "") ->  | AZ44: =IFERROR(SUMPRODUCT(LARGE($C44:$AQ44,{1,2,3,4,5,6,7,8})), "") -> 
A45: UTK | B45: UTK- Ober | C45: 5 | AS45: 5 | AT45: 1 | AU45: =IF($AT45<=6,SUM($C45:$AQ45),SUMPRODUCT(LARGE($C45:$AQ45,{1,2,3,4,5,6}))) -> 5 | AX45: =IFERROR(SUMPRODUCT(LARGE($C45:$AQ45,{1,2,3,4})), "") ->  | AZ45: =IFERROR(SUMPRODUCT(LARGE($C45:$AQ45,{1,2,3,4,5,6,7,8})), "") -> 
A46: UTK | B46: UTK- Thurber | C46: 3 | AS46: 3 | AT46: 1 | AU46: =IF($AT46<=6,SUM($C46:$AQ46),SUMPRODUCT(LARGE($C46:$AQ46,{1,2,3,4,5,6}))) -> 3 | AX46: =IFERROR(SUMPRODUCT(LARGE($C46:$AQ46,{1,2,3,4})), "") ->  | AZ46: =IFERROR(SUMPRODUCT(LARGE($C46:$AQ46,{1,2,3,4,5,6,7,8})), "") -> 
A47: UTK | B47: UTK- Wilson | C47: 2 | AS47: 2 | AT47: 1 | AU47: =IF($AT47<=6,SUM($C47:$AQ47),SUMPRODUCT(LARGE($C47:$AQ47,{1,2,3,4,5,6}))) -> 2 | AX47: =IFERROR(SUMPRODUCT(LARGE($C47:$AQ47,{1,2,3,4})), "") ->  | AZ47: =IFERROR(SUMPRODUCT(LARGE($C47:$AQ47,{1,2,3,4,5,6,7,8})), "") -> 
A48: WCU | B48: WCU- Abner | C48: 2 | AS48: 2 | AT48: 1 | AU48: =IF($AT48<=6,SUM($C48:$AQ48),SUMPRODUCT(LARGE($C48:$AQ48,{1,2,3,4,5,6}))) -> 2 | AX48: =IFERROR(SUMPRODUCT(LARGE($C48:$AQ48,{1,2,3,4})), "") ->  | AZ48: =IFERROR(SUMPRODUCT(LARGE($C48:$AQ48,{1,2,3,4,5,6,7,8})), "") -> 
A49: WCU | B49: WCU- Bilich | C49: 3 | AS49: 3 | AT49: 1 | AU49: =IF($AT49<=6,SUM($C49:$AQ49),SUMPRODUCT(LARGE($C49:$AQ49,{1,2,3,4,5,6}))) -> 3 | AX49: =IFERROR(SUMPRODUCT(LARGE($C49:$AQ49,{1,2,3,4})), "") ->  | AZ49: =IFERROR(SUMPRODUCT(LARGE($C49:$AQ49,{1,2,3,4,5,6,7,8})), "") -> 
A50: WCU | B50: WCU- Croft | C50: 5 | AS50: 5 | AT50: 1 | AU50: =IF($AT50<=6,SUM($C50:$AQ50),SUMPRODUCT(LARGE($C50:$AQ50,{1,2,3,4,5,6}))) -> 5 | AX50: =IFERROR(SUMPRODUCT(LARGE($C50:$AQ50,{1,2,3,4})), "") ->  | AZ50: =IFERROR(SUMPRODUCT(LARGE($C50:$AQ50,{1,2,3,4,5,6,7,8})), "") -> 
A51: WCU | B51: WCU- Gilbertson | C51: 3 | AS51: 3 | AT51: 1 | AU51: =IF($AT51<=6,SUM($C51:$AQ51),SUMPRODUCT(LARGE($C51:$AQ51,{1,2,3,4,5,6}))) -> 3 | AX51: =IFERROR(SUMPRODUCT(LARGE($C51:$AQ51,{1,2,3,4})), "") ->  | AZ51: =IFERROR(SUMPRODUCT(LARGE($C51:$AQ51,{1,2,3,4,5,6,7,8})), "") -> 
A52: WCU | B52: WCU- Rogers | C52: 3 | AS52: 3 | AT52: 1 | AU52: =IF($AT52<=6,SUM($C52:$AQ52),SUMPRODUCT(LARGE($C52:$AQ52,{1,2,3,4,5,6}))) -> 3 | AX52: =IFERROR(SUMPRODUCT(LARGE($C52:$AQ52,{1,2,3,4})), "") ->  | AZ52: =IFERROR(SUMPRODUCT(LARGE($C52:$AQ52,{1,2,3,4,5,6,7,8})), "") -> 
AS53: 0 | AT53: 0 | AU53: =IF($AT53<=6,SUM($C53:$AQ53),SUMPRODUCT(LARGE($C53:$AQ53,{1,2,3,4,5,6}))) -> 0 | AX53: =IFERROR(SUMPRODUCT(LARGE($C53:$AQ53,{1,2,3,4})), "") ->  | AZ53: =IFERROR(SUMPRODUCT(LARGE($C53:$AQ53,{1,2,3,4,5,6,7,8})), "") -> 
AS54: 0 | AT54: 0 | AU54: =IF($AT54<=6,SUM($C54:$AQ54),SUMPRODUCT(LARGE($C54:$AQ54,{1,2,3,4,5,6}))) -> 0 | AX54: =IFERROR(SUMPRODUCT(LARGE($C54:$AQ54,{1,2,3,4})), "") ->  | AZ54: =IFERROR(SUMPRODUCT(LARGE($C54:$AQ54,{1,2,3,4,5,6,7,8})), "") -> 
AS55: 0 | AT55: 0 | AU55: =IF($AT55<=6,SUM($C55:$AQ55),SUMPRODUCT(LARGE($C55:$AQ55,{1,2,3,4,5,6}))) -> 0 | AX55: =IFERROR(SUMPRODUCT(LARGE($C55:$AQ55,{1,2,3,4})), "") ->  | AZ55: =IFERROR(SUMPRODUCT(LARGE($C55:$AQ55,{1,2,3,4,5,6,7,8})), "") -> 
AS56: 0 | AT56: 0 | AU56: =IF($AT56<=6,SUM($C56:$AQ56),SUMPRODUCT(LARGE($C56:$AQ56,{1,2,3,4,5,6}))) -> 0 | AX56: =IFERROR(SUMPRODUCT(LARGE($C56:$AQ56,{1,2,3,4})), "") ->  | AZ56: =IFERROR(SUMPRODUCT(LARGE($C56:$AQ56,{1,2,3,4,5,6,7,8})), "") -> 
AS57: 0 | AT57: 0 | AU57: =IF($AT57<=6,SUM($C57:$AQ57),SUMPRODUCT(LARGE($C57:$AQ57,{1,2,3,4,5,6}))) -> 0 | AX57: =IFERROR(SUMPRODUCT(LARGE($C57:$AQ57,{1,2,3,4})), "") ->  | AZ57: =IFERROR(SUMPRODUCT(LARGE($C57:$AQ57,{1,2,3,4,5,6,7,8})), "") -> 
AS58: 0 | AT58: 0 | AU58: =IF($AT58<=6,SUM($C58:$AQ58),SUMPRODUCT(LARGE($C58:$AQ58,{1,2,3,4,5,6}))) -> 0 | AX58: =IFERROR(SUMPRODUCT(LARGE($C58:$AQ58,{1,2,3,4})), "") ->  | AZ58: =IFERROR(SUMPRODUCT(LARGE($C58:$AQ58,{1,2,3,4,5,6,7,8})), "") -> 
AS59: 0 | AT59: 0 | AU59: =IF($AT59<=6,SUM($C59:$AQ59),SUMPRODUCT(LARGE($C59:$AQ59,{1,2,3,4,5,6}))) -> 0 | AX59: =IFERROR(SUMPRODUCT(LARGE($C59:$AQ59,{1,2,3,4})), "") ->  | AZ59: =IFERROR(SUMPRODUCT(LARGE($C59:$AQ59,{1,2,3,4,5,6,7,8})), "") -> 
AS60: 0 | AT60: 0 | AU60: =IF($AT60<=6,SUM($C60:$AQ60),SUMPRODUCT(LARGE($C60:$AQ60,{1,2,3,4,5,6}))) -> 0 | AX60: =IFERROR(SUMPRODUCT(LARGE($C60:$AQ60,{1,2,3,4})), "") ->  | AZ60: =IFERROR(SUMPRODUCT(LARGE($C60:$AQ60,{1,2,3,4,5,6,7,8})), "") -> 
AS61: 0 | AT61: 0 | AU61: =IF($AT61<=6,SUM($C61:$AQ61),SUMPRODUCT(LARGE($C61:$AQ61,{1,2,3,4,5,6}))) -> 0 | AX61: =IFERROR(SUMPRODUCT(LARGE($C61:$AQ61,{1,2,3,4})), "") ->  | AZ61: =IFERROR(SUMPRODUCT(LARGE($C61:$AQ61,{1,2,3,4,5,6,7,8})), "") -> 
AS62: 0 | AT62: 0 | AU62: =IF($AT62<=6,SUM($C62:$AQ62),SUMPRODUCT(LARGE($C62:$AQ62,{1,2,3,4,5,6}))) -> 0 | AX62: =IFERROR(SUMPRODUCT(LARGE($C62:$AQ62,{1,2,3,4})), "") ->  | AZ62: =IFERROR(SUMPRODUCT(LARGE($C62:$AQ62,{1,2,3,4,5,6,7,8})), "") -> 
AS63: 0 | AT63: 0 | AU63: =IF($AT63<=6,SUM($C63:$AQ63),SUMPRODUCT(LARGE($C63:$AQ63,{1,2,3,4,5,6}))) -> 0 | AX63: =IFERROR(SUMPRODUCT(LARGE($C63:$AQ63,{1,2,3,4})), "") ->  | AZ63: =IFERROR(SUMPRODUCT(LARGE($C63:$AQ63,{1,2,3,4,5,6,7,8})), "") -> 
AS64: 0 | AT64: 0 | AU64: =IF($AT64<=6,SUM($C64:$AQ64),SUMPRODUCT(LARGE($C64:$AQ64,{1,2,3,4,5,6}))) -> 0 | AX64: =IFERROR(SUMPRODUCT(LARGE($C64:$AQ64,{1,2,3,4})), "") ->  | AZ64: =IFERROR(SUMPRODUCT(LARGE($C64:$AQ64,{1,2,3,4,5,6,7,8})), "") -> 
AS65: 0 | AT65: 0 | AU65: =IF($AT65<=6,SUM($C65:$AQ65),SUMPRODUCT(LARGE($C65:$AQ65,{1,2,3,4,5,6}))) -> 0 | AX65: =IFERROR(SUMPRODUCT(LARGE($C65:$AQ65,{1,2,3,4})), "") ->  | AZ65: =IFERROR(SUMPRODUCT(LARGE($C65:$AQ65,{1,2,3,4,5,6,7,8})), "") -> 
AS66: 0 | AT66: 0 | AU66: =IF($AT66<=6,SUM($C66:$AQ66),SUMPRODUCT(LARGE($C66:$AQ66,{1,2,3,4,5,6}))) -> 0 | AX66: =IFERROR(SUMPRODUCT(LARGE($C66:$AQ66,{1,2,3,4})), "") ->  | AZ66: =IFERROR(SUMPRODUCT(LARGE($C66:$AQ66,{1,2,3,4,5,6,7,8})), "") -> 
AS67: 0 | AT67: 0 | AU67: =IF($AT67<=6,SUM($C67:$AQ67),SUMPRODUCT(LARGE($C67:$AQ67,{1,2,3,4,5,6}))) -> 0 | AX67: =IFERROR(SUMPRODUCT(LARGE($C67:$AQ67,{1,2,3,4})), "") ->  | AZ67: =IFERROR(SUMPRODUCT(LARGE($C67:$AQ67,{1,2,3,4,5,6,7,8})), "") -> 
AS68: 0 | AT68: 0 | AU68: =IF($AT68<=6,SUM($C68:$AQ68),SUMPRODUCT(LARGE($C68:$AQ68,{1,2,3,4,5,6}))) -> 0 | AX68: =IFERROR(SUMPRODUCT(LARGE($C68:$AQ68,{1,2,3,4})), "") ->  | AZ68: =IFERROR(SUMPRODUCT(LARGE($C68:$AQ68,{1,2,3,4,5,6,7,8})), "") -> 
AS69: =SUM($C69:$AR69) -> 0 | AT69: =COUNTA(C69:AQ69) -> 0 | AU69: =IF($AT69<=6,SUM($C69:$AQ69),SUMPRODUCT(LARGE($C69:$AQ69,{1,2,3,4,5,6}))) -> 0 | AV69: =IF(AND($AT69>=6,AU69=AU70),"Manual Calc Needed","") ->  | AW69: =IF(AND($AT69>=6,$AV69="Tie"),"Manual Calc Needed"," ") ->  | AX69: =IFERROR(SUMPRODUCT(LARGE($C69:$AQ69,{1,2,3,4})), "") ->  | AY69: =IF(AND($AT69>=6,$AV69="Tie",AX69=AX70),"Manual Calc Needed"," ") ->  | AZ69: =IFERROR(SUMPRODUCT(LARGE($C69:$AQ69,{1,2,3,4,5,6,7,8})), "") -> 
AS70: 0 | AT70: 0 | AU70: =IF($AT70<=6,SUM($C70:$AQ70),SUMPRODUCT(LARGE($C70:$AQ70,{1,2,3,4,5,6}))) -> 0 | AX70: =IFERROR(SUMPRODUCT(LARGE($C70:$AQ70,{1,2,3,4})), "") ->  | AZ70: =IFERROR(SUMPRODUCT(LARGE($C70:$AQ70,{1,2,3,4,5,6,7,8})), "") -> 
AS71: 0 | AT71: 0 | AU71: =IF($AT71<=6,SUM($C71:$AQ71),SUMPRODUCT(LARGE($C71:$AQ71,{1,2,3,4,5,6}))) -> 0 | AX71: =IFERROR(SUMPRODUCT(LARGE($C71:$AQ71,{1,2,3,4})), "") ->  | AZ71: =IFERROR(SUMPRODUCT(LARGE($C71:$AQ71,{1,2,3,4,5,6,7,8})), "") -> 
AS72: 0 | AT72: 0 | AU72: =IF($AT72<=6,SUM($C72:$AQ72),SUMPRODUCT(LARGE($C72:$AQ72,{1,2,3,4,5,6}))) -> 0 | AX72: =IFERROR(SUMPRODUCT(LARGE($C72:$AQ72,{1,2,3,4})), "") ->  | AZ72: =IFERROR(SUMPRODUCT(LARGE($C72:$AQ72,{1,2,3,4,5,6,7,8})), "") -> 
AS73: 0 | AT73: 0 | AU73: =IF($AT73<=6,SUM($C73:$AQ73),SUMPRODUCT(LARGE($C73:$AQ73,{1,2,3,4,5,6}))) -> 0 | AX73: =IFERROR(SUMPRODUCT(LARGE($C73:$AQ73,{1,2,3,4})), "") ->  | AZ73: =IFERROR(SUMPRODUCT(LARGE($C73:$AQ73,{1,2,3,4,5,6,7,8})), "") -> 
AS74: 0 | AT74: 0 | AU74: =IF($AT74<=6,SUM($C74:$AQ74),SUMPRODUCT(LARGE($C74:$AQ74,{1,2,3,4,5,6}))) -> 0 | AX74: =IFERROR(SUMPRODUCT(LARGE($C74:$AQ74,{1,2,3,4})), "") ->  | AZ74: =IFERROR(SUMPRODUCT(LARGE($C74:$AQ74,{1,2,3,4,5,6,7,8})), "") -> 
AS75: 0 | AT75: 0 | AU75: =IF($AT75<=6,SUM($C75:$AQ75),SUMPRODUCT(LARGE($C75:$AQ75,{1,2,3,4,5,6}))) -> 0 | AX75: =IFERROR(SUMPRODUCT(LARGE($C75:$AQ75,{1,2,3,4})), "") ->  | AZ75: =IFERROR(SUMPRODUCT(LARGE($C75:$AQ75,{1,2,3,4,5,6,7,8})), "") -> 
AS76: 0 | AT76: 0 | AU76: =IF($AT76<=6,SUM($C76:$AQ76),SUMPRODUCT(LARGE($C76:$AQ76,{1,2,3,4,5,6}))) -> 0 | AX76: =IFERROR(SUMPRODUCT(LARGE($C76:$AQ76,{1,2,3,4})), "") ->  | AZ76: =IFERROR(SUMPRODUCT(LARGE($C76:$AQ76,{1,2,3,4,5,6,7,8})), "") -> 
AS77: 0 | AT77: 0 | AU77: =IF($AT77<=6,SUM($C77:$AQ77),SUMPRODUCT(LARGE($C77:$AQ77,{1,2,3,4,5,6}))) -> 0 | AX77: =IFERROR(SUMPRODUCT(LARGE($C77:$AQ77,{1,2,3,4})), "") ->  | AZ77: =IFERROR(SUMPRODUCT(LARGE($C77:$AQ77,{1,2,3,4,5,6,7,8})), "") -> 
AS78: 0 | AT78: 0 | AU78: =IF($AT78<=6,SUM($C78:$AQ78),SUMPRODUCT(LARGE($C78:$AQ78,{1,2,3,4,5,6}))) -> 0 | AX78: =IFERROR(SUMPRODUCT(LARGE($C78:$AQ78,{1,2,3,4})), "") ->  | AZ78: =IFERROR(SUMPRODUCT(LARGE($C78:$AQ78,{1,2,3,4,5,6,7,8})), "") -> 
AS79: 0 | AT79: 0 | AU79: =IF($AT79<=6,SUM($C79:$AQ79),SUMPRODUCT(LARGE($C79:$AQ79,{1,2,3,4,5,6}))) -> 0 | AX79: =IFERROR(SUMPRODUCT(LARGE($C79:$AQ79,{1,2,3,4})), "") ->  | AZ79: =IFERROR(SUMPRODUCT(LARGE($C79:$AQ79,{1,2,3,4,5,6,7,8})), "") -> 
AS80: 0 | AT80: 0 | AU80: =IF($AT80<=6,SUM($C80:$AQ80),SUMPRODUCT(LARGE($C80:$AQ80,{1,2,3,4,5,6}))) -> 0 | AX80: =IFERROR(SUMPRODUCT(LARGE($C80:$AQ80,{1,2,3,4})), "") ->  | AZ80: =IFERROR(SUMPRODUCT(LARGE($C80:$AQ80,{1,2,3,4,5,6,7,8})), "") -> 
AS81: 0 | AT81: 0 | AU81: =IF($AT81<=6,SUM($C81:$AQ81),SUMPRODUCT(LARGE($C81:$AQ81,{1,2,3,4,5,6}))) -> 0 | AX81: =IFERROR(SUMPRODUCT(LARGE($C81:$AQ81,{1,2,3,4})), "") ->  | AZ81: =IFERROR(SUMPRODUCT(LARGE($C81:$AQ81,{1,2,3,4,5,6,7,8})), "") -> 
AS82: 0 | AT82: 0 | AU82: =IF($AT82<=6,SUM($C82:$AQ82),SUMPRODUCT(LARGE($C82:$AQ82,{1,2,3,4,5,6}))) -> 0 | AX82: =IFERROR(SUMPRODUCT(LARGE($C82:$AQ82,{1,2,3,4})), "") ->  | AZ82: =IFERROR(SUMPRODUCT(LARGE($C82:$AQ82,{1,2,3,4,5,6,7,8})), "") -> 
AS83: 0 | AT83: 0 | AU83: =IF($AT83<=6,SUM($C83:$AQ83),SUMPRODUCT(LARGE($C83:$AQ83,{1,2,3,4,5,6}))) -> 0 | AX83: =IFERROR(SUMPRODUCT(LARGE($C83:$AQ83,{1,2,3,4})), "") ->  | AZ83: =IFERROR(SUMPRODUCT(LARGE($C83:$AQ83,{1,2,3,4,5,6,7,8})), "") -> 
AS84: 0 | AT84: 0 | AU84: =IF($AT84<=6,SUM($C84:$AQ84),SUMPRODUCT(LARGE($C84:$AQ84,{1,2,3,4,5,6}))) -> 0 | AX84: =IFERROR(SUMPRODUCT(LARGE($C84:$AQ84,{1,2,3,4})), "") ->  | AZ84: =IFERROR(SUMPRODUCT(LARGE($C84:$AQ84,{1,2,3,4,5,6,7,8})), "") -> 
AS85: 0 | AT85: 0 | AU85: =IF($AT85<=6,SUM($C85:$AQ85),SUMPRODUCT(LARGE($C85:$AQ85,{1,2,3,4,5,6}))) -> 0 | AX85: =IFERROR(SUMPRODUCT(LARGE($C85:$AQ85,{1,2,3,4})), "") ->  | AZ85: =IFERROR(SUMPRODUCT(LARGE($C85:$AQ85,{1,2,3,4,5,6,7,8})), "") -> 
AS86: 0 | AT86: 0 | AU86: =IF($AT86<=6,SUM($C86:$AQ86),SUMPRODUCT(LARGE($C86:$AQ86,{1,2,3,4,5,6}))) -> 0 | AX86: =IFERROR(SUMPRODUCT(LARGE($C86:$AQ86,{1,2,3,4})), "") ->  | AZ86: =IFERROR(SUMPRODUCT(LARGE($C86:$AQ86,{1,2,3,4,5,6,7,8})), "") -> 
AS87: 0 | AT87: 0 | AU87: =IF($AT87<=6,SUM($C87:$AQ87),SUMPRODUCT(LARGE($C87:$AQ87,{1,2,3,4,5,6}))) -> 0 | AX87: =IFERROR(SUMPRODUCT(LARGE($C87:$AQ87,{1,2,3,4})), "") ->  | AZ87: =IFERROR(SUMPRODUCT(LARGE($C87:$AQ87,{1,2,3,4,5,6,7,8})), "") -> 
AS88: 0 | AT88: 0 | AU88: =IF($AT88<=6,SUM($C88:$AQ88),SUMPRODUCT(LARGE($C88:$AQ88,{1,2,3,4,5,6}))) -> 0 | AX88: =IFERROR(SUMPRODUCT(LARGE($C88:$AQ88,{1,2,3,4})), "") ->  | AZ88: =IFERROR(SUMPRODUCT(LARGE($C88:$AQ88,{1,2,3,4,5,6,7,8})), "") -> 
AS89: 0 | AT89: 0 | AU89: =IF($AT89<=6,SUM($C89:$AQ89),SUMPRODUCT(LARGE($C89:$AQ89,{1,2,3,4,5,6}))) -> 0 | AX89: =IFERROR(SUMPRODUCT(LARGE($C89:$AQ89,{1,2,3,4})), "") ->  | AZ89: =IFERROR(SUMPRODUCT(LARGE($C89:$AQ89,{1,2,3,4,5,6,7,8})), "") -> 
AS90: 0 | AT90: 0 | AU90: =IF($AT90<=6,SUM($C90:$AQ90),SUMPRODUCT(LARGE($C90:$AQ90,{1,2,3,4,5,6}))) -> 0 | AX90: =IFERROR(SUMPRODUCT(LARGE($C90:$AQ90,{1,2,3,4})), "") ->  | AZ90: =IFERROR(SUMPRODUCT(LARGE($C90:$AQ90,{1,2,3,4,5,6,7,8})), "") -> 
AS91: 0 | AT91: 0 | AU91: =IF($AT91<=6,SUM($C91:$AQ91),SUMPRODUCT(LARGE($C91:$AQ91,{1,2,3,4,5,6}))) -> 0 | AX91: =IFERROR(SUMPRODUCT(LARGE($C91:$AQ91,{1,2,3,4})), "") ->  | AZ91: =IFERROR(SUMPRODUCT(LARGE($C91:$AQ91,{1,2,3,4,5,6,7,8})), "") -> 
AS92: 0 | AT92: 0 | AU92: =IF($AT92<=6,SUM($C92:$AQ92),SUMPRODUCT(LARGE($C92:$AQ92,{1,2,3,4,5,6}))) -> 0 | AX92: =IFERROR(SUMPRODUCT(LARGE($C92:$AQ92,{1,2,3,4})), "") ->  | AZ92: =IFERROR(SUMPRODUCT(LARGE($C92:$AQ92,{1,2,3,4,5,6,7,8})), "") -> 
AS93: 0 | AT93: 0 | AU93: =IF($AT93<=6,SUM($C93:$AQ93),SUMPRODUCT(LARGE($C93:$AQ93,{1,2,3,4,5,6}))) -> 0 | AX93: =IFERROR(SUMPRODUCT(LARGE($C93:$AQ93,{1,2,3,4})), "") ->  | AZ93: =IFERROR(SUMPRODUCT(LARGE($C93:$AQ93,{1,2,3,4,5,6,7,8})), "") -> 
AS94: 0 | AT94: 0 | AU94: =IF($AT94<=6,SUM($C94:$AQ94),SUMPRODUCT(LARGE($C94:$AQ94,{1,2,3,4,5,6}))) -> 0 | AX94: =IFERROR(SUMPRODUCT(LARGE($C94:$AQ94,{1,2,3,4})), "") ->  | AZ94: =IFERROR(SUMPRODUCT(LARGE($C94:$AQ94,{1,2,3,4,5,6,7,8})), "") -> 
AS95: 0 | AT95: 0 | AU95: =IF($AT95<=6,SUM($C95:$AQ95),SUMPRODUCT(LARGE($C95:$AQ95,{1,2,3,4,5,6}))) -> 0 | AX95: =IFERROR(SUMPRODUCT(LARGE($C95:$AQ95,{1,2,3,4})), "") ->  | AZ95: =IFERROR(SUMPRODUCT(LARGE($C95:$AQ95,{1,2,3,4,5,6,7,8})), "") -> 
AS96: 0 | AT96: 0 | AU96: =IF($AT96<=6,SUM($C96:$AQ96),SUMPRODUCT(LARGE($C96:$AQ96,{1,2,3,4,5,6}))) -> 0 | AX96: =IFERROR(SUMPRODUCT(LARGE($C96:$AQ96,{1,2,3,4})), "") ->  | AZ96: =IFERROR(SUMPRODUCT(LARGE($C96:$AQ96,{1,2,3,4,5,6,7,8})), "") -> 
AS97: 0 | AT97: 0 | AU97: =IF($AT97<=6,SUM($C97:$AQ97),SUMPRODUCT(LARGE($C97:$AQ97,{1,2,3,4,5,6}))) -> 0 | AX97: =IFERROR(SUMPRODUCT(LARGE($C97:$AQ97,{1,2,3,4})), "") ->  | AZ97: =IFERROR(SUMPRODUCT(LARGE($C97:$AQ97,{1,2,3,4,5,6,7,8})), "") -> 
AS98: 0 | AT98: 0 | AU98: =IF($AT98<=6,SUM($C98:$AQ98),SUMPRODUCT(LARGE($C98:$AQ98,{1,2,3,4,5,6}))) -> 0 | AX98: =IFERROR(SUMPRODUCT(LARGE($C98:$AQ98,{1,2,3,4})), "") ->  | AZ98: =IFERROR(SUMPRODUCT(LARGE($C98:$AQ98,{1,2,3,4,5,6,7,8})), "") -> 
AS99: 0 | AT99: 0 | AU99: =IF($AT99<=6,SUM($C99:$AQ99),SUMPRODUCT(LARGE($C99:$AQ99,{1,2,3,4,5,6}))) -> 0 | AX99: =IFERROR(SUMPRODUCT(LARGE($C99:$AQ99,{1,2,3,4})), "") ->  | AZ99: =IFERROR(SUMPRODUCT(LARGE($C99:$AQ99,{1,2,3,4,5,6,7,8})), "") -> 
AS100: 0 | AT100: 0 | AU100: =IF($AT100<=6,SUM($C100:$AQ100),SUMPRODUCT(LARGE($C100:$AQ100,{1,2,3,4,5,6}))) -> 0 | AX100: =IFERROR(SUMPRODUCT(LARGE($C100:$AQ100,{1,2,3,4})), "") ->  | AZ100: =IFERROR(SUMPRODUCT(LARGE($C100:$AQ100,{1,2,3,4,5,6,7,8})), "") -> 
AS101: 0 | AT101: 0 | AU101: =IF($AT101<=6,SUM($C101:$AQ101),SUMPRODUCT(LARGE($C101:$AQ101,{1,2,3,4,5,6}))) -> 0 | AX101: =IFERROR(SUMPRODUCT(LARGE($C101:$AQ101,{1,2,3,4})), "") ->  | AZ101: =IFERROR(SUMPRODUCT(LARGE($C101:$AQ101,{1,2,3,4,5,6,7,8})), "") -> 
AS102: 0 | AT102: 0 | AU102: =IF($AT102<=6,SUM($C102:$AQ102),SUMPRODUCT(LARGE($C102:$AQ102,{1,2,3,4,5,6}))) -> 0 | AX102: =IFERROR(SUMPRODUCT(LARGE($C102:$AQ102,{1,2,3,4})), "") ->  | AZ102: =IFERROR(SUMPRODUCT(LARGE($C102:$AQ102,{1,2,3,4,5,6,7,8})), "") -> 
AS103: 0 | AT103: 0 | AU103: =IF($AT103<=6,SUM($C103:$AQ103),SUMPRODUCT(LARGE($C103:$AQ103,{1,2,3,4,5,6}))) -> 0 | AX103: =IFERROR(SUMPRODUCT(LARGE($C103:$AQ103,{1,2,3,4})), "") ->  | AZ103: =IFERROR(SUMPRODUCT(LARGE($C103:$AQ103,{1,2,3,4,5,6,7,8})), "") -> 
AS104: 0 | AT104: 0 | AU104: =IF($AT104<=6,SUM($C104:$AQ104),SUMPRODUCT(LARGE($C104:$AQ104,{1,2,3,4,5,6}))) -> 0 | AX104: =IFERROR(SUMPRODUCT(LARGE($C104:$AQ104,{1,2,3,4})), "") ->  | AZ104: =IFERROR(SUMPRODUCT(LARGE($C104:$AQ104,{1,2,3,4,5,6,7,8})), "") -> 
AS105: 0 | AT105: 0 | AU105: =IF($AT105<=6,SUM($C105:$AQ105),SUMPRODUCT(LARGE($C105:$AQ105,{1,2,3,4,5,6}))) -> 0 | AX105: =IFERROR(SUMPRODUCT(LARGE($C105:$AQ105,{1,2,3,4})), "") ->  | AZ105: =IFERROR(SUMPRODUCT(LARGE($C105:$AQ105,{1,2,3,4,5,6,7,8})), "") -> 
AS106: 0 | AT106: 0 | AU106: =IF($AT106<=6,SUM($C106:$AQ106),SUMPRODUCT(LARGE($C106:$AQ106,{1,2,3,4,5,6}))) -> 0 | AX106: =IFERROR(SUMPRODUCT(LARGE($C106:$AQ106,{1,2,3,4})), "") ->  | AZ106: =IFERROR(SUMPRODUCT(LARGE($C106:$AQ106,{1,2,3,4,5,6,7,8})), "") -> 
AS107: 0 | AT107: 0 | AU107: =IF($AT107<=6,SUM($C107:$AQ107),SUMPRODUCT(LARGE($C107:$AQ107,{1,2,3,4,5,6}))) -> 0 | AX107: =IFERROR(SUMPRODUCT(LARGE($C107:$AQ107,{1,2,3,4})), "") ->  | AZ107: =IFERROR(SUMPRODUCT(LARGE($C107:$AQ107,{1,2,3,4,5,6,7,8})), "") -> 
AS108: 0 | AT108: 0 | AU108: =IF($AT108<=6,SUM($C108:$AQ108),SUMPRODUCT(LARGE($C108:$AQ108,{1,2,3,4,5,6}))) -> 0 | AX108: =IFERROR(SUMPRODUCT(LARGE($C108:$AQ108,{1,2,3,4})), "") ->  | AZ108: =IFERROR(SUMPRODUCT(LARGE($C108:$AQ108,{1,2,3,4,5,6,7,8})), "") -> 
AS109: 0 | AT109: 0 | AU109: =IF($AT109<=6,SUM($C109:$AQ109),SUMPRODUCT(LARGE($C109:$AQ109,{1,2,3,4,5,6}))) -> 0 | AX109: =IFERROR(SUMPRODUCT(LARGE($C109:$AQ109,{1,2,3,4})), "") ->  | AZ109: =IFERROR(SUMPRODUCT(LARGE($C109:$AQ109,{1,2,3,4,5,6,7,8})), "") -> 
AS110: 0 | AT110: 0 | AU110: =IF($AT110<=6,SUM($C110:$AQ110),SUMPRODUCT(LARGE($C110:$AQ110,{1,2,3,4,5,6}))) -> 0 | AX110: =IFERROR(SUMPRODUCT(LARGE($C110:$AQ110,{1,2,3,4})), "") ->  | AZ110: =IFERROR(SUMPRODUCT(LARGE($C110:$AQ110,{1,2,3,4,5,6,7,8})), "") -> 
AS111: 0 | AT111: 0 | AU111: =IF($AT111<=6,SUM($C111:$AQ111),SUMPRODUCT(LARGE($C111:$AQ111,{1,2,3,4,5,6}))) -> 0 | AX111: =IFERROR(SUMPRODUCT(LARGE($C111:$AQ111,{1,2,3,4})), "") ->  | AZ111: =IFERROR(SUMPRODUCT(LARGE($C111:$AQ111,{1,2,3,4,5,6,7,8})), "") -> 
AS112: 0 | AT112: 0 | AU112: =IF($AT112<=6,SUM($C112:$AQ112),SUMPRODUCT(LARGE($C112:$AQ112,{1,2,3,4,5,6}))) -> 0 | AX112: =IFERROR(SUMPRODUCT(LARGE($C112:$AQ112,{1,2,3,4})), "") ->  | AZ112: =IFERROR(SUMPRODUCT(LARGE($C112:$AQ112,{1,2,3,4,5,6,7,8})), "") -> 
AS113: 0 | AT113: 0 | AU113: =IF($AT113<=6,SUM($C113:$AQ113),SUMPRODUCT(LARGE($C113:$AQ113,{1,2,3,4,5,6}))) -> 0 | AX113: =IFERROR(SUMPRODUCT(LARGE($C113:$AQ113,{1,2,3,4})), "") ->  | AZ113: =IFERROR(SUMPRODUCT(LARGE($C113:$AQ113,{1,2,3,4,5,6,7,8})), "") -> 
AS114: 0 | AT114: 0 | AU114: =IF($AT114<=6,SUM($C114:$AQ114),SUMPRODUCT(LARGE($C114:$AQ114,{1,2,3,4,5,6}))) -> 0 | AX114: =IFERROR(SUMPRODUCT(LARGE($C114:$AQ114,{1,2,3,4})), "") ->  | AZ114: =IFERROR(SUMPRODUCT(LARGE($C114:$AQ114,{1,2,3,4,5,6,7,8})), "") -> 
AS115: 0 | AT115: 0 | AU115: =IF($AT115<=6,SUM($C115:$AQ115),SUMPRODUCT(LARGE($C115:$AQ115,{1,2,3,4,5,6}))) -> 0 | AX115: =IFERROR(SUMPRODUCT(LARGE($C115:$AQ115,{1,2,3,4})), "") ->  | AZ115: =IFERROR(SUMPRODUCT(LARGE($C115:$AQ115,{1,2,3,4,5,6,7,8})), "") -> 
AS116: 0 | AT116: 0 | AU116: =IF($AT116<=6,SUM($C116:$AQ116),SUMPRODUCT(LARGE($C116:$AQ116,{1,2,3,4,5,6}))) -> 0 | AX116: =IFERROR(SUMPRODUCT(LARGE($C116:$AQ116,{1,2,3,4})), "") ->  | AZ116: =IFERROR(SUMPRODUCT(LARGE($C116:$AQ116,{1,2,3,4,5,6,7,8})), "") -> 
AS117: 0 | AT117: 0 | AU117: =IF($AT117<=6,SUM($C117:$AQ117),SUMPRODUCT(LARGE($C117:$AQ117,{1,2,3,4,5,6}))) -> 0 | AX117: =IFERROR(SUMPRODUCT(LARGE($C117:$AQ117,{1,2,3,4})), "") ->  | AZ117: =IFERROR(SUMPRODUCT(LARGE($C117:$AQ117,{1,2,3,4,5,6,7,8})), "") -> 
AS118: 0 | AT118: 0 | AU118: =IF($AT118<=6,SUM($C118:$AQ118),SUMPRODUCT(LARGE($C118:$AQ118,{1,2,3,4,5,6}))) -> 0 | AX118: =IFERROR(SUMPRODUCT(LARGE($C118:$AQ118,{1,2,3,4})), "") ->  | AZ118: =IFERROR(SUMPRODUCT(LARGE($C118:$AQ118,{1,2,3,4,5,6,7,8})), "") -> 
AS119: 0 | AT119: 0 | AU119: =IF($AT119<=6,SUM($C119:$AQ119),SUMPRODUCT(LARGE($C119:$AQ119,{1,2,3,4,5,6}))) -> 0 | AX119: =IFERROR(SUMPRODUCT(LARGE($C119:$AQ119,{1,2,3,4})), "") ->  | AZ119: =IFERROR(SUMPRODUCT(LARGE($C119:$AQ119,{1,2,3,4,5,6,7,8})), "") -> 
AS120: 0 | AT120: 0 | AU120: =IF($AT120<=6,SUM($C120:$AQ120),SUMPRODUCT(LARGE($C120:$AQ120,{1,2,3,4,5,6}))) -> 0 | AX120: =IFERROR(SUMPRODUCT(LARGE($C120:$AQ120,{1,2,3,4})), "") ->  | AZ120: =IFERROR(SUMPRODUCT(LARGE($C120:$AQ120,{1,2,3,4,5,6,7,8})), "") -> 
AS121: 0 | AT121: 0 | AU121: =IF($AT121<=6,SUM($C121:$AQ121),SUMPRODUCT(LARGE($C121:$AQ121,{1,2,3,4,5,6}))) -> 0 | AX121: =IFERROR(SUMPRODUCT(LARGE($C121:$AQ121,{1,2,3,4})), "") ->  | AZ121: =IFERROR(SUMPRODUCT(LARGE($C121:$AQ121,{1,2,3,4,5,6,7,8})), "") -> 
AS122: 0 | AT122: 0 | AU122: =IF($AT122<=6,SUM($C122:$AQ122),SUMPRODUCT(LARGE($C122:$AQ122,{1,2,3,4,5,6}))) -> 0 | AX122: =IFERROR(SUMPRODUCT(LARGE($C122:$AQ122,{1,2,3,4})), "") ->  | AZ122: =IFERROR(SUMPRODUCT(LARGE($C122:$AQ122,{1,2,3,4,5,6,7,8})), "") -> 
AS123: 0 | AT123: 0 | AU123: =IF($AT123<=6,SUM($C123:$AQ123),SUMPRODUCT(LARGE($C123:$AQ123,{1,2,3,4,5,6}))) -> 0 | AX123: =IFERROR(SUMPRODUCT(LARGE($C123:$AQ123,{1,2,3,4})), "") ->  | AZ123: =IFERROR(SUMPRODUCT(LARGE($C123:$AQ123,{1,2,3,4,5,6,7,8})), "") -> 
AS124: 0 | AT124: 0 | AU124: =IF($AT124<=6,SUM($C124:$AQ124),SUMPRODUCT(LARGE($C124:$AQ124,{1,2,3,4,5,6}))) -> 0 | AX124: =IFERROR(SUMPRODUCT(LARGE($C124:$AQ124,{1,2,3,4})), "") ->  | AZ124: =IFERROR(SUMPRODUCT(LARGE($C124:$AQ124,{1,2,3,4,5,6,7,8})), "") -> 
AS125: 0 | AT125: 0 | AU125: =IF($AT125<=6,SUM($C125:$AQ125),SUMPRODUCT(LARGE($C125:$AQ125,{1,2,3,4,5,6}))) -> 0 | AX125: =IFERROR(SUMPRODUCT(LARGE($C125:$AQ125,{1,2,3,4})), "") ->  | AZ125: =IFERROR(SUMPRODUCT(LARGE($C125:$AQ125,{1,2,3,4,5,6,7,8})), "") -> 
AS126: 0 | AT126: 0 | AU126: =IF($AT126<=6,SUM($C126:$AQ126),SUMPRODUCT(LARGE($C126:$AQ126,{1,2,3,4,5,6}))) -> 0 | AX126: =IFERROR(SUMPRODUCT(LARGE($C126:$AQ126,{1,2,3,4})), "") ->  | AZ126: =IFERROR(SUMPRODUCT(LARGE($C126:$AQ126,{1,2,3,4,5,6,7,8})), "") -> 
AS127: 0 | AT127: 0 | AU127: =IF($AT127<=6,SUM($C127:$AQ127),SUMPRODUCT(LARGE($C127:$AQ127,{1,2,3,4,5,6}))) -> 0 | AX127: =IFERROR(SUMPRODUCT(LARGE($C127:$AQ127,{1,2,3,4})), "") ->  | AZ127: =IFERROR(SUMPRODUCT(LARGE($C127:$AQ127,{1,2,3,4,5,6,7,8})), "") -> 
AS128: 0 | AT128: 0 | AU128: =IF($AT128<=6,SUM($C128:$AQ128),SUMPRODUCT(LARGE($C128:$AQ128,{1,2,3,4,5,6}))) -> 0 | AX128: =IFERROR(SUMPRODUCT(LARGE($C128:$AQ128,{1,2,3,4})), "") ->  | AZ128: =IFERROR(SUMPRODUCT(LARGE($C128:$AQ128,{1,2,3,4,5,6,7,8})), "") -> 
AS129: 0 | AT129: 0 | AU129: =IF($AT129<=6,SUM($C129:$AQ129),SUMPRODUCT(LARGE($C129:$AQ129,{1,2,3,4,5,6}))) -> 0 | AX129: =IFERROR(SUMPRODUCT(LARGE($C129:$AQ129,{1,2,3,4})), "") ->  | AZ129: =IFERROR(SUMPRODUCT(LARGE($C129:$AQ129,{1,2,3,4,5,6,7,8})), "") -> 
AS130: 0 | AT130: 0 | AU130: =IF($AT130<=6,SUM($C130:$AQ130),SUMPRODUCT(LARGE($C130:$AQ130,{1,2,3,4,5,6}))) -> 0 | AX130: =IFERROR(SUMPRODUCT(LARGE($C130:$AQ130,{1,2,3,4})), "") ->  | AZ130: =IFERROR(SUMPRODUCT(LARGE($C130:$AQ130,{1,2,3,4,5,6,7,8})), "") -> 
AS131: 0 | AT131: 0 | AU131: =IF($AT131<=6,SUM($C131:$AQ131),SUMPRODUCT(LARGE($C131:$AQ131,{1,2,3,4,5,6}))) -> 0 | AX131: =IFERROR(SUMPRODUCT(LARGE($C131:$AQ131,{1,2,3,4})), "") ->  | AZ131: =IFERROR(SUMPRODUCT(LARGE($C131:$AQ131,{1,2,3,4,5,6,7,8})), "") -> 
AS132: 0 | AT132: 0 | AU132: =IF($AT132<=6,SUM($C132:$AQ132),SUMPRODUCT(LARGE($C132:$AQ132,{1,2,3,4,5,6}))) -> 0 | AX132: =IFERROR(SUMPRODUCT(LARGE($C132:$AQ132,{1,2,3,4})), "") ->  | AZ132: =IFERROR(SUMPRODUCT(LARGE($C132:$AQ132,{1,2,3,4,5,6,7,8})), "") -> 
AS133: =SUM($C133:$AR133) -> 0 | AT133: =COUNTA(C133:AQ133) -> 0 | AU133: =IF($AT133<=6,SUM($C133:$AQ133),SUMPRODUCT(LARGE($C133:$AQ133,{1,2,3,4,5,6}))) -> 0 | AV133: =IF(AND($AT133>=6,AU133=AU134),"Manual Calc Needed","") ->  | AW133: =IF(AND($AT133>=6,$AV133="Tie"),"Manual Calc Needed"," ") ->  | AX133: =IFERROR(SUMPRODUCT(LARGE($C133:$AQ133,{1,2,3,4})), "") ->  | AY133: =IF(AND($AT133>=6,$AV133="Tie",AX133=AX134),"Manual Calc Needed"," ") ->  | AZ133: =IFERROR(SUMPRODUCT(LARGE($C133:$AQ133,{1,2,3,4,5,6,7,8})), "") -> 
AS134: 0 | AT134: 0 | AU134: =IF($AT134<=6,SUM($C134:$AQ134),SUMPRODUCT(LARGE($C134:$AQ134,{1,2,3,4,5,6}))) -> 0 | AX134: =IFERROR(SUMPRODUCT(LARGE($C134:$AQ134,{1,2,3,4})), "") ->  | AZ134: =IFERROR(SUMPRODUCT(LARGE($C134:$AQ134,{1,2,3,4,5,6,7,8})), "") -> 
AS135: 0 | AT135: 0 | AU135: =IF($AT135<=6,SUM($C135:$AQ135),SUMPRODUCT(LARGE($C135:$AQ135,{1,2,3,4,5,6}))) -> 0 | AX135: =IFERROR(SUMPRODUCT(LARGE($C135:$AQ135,{1,2,3,4})), "") ->  | AZ135: =IFERROR(SUMPRODUCT(LARGE($C135:$AQ135,{1,2,3,4,5,6,7,8})), "") -> 
AS136: 0 | AT136: 0 | AU136: =IF($AT136<=6,SUM($C136:$AQ136),SUMPRODUCT(LARGE($C136:$AQ136,{1,2,3,4,5,6}))) -> 0 | AX136: =IFERROR(SUMPRODUCT(LARGE($C136:$AQ136,{1,2,3,4})), "") ->  | AZ136: =IFERROR(SUMPRODUCT(LARGE($C136:$AQ136,{1,2,3,4,5,6,7,8})), "") -> 
AS137: 0 | AT137: 0 | AU137: =IF($AT137<=6,SUM($C137:$AQ137),SUMPRODUCT(LARGE($C137:$AQ137,{1,2,3,4,5,6}))) -> 0 | AX137: =IFERROR(SUMPRODUCT(LARGE($C137:$AQ137,{1,2,3,4})), "") ->  | AZ137: =IFERROR(SUMPRODUCT(LARGE($C137:$AQ137,{1,2,3,4,5,6,7,8})), "") -> 
AS138: 0 | AT138: 0 | AU138: =IF($AT138<=6,SUM($C138:$AQ138),SUMPRODUCT(LARGE($C138:$AQ138,{1,2,3,4,5,6}))) -> 0 | AX138: =IFERROR(SUMPRODUCT(LARGE($C138:$AQ138,{1,2,3,4})), "") ->  | AZ138: =IFERROR(SUMPRODUCT(LARGE($C138:$AQ138,{1,2,3,4,5,6,7,8})), "") -> 
AS139: 0 | AT139: 0 | AU139: =IF($AT139<=6,SUM($C139:$AQ139),SUMPRODUCT(LARGE($C139:$AQ139,{1,2,3,4,5,6}))) -> 0 | AX139: =IFERROR(SUMPRODUCT(LARGE($C139:$AQ139,{1,2,3,4})), "") ->  | AZ139: =IFERROR(SUMPRODUCT(LARGE($C139:$AQ139,{1,2,3,4,5,6,7,8})), "") -> 
AS140: 0 | AT140: 0 | AU140: =IF($AT140<=6,SUM($C140:$AQ140),SUMPRODUCT(LARGE($C140:$AQ140,{1,2,3,4,5,6}))) -> 0 | AX140: =IFERROR(SUMPRODUCT(LARGE($C140:$AQ140,{1,2,3,4})), "") ->  | AZ140: =IFERROR(SUMPRODUCT(LARGE($C140:$AQ140,{1,2,3,4,5,6,7,8})), "") -> 
AS141: 0 | AT141: 0 | AU141: =IF($AT141<=6,SUM($C141:$AQ141),SUMPRODUCT(LARGE($C141:$AQ141,{1,2,3,4,5,6}))) -> 0 | AX141: =IFERROR(SUMPRODUCT(LARGE($C141:$AQ141,{1,2,3,4})), "") ->  | AZ141: =IFERROR(SUMPRODUCT(LARGE($C141:$AQ141,{1,2,3,4,5,6,7,8})), "") -> 
AS142: 0 | AT142: 0 | AU142: =IF($AT142<=6,SUM($C142:$AQ142),SUMPRODUCT(LARGE($C142:$AQ142,{1,2,3,4,5,6}))) -> 0 | AX142: =IFERROR(SUMPRODUCT(LARGE($C142:$AQ142,{1,2,3,4})), "") ->  | AZ142: =IFERROR(SUMPRODUCT(LARGE($C142:$AQ142,{1,2,3,4,5,6,7,8})), "") -> 
AS143: 0 | AT143: 0 | AU143: =IF($AT143<=6,SUM($C143:$AQ143),SUMPRODUCT(LARGE($C143:$AQ143,{1,2,3,4,5,6}))) -> 0 | AX143: =IFERROR(SUMPRODUCT(LARGE($C143:$AQ143,{1,2,3,4})), "") ->  | AZ143: =IFERROR(SUMPRODUCT(LARGE($C143:$AQ143,{1,2,3,4,5,6,7,8})), "") -> 
AS144: 0 | AT144: 0 | AU144: =IF($AT144<=6,SUM($C144:$AQ144),SUMPRODUCT(LARGE($C144:$AQ144,{1,2,3,4,5,6}))) -> 0 | AX144: =IFERROR(SUMPRODUCT(LARGE($C144:$AQ144,{1,2,3,4})), "") ->  | AZ144: =IFERROR(SUMPRODUCT(LARGE($C144:$AQ144,{1,2,3,4,5,6,7,8})), "") -> 
AS145: 0 | AT145: 0 | AU145: =IF($AT145<=6,SUM($C145:$AQ145),SUMPRODUCT(LARGE($C145:$AQ145,{1,2,3,4,5,6}))) -> 0 | AX145: =IFERROR(SUMPRODUCT(LARGE($C145:$AQ145,{1,2,3,4})), "") ->  | AZ145: =IFERROR(SUMPRODUCT(LARGE($C145:$AQ145,{1,2,3,4,5,6,7,8})), "") -> 
AS146: 0 | AT146: 0 | AU146: =IF($AT146<=6,SUM($C146:$AQ146),SUMPRODUCT(LARGE($C146:$AQ146,{1,2,3,4,5,6}))) -> 0 | AX146: =IFERROR(SUMPRODUCT(LARGE($C146:$AQ146,{1,2,3,4})), "") ->  | AZ146: =IFERROR(SUMPRODUCT(LARGE($C146:$AQ146,{1,2,3,4,5,6,7,8})), "") -> 
AS147: 0 | AT147: 0 | AU147: =IF($AT147<=6,SUM($C147:$AQ147),SUMPRODUCT(LARGE($C147:$AQ147,{1,2,3,4,5,6}))) -> 0 | AX147: =IFERROR(SUMPRODUCT(LARGE($C147:$AQ147,{1,2,3,4})), "") ->  | AZ147: =IFERROR(SUMPRODUCT(LARGE($C147:$AQ147,{1,2,3,4,5,6,7,8})), "") -> 
AS148: 0 | AT148: 0 | AU148: =IF($AT148<=6,SUM($C148:$AQ148),SUMPRODUCT(LARGE($C148:$AQ148,{1,2,3,4,5,6}))) -> 0 | AX148: =IFERROR(SUMPRODUCT(LARGE($C148:$AQ148,{1,2,3,4})), "") ->  | AZ148: =IFERROR(SUMPRODUCT(LARGE($C148:$AQ148,{1,2,3,4,5,6,7,8})), "") -> 
AS149: 0 | AT149: 0 | AU149: =IF($AT149<=6,SUM($C149:$AQ149),SUMPRODUCT(LARGE($C149:$AQ149,{1,2,3,4,5,6}))) -> 0 | AX149: =IFERROR(SUMPRODUCT(LARGE($C149:$AQ149,{1,2,3,4})), "") ->  | AZ149: =IFERROR(SUMPRODUCT(LARGE($C149:$AQ149,{1,2,3,4,5,6,7,8})), "") -> 
AS150: 0 | AT150: 0 | AU150: =IF($AT150<=6,SUM($C150:$AQ150),SUMPRODUCT(LARGE($C150:$AQ150,{1,2,3,4,5,6}))) -> 0 | AX150: =IFERROR(SUMPRODUCT(LARGE($C150:$AQ150,{1,2,3,4})), "") ->  | AZ150: =IFERROR(SUMPRODUCT(LARGE($C150:$AQ150,{1,2,3,4,5,6,7,8})), "") -> 
AS151: 0 | AT151: 0 | AU151: =IF($AT151<=6,SUM($C151:$AQ151),SUMPRODUCT(LARGE($C151:$AQ151,{1,2,3,4,5,6}))) -> 0 | AX151: =IFERROR(SUMPRODUCT(LARGE($C151:$AQ151,{1,2,3,4})), "") ->  | AZ151: =IFERROR(SUMPRODUCT(LARGE($C151:$AQ151,{1,2,3,4,5,6,7,8})), "") -> 
AS152: 0 | AT152: 0 | AU152: =IF($AT152<=6,SUM($C152:$AQ152),SUMPRODUCT(LARGE($C152:$AQ152,{1,2,3,4,5,6}))) -> 0 | AX152: =IFERROR(SUMPRODUCT(LARGE($C152:$AQ152,{1,2,3,4})), "") ->  | AZ152: =IFERROR(SUMPRODUCT(LARGE($C152:$AQ152,{1,2,3,4,5,6,7,8})), "") -> 
AS153: 0 | AT153: 0 | AU153: =IF($AT153<=6,SUM($C153:$AQ153),SUMPRODUCT(LARGE($C153:$AQ153,{1,2,3,4,5,6}))) -> 0 | AX153: =IFERROR(SUMPRODUCT(LARGE($C153:$AQ153,{1,2,3,4})), "") ->  | AZ153: =IFERROR(SUMPRODUCT(LARGE($C153:$AQ153,{1,2,3,4,5,6,7,8})), "") -> 
AS154: 0 | AT154: 0 | AU154: =IF($AT154<=6,SUM($C154:$AQ154),SUMPRODUCT(LARGE($C154:$AQ154,{1,2,3,4,5,6}))) -> 0 | AX154: =IFERROR(SUMPRODUCT(LARGE($C154:$AQ154,{1,2,3,4})), "") ->  | AZ154: =IFERROR(SUMPRODUCT(LARGE($C154:$AQ154,{1,2,3,4,5,6,7,8})), "") -> 
AS155: 0 | AT155: 0 | AU155: =IF($AT155<=6,SUM($C155:$AQ155),SUMPRODUCT(LARGE($C155:$AQ155,{1,2,3,4,5,6}))) -> 0 | AX155: =IFERROR(SUMPRODUCT(LARGE($C155:$AQ155,{1,2,3,4})), "") ->  | AZ155: =IFERROR(SUMPRODUCT(LARGE($C155:$AQ155,{1,2,3,4,5,6,7,8})), "") -> 
AS156: 0 | AT156: 0 | AU156: =IF($AT156<=6,SUM($C156:$AQ156),SUMPRODUCT(LARGE($C156:$AQ156,{1,2,3,4,5,6}))) -> 0 | AX156: =IFERROR(SUMPRODUCT(LARGE($C156:$AQ156,{1,2,3,4})), "") ->  | AZ156: =IFERROR(SUMPRODUCT(LARGE($C156:$AQ156,{1,2,3,4,5,6,7,8})), "") -> 
AS157: 0 | AT157: 0 | AU157: =IF($AT157<=6,SUM($C157:$AQ157),SUMPRODUCT(LARGE($C157:$AQ157,{1,2,3,4,5,6}))) -> 0 | AX157: =IFERROR(SUMPRODUCT(LARGE($C157:$AQ157,{1,2,3,4})), "") ->  | AZ157: =IFERROR(SUMPRODUCT(LARGE($C157:$AQ157,{1,2,3,4,5,6,7,8})), "") -> 
AS158: 0 | AT158: 0 | AU158: =IF($AT158<=6,SUM($C158:$AQ158),SUMPRODUCT(LARGE($C158:$AQ158,{1,2,3,4,5,6}))) -> 0 | AX158: =IFERROR(SUMPRODUCT(LARGE($C158:$AQ158,{1,2,3,4})), "") ->  | AZ158: =IFERROR(SUMPRODUCT(LARGE($C158:$AQ158,{1,2,3,4,5,6,7,8})), "") -> 
AS159: 0 | AT159: 0 | AU159: =IF($AT159<=6,SUM($C159:$AQ159),SUMPRODUCT(LARGE($C159:$AQ159,{1,2,3,4,5,6}))) -> 0 | AX159: =IFERROR(SUMPRODUCT(LARGE($C159:$AQ159,{1,2,3,4})), "") ->  | AZ159: =IFERROR(SUMPRODUCT(LARGE($C159:$AQ159,{1,2,3,4,5,6,7,8})), "") -> 
AS160: 0 | AT160: 0 | AU160: =IF($AT160<=6,SUM($C160:$AQ160),SUMPRODUCT(LARGE($C160:$AQ160,{1,2,3,4,5,6}))) -> 0 | AX160: =IFERROR(SUMPRODUCT(LARGE($C160:$AQ160,{1,2,3,4})), "") ->  | AZ160: =IFERROR(SUMPRODUCT(LARGE($C160:$AQ160,{1,2,3,4,5,6,7,8})), "") -> 
AS161: 0 | AT161: 0 | AU161: =IF($AT161<=6,SUM($C161:$AQ161),SUMPRODUCT(LARGE($C161:$AQ161,{1,2,3,4,5,6}))) -> 0 | AX161: =IFERROR(SUMPRODUCT(LARGE($C161:$AQ161,{1,2,3,4})), "") ->  | AZ161: =IFERROR(SUMPRODUCT(LARGE($C161:$AQ161,{1,2,3,4,5,6,7,8})), "") -> 
AS162: 0 | AT162: 0 | AU162: =IF($AT162<=6,SUM($C162:$AQ162),SUMPRODUCT(LARGE($C162:$AQ162,{1,2,3,4,5,6}))) -> 0 | AX162: =IFERROR(SUMPRODUCT(LARGE($C162:$AQ162,{1,2,3,4})), "") ->  | AZ162: =IFERROR(SUMPRODUCT(LARGE($C162:$AQ162,{1,2,3,4,5,6,7,8})), "") -> 
AS163: 0 | AT163: 0 | AU163: =IF($AT163<=6,SUM($C163:$AQ163),SUMPRODUCT(LARGE($C163:$AQ163,{1,2,3,4,5,6}))) -> 0 | AX163: =IFERROR(SUMPRODUCT(LARGE($C163:$AQ163,{1,2,3,4})), "") ->  | AZ163: =IFERROR(SUMPRODUCT(LARGE($C163:$AQ163,{1,2,3,4,5,6,7,8})), "") -> 
AS164: 0 | AT164: 0 | AU164: =IF($AT164<=6,SUM($C164:$AQ164),SUMPRODUCT(LARGE($C164:$AQ164,{1,2,3,4,5,6}))) -> 0 | AX164: =IFERROR(SUMPRODUCT(LARGE($C164:$AQ164,{1,2,3,4})), "") ->  | AZ164: =IFERROR(SUMPRODUCT(LARGE($C164:$AQ164,{1,2,3,4,5,6,7,8})), "") -> 
AS165: 0 | AT165: 0 | AU165: =IF($AT165<=6,SUM($C165:$AQ165),SUMPRODUCT(LARGE($C165:$AQ165,{1,2,3,4,5,6}))) -> 0 | AX165: =IFERROR(SUMPRODUCT(LARGE($C165:$AQ165,{1,2,3,4})), "") ->  | AZ165: =IFERROR(SUMPRODUCT(LARGE($C165:$AQ165,{1,2,3,4,5,6,7,8})), "") -> 
AS166: 0 | AT166: 0 | AU166: =IF($AT166<=6,SUM($C166:$AQ166),SUMPRODUCT(LARGE($C166:$AQ166,{1,2,3,4,5,6}))) -> 0 | AX166: =IFERROR(SUMPRODUCT(LARGE($C166:$AQ166,{1,2,3,4})), "") ->  | AZ166: =IFERROR(SUMPRODUCT(LARGE($C166:$AQ166,{1,2,3,4,5,6,7,8})), "") -> 
AS167: 0 | AT167: 0 | AU167: =IF($AT167<=6,SUM($C167:$AQ167),SUMPRODUCT(LARGE($C167:$AQ167,{1,2,3,4,5,6}))) -> 0 | AX167: =IFERROR(SUMPRODUCT(LARGE($C167:$AQ167,{1,2,3,4})), "") ->  | AZ167: =IFERROR(SUMPRODUCT(LARGE($C167:$AQ167,{1,2,3,4,5,6,7,8})), "") -> 
AS168: 0 | AT168: 0 | AU168: =IF($AT168<=6,SUM($C168:$AQ168),SUMPRODUCT(LARGE($C168:$AQ168,{1,2,3,4,5,6}))) -> 0 | AX168: =IFERROR(SUMPRODUCT(LARGE($C168:$AQ168,{1,2,3,4})), "") ->  | AZ168: =IFERROR(SUMPRODUCT(LARGE($C168:$AQ168,{1,2,3,4,5,6,7,8})), "") -> 
AS169: 0 | AT169: 0 | AU169: =IF($AT169<=6,SUM($C169:$AQ169),SUMPRODUCT(LARGE($C169:$AQ169,{1,2,3,4,5,6}))) -> 0 | AX169: =IFERROR(SUMPRODUCT(LARGE($C169:$AQ169,{1,2,3,4})), "") ->  | AZ169: =IFERROR(SUMPRODUCT(LARGE($C169:$AQ169,{1,2,3,4,5,6,7,8})), "") -> 
AS170: 0 | AT170: 0 | AU170: =IF($AT170<=6,SUM($C170:$AQ170),SUMPRODUCT(LARGE($C170:$AQ170,{1,2,3,4,5,6}))) -> 0 | AX170: =IFERROR(SUMPRODUCT(LARGE($C170:$AQ170,{1,2,3,4})), "") ->  | AZ170: =IFERROR(SUMPRODUCT(LARGE($C170:$AQ170,{1,2,3,4,5,6,7,8})), "") -> 
AS171: 0 | AT171: 0 | AU171: =IF($AT171<=6,SUM($C171:$AQ171),SUMPRODUCT(LARGE($C171:$AQ171,{1,2,3,4,5,6}))) -> 0 | AX171: =IFERROR(SUMPRODUCT(LARGE($C171:$AQ171,{1,2,3,4})), "") ->  | AZ171: =IFERROR(SUMPRODUCT(LARGE($C171:$AQ171,{1,2,3,4,5,6,7,8})), "") -> 
AS172: 0 | AT172: 0 | AU172: =IF($AT172<=6,SUM($C172:$AQ172),SUMPRODUCT(LARGE($C172:$AQ172,{1,2,3,4,5,6}))) -> 0 | AX172: =IFERROR(SUMPRODUCT(LARGE($C172:$AQ172,{1,2,3,4})), "") ->  | AZ172: =IFERROR(SUMPRODUCT(LARGE($C172:$AQ172,{1,2,3,4,5,6,7,8})), "") -> 
AS173: 0 | AT173: 0 | AU173: =IF($AT173<=6,SUM($C173:$AQ173),SUMPRODUCT(LARGE($C173:$AQ173,{1,2,3,4,5,6}))) -> 0 | AX173: =IFERROR(SUMPRODUCT(LARGE($C173:$AQ173,{1,2,3,4})), "") ->  | AZ173: =IFERROR(SUMPRODUCT(LARGE($C173:$AQ173,{1,2,3,4,5,6,7,8})), "") -> 
AS174: 0 | AT174: 0 | AU174: =IF($AT174<=6,SUM($C174:$AQ174),SUMPRODUCT(LARGE($C174:$AQ174,{1,2,3,4,5,6}))) -> 0 | AX174: =IFERROR(SUMPRODUCT(LARGE($C174:$AQ174,{1,2,3,4})), "") ->  | AZ174: =IFERROR(SUMPRODUCT(LARGE($C174:$AQ174,{1,2,3,4,5,6,7,8})), "") -> 
AS175: 0 | AT175: 0 | AU175: =IF($AT175<=6,SUM($C175:$AQ175),SUMPRODUCT(LARGE($C175:$AQ175,{1,2,3,4,5,6}))) -> 0 | AX175: =IFERROR(SUMPRODUCT(LARGE($C175:$AQ175,{1,2,3,4})), "") ->  | AZ175: =IFERROR(SUMPRODUCT(LARGE($C175:$AQ175,{1,2,3,4,5,6,7,8})), "") -> 
AS176: 0 | AT176: 0 | AU176: =IF($AT176<=6,SUM($C176:$AQ176),SUMPRODUCT(LARGE($C176:$AQ176,{1,2,3,4,5,6}))) -> 0 | AX176: =IFERROR(SUMPRODUCT(LARGE($C176:$AQ176,{1,2,3,4})), "") ->  | AZ176: =IFERROR(SUMPRODUCT(LARGE($C176:$AQ176,{1,2,3,4,5,6,7,8})), "") -> 
AS177: 0 | AT177: 0 | AU177: =IF($AT177<=6,SUM($C177:$AQ177),SUMPRODUCT(LARGE($C177:$AQ177,{1,2,3,4,5,6}))) -> 0 | AX177: =IFERROR(SUMPRODUCT(LARGE($C177:$AQ177,{1,2,3,4})), "") ->  | AZ177: =IFERROR(SUMPRODUCT(LARGE($C177:$AQ177,{1,2,3,4,5,6,7,8})), "") -> 
AS178: 0 | AT178: 0 | AU178: =IF($AT178<=6,SUM($C178:$AQ178),SUMPRODUCT(LARGE($C178:$AQ178,{1,2,3,4,5,6}))) -> 0 | AX178: =IFERROR(SUMPRODUCT(LARGE($C178:$AQ178,{1,2,3,4})), "") ->  | AZ178: =IFERROR(SUMPRODUCT(LARGE($C178:$AQ178,{1,2,3,4,5,6,7,8})), "") -> 
AS179: 0 | AT179: 0 | AU179: =IF($AT179<=6,SUM($C179:$AQ179),SUMPRODUCT(LARGE($C179:$AQ179,{1,2,3,4,5,6}))) -> 0 | AX179: =IFERROR(SUMPRODUCT(LARGE($C179:$AQ179,{1,2,3,4})), "") ->  | AZ179: =IFERROR(SUMPRODUCT(LARGE($C179:$AQ179,{1,2,3,4,5,6,7,8})), "") -> 
AS180: 0 | AT180: 0 | AU180: =IF($AT180<=6,SUM($C180:$AQ180),SUMPRODUCT(LARGE($C180:$AQ180,{1,2,3,4,5,6}))) -> 0 | AX180: =IFERROR(SUMPRODUCT(LARGE($C180:$AQ180,{1,2,3,4})), "") ->  | AZ180: =IFERROR(SUMPRODUCT(LARGE($C180:$AQ180,{1,2,3,4,5,6,7,8})), "") -> 
AS181: 0 | AT181: 0 | AU181: =IF($AT181<=6,SUM($C181:$AQ181),SUMPRODUCT(LARGE($C181:$AQ181,{1,2,3,4,5,6}))) -> 0 | AX181: =IFERROR(SUMPRODUCT(LARGE($C181:$AQ181,{1,2,3,4})), "") ->  | AZ181: =IFERROR(SUMPRODUCT(LARGE($C181:$AQ181,{1,2,3,4,5,6,7,8})), "") -> 
AS182: 0 | AT182: 0 | AU182: =IF($AT182<=6,SUM($C182:$AQ182),SUMPRODUCT(LARGE($C182:$AQ182,{1,2,3,4,5,6}))) -> 0 | AX182: =IFERROR(SUMPRODUCT(LARGE($C182:$AQ182,{1,2,3,4})), "") ->  | AZ182: =IFERROR(SUMPRODUCT(LARGE($C182:$AQ182,{1,2,3,4,5,6,7,8})), "") -> 
AS183: 0 | AT183: 0 | AU183: =IF($AT183<=6,SUM($C183:$AQ183),SUMPRODUCT(LARGE($C183:$AQ183,{1,2,3,4,5,6}))) -> 0 | AX183: =IFERROR(SUMPRODUCT(LARGE($C183:$AQ183,{1,2,3,4})), "") ->  | AZ183: =IFERROR(SUMPRODUCT(LARGE($C183:$AQ183,{1,2,3,4,5,6,7,8})), "") -> 
AS184: 0 | AT184: 0 | AU184: =IF($AT184<=6,SUM($C184:$AQ184),SUMPRODUCT(LARGE($C184:$AQ184,{1,2,3,4,5,6}))) -> 0 | AX184: =IFERROR(SUMPRODUCT(LARGE($C184:$AQ184,{1,2,3,4})), "") ->  | AZ184: =IFERROR(SUMPRODUCT(LARGE($C184:$AQ184,{1,2,3,4,5,6,7,8})), "") -> 
AS185: 0 | AT185: 0 | AU185: =IF($AT185<=6,SUM($C185:$AQ185),SUMPRODUCT(LARGE($C185:$AQ185,{1,2,3,4,5,6}))) -> 0 | AX185: =IFERROR(SUMPRODUCT(LARGE($C185:$AQ185,{1,2,3,4})), "") ->  | AZ185: =IFERROR(SUMPRODUCT(LARGE($C185:$AQ185,{1,2,3,4,5,6,7,8})), "") -> 
AS186: 0 | AT186: 0 | AU186: =IF($AT186<=6,SUM($C186:$AQ186),SUMPRODUCT(LARGE($C186:$AQ186,{1,2,3,4,5,6}))) -> 0 | AX186: =IFERROR(SUMPRODUCT(LARGE($C186:$AQ186,{1,2,3,4})), "") ->  | AZ186: =IFERROR(SUMPRODUCT(LARGE($C186:$AQ186,{1,2,3,4,5,6,7,8})), "") -> 
AS187: 0 | AT187: 0 | AU187: =IF($AT187<=6,SUM($C187:$AQ187),SUMPRODUCT(LARGE($C187:$AQ187,{1,2,3,4,5,6}))) -> 0 | AX187: =IFERROR(SUMPRODUCT(LARGE($C187:$AQ187,{1,2,3,4})), "") ->  | AZ187: =IFERROR(SUMPRODUCT(LARGE($C187:$AQ187,{1,2,3,4,5,6,7,8})), "") -> 
AS188: 0 | AT188: 0 | AU188: =IF($AT188<=6,SUM($C188:$AQ188),SUMPRODUCT(LARGE($C188:$AQ188,{1,2,3,4,5,6}))) -> 0 | AX188: =IFERROR(SUMPRODUCT(LARGE($C188:$AQ188,{1,2,3,4})), "") ->  | AZ188: =IFERROR(SUMPRODUCT(LARGE($C188:$AQ188,{1,2,3,4,5,6,7,8})), "") -> 
AS189: 0 | AT189: 0 | AU189: =IF($AT189<=6,SUM($C189:$AQ189),SUMPRODUCT(LARGE($C189:$AQ189,{1,2,3,4,5,6}))) -> 0 | AX189: =IFERROR(SUMPRODUCT(LARGE($C189:$AQ189,{1,2,3,4})), "") ->  | AZ189: =IFERROR(SUMPRODUCT(LARGE($C189:$AQ189,{1,2,3,4,5,6,7,8})), "") -> 
AS190: 0 | AT190: 0 | AU190: =IF($AT190<=6,SUM($C190:$AQ190),SUMPRODUCT(LARGE($C190:$AQ190,{1,2,3,4,5,6}))) -> 0 | AX190: =IFERROR(SUMPRODUCT(LARGE($C190:$AQ190,{1,2,3,4})), "") ->  | AZ190: =IFERROR(SUMPRODUCT(LARGE($C190:$AQ190,{1,2,3,4,5,6,7,8})), "") -> 
AS191: 0 | AT191: 0 | AU191: =IF($AT191<=6,SUM($C191:$AQ191),SUMPRODUCT(LARGE($C191:$AQ191,{1,2,3,4,5,6}))) -> 0 | AX191: =IFERROR(SUMPRODUCT(LARGE($C191:$AQ191,{1,2,3,4})), "") ->  | AZ191: =IFERROR(SUMPRODUCT(LARGE($C191:$AQ191,{1,2,3,4,5,6,7,8})), "") -> 
AS192: 0 | AT192: 0 | AU192: =IF($AT192<=6,SUM($C192:$AQ192),SUMPRODUCT(LARGE($C192:$AQ192,{1,2,3,4,5,6}))) -> 0 | AX192: =IFERROR(SUMPRODUCT(LARGE($C192:$AQ192,{1,2,3,4})), "") ->  | AZ192: =IFERROR(SUMPRODUCT(LARGE($C192:$AQ192,{1,2,3,4,5,6,7,8})), "") -> 
AS193: 0 | AT193: 0 | AU193: =IF($AT193<=6,SUM($C193:$AQ193),SUMPRODUCT(LARGE($C193:$AQ193,{1,2,3,4,5,6}))) -> 0 | AX193: =IFERROR(SUMPRODUCT(LARGE($C193:$AQ193,{1,2,3,4})), "") ->  | AZ193: =IFERROR(SUMPRODUCT(LARGE($C193:$AQ193,{1,2,3,4,5,6,7,8})), "") -> 
AS194: 0 | AT194: 0 | AU194: =IF($AT194<=6,SUM($C194:$AQ194),SUMPRODUCT(LARGE($C194:$AQ194,{1,2,3,4,5,6}))) -> 0 | AX194: =IFERROR(SUMPRODUCT(LARGE($C194:$AQ194,{1,2,3,4})), "") ->  | AZ194: =IFERROR(SUMPRODUCT(LARGE($C194:$AQ194,{1,2,3,4,5,6,7,8})), "") -> 
AS195: 0 | AT195: 0 | AU195: =IF($AT195<=6,SUM($C195:$AQ195),SUMPRODUCT(LARGE($C195:$AQ195,{1,2,3,4,5,6}))) -> 0 | AX195: =IFERROR(SUMPRODUCT(LARGE($C195:$AQ195,{1,2,3,4})), "") ->  | AZ195: =IFERROR(SUMPRODUCT(LARGE($C195:$AQ195,{1,2,3,4,5,6,7,8})), "") -> 
AS196: 0 | AT196: 0 | AU196: =IF($AT196<=6,SUM($C196:$AQ196),SUMPRODUCT(LARGE($C196:$AQ196,{1,2,3,4,5,6}))) -> 0 | AX196: =IFERROR(SUMPRODUCT(LARGE($C196:$AQ196,{1,2,3,4})), "") ->  | AZ196: =IFERROR(SUMPRODUCT(LARGE($C196:$AQ196,{1,2,3,4,5,6,7,8})), "") -> 
AS197: =SUM($C197:$AR197) -> 0 | AT197: =COUNTA(C197:AQ197) -> 0 | AU197: =IF($AT197<=6,SUM($C197:$AQ197),SUMPRODUCT(LARGE($C197:$AQ197,{1,2,3,4,5,6}))) -> 0 | AV197: =IF(AND($AT197>=6,AU197=AU198),"Manual Calc Needed","") ->  | AW197: =IF(AND($AT197>=6,$AV197="Tie"),"Manual Calc Needed"," ") ->  | AX197: =IFERROR(SUMPRODUCT(LARGE($C197:$AQ197,{1,2,3,4})), "") ->  | AY197: =IF(AND($AT197>=6,$AV197="Tie",AX197=AX198),"Manual Calc Needed"," ") ->  | AZ197: =IFERROR(SUMPRODUCT(LARGE($C197:$AQ197,{1,2,3,4,5,6,7,8})), "") -> 
AS198: 0 | AT198: 0 | AU198: =IF($AT198<=6,SUM($C198:$AQ198),SUMPRODUCT(LARGE($C198:$AQ198,{1,2,3,4,5,6}))) -> 0 | AX198: =IFERROR(SUMPRODUCT(LARGE($C198:$AQ198,{1,2,3,4})), "") ->  | AZ198: =IFERROR(SUMPRODUCT(LARGE($C198:$AQ198,{1,2,3,4,5,6,7,8})), "") -> 
AS199: 0 | AT199: 0 | AU199: =IF($AT199<=6,SUM($C199:$AQ199),SUMPRODUCT(LARGE($C199:$AQ199,{1,2,3,4,5,6}))) -> 0 | AX199: =IFERROR(SUMPRODUCT(LARGE($C199:$AQ199,{1,2,3,4})), "") ->  | AZ199: =IFERROR(SUMPRODUCT(LARGE($C199:$AQ199,{1,2,3,4,5,6,7,8})), "") -> 
AS200: 0 | AT200: 0 | AU200: =IF($AT200<=6,SUM($C200:$AQ200),SUMPRODUCT(LARGE($C200:$AQ200,{1,2,3,4,5,6}))) -> 0 | AX200: =IFERROR(SUMPRODUCT(LARGE($C200:$AQ200,{1,2,3,4})), "") ->  | AZ200: =IFERROR(SUMPRODUCT(LARGE($C200:$AQ200,{1,2,3,4,5,6,7,8})), "") -> 
... 501 more rows

Sheet Abbreviations
A1: Program Code | B1: Program ( X - Community College) (I - Independent) | D1: Tournament Code | E1: Tournament
A2: ACU | B2: Abilene Christian University | D2: Abama1 | E2: Alabama 1 Alum (AL)
A3: ADA | B3: Angleton Debate Association (I) | D3: Abama2 | E3: Alabama 2 Crimson (AL)
A4: ADL | B4: American Debate League (I) | D4: ACU | E4: Abilene Christian University (TX)
A5: ApSU | B5: Appalachian State University | D5: BGSU 1 | E5: Bowling Green State University 1 (V)
A6: ASU | B6: Arkansas State University | D6: BGSU 2 | E6: Bowling Green State University 2 (V)
A7: ATU | B7: Arkansas Tech University | D7: BGSU 3 | E7: Bowling Green State University 3 (V) 70s
A8: AzCU | B8: Arizona Christian University | D8: BGSU 4 | E8: Bowling Green State University 4 (V) 90s
A9: AzSU | B9: Arizona State University | D9: BPCC | E9: Bossier Parish Community College (LA)
A10: BAC | B10: Belmont Abbey College | D10: CaU | E10: Cameron University (OK)
A11: BaSU | B11: Ball State University | D11: ColC | E11: Collorado College (CO)
A12: BGSU | B12: Bowling Green State University | D12: CSCC | E12: Cleveland State Community College Cougar Classic (TN)
A13: BHSU | B13: Black Hills State University | D13: CSI | E13: College of Southern Idaho (ID)
A14: BPCC | B14: Bossier Parish Community College (X) | D14: CSUN | E14: California State University - Northridge (CA)
A15: BrC | B15: Brooklyn College (X) | D15: CUI | E15: Concodria University Irvine (CA)
A16: BrU | B16: Bradley University | D16: DBU | E16: Dallas Baptist University (TX)
A17: BSU | B17: Boise State University | D17: ECCA | E17: El Camino CC A (CA)
A18: BU | B18: Belmont University | D18: ECCB | E18: El Camino CC B (CA)
A19: BuCC | B19: Butler Community College (X) | D19: GC | E19: Grossmont College (CA)
A20: ButU | B20: Butler University | D20: IFA | E20: International Forensics Association (Dublin, Ireland)
A21: BuU | B21: Bushnell University | D21: L&CC | E21: Lewis & Clark Steeve Hunt Classic (OR)
A22: CasC | B22: Casper College (X) | D22: LCC | E22: Lower Columbia College (WA)
A23: CaU | B23: Cameron University | D23: Lee | E23: Lee College Mendoza Debates (TX)
A24: CBU | B24: California Baptist University | D24: LiC | E24: Linfield College (V)
A25: CC | B25: Cypress College (X) | D25: LSUS | E25: Lousiana State University Shreveport (LA)
A26: CCC | B26: Contra Costa College (X) | D26: LTU | E26: Louisiana Tech University (LA)
A27: CCSF | B27: City College of San Francisco (X) | D27: MAFA | E27: Missouri Association of Forensic Activities (MO)
A28: CCU | B28: Colorado Christian University | D28: MTSU | E28: Middle Tennessee State University Pejaver Tournament (TN)
A29: CD | B29: College of Dupage (X) | D29: MuSU | E29: Murray State University (KY)
A30: CEI | B30: College of Eastern Idaho (X) | D30: MuSU | E30: Murray State University (KY)
A31: CerC | B31: Cerritos College (X) | D31: MVCC | E31: Moraine College (IL)
A32: ChaC | B32: Chaffey College (X) | D32: NCCFI | E32: National Christian College Forensic Invitational
A33: ChC | B33: Chabot College (X) | D33: NOFC | E33: National Online Forensics Championship (V)
A34: CLC | B34: College of Lake County (X) | D34: OIFA | E34: Oklahoma Intercolligiate Forensics Association
A35: ClCC | B35: Clovis Community College (X) | D35: OSU | E35: Oregon State University/NST District II Qualifier (V)
A36: ClSU | B36: Cleveland State University | D36: PacU | E36: Pacific University (OR)
A37: ColC | B37: Colorado College | D37: PC | E37: Palomar College (CA)
A38: CPH | B38: California State Polytechnical University, Humboldt | D38: PKD | E38: Pi Kappa Delta National Tournament
A39: CrC | B39: Crowder College | D39: PLNU | E39: Point Loma Nazarene University (CA)
A40: CSCC | B40: Cleveland State Community College (X) | D40: PSC | E40: Praire State College (IL)
A41: CSI | B41: College of Southern Idaho (X) | D41: PSCC | E41: Pellissippi State Community College (TN)
A42: CSLB | B42: California State Long Beach | D42: PSCC | E42: Pellissippi State Community College (TN)
A43: CSUC | B43: California State University- Chico | D43: PSCFAFC | E43: Pacific Southwest Collegiate Forensics Association Fall Championship
A44: CSUF | B44: California State University Fullerton | D44: PSCFASC | E44: Pacific Southwest Collegiate Forensics Association Spring Championship
A46: CSULA | B46: California State University Los Angeles | D46: PSCFAW | E46: Pacific Southwest Collegiate Forensics Association Warm Up
A47: CSULB | B47: California State University Long Beach | D47: QC | E47: Queens College (V)
A48: CSUN | B48: California State University, Northridge | D48: SAC | E48: Saint Anslem College (V)
A49: CSUSM | B49: California State University- San Marcos | D49: SBU | E49: Southwest Baptist University (MO)
A50: CTC | B50: Central Texas College (X) | D50: SDSU | E50: San Diego State University
A51: CU | B51: Cedarville University | D51: SFC | E51: Southern Forensics Championship (LSU-Shreveport (LA))
A52: CUI | B52: Concordia University Irvine | D52: TCU | E52: Texas Christian University (TX)
A53: CUN | B53: Concordia University Nebreska | D53: TIFA | E53: Tenneessee Intercolligiate Forensics Association (Cleveland State CC (TN))
A54: CUNYBC | B54: City University of New York Brooklyn College | D54: UCA | E54: University of Central Arkansas (AR)
A55: CWI | B55: College of Western Idaho (X) | D55: UCF | E55: University Central Florida (FL)
A56: DBU | B56: Dallas Baptist University | D56: UCM | E56: University of Central Missouri Mule (MO)
A57: DCC | B57: Dutchess Community College (X) | D57: UCSD | E57: University of California San Diego (CA)
A58: DepU | B58: DePaul University | D58: UJ | E58: University of Jamestown (V)
A59: DeU | B59: Denison University | D59: UNR | E59: University of Nevada - Reno (NV)
A60: DiU | B60: Dillard University | D60: USM | E60: University of Southern Mississippi (MS)
A61: DorU | B61: Dordt University | D61: UTEP | E61: Univerity of Texas El Paso (TX)
A62: DU | B62: Drury University | D62: UU | E62: Union University (V)
A63: DuqU | B63: Duquesne University | D63: UWF | E63: University of Western Florida (FL)
A64: DVC | B64: Diablo Valley College (X) | D64: WebU | E64: Webster University (MO)
A65: EaWU | B65: Eastern Washington University | D65: WebUS | E65: Webster Spring (MO)
A66: EC | B66: Emerson College | D66: WhU | E66: Whitworth University (WA)
A67: ECC | B67: El Camino College (X) | D67: UoPW | E67: Univ of the Pacific - Winters | F67: NCFA Spring Champs | G67: Las Positas College | H67: San Francisco State University
A68: EPCC | B68: El Paso Community College (X) | D68: NCFAS | E68: NCFA Spring Champs | F68: NCFA Spring Champs | G68: Las Positas College | H68: San Francisco State University
A69: ErC | B69: Erskine College | D69: LPC | E69: Las Positas College | F69: NCFA Spring Champs | G69: Las Positas College | H69: San Francisco State University
A70: ETBU | B70: East Texas Baptist University | D70: SFSU | E70: San Francisco State University | F70: NCFA Spring Champs | G70: Las Positas College | H70: San Francisco State University
A71: ETSU | B71: East Tennessee State University | E71: Virtual Tournament
A72: FAU | B72: Florida Atlantic University | E72: Closed Tournament
A73: FC | B73: Fullerton College | E73: New Schools 2023 -2024
A74: FCC | B74: Fresno City College (X)
A75: FHU | B75: Freed-Hardeman University
A76: FS | B76: Fresno State
A77: FSCJ | B77: Florida State College - Jacksonville (X)
A78: FSU | B78: Florida State University
A79: FSUF | B79: Ferris State University Forensics
A80: GAC | B80: Gustavus Adolphus College
A81: GC | B81: Grossmont College (X)
A82: GCC | B82: Grove City College
A83: GCSU | B83: Georgia College & State University
A84: GCU | B84: Grand Canyon University
A85: GIT | B85: Georgia Institute of Technology
A86: GTU | B86: Georgia Tech University
A87: HC | B87: Harper College (X)
A88: HCC | B88: Highland Community College (X)
A89: HiC | B89: Hillsdale College
A90: HolU | B90: Hollings University
A91: HoU | B91: Hofstra University
A92: HPU | B92: Howard Payne Univeristy
A93: HU | B93: Harding University
A94: IC | B94: Ithaca College
A95: ILSU | B95: Illinios State University
A96: ISU | B96: Idaho State University
A97: IVC | B97: Irvine Valley College (X)
A98: JCU | B98: John Carroll University
A99: JSCC | B99: Jefferson State Community College (X)
A100: KCCC | B100: Kansas City Community College (X)
A101: KWU | B101: Kansas Wesleyan University
A102: L&CC | B102: Lewis & Clark College
A103: LACC | B103: Los Angeles City College (X)
A104: LCC | B104: Lower Columbia College (X)
A105: LCU | B105: Louisiana College (new name Louisiana Christian University)
A106: Lee | B106: Lee College (X)
A107: LibU | B107: Liberty University
A108: LiC | B108: Linfield College
A109: LiU | B109: Linfield University
A110: LPC | B110: Las Positas College (X)
A111: LPDA | B111: Lincoln-Polaris Debate Association (I)
A112: LRU | B112: Lenior-Ryne University
A113: LSCO | B113: Lamar State College- Orange (X)
A114: LSU | B114: Louisiana State University
A115: LSUS | B115: Louisiana State University-Shreveport
A116: LTU | B116: Louisiana Tech University
A117: LU | B117: Lynn University
A118: MacC | B118: Macalester College
A119: MarU | B119: Marion University
A120: MC | B120: Mississippi College
A121: McKU | B121: McKendree University
A122: McNU | B122: McNeese State University
A123: MDCK | B123: Miami Dade College Kendall (X)
A124: MHCC | B124: Mt. Hood Community College (X)
A125: MiC | B125: Miramar College (X)
A126: MJC | B126: Modesto Junior College (X)
A127: MoC | B127: Morehouse College
A128: MoorC | B128: Moorpark College (X)
A129: MSAC | B129: Mt. San Antonio College (X)
A130: MSCC | B130: Motlow State Community College (X)
A131: MSD | B131: Maricopa Speech & Debate (Maricopa Community College) (X)
A132: MSJC | B132: Mt. San Jacinto College (X)
A133: MslU | B133: Marshall University
A134: MSU | B134: Mississippi State University
A135: MSUM | B135: Minnesota State University, Mankato
A136: MTCC | B136: McDowell Technical Community College (X)
A137: MTSU | B137: Middle Tennessee State University
A138: MU | B138: Mercer University
A139: MuSU | B139: Murray State University
A140: MuU | B140: Muskingum University
A141: MVC | B141: Missouri Valley College (X)
A142: MVCC | B142: Moraine Valley Community College (X)
A143: NACC | B143: Northwest Arkansas Community College (X)
A144: NAU | B144: Northern Arizona University
A145: NC | B145: Newberry College
A146: NCC | B146: North Central College
A147: NDSU | B147: North Dakota State University
A148: NFSC | B148: Northwest Florida State College
A149: NIL | B149: Northern Illinois College
A150: NIU | B150: Northern Illinios University
A151: NMSU | B151: Northwest Missouri State University
A152: NNU | B152: Northwest Nazarene University
A153: NSU | B153: Northern State University
A154: NVCC | B154: Northern Virginia Community College (X)
A155: NwC | B155: Northwest College (X)
A156: NWSU | B156: Northwestern State University (LA)
A157: OCC | B157: Orange Coast College (X)
A158: OCTC | B158: Owensboro Community & Technical College (X)
A159: OhU | B159: Ohio University
A160: OkBU | B160: Oklahoma Baptist University
A161: OKCU | B161: Oklahoma City University
A162: ORU | B162: Oral Roberts University
A163: OSU | B163: Oregon State University
A164: OttU | B164: Ottowa University
A165: OU | B165: Otterbein University
A166: PacU | B166: Pacific University
A167: PaU | B167: Park University
A168: PC | B168: Palomar College (X)
A169: PCC | B169: Pasadena City College (X)
A170: PHC | B170: Patrick Henry College
A171: PLNU | B171: Point Loma Nazarene University
A172: PoSC | B172: Polk State College
A173: PrCC | B173: Providence Christian College
A174: PSC | B174: Prarie State College (X)
A175: PSCC | B175: Pellissippi State Community College (X)
A176: PSU | B176: Penn State University
A177: PVAM | B177: Prairie View A&M University
A178: QC | B178: Queens College
A179: RHCC | B179: Rio Hondo Community College (X)
A180: RU | B180: Rice University
A181: RUN | B181: Rutgers University Newark
A182: SAC | B182: St. Anselm College
A183: SaCC | B183: Santiago Canyon College (X)
A184: SadC | B184: Saddleback College (X)
A185: SBU | B185: Southwest Baptist University
A186: SC | B186: Simpson College
A187: SCC | B187: Seatle Central College
A188: SCSU | B188: Saint Cloud State University
A189: ScU | B189: Schreiner University
A190: SDMC | B190: San Diego Mesa College (X)
A191: SEA | B191: Southeast Arkansas College (X)
A192: SFCC | B192: State Fair Community College (X)
A193: SFSU | B193: San Fransisco State University
A194: SHU | B194: Setton Hall University
A195: SJDC | B195: San Joaquin Delta College (X)
A196: SJSU | B196: San Jose State University
A197: SJU | B197: Saint Joseph's University
A198: SkyC | B198: Skyline College (X)
A199: SMC | B199: Santa Monica College (X)
A200: SMSU | B200: Southeast Missouri State University
A201: SMU | B201: Southern Methodist University
... 83 more rows

Sheet Scholastic
C1: Lee | D1: UCM | E1: L&CC | F1: CSI | G1: BGSU1 | H1: BGSU2 | I1: ACU | J1: CSCC | K1: MTSU | L1: Abam1 | M1: Abam2 | N1: WhU | O1: LSUS | P1: SBU | Q1: UWF | R1: QC | S1: SAC | T1: LiC | U1: USM | V1: UJ | W1: CaU | X1: TCU | Y1: LTU | Z1: OSU | AA1: UCF | AB1: WebU | AC1: PSCFAW | AD1: PSCFAFC | AE1: CSUN | AF1: ColC | AG1: ECCA | AH1: ECCB | AI1: GC | AJ1: MVCC | AK1: PC | AL1: PLNU | AM1: PSC | AN1: UNR | AO1: SFC | AP1: UCA | AQ1: MusU | AR1: PacU | AS1: DBU | AT1: PSCC | AU1: TIFA | AV1: LCC | AW1: NCCFI | AX1: UU | AY1: BPCC | AZ1: PSCFASC | BA1: NOFC | BB1: CUI | BC1: IFA | BD1: OIFA | BE1: WebUS | BF1: SDSU | BG1: UTEP | BH1: MAFA | BI1: PKD | BJ1: BGSU3 | BK1: BGSU4 | BL1: UoPW | BM1: NCFAS | BN1: LPC | BO1: SFSU | BT1: S/L Ranking | BU1: Head to Head | BV1: H/L | BW1: 7th Tourn. | BX1: 8th Tourn.
B2: Size of Field | C2: =IF(COUNTIFS(C$4:C$1000,"<>"),COUNTIFS(C$4:C$1000,"<>")," ") -> 15 | D2: 13 | E2: 14 | F2: 11 | G2: 15 | H2: 14 | I2: 9 | J2: 11 | K2: 13 | L2: 4 | M2: 6 | O2: =IF(COUNTIFS(O$4:O$1000,"<>"),COUNTIFS(O$4:O$1000,"<>")," ") -> 18 | P2: 13 | Q2: 13 | R2: 5 | S2: 8 | T2: 25 | U2: 8 | V2: 16 | W2: 7 | X2: 11 | Y2: 6 | Z2: 7 | AA2: 16 | AB2: 5 | AC2: 10
A3: RANK | B3: Squad Formula: 1 pt per prelim win; 1 pts for breaking, 2 pts per elim win. *Partial breaks don't earn points; only Top 3 competitors count per Division* | C3: Lee College | D3: Unv Central Missouri | E3: Lewis & Clark College | F3: College of Southern Idaho | G3: Bowling Green 1 | H3: Bowling Green 2 | I3: Abilene Christian Unv | J3: Cleveland State | K3: Middle Tennessee State Unv | L3: Alabama 1 Alum | M3: Alabama 2 Crimson | N3: Whitworth University | O3: LSU - Shreveport | P3: Southwest Baptist Univ | Q3: Univ West Florida | R3: Queens College | S3: St. Anselm College | T3: Linfield College | U3: Univ of Southern Miss | V3: Univ Jamestown | W3: Cameron Univ | X3: Texas Christian Univ | Y3: Louisiana Tech Univ | Z3: Oregon State University | AA3: Univ Central Florida | AB3: Webster Univ | AC3: Pacific Southeast Warm | AD3: Pacific Southeast Fall | AE3: Cal Sate Northridge | AF3: Colorado College | AG3: El Camino A | AH3: El Camino B | AI3: Grossmont College | AJ3: Moraine Valley CC | AK3: Palomar College | AL3: Point Loma Nazar Uni | AM3: Praire State Collge | AN3: Univ Nevada Reno | AO3: Southern Forens Champ | AP3: Univ Central Arkansas | AQ3: Murray State Univ | AR3: Pacific University | AS3: Dallas Baptist Univ | AT3: Pellissippi State CC | AU3: Tenn Intercoll Forn Tourn | AV3: Lower Columbia College | AW3: Nat Christian Coll For | AX3: Union University | AY3: Bossier Parish CC | AZ3: South West Spring Champ | BA3: National Online For Champ | BB3: Concordia Univ Irvine | BC3: International Frns Assoc | BD3: Oklahoma Intr Frns Asc | BE3: Webster University Spring | BF3: San Diego State Univ | BG3: Univ Texas El Paso | BH3: Missouri Assoc Frnsc Activ | BI3: Pi Kappa Delta Nats | BJ3: Bowling Green 3 70 | BK3: Bowling Green 4 90 | BL3: Univ of the Pacific - Winters | BM3: NCFA Spring Champs | BN3: Las Positas College | BO3: San Francisco State University | BQ3: over 6/2nd host | BR3: Total Points | BS3: Tournament Count | BT3: Best Top 6 (National Rank) | BU3: 1st Tie Breaker | BV3: 2nd Tie Breaker | BW3: 3rd Tie Breaker | BX3: 4th Tie Breaker
B4: ACU | C4: 67 | I4: 28 | O4: 50 | V4: 46 | AO4: 41 | AS4: 55 | AX4: 59 | AY4: 37 | BR4: =SUM($C4:$BQ4) -> 383 | BS4: =COUNTA(C4:BP4) -> 8 | BT4: =IF($BS4<=6,SUM($C4:$BP4),SUMPRODUCT(LARGE($C4:$BP4,{1,2,3,4,5,6}))) -> 318 | BU4: =IF(AND($BS4>=6,BT4=BT5),"Manual Calc Needed","") ->  | BV4: =IF(BU4= "","",IFERROR(SUMPRODUCT(LARGE($C4:$BP4,{1,2,3,4})), "")) ->  | BW4: =IF(BV4<>"",(IFERROR(SUMPRODUCT(LARGE($C4:$BP4,{1,2,3,4,5,6,7})),"")),"") ->  | BX4: =IF(BW4<>"",(IFERROR(SUMPRODUCT(LARGE($C4:$BP4,{1,2,3,4,5,6,7,8})),"")),"") -> 
B5: ApSU | BI5: 1 | BR5: 1 | BS5: 1 | BT5: =IF($BS5<=6,SUM($C5:$BP5),SUMPRODUCT(LARGE($C5:$BP5,{1,2,3,4,5,6}))) -> 1 | BV5: =IF(BU5= "","",IFERROR(SUMPRODUCT(LARGE($C5:$BP5,{1,2,3,4})), "")) ->  | BW5: =IF(BV5<>"",(IFERROR(SUMPRODUCT(LARGE($C5:$BP5,{1,2,3,4,5,6,7})),"")),"") ->  | BX5: =IF(BW5<>"",(IFERROR(SUMPRODUCT(LARGE($C5:$BP5,{1,2,3,4,5,6,7,8})),"")),"") -> 
B6: ASU | P6: 20 | X6: 15 | BR6: 35 | BS6: 2 | BT6: =IF($BS6<=6,SUM($C6:$BP6),SUMPRODUCT(LARGE($C6:$BP6,{1,2,3,4,5,6}))) -> 35 | BV6: =IF(BU6= "","",IFERROR(SUMPRODUCT(LARGE($C6:$BP6,{1,2,3,4})), "")) ->  | BW6: =IF(BV6<>"",(IFERROR(SUMPRODUCT(LARGE($C6:$BP6,{1,2,3,4,5,6,7})),"")),"") ->  | BX6: =IF(BW6<>"",(IFERROR(SUMPRODUCT(LARGE($C6:$BP6,{1,2,3,4,5,6,7,8})),"")),"") -> 
B7: ATU | D7: 6 | AP7: 7 | AX7: 8 | AY7: 7 | BR7: 28 | BS7: 4 | BT7: =IF($BS7<=6,SUM($C7:$BP7),SUMPRODUCT(LARGE($C7:$BP7,{1,2,3,4,5,6}))) -> 28 | BV7: =IF(BU7= "","",IFERROR(SUMPRODUCT(LARGE($C7:$BP7,{1,2,3,4})), "")) ->  | BW7: =IF(BV7<>"",(IFERROR(SUMPRODUCT(LARGE($C7:$BP7,{1,2,3,4,5,6,7})),"")),"") ->  | BX7: =IF(BW7<>"",(IFERROR(SUMPRODUCT(LARGE($C7:$BP7,{1,2,3,4,5,6,7,8})),"")),"") -> 
B8: AzSU | BI8: 4 | BR8: 4 | BS8: 1 | BT8: =IF($BS8<=6,SUM($C8:$BP8),SUMPRODUCT(LARGE($C8:$BP8,{1,2,3,4,5,6}))) -> 4 | BV8: =IF(BU8= "","",IFERROR(SUMPRODUCT(LARGE($C8:$BP8,{1,2,3,4})), "")) ->  | BW8: =IF(BV8<>"",(IFERROR(SUMPRODUCT(LARGE($C8:$BP8,{1,2,3,4,5,6,7})),"")),"") ->  | BX8: =IF(BW8<>"",(IFERROR(SUMPRODUCT(LARGE($C8:$BP8,{1,2,3,4,5,6,7,8})),"")),"") -> 
B9: BasU | AQ9: 9 | BR9: 9 | BS9: 1 | BT9: =IF($BS9<=6,SUM($C9:$BP9),SUMPRODUCT(LARGE($C9:$BP9,{1,2,3,4,5,6}))) -> 9 | BV9: =IF(BU9= "","",IFERROR(SUMPRODUCT(LARGE($C9:$BP9,{1,2,3,4})), "")) ->  | BW9: =IF(BV9<>"",(IFERROR(SUMPRODUCT(LARGE($C9:$BP9,{1,2,3,4,5,6,7})),"")),"") ->  | BX9: =IF(BW9<>"",(IFERROR(SUMPRODUCT(LARGE($C9:$BP9,{1,2,3,4,5,6,7,8})),"")),"") -> 
B10: BGSU | G10: 1 | M10: 4 | BR10: 5 | BS10: 2 | BT10: =IF($BS10<=6,SUM($C10:$BP10),SUMPRODUCT(LARGE($C10:$BP10,{1,2,3,4,5,6}))) -> 5 | BV10: =IF(BU10= "","",IFERROR(SUMPRODUCT(LARGE($C10:$BP10,{1,2,3,4})), "")) ->  | BW10: =IF(BV10<>"",(IFERROR(SUMPRODUCT(LARGE($C10:$BP10,{1,2,3,4,5,6,7})),"")),"") ->  | BX10: =IF(BW10<>"",(IFERROR(SUMPRODUCT(LARGE($C10:$BP10,{1,2,3,4,5,6,7,8})),"")),"") -> 
B11: BPCC | C11: 5 | I11: 21 | O11: 15 | V11: 17 | Y11: 11 | AO11: 24 | AP11: 21 | AS11: 11 | AX11: 20 | BR11: 145 | BS11: 9 | BT11: =IF($BS11<=6,SUM($C11:$BP11),SUMPRODUCT(LARGE($C11:$BP11,{1,2,3,4,5,6}))) -> 118 | BV11: =IF(BU11= "","",IFERROR(SUMPRODUCT(LARGE($C11:$BP11,{1,2,3,4})), "")) ->  | BW11: =IF(BV11<>"",(IFERROR(SUMPRODUCT(LARGE($C11:$BP11,{1,2,3,4,5,6,7})),"")),"") ->  | BX11: =IF(BW11<>"",(IFERROR(SUMPRODUCT(LARGE($C11:$BP11,{1,2,3,4,5,6,7,8})),"")),"") -> 
B12: BrC | BK12: 3 | BR12: 3 | BS12: 1 | BT12: =IF($BS12<=6,SUM($C12:$BP12),SUMPRODUCT(LARGE($C12:$BP12,{1,2,3,4,5,6}))) -> 3 | BV12: =IF(BU12= "","",IFERROR(SUMPRODUCT(LARGE($C12:$BP12,{1,2,3,4})), "")) ->  | BW12: =IF(BV12<>"",(IFERROR(SUMPRODUCT(LARGE($C12:$BP12,{1,2,3,4,5,6,7})),"")),"") ->  | BX12: =IF(BW12<>"",(IFERROR(SUMPRODUCT(LARGE($C12:$BP12,{1,2,3,4,5,6,7,8})),"")),"") -> 
B13: BSU | E13: 40 | F13: 29 | T13: 53 | AR13: 30 | BC13: 16 | BR13: 168 | BS13: 5 | BT13: =IF($BS13<=6,SUM($C13:$BP13),SUMPRODUCT(LARGE($C13:$BP13,{1,2,3,4,5,6}))) -> 168 | BV13: =IF(BU13= "","",IFERROR(SUMPRODUCT(LARGE($C13:$BP13,{1,2,3,4})), "")) ->  | BW13: =IF(BV13<>"",(IFERROR(SUMPRODUCT(LARGE($C13:$BP13,{1,2,3,4,5,6,7})),"")),"") ->  | BX13: =IF(BW13<>"",(IFERROR(SUMPRODUCT(LARGE($C13:$BP13,{1,2,3,4,5,6,7,8})),"")),"") -> 
B14: BU | J14: 37 | K14: 19 | AQ14: 18 | AU14: 44 | AW14: 22 | BR14: 140 | BS14: 5 | BT14: =IF($BS14<=6,SUM($C14:$BP14),SUMPRODUCT(LARGE($C14:$BP14,{1,2,3,4,5,6}))) -> 140 | BV14: =IF(BU14= "","",IFERROR(SUMPRODUCT(LARGE($C14:$BP14,{1,2,3,4})), "")) ->  | BW14: =IF(BV14<>"",(IFERROR(SUMPRODUCT(LARGE($C14:$BP14,{1,2,3,4,5,6,7})),"")),"") ->  | BX14: =IF(BW14<>"",(IFERROR(SUMPRODUCT(LARGE($C14:$BP14,{1,2,3,4,5,6,7,8})),"")),"") -> 
B15: ButU | Q15: 30 | AA15: 18 | AJ15: 4 | BI15: 27 | BR15: 79 | BS15: 4 | BT15: =IF($BS15<=6,SUM($C15:$BP15),SUMPRODUCT(LARGE($C15:$BP15,{1,2,3,4,5,6}))) -> 79 | BV15: =IF(BU15= "","",IFERROR(SUMPRODUCT(LARGE($C15:$BP15,{1,2,3,4})), "")) ->  | BW15: =IF(BV15<>"",(IFERROR(SUMPRODUCT(LARGE($C15:$BP15,{1,2,3,4,5,6,7})),"")),"") ->  | BX15: =IF(BW15<>"",(IFERROR(SUMPRODUCT(LARGE($C15:$BP15,{1,2,3,4,5,6,7,8})),"")),"") -> 
B16: CasC | F16: 18 | T16: 16 | AF16: 20 | BC16: 9 | BR16: 63 | BS16: 4 | BT16: =IF($BS16<=6,SUM($C16:$BP16),SUMPRODUCT(LARGE($C16:$BP16,{1,2,3,4,5,6}))) -> 63 | BV16: =IF(BU16= "","",IFERROR(SUMPRODUCT(LARGE($C16:$BP16,{1,2,3,4})), "")) ->  | BW16: =IF(BV16<>"",(IFERROR(SUMPRODUCT(LARGE($C16:$BP16,{1,2,3,4,5,6,7})),"")),"") ->  | BX16: =IF(BW16<>"",(IFERROR(SUMPRODUCT(LARGE($C16:$BP16,{1,2,3,4,5,6,7,8})),"")),"") -> 
B17: CaU | P17: 1 | BD17: 6 | BI17: 3 | BL17: 1 | BR17: 11 | BS17: 4 | BT17: =IF($BS17<=6,SUM($C17:$BP17),SUMPRODUCT(LARGE($C17:$BP17,{1,2,3,4,5,6}))) -> 11 | BV17: =IF(BU17= "","",IFERROR(SUMPRODUCT(LARGE($C17:$BP17,{1,2,3,4})), "")) ->  | BW17: =IF(BV17<>"",(IFERROR(SUMPRODUCT(LARGE($C17:$BP17,{1,2,3,4,5,6,7})),"")),"") ->  | BX17: =IF(BW17<>"",(IFERROR(SUMPRODUCT(LARGE($C17:$BP17,{1,2,3,4,5,6,7,8})),"")),"") -> 
B18: CBU | AD18: 14 | AW18: 11 | BF18: 6 | BR18: 31 | BS18: 3 | BT18: =IF($BS18<=6,SUM($C18:$BP18),SUMPRODUCT(LARGE($C18:$BP18,{1,2,3,4,5,6}))) -> 31 | BV18: =IF(BU18= "","",IFERROR(SUMPRODUCT(LARGE($C18:$BP18,{1,2,3,4})), "")) ->  | BW18: =IF(BV18<>"",(IFERROR(SUMPRODUCT(LARGE($C18:$BP18,{1,2,3,4,5,6,7})),"")),"") ->  | BX18: =IF(BW18<>"",(IFERROR(SUMPRODUCT(LARGE($C18:$BP18,{1,2,3,4,5,6,7,8})),"")),"") -> 
B19: CC | AC19: 9 | AD19: 3 | AE19: 6 | AG19: 21 | AH19: 5 | AZ19: 7 | BR19: 51 | BS19: 6 | BT19: =IF($BS19<=6,SUM($C19:$BP19),SUMPRODUCT(LARGE($C19:$BP19,{1,2,3,4,5,6}))) -> 51 | BV19: =IF(BU19= "","",IFERROR(SUMPRODUCT(LARGE($C19:$BP19,{1,2,3,4})), "")) ->  | BW19: =IF(BV19<>"",(IFERROR(SUMPRODUCT(LARGE($C19:$BP19,{1,2,3,4,5,6,7})),"")),"") ->  | BX19: =IF(BW19<>"",(IFERROR(SUMPRODUCT(LARGE($C19:$BP19,{1,2,3,4,5,6,7,8})),"")),"") -> 
B20: CCC | AJ20: 6 | BL20: 8 | BR20: 14 | BS20: 2 | BT20: =IF($BS20<=6,SUM($C20:$BP20),SUMPRODUCT(LARGE($C20:$BP20,{1,2,3,4,5,6}))) -> 14 | BV20: =IF(BU20= "","",IFERROR(SUMPRODUCT(LARGE($C20:$BP20,{1,2,3,4})), "")) ->  | BW20: =IF(BV20<>"",(IFERROR(SUMPRODUCT(LARGE($C20:$BP20,{1,2,3,4,5,6,7})),"")),"") ->  | BX20: =IF(BW20<>"",(IFERROR(SUMPRODUCT(LARGE($C20:$BP20,{1,2,3,4,5,6,7,8})),"")),"") -> 
B21: CCSF | AN21: 3 | BG21: 2 | BL21: 5 | BM21: 9 | BN21: 8 | BO21: 2 | BR21: 29 | BS21: 6 | BT21: =IF($BS21<=6,SUM($C21:$BP21),SUMPRODUCT(LARGE($C21:$BP21,{1,2,3,4,5,6}))) -> 29 | BV21: =IF(BU21= "","",IFERROR(SUMPRODUCT(LARGE($C21:$BP21,{1,2,3,4})), "")) ->  | BW21: =IF(BV21<>"",(IFERROR(SUMPRODUCT(LARGE($C21:$BP21,{1,2,3,4,5,6,7})),"")),"") ->  | BX21: =IF(BW21<>"",(IFERROR(SUMPRODUCT(LARGE($C21:$BP21,{1,2,3,4,5,6,7,8})),"")),"") -> 
B22: CCU | P22: 27 | T22: 23 | AF22: 14 | AW22: 45 | BF22: 20 | BR22: 129 | BS22: 5 | BT22: =IF($BS22<=6,SUM($C22:$BP22),SUMPRODUCT(LARGE($C22:$BP22,{1,2,3,4,5,6}))) -> 129 | BV22: =IF(BU22= "","",IFERROR(SUMPRODUCT(LARGE($C22:$BP22,{1,2,3,4})), "")) ->  | BW22: =IF(BV22<>"",(IFERROR(SUMPRODUCT(LARGE($C22:$BP22,{1,2,3,4,5,6,7})),"")),"") ->  | BX22: =IF(BW22<>"",(IFERROR(SUMPRODUCT(LARGE($C22:$BP22,{1,2,3,4,5,6,7,8})),"")),"") -> 
B23: CD | AJ23: 16 | AM23: 16 | BN23: 8 | BR23: 40 | BS23: 3 | BT23: =IF($BS23<=6,SUM($C23:$BP23),SUMPRODUCT(LARGE($C23:$BP23,{1,2,3,4,5,6}))) -> 40 | BV23: =IF(BU23= "","",IFERROR(SUMPRODUCT(LARGE($C23:$BP23,{1,2,3,4})), "")) ->  | BW23: =IF(BV23<>"",(IFERROR(SUMPRODUCT(LARGE($C23:$BP23,{1,2,3,4,5,6,7})),"")),"") ->  | BX23: =IF(BW23<>"",(IFERROR(SUMPRODUCT(LARGE($C23:$BP23,{1,2,3,4,5,6,7,8})),"")),"") -> 
B24: CerC | AD24: 1 | AG24: 4 | AH24: 4 | AI24: 10 | AZ24: 7 | BB24: 2 | BC24: 1 | BR24: 29 | BS24: 7 | BT24: =IF($BS24<=6,SUM($C24:$BP24),SUMPRODUCT(LARGE($C24:$BP24,{1,2,3,4,5,6}))) -> 28 | BV24: =IF(BU24= "","",IFERROR(SUMPRODUCT(LARGE($C24:$BP24,{1,2,3,4})), "")) ->  | BW24: =IF(BV24<>"",(IFERROR(SUMPRODUCT(LARGE($C24:$BP24,{1,2,3,4,5,6,7})),"")),"") ->  | BX24: =IF(BW24<>"",(IFERROR(SUMPRODUCT(LARGE($C24:$BP24,{1,2,3,4,5,6,7,8})),"")),"") -> 
B25: ChaC | AD25: 2 | BR25: 2 | BS25: 1 | BT25: =IF($BS25<=6,SUM($C25:$BP25),SUMPRODUCT(LARGE($C25:$BP25,{1,2,3,4,5,6}))) -> 2 | BV25: =IF(BU25= "","",IFERROR(SUMPRODUCT(LARGE($C25:$BP25,{1,2,3,4})), "")) ->  | BW25: =IF(BV25<>"",(IFERROR(SUMPRODUCT(LARGE($C25:$BP25,{1,2,3,4,5,6,7})),"")),"") ->  | BX25: =IF(BW25<>"",(IFERROR(SUMPRODUCT(LARGE($C25:$BP25,{1,2,3,4,5,6,7,8})),"")),"") -> 
B26: ChC | BL26: 1 | BM26: 6 | BN26: 4 | BO26: 13 | BR26: 24 | BS26: 4 | BT26: =IF($BS26<=6,SUM($C26:$BP26),SUMPRODUCT(LARGE($C26:$BP26,{1,2,3,4,5,6}))) -> 24 | BV26: =IF(BU26= "","",IFERROR(SUMPRODUCT(LARGE($C26:$BP26,{1,2,3,4})), "")) ->  | BW26: =IF(BV26<>"",(IFERROR(SUMPRODUCT(LARGE($C26:$BP26,{1,2,3,4,5,6,7})),"")),"") ->  | BX26: =IF(BW26<>"",(IFERROR(SUMPRODUCT(LARGE($C26:$BP26,{1,2,3,4,5,6,7,8})),"")),"") -> 
B27: CLC | AJ27: 3 | AM27: 2 | BR27: 5 | BS27: 2 | BT27: =IF($BS27<=6,SUM($C27:$BP27),SUMPRODUCT(LARGE($C27:$BP27,{1,2,3,4,5,6}))) -> 5 | BV27: =IF(BU27= "","",IFERROR(SUMPRODUCT(LARGE($C27:$BP27,{1,2,3,4})), "")) ->  | BW27: =IF(BV27<>"",(IFERROR(SUMPRODUCT(LARGE($C27:$BP27,{1,2,3,4,5,6,7})),"")),"") ->  | BX27: =IF(BW27<>"",(IFERROR(SUMPRODUCT(LARGE($C27:$BP27,{1,2,3,4,5,6,7,8})),"")),"") -> 
B28: ClCC | AD28: 23 | AZ28: 12 | BB28: 2 | BL28: 11 | BR28: 48 | BS28: 4 | BT28: =IF($BS28<=6,SUM($C28:$BP28),SUMPRODUCT(LARGE($C28:$BP28,{1,2,3,4,5,6}))) -> 48 | BV28: =IF(BU28= "","",IFERROR(SUMPRODUCT(LARGE($C28:$BP28,{1,2,3,4})), "")) ->  | BW28: =IF(BV28<>"",(IFERROR(SUMPRODUCT(LARGE($C28:$BP28,{1,2,3,4,5,6,7})),"")),"") ->  | BX28: =IF(BW28<>"",(IFERROR(SUMPRODUCT(LARGE($C28:$BP28,{1,2,3,4,5,6,7,8})),"")),"") -> 
B29: ColC | AF29: 15 | BC29: 4 | BR29: 19 | BS29: 2 | BT29: =IF($BS29<=6,SUM($C29:$BP29),SUMPRODUCT(LARGE($C29:$BP29,{1,2,3,4,5,6}))) -> 19 | BV29: =IF(BU29= "","",IFERROR(SUMPRODUCT(LARGE($C29:$BP29,{1,2,3,4})), "")) ->  | BW29: =IF(BV29<>"",(IFERROR(SUMPRODUCT(LARGE($C29:$BP29,{1,2,3,4,5,6,7})),"")),"") ->  | BX29: =IF(BW29<>"",(IFERROR(SUMPRODUCT(LARGE($C29:$BP29,{1,2,3,4,5,6,7,8})),"")),"") -> 
B30: CrC | AY30: 8 | BR30: 8 | BS30: 1 | BT30: =IF($BS30<=6,SUM($C30:$BP30),SUMPRODUCT(LARGE($C30:$BP30,{1,2,3,4,5,6}))) -> 8 | BV30: =IF(BU30= "","",IFERROR(SUMPRODUCT(LARGE($C30:$BP30,{1,2,3,4})), "")) ->  | BW30: =IF(BV30<>"",(IFERROR(SUMPRODUCT(LARGE($C30:$BP30,{1,2,3,4,5,6,7})),"")),"") ->  | BX30: =IF(BW30<>"",(IFERROR(SUMPRODUCT(LARGE($C30:$BP30,{1,2,3,4,5,6,7,8})),"")),"") -> 
B31: CSCC | J31: 5 | BR31: 5 | BS31: 1 | BT31: =IF($BS31<=6,SUM($C31:$BP31),SUMPRODUCT(LARGE($C31:$BP31,{1,2,3,4,5,6}))) -> 5 | BV31: =IF(BU31= "","",IFERROR(SUMPRODUCT(LARGE($C31:$BP31,{1,2,3,4})), "")) ->  | BW31: =IF(BV31<>"",(IFERROR(SUMPRODUCT(LARGE($C31:$BP31,{1,2,3,4,5,6,7})),"")),"") ->  | BX31: =IF(BW31<>"",(IFERROR(SUMPRODUCT(LARGE($C31:$BP31,{1,2,3,4,5,6,7,8})),"")),"") -> 
B32: CSI | E32: 24 | F32: 19 | T32: 24 | BC32: 15 | BR32: 82 | BS32: 4 | BT32: =IF($BS32<=6,SUM($C32:$BP32),SUMPRODUCT(LARGE($C32:$BP32,{1,2,3,4,5,6}))) -> 82 | BV32: =IF(BU32= "","",IFERROR(SUMPRODUCT(LARGE($C32:$BP32,{1,2,3,4})), "")) ->  | BW32: =IF(BV32<>"",(IFERROR(SUMPRODUCT(LARGE($C32:$BP32,{1,2,3,4,5,6,7})),"")),"") ->  | BX32: =IF(BW32<>"",(IFERROR(SUMPRODUCT(LARGE($C32:$BP32,{1,2,3,4,5,6,7,8})),"")),"") -> 
B33: CSUC | BI33: 9 | BM33: 11 | BR33: 20 | BS33: 2 | BT33: =IF($BS33<=6,SUM($C33:$BP33),SUMPRODUCT(LARGE($C33:$BP33,{1,2,3,4,5,6}))) -> 20 | BV33: =IF(BU33= "","",IFERROR(SUMPRODUCT(LARGE($C33:$BP33,{1,2,3,4})), "")) ->  | BW33: =IF(BV33<>"",(IFERROR(SUMPRODUCT(LARGE($C33:$BP33,{1,2,3,4,5,6,7})),"")),"") ->  | BX33: =IF(BW33<>"",(IFERROR(SUMPRODUCT(LARGE($C33:$BP33,{1,2,3,4,5,6,7,8})),"")),"") -> 
B34: CSUF | AD34: 4 | AE34: 2 | AI34: 1 | AZ34: 1 | BA34: 3 | BR34: 11 | BS34: 5 | BT34: =IF($BS34<=6,SUM($C34:$BP34),SUMPRODUCT(LARGE($C34:$BP34,{1,2,3,4,5,6}))) -> 11 | BV34: =IF(BU34= "","",IFERROR(SUMPRODUCT(LARGE($C34:$BP34,{1,2,3,4})), "")) ->  | BW34: =IF(BV34<>"",(IFERROR(SUMPRODUCT(LARGE($C34:$BP34,{1,2,3,4,5,6,7})),"")),"") ->  | BX34: =IF(BW34<>"",(IFERROR(SUMPRODUCT(LARGE($C34:$BP34,{1,2,3,4,5,6,7,8})),"")),"") -> 
B35: CSULA | AC35: 9 | AD35: 11 | AG35: 1 | AH35: 1 | AL35: 7 | AZ35: 8 | BB35: 2 | BR35: 39 | BS35: 7 | BT35: =IF($BS35<=6,SUM($C35:$BP35),SUMPRODUCT(LARGE($C35:$BP35,{1,2,3,4,5,6}))) -> 38 | BV35: =IF(BU35= "","",IFERROR(SUMPRODUCT(LARGE($C35:$BP35,{1,2,3,4})), "")) ->  | BW35: =IF(BV35<>"",(IFERROR(SUMPRODUCT(LARGE($C35:$BP35,{1,2,3,4,5,6,7})),"")),"") ->  | BX35: =IF(BW35<>"",(IFERROR(SUMPRODUCT(LARGE($C35:$BP35,{1,2,3,4,5,6,7,8})),"")),"") -> 
B36: CSULB | AD36: 8 | AE36: 5 | AZ36: 19 | BC36: 13 | BR36: 45 | BS36: 4 | BT36: =IF($BS36<=6,SUM($C36:$BP36),SUMPRODUCT(LARGE($C36:$BP36,{1,2,3,4,5,6}))) -> 45 | BV36: =IF(BU36= "","",IFERROR(SUMPRODUCT(LARGE($C36:$BP36,{1,2,3,4})), "")) ->  | BW36: =IF(BV36<>"",(IFERROR(SUMPRODUCT(LARGE($C36:$BP36,{1,2,3,4,5,6,7})),"")),"") ->  | BX36: =IF(BW36<>"",(IFERROR(SUMPRODUCT(LARGE($C36:$BP36,{1,2,3,4,5,6,7,8})),"")),"") -> 
B37: CSUN | AE37: 2 | AZ37: 14 | BR37: 16 | BS37: 2 | BT37: =IF($BS37<=6,SUM($C37:$BP37),SUMPRODUCT(LARGE($C37:$BP37,{1,2,3,4,5,6}))) -> 16 | BV37: =IF(BU37= "","",IFERROR(SUMPRODUCT(LARGE($C37:$BP37,{1,2,3,4})), "")) ->  | BW37: =IF(BV37<>"",(IFERROR(SUMPRODUCT(LARGE($C37:$BP37,{1,2,3,4,5,6,7})),"")),"") ->  | BX37: =IF(BW37<>"",(IFERROR(SUMPRODUCT(LARGE($C37:$BP37,{1,2,3,4,5,6,7,8})),"")),"") -> 
B38: CSUSM | AD38: 2 | AG38: 8 | AK38: 4 | AL38: 5 | AZ38: 4 | BB38: 1 | BF38: 2 | BR38: 26 | BS38: 7 | BT38: =IF($BS38<=6,SUM($C38:$BP38),SUMPRODUCT(LARGE($C38:$BP38,{1,2,3,4,5,6}))) -> 25 | BV38: =IF(BU38= "","",IFERROR(SUMPRODUCT(LARGE($C38:$BP38,{1,2,3,4})), "")) ->  | BW38: =IF(BV38<>"",(IFERROR(SUMPRODUCT(LARGE($C38:$BP38,{1,2,3,4,5,6,7})),"")),"") ->  | BX38: =IF(BW38<>"",(IFERROR(SUMPRODUCT(LARGE($C38:$BP38,{1,2,3,4,5,6,7,8})),"")),"") -> 
B39: CU | BR39: 0 | BS39: 0 | BT39: =IF($BS39<=6,SUM($C39:$BP39),SUMPRODUCT(LARGE($C39:$BP39,{1,2,3,4,5,6}))) -> 0 | BV39: =IF(BU39= "","",IFERROR(SUMPRODUCT(LARGE($C39:$BP39,{1,2,3,4})), "")) ->  | BW39: =IF(BV39<>"",(IFERROR(SUMPRODUCT(LARGE($C39:$BP39,{1,2,3,4,5,6,7})),"")),"") ->  | BX39: =IF(BW39<>"",(IFERROR(SUMPRODUCT(LARGE($C39:$BP39,{1,2,3,4,5,6,7,8})),"")),"") -> 
B40: CUI | AD40: 31 | AL40: 37 | AZ40: 24 | BB40: 35 | BF40: 2 | BI40: 15 | BL40: 20 | BR40: 164 | BS40: 7 | BT40: =IF($BS40<=6,SUM($C40:$BP40),SUMPRODUCT(LARGE($C40:$BP40,{1,2,3,4,5,6}))) -> 162 | BV40: =IF(BU40= "","",IFERROR(SUMPRODUCT(LARGE($C40:$BP40,{1,2,3,4})), "")) ->  | BW40: =IF(BV40<>"",(IFERROR(SUMPRODUCT(LARGE($C40:$BP40,{1,2,3,4,5,6,7})),"")),"") ->  | BX40: =IF(BW40<>"",(IFERROR(SUMPRODUCT(LARGE($C40:$BP40,{1,2,3,4,5,6,7,8})),"")),"") -> 
B41: CUN | BR41: 0 | BS41: 0 | BT41: =IF($BS41<=6,SUM($C41:$BP41),SUMPRODUCT(LARGE($C41:$BP41,{1,2,3,4,5,6}))) -> 0 | BV41: =IF(BU41= "","",IFERROR(SUMPRODUCT(LARGE($C41:$BP41,{1,2,3,4})), "")) ->  | BW41: =IF(BV41<>"",(IFERROR(SUMPRODUCT(LARGE($C41:$BP41,{1,2,3,4,5,6,7})),"")),"") ->  | BX41: =IF(BW41<>"",(IFERROR(SUMPRODUCT(LARGE($C41:$BP41,{1,2,3,4,5,6,7,8})),"")),"") -> 
B42: CUNYBC | BC42: 6 | BR42: 6 | BS42: 1 | BT42: =IF($BS42<=6,SUM($C42:$BP42),SUMPRODUCT(LARGE($C42:$BP42,{1,2,3,4,5,6}))) -> 6 | BV42: =IF(BU42= "","",IFERROR(SUMPRODUCT(LARGE($C42:$BP42,{1,2,3,4})), "")) ->  | BW42: =IF(BV42<>"",(IFERROR(SUMPRODUCT(LARGE($C42:$BP42,{1,2,3,4,5,6,7})),"")),"") ->  | BX42: =IF(BW42<>"",(IFERROR(SUMPRODUCT(LARGE($C42:$BP42,{1,2,3,4,5,6,7,8})),"")),"") -> 
B43: CWI | E43: 33 | F43: 38 | T43: 28 | BR43: 99 | BS43: 3 | BT43: =IF($BS43<=6,SUM($C43:$BP43),SUMPRODUCT(LARGE($C43:$BP43,{1,2,3,4,5,6}))) -> 99 | BV43: =IF(BU43= "","",IFERROR(SUMPRODUCT(LARGE($C43:$BP43,{1,2,3,4})), "")) ->  | BW43: =IF(BV43<>"",(IFERROR(SUMPRODUCT(LARGE($C43:$BP43,{1,2,3,4,5,6,7})),"")),"") ->  | BX43: =IF(BW43<>"",(IFERROR(SUMPRODUCT(LARGE($C43:$BP43,{1,2,3,4,5,6,7,8})),"")),"") -> 
B44: DBU | C44: 44 | I44: 45 | O44: 64 | V44: 28 | X44: 43 | AO44: 46 | AP44: 41 | AS44: 11 | AX44: 35 | AY44: 55 | BR44: 412 | BS44: 10 | BT44: =IF($BS44<=6,SUM($C44:$BP44),SUMPRODUCT(LARGE($C44:$BP44,{1,2,3,4,5,6}))) -> 297 | BV44: =IF(BU44= "","",IFERROR(SUMPRODUCT(LARGE($C44:$BP44,{1,2,3,4})), "")) ->  | BW44: =IF(BV44<>"",(IFERROR(SUMPRODUCT(LARGE($C44:$BP44,{1,2,3,4,5,6,7})),"")),"") ->  | BX44: =IF(BW44<>"",(IFERROR(SUMPRODUCT(LARGE($C44:$BP44,{1,2,3,4,5,6,7,8})),"")),"") -> 
B45: DCC | S45: 8 | BI45: 9 | BK45: 16 | BR45: 33 | BS45: 3 | BT45: =IF($BS45<=6,SUM($C45:$BP45),SUMPRODUCT(LARGE($C45:$BP45,{1,2,3,4,5,6}))) -> 33 | BV45: =IF(BU45= "","",IFERROR(SUMPRODUCT(LARGE($C45:$BP45,{1,2,3,4})), "")) ->  | BW45: =IF(BV45<>"",(IFERROR(SUMPRODUCT(LARGE($C45:$BP45,{1,2,3,4,5,6,7})),"")),"") ->  | BX45: =IF(BW45<>"",(IFERROR(SUMPRODUCT(LARGE($C45:$BP45,{1,2,3,4,5,6,7,8})),"")),"") -> 
B46: DepU | AJ46: 10 | AM46: 7 | BR46: 17 | BS46: 2 | BT46: =IF($BS46<=6,SUM($C46:$BP46),SUMPRODUCT(LARGE($C46:$BP46,{1,2,3,4,5,6}))) -> 17 | BV46: =IF(BU46= "","",IFERROR(SUMPRODUCT(LARGE($C46:$BP46,{1,2,3,4})), "")) ->  | BW46: =IF(BV46<>"",(IFERROR(SUMPRODUCT(LARGE($C46:$BP46,{1,2,3,4,5,6,7})),"")),"") ->  | BX46: =IF(BW46<>"",(IFERROR(SUMPRODUCT(LARGE($C46:$BP46,{1,2,3,4,5,6,7,8})),"")),"") -> 
B47: DeU | G47: 13 | BR47: 13 | BS47: 1 | BT47: =IF($BS47<=6,SUM($C47:$BP47),SUMPRODUCT(LARGE($C47:$BP47,{1,2,3,4,5,6}))) -> 13 | BV47: =IF(BU47= "","",IFERROR(SUMPRODUCT(LARGE($C47:$BP47,{1,2,3,4})), "")) ->  | BW47: =IF(BV47<>"",(IFERROR(SUMPRODUCT(LARGE($C47:$BP47,{1,2,3,4,5,6,7})),"")),"") ->  | BX47: =IF(BW47<>"",(IFERROR(SUMPRODUCT(LARGE($C47:$BP47,{1,2,3,4,5,6,7,8})),"")),"") -> 
B48: DorU | G48: 7 | S48: 3 | BJ48: 2 | BR48: 12 | BS48: 3 | BT48: =IF($BS48<=6,SUM($C48:$BP48),SUMPRODUCT(LARGE($C48:$BP48,{1,2,3,4,5,6}))) -> 12 | BV48: =IF(BU48= "","",IFERROR(SUMPRODUCT(LARGE($C48:$BP48,{1,2,3,4})), "")) ->  | BW48: =IF(BV48<>"",(IFERROR(SUMPRODUCT(LARGE($C48:$BP48,{1,2,3,4,5,6,7})),"")),"") ->  | BX48: =IF(BW48<>"",(IFERROR(SUMPRODUCT(LARGE($C48:$BP48,{1,2,3,4,5,6,7,8})),"")),"") -> 
B49: DVC | AD49: 2 | AN49: 2 | BL49: 6 | BM49: 18 | BN49: 10 | BO49: 10 | BR49: 48 | BS49: 6 | BT49: =IF($BS49<=6,SUM($C49:$BP49),SUMPRODUCT(LARGE($C49:$BP49,{1,2,3,4,5,6}))) -> 48 | BV49: =IF(BU49= "","",IFERROR(SUMPRODUCT(LARGE($C49:$BP49,{1,2,3,4})), "")) ->  | BW49: =IF(BV49<>"",(IFERROR(SUMPRODUCT(LARGE($C49:$BP49,{1,2,3,4,5,6,7})),"")),"") ->  | BX49: =IF(BW49<>"",(IFERROR(SUMPRODUCT(LARGE($C49:$BP49,{1,2,3,4,5,6,7,8})),"")),"") -> 
B50: EC | R50: 13 | AA50: 20 | BC50: 12 | BJ50: 4 | BR50: 49 | BS50: 4 | BT50: =IF($BS50<=6,SUM($C50:$BP50),SUMPRODUCT(LARGE($C50:$BP50,{1,2,3,4,5,6}))) -> 49 | BV50: =IF(BU50= "","",IFERROR(SUMPRODUCT(LARGE($C50:$BP50,{1,2,3,4})), "")) ->  | BW50: =IF(BV50<>"",(IFERROR(SUMPRODUCT(LARGE($C50:$BP50,{1,2,3,4,5,6,7})),"")),"") ->  | BX50: =IF(BW50<>"",(IFERROR(SUMPRODUCT(LARGE($C50:$BP50,{1,2,3,4,5,6,7,8})),"")),"") -> 
B51: ECC | AD51: 26 | AG51: 2 | AZ51: 10 | BB51: 21 | BC51: 15 | BF51: 2 | BR51: 76 | BS51: 6 | BT51: =IF($BS51<=6,SUM($C51:$BP51),SUMPRODUCT(LARGE($C51:$BP51,{1,2,3,4,5,6}))) -> 76 | BV51: =IF(BU51= "","",IFERROR(SUMPRODUCT(LARGE($C51:$BP51,{1,2,3,4})), "")) ->  | BW51: =IF(BV51<>"",(IFERROR(SUMPRODUCT(LARGE($C51:$BP51,{1,2,3,4,5,6,7})),"")),"") ->  | BX51: =IF(BW51<>"",(IFERROR(SUMPRODUCT(LARGE($C51:$BP51,{1,2,3,4,5,6,7,8})),"")),"") -> 
B52: EPCC | AF52: 1 | BC52: 3 | BO52: 2 | BR52: 6 | BS52: 3 | BT52: =IF($BS52<=6,SUM($C52:$BP52),SUMPRODUCT(LARGE($C52:$BP52,{1,2,3,4,5,6}))) -> 6 | BV52: =IF(BU52= "","",IFERROR(SUMPRODUCT(LARGE($C52:$BP52,{1,2,3,4})), "")) ->  | BW52: =IF(BV52<>"",(IFERROR(SUMPRODUCT(LARGE($C52:$BP52,{1,2,3,4,5,6,7})),"")),"") ->  | BX52: =IF(BW52<>"",(IFERROR(SUMPRODUCT(LARGE($C52:$BP52,{1,2,3,4,5,6,7,8})),"")),"") -> 
B53: ErC | J53: 13 | AT53: 13 | BR53: 26 | BS53: 2 | BT53: =IF($BS53<=6,SUM($C53:$BP53),SUMPRODUCT(LARGE($C53:$BP53,{1,2,3,4,5,6}))) -> 26 | BV53: =IF(BU53= "","",IFERROR(SUMPRODUCT(LARGE($C53:$BP53,{1,2,3,4})), "")) ->  | BW53: =IF(BV53<>"",(IFERROR(SUMPRODUCT(LARGE($C53:$BP53,{1,2,3,4,5,6,7})),"")),"") ->  | BX53: =IF(BW53<>"",(IFERROR(SUMPRODUCT(LARGE($C53:$BP53,{1,2,3,4,5,6,7,8})),"")),"") -> 
B54: ETSU | G54: 0 | BR54: 0 | BS54: 1 | BT54: =IF($BS54<=6,SUM($C54:$BP54),SUMPRODUCT(LARGE($C54:$BP54,{1,2,3,4,5,6}))) -> 0 | BV54: =IF(BU54= "","",IFERROR(SUMPRODUCT(LARGE($C54:$BP54,{1,2,3,4})), "")) ->  | BW54: =IF(BV54<>"",(IFERROR(SUMPRODUCT(LARGE($C54:$BP54,{1,2,3,4,5,6,7})),"")),"") ->  | BX54: =IF(BW54<>"",(IFERROR(SUMPRODUCT(LARGE($C54:$BP54,{1,2,3,4,5,6,7,8})),"")),"") -> 
B55: FCC | BL55: 12 | BR55: 12 | BS55: 1 | BT55: =IF($BS55<=6,SUM($C55:$BP55),SUMPRODUCT(LARGE($C55:$BP55,{1,2,3,4,5,6}))) -> 12 | BV55: =IF(BU55= "","",IFERROR(SUMPRODUCT(LARGE($C55:$BP55,{1,2,3,4})), "")) ->  | BW55: =IF(BV55<>"",(IFERROR(SUMPRODUCT(LARGE($C55:$BP55,{1,2,3,4,5,6,7})),"")),"") ->  | BX55: =IF(BW55<>"",(IFERROR(SUMPRODUCT(LARGE($C55:$BP55,{1,2,3,4,5,6,7,8})),"")),"") -> 
B56: FHU | K56: 9 | BR56: 9 | BS56: 1 | BT56: =IF($BS56<=6,SUM($C56:$BP56),SUMPRODUCT(LARGE($C56:$BP56,{1,2,3,4,5,6}))) -> 9 | BV56: =IF(BU56= "","",IFERROR(SUMPRODUCT(LARGE($C56:$BP56,{1,2,3,4})), "")) ->  | BW56: =IF(BV56<>"",(IFERROR(SUMPRODUCT(LARGE($C56:$BP56,{1,2,3,4,5,6,7})),"")),"") ->  | BX56: =IF(BW56<>"",(IFERROR(SUMPRODUCT(LARGE($C56:$BP56,{1,2,3,4,5,6,7,8})),"")),"") -> 
B57: FS | AN57: 13 | BM57: 11 | BN57: 8 | BO57: 17 | BR57: 49 | BS57: 4 | BT57: =IF($BS57<=6,SUM($C57:$BP57),SUMPRODUCT(LARGE($C57:$BP57,{1,2,3,4,5,6}))) -> 49 | BV57: =IF(BU57= "","",IFERROR(SUMPRODUCT(LARGE($C57:$BP57,{1,2,3,4})), "")) ->  | BW57: =IF(BV57<>"",(IFERROR(SUMPRODUCT(LARGE($C57:$BP57,{1,2,3,4,5,6,7})),"")),"") ->  | BX57: =IF(BW57<>"",(IFERROR(SUMPRODUCT(LARGE($C57:$BP57,{1,2,3,4,5,6,7,8})),"")),"") -> 
B58: FSCJ | G58: 5 | H58: 1 | AA58: 8 | BJ58: 2 | BR58: 16 | BS58: 4 | BT58: =IF($BS58<=6,SUM($C58:$BP58),SUMPRODUCT(LARGE($C58:$BP58,{1,2,3,4,5,6}))) -> 16 | BV58: =IF(BU58= "","",IFERROR(SUMPRODUCT(LARGE($C58:$BP58,{1,2,3,4})), "")) ->  | BW58: =IF(BV58<>"",(IFERROR(SUMPRODUCT(LARGE($C58:$BP58,{1,2,3,4,5,6,7})),"")),"") ->  | BX58: =IF(BW58<>"",(IFERROR(SUMPRODUCT(LARGE($C58:$BP58,{1,2,3,4,5,6,7,8})),"")),"") -> 
B59: FSU | Q59: 2 | BR59: 2 | BS59: 1 | BT59: =IF($BS59<=6,SUM($C59:$BP59),SUMPRODUCT(LARGE($C59:$BP59,{1,2,3,4,5,6}))) -> 2 | BV59: =IF(BU59= "","",IFERROR(SUMPRODUCT(LARGE($C59:$BP59,{1,2,3,4})), "")) ->  | BW59: =IF(BV59<>"",(IFERROR(SUMPRODUCT(LARGE($C59:$BP59,{1,2,3,4,5,6,7})),"")),"") ->  | BX59: =IF(BW59<>"",(IFERROR(SUMPRODUCT(LARGE($C59:$BP59,{1,2,3,4,5,6,7,8})),"")),"") -> 
B60: GC | AD60: 8 | AI60: 22 | AK60: 4 | AL60: 13 | AZ60: 9 | BC60: 12 | BF60: 11 | BR60: 79 | BS60: 7 | BT60: =IF($BS60<=6,SUM($C60:$BP60),SUMPRODUCT(LARGE($C60:$BP60,{1,2,3,4,5,6}))) -> 75 | BV60: =IF(BU60= "","",IFERROR(SUMPRODUCT(LARGE($C60:$BP60,{1,2,3,4})), "")) ->  | BW60: =IF(BV60<>"",(IFERROR(SUMPRODUCT(LARGE($C60:$BP60,{1,2,3,4,5,6,7})),"")),"") ->  | BX60: =IF(BW60<>"",(IFERROR(SUMPRODUCT(LARGE($C60:$BP60,{1,2,3,4,5,6,7,8})),"")),"") -> 
B61: GCC | G61: 18 | H61: 5 | Z61: 4 | AW61: 18 | BJ61: 13 | BK61: 13 | BR61: 71 | BS61: 6 | BT61: =IF($BS61<=6,SUM($C61:$BP61),SUMPRODUCT(LARGE($C61:$BP61,{1,2,3,4,5,6}))) -> 71 | BV61: =IF(BU61= "","",IFERROR(SUMPRODUCT(LARGE($C61:$BP61,{1,2,3,4})), "")) ->  | BW61: =IF(BV61<>"",(IFERROR(SUMPRODUCT(LARGE($C61:$BP61,{1,2,3,4,5,6,7})),"")),"") ->  | BX61: =IF(BW61<>"",(IFERROR(SUMPRODUCT(LARGE($C61:$BP61,{1,2,3,4,5,6,7,8})),"")),"") -> 
B62: GCSU | Q62: 2 | AA62: 1 | BR62: 3 | BS62: 2 | BT62: =IF($BS62<=6,SUM($C62:$BP62),SUMPRODUCT(LARGE($C62:$BP62,{1,2,3,4,5,6}))) -> 3 | BV62: =IF(BU62= "","",IFERROR(SUMPRODUCT(LARGE($C62:$BP62,{1,2,3,4})), "")) ->  | BW62: =IF(BV62<>"",(IFERROR(SUMPRODUCT(LARGE($C62:$BP62,{1,2,3,4,5,6,7})),"")),"") ->  | BX62: =IF(BW62<>"",(IFERROR(SUMPRODUCT(LARGE($C62:$BP62,{1,2,3,4,5,6,7,8})),"")),"") -> 
B63: GCU | G63: 5 | H63: 3 | AW63: 10 | AZ63: 6 | BB63: 13 | BJ63: 2 | BK63: 1 | BR63: 40 | BS63: 7 | BT63: =IF($BS63<=6,SUM($C63:$BP63),SUMPRODUCT(LARGE($C63:$BP63,{1,2,3,4,5,6}))) -> 39 | BV63: =IF(BU63= "","",IFERROR(SUMPRODUCT(LARGE($C63:$BP63,{1,2,3,4})), "")) ->  | BW63: =IF(BV63<>"",(IFERROR(SUMPRODUCT(LARGE($C63:$BP63,{1,2,3,4,5,6,7})),"")),"") ->  | BX63: =IF(BW63<>"",(IFERROR(SUMPRODUCT(LARGE($C63:$BP63,{1,2,3,4,5,6,7,8})),"")),"") -> 
B64: GIT | V64: 3 | AY64: 3 | BA64: 5 | BR64: 11 | BS64: 3 | BT64: =IF($BS64<=6,SUM($C64:$BP64),SUMPRODUCT(LARGE($C64:$BP64,{1,2,3,4,5,6}))) -> 11 | BV64: =IF(BU64= "","",IFERROR(SUMPRODUCT(LARGE($C64:$BP64,{1,2,3,4})), "")) ->  | BW64: =IF(BV64<>"",(IFERROR(SUMPRODUCT(LARGE($C64:$BP64,{1,2,3,4,5,6,7})),"")),"") ->  | BX64: =IF(BW64<>"",(IFERROR(SUMPRODUCT(LARGE($C64:$BP64,{1,2,3,4,5,6,7,8})),"")),"") -> 
B65: HC | AJ65: 9 | AM65: 19 | BE65: 31 | BR65: 59 | BS65: 3 | BT65: =IF($BS65<=6,SUM($C65:$BP65),SUMPRODUCT(LARGE($C65:$BP65,{1,2,3,4,5,6}))) -> 59 | BV65: =IF(BU65= "","",IFERROR(SUMPRODUCT(LARGE($C65:$BP65,{1,2,3,4})), "")) ->  | BW65: =IF(BV65<>"",(IFERROR(SUMPRODUCT(LARGE($C65:$BP65,{1,2,3,4,5,6,7})),"")),"") ->  | BX65: =IF(BW65<>"",(IFERROR(SUMPRODUCT(LARGE($C65:$BP65,{1,2,3,4,5,6,7,8})),"")),"") -> 
B66: HCC | AJ66: 1 | BR66: 1 | BS66: 1 | BT66: =IF($BS66<=6,SUM($C66:$BP66),SUMPRODUCT(LARGE($C66:$BP66,{1,2,3,4,5,6}))) -> 1 | BV66: =IF(BU66= "","",IFERROR(SUMPRODUCT(LARGE($C66:$BP66,{1,2,3,4})), "")) ->  | BW66: =IF(BV66<>"",(IFERROR(SUMPRODUCT(LARGE($C66:$BP66,{1,2,3,4,5,6,7})),"")),"") ->  | BX66: =IF(BW66<>"",(IFERROR(SUMPRODUCT(LARGE($C66:$BP66,{1,2,3,4,5,6,7,8})),"")),"") -> 
B67: HolU | T67: 0 | BR67: 0 | BS67: 1 | BT67: =IF($BS67<=6,SUM($C67:$BP67),SUMPRODUCT(LARGE($C67:$BP67,{1,2,3,4,5,6}))) -> 0 | BV67: =IF(BU67= "","",IFERROR(SUMPRODUCT(LARGE($C67:$BP67,{1,2,3,4})), "")) ->  | BW67: =IF(BV67<>"",(IFERROR(SUMPRODUCT(LARGE($C67:$BP67,{1,2,3,4,5,6,7})),"")),"") ->  | BX67: =IF(BW67<>"",(IFERROR(SUMPRODUCT(LARGE($C67:$BP67,{1,2,3,4,5,6,7,8})),"")),"") -> 
B68: HoU | S68: 2 | BR68: =SUM($C68:$BQ68) -> 2 | BS68: =COUNTA(C68:BP68) -> 1 | BT68: =IF($BS68<=6,SUM($C68:$BP68),SUMPRODUCT(LARGE($C68:$BP68,{1,2,3,4,5,6}))) -> 2 | BU68: =IF(AND($BS68>=6,BT68=BT69),"Manual Calc Needed","") ->  | BV68: =IF(BU68= "","",IFERROR(SUMPRODUCT(LARGE($C68:$BP68,{1,2,3,4})), "")) ->  | BW68: =IF(BV68<>"",(IFERROR(SUMPRODUCT(LARGE($C68:$BP68,{1,2,3,4,5,6,7})),"")),"") ->  | BX68: =IF(BW68<>"",(IFERROR(SUMPRODUCT(LARGE($C68:$BP68,{1,2,3,4,5,6,7,8})),"")),"") -> 
B69: HPU | C69: 17 | H69: 14 | BK69: 12 | BR69: 43 | BS69: 3 | BT69: =IF($BS69<=6,SUM($C69:$BP69),SUMPRODUCT(LARGE($C69:$BP69,{1,2,3,4,5,6}))) -> 43 | BV69: =IF(BU69= "","",IFERROR(SUMPRODUCT(LARGE($C69:$BP69,{1,2,3,4})), "")) ->  | BW69: =IF(BV69<>"",(IFERROR(SUMPRODUCT(LARGE($C69:$BP69,{1,2,3,4,5,6,7})),"")),"") ->  | BX69: =IF(BW69<>"",(IFERROR(SUMPRODUCT(LARGE($C69:$BP69,{1,2,3,4,5,6,7,8})),"")),"") -> 
B70: HU | G70: 7 | X70: 3 | AO70: 10 | AP70: 22 | BA70: 16 | BQ70: 7 | BR70: 65 | BS70: 5 | BT70: =IF($BS70<=6,SUM($C70:$BP70),SUMPRODUCT(LARGE($C70:$BP70,{1,2,3,4,5,6}))) -> 58 | BV70: =IF(BU70= "","",IFERROR(SUMPRODUCT(LARGE($C70:$BP70,{1,2,3,4})), "")) ->  | BW70: =IF(BV70<>"",(IFERROR(SUMPRODUCT(LARGE($C70:$BP70,{1,2,3,4,5,6,7})),"")),"") ->  | BX70: =IF(BW70<>"",(IFERROR(SUMPRODUCT(LARGE($C70:$BP70,{1,2,3,4,5,6,7,8})),"")),"") -> 
B71: ILSU | BN71: 6 | BR71: 6 | BS71: 1 | BT71: =IF($BS71<=6,SUM($C71:$BP71),SUMPRODUCT(LARGE($C71:$BP71,{1,2,3,4,5,6}))) -> 6 | BV71: =IF(BU71= "","",IFERROR(SUMPRODUCT(LARGE($C71:$BP71,{1,2,3,4})), "")) ->  | BW71: =IF(BV71<>"",(IFERROR(SUMPRODUCT(LARGE($C71:$BP71,{1,2,3,4,5,6,7})),"")),"") ->  | BX71: =IF(BW71<>"",(IFERROR(SUMPRODUCT(LARGE($C71:$BP71,{1,2,3,4,5,6,7,8})),"")),"") -> 
B72: ISU | E72: 28 | F72: 29 | T72: 10 | BE72: 1 | BG72: 11 | BI72: 23 | BR72: 102 | BS72: 6 | BT72: =IF($BS72<=6,SUM($C72:$BP72),SUMPRODUCT(LARGE($C72:$BP72,{1,2,3,4,5,6}))) -> 102 | BV72: =IF(BU72= "","",IFERROR(SUMPRODUCT(LARGE($C72:$BP72,{1,2,3,4})), "")) ->  | BW72: =IF(BV72<>"",(IFERROR(SUMPRODUCT(LARGE($C72:$BP72,{1,2,3,4,5,6,7})),"")),"") ->  | BX72: =IF(BW72<>"",(IFERROR(SUMPRODUCT(LARGE($C72:$BP72,{1,2,3,4,5,6,7,8})),"")),"") -> 
B73: IVC | AD73: 30 | AI73: 17 | AK73: 19 | BA73: 16 | BB73: 22 | BC73: 18 | BR73: 122 | BS73: 6 | BT73: =IF($BS73<=6,SUM($C73:$BP73),SUMPRODUCT(LARGE($C73:$BP73,{1,2,3,4,5,6}))) -> 122 | BV73: =IF(BU73= "","",IFERROR(SUMPRODUCT(LARGE($C73:$BP73,{1,2,3,4})), "")) ->  | BW73: =IF(BV73<>"",(IFERROR(SUMPRODUCT(LARGE($C73:$BP73,{1,2,3,4,5,6,7})),"")),"") ->  | BX73: =IF(BW73<>"",(IFERROR(SUMPRODUCT(LARGE($C73:$BP73,{1,2,3,4,5,6,7,8})),"")),"") -> 
B74: JCU | BI74: 9 | BR74: 9 | BS74: 1 | BT74: =IF($BS74<=6,SUM($C74:$BP74),SUMPRODUCT(LARGE($C74:$BP74,{1,2,3,4,5,6}))) -> 9 | BV74: =IF(BU74= "","",IFERROR(SUMPRODUCT(LARGE($C74:$BP74,{1,2,3,4})), "")) ->  | BW74: =IF(BV74<>"",(IFERROR(SUMPRODUCT(LARGE($C74:$BP74,{1,2,3,4,5,6,7})),"")),"") ->  | BX74: =IF(BW74<>"",(IFERROR(SUMPRODUCT(LARGE($C74:$BP74,{1,2,3,4,5,6,7,8})),"")),"") -> 
B75: JSCC | K75: 16 | M75: 7 | O75: 10 | V75: 15 | AO75: 4 | AT75: 22 | AX75: 15 | AY75: 3 | BA75: 13 | BJ75: 7 | BR75: 112 | BS75: 10 | BT75: =IF($BS75<=6,SUM($C75:$BP75),SUMPRODUCT(LARGE($C75:$BP75,{1,2,3,4,5,6}))) -> 91 | BV75: =IF(BU75= "","",IFERROR(SUMPRODUCT(LARGE($C75:$BP75,{1,2,3,4})), "")) ->  | BW75: =IF(BV75<>"",(IFERROR(SUMPRODUCT(LARGE($C75:$BP75,{1,2,3,4,5,6,7})),"")),"") ->  | BX75: =IF(BW75<>"",(IFERROR(SUMPRODUCT(LARGE($C75:$BP75,{1,2,3,4,5,6,7,8})),"")),"") -> 
B76: KCCC | BE76: 12 | BH76: 8 | BR76: 20 | BS76: 2 | BT76: =IF($BS76<=6,SUM($C76:$BP76),SUMPRODUCT(LARGE($C76:$BP76,{1,2,3,4,5,6}))) -> 20 | BV76: =IF(BU76= "","",IFERROR(SUMPRODUCT(LARGE($C76:$BP76,{1,2,3,4})), "")) ->  | BW76: =IF(BV76<>"",(IFERROR(SUMPRODUCT(LARGE($C76:$BP76,{1,2,3,4,5,6,7})),"")),"") ->  | BX76: =IF(BW76<>"",(IFERROR(SUMPRODUCT(LARGE($C76:$BP76,{1,2,3,4,5,6,7,8})),"")),"") -> 
B77: KWU | W77: 12 | BI77: 3 | BJ77: 2 | BR77: 17 | BS77: 3 | BT77: =IF($BS77<=6,SUM($C77:$BP77),SUMPRODUCT(LARGE($C77:$BP77,{1,2,3,4,5,6}))) -> 17 | BV77: =IF(BU77= "","",IFERROR(SUMPRODUCT(LARGE($C77:$BP77,{1,2,3,4})), "")) ->  | BW77: =IF(BV77<>"",(IFERROR(SUMPRODUCT(LARGE($C77:$BP77,{1,2,3,4,5,6,7})),"")),"") ->  | BX77: =IF(BW77<>"",(IFERROR(SUMPRODUCT(LARGE($C77:$BP77,{1,2,3,4,5,6,7,8})),"")),"") -> 
B78: L&CC | E78: 9 | N78: 25 | T78: 22 | Z78: 13 | AR78: 25 | AV78: 19 | BA78: 13 | BR78: 126 | BS78: 7 | BT78: =IF($BS78<=6,SUM($C78:$BP78),SUMPRODUCT(LARGE($C78:$BP78,{1,2,3,4,5,6}))) -> 117 | BV78: =IF(BU78= "","",IFERROR(SUMPRODUCT(LARGE($C78:$BP78,{1,2,3,4})), "")) ->  | BW78: =IF(BV78<>"",(IFERROR(SUMPRODUCT(LARGE($C78:$BP78,{1,2,3,4,5,6,7})),"")),"") ->  | BX78: =IF(BW78<>"",(IFERROR(SUMPRODUCT(LARGE($C78:$BP78,{1,2,3,4,5,6,7,8})),"")),"") -> 
B79: LACC | AD79: 11 | BC79: 23 | BR79: 34 | BS79: 2 | BT79: =IF($BS79<=6,SUM($C79:$BP79),SUMPRODUCT(LARGE($C79:$BP79,{1,2,3,4,5,6}))) -> 34 | BV79: =IF(BU79= "","",IFERROR(SUMPRODUCT(LARGE($C79:$BP79,{1,2,3,4})), "")) ->  | BW79: =IF(BV79<>"",(IFERROR(SUMPRODUCT(LARGE($C79:$BP79,{1,2,3,4,5,6,7})),"")),"") ->  | BX79: =IF(BW79<>"",(IFERROR(SUMPRODUCT(LARGE($C79:$BP79,{1,2,3,4,5,6,7,8})),"")),"") -> 
B80: LCC | E80: 13 | F80: 11 | N80: 14 | T80: 17 | Z80: 21 | AR80: 27 | AV80: 17 | BR80: 120 | BS80: 7 | BT80: =IF($BS80<=6,SUM($C80:$BP80),SUMPRODUCT(LARGE($C80:$BP80,{1,2,3,4,5,6}))) -> 109 | BV80: =IF(BU80= "","",IFERROR(SUMPRODUCT(LARGE($C80:$BP80,{1,2,3,4})), "")) ->  | BW80: =IF(BV80<>"",(IFERROR(SUMPRODUCT(LARGE($C80:$BP80,{1,2,3,4,5,6,7})),"")),"") ->  | BX80: =IF(BW80<>"",(IFERROR(SUMPRODUCT(LARGE($C80:$BP80,{1,2,3,4,5,6,7,8})),"")),"") -> 
B81: LCU | C81: 27 | O81: 19 | V81: 5 | AY81: 17 | BJ81: 5 | BR81: 73 | BS81: 5 | BT81: =IF($BS81<=6,SUM($C81:$BP81),SUMPRODUCT(LARGE($C81:$BP81,{1,2,3,4,5,6}))) -> 73 | BV81: =IF(BU81= "","",IFERROR(SUMPRODUCT(LARGE($C81:$BP81,{1,2,3,4})), "")) ->  | BW81: =IF(BV81<>"",(IFERROR(SUMPRODUCT(LARGE($C81:$BP81,{1,2,3,4,5,6,7})),"")),"") ->  | BX81: =IF(BW81<>"",(IFERROR(SUMPRODUCT(LARGE($C81:$BP81,{1,2,3,4,5,6,7,8})),"")),"") -> 
B82: Lee | C82: 11 | D82: 13 | I82: 44 | O82: 39 | V82: 27 | Y82: 39 | AO82: 29 | AP82: 30 | AX82: 30 | AY82: 38 | BA82: 8 | BR82: 308 | BS82: 11 | BT82: =IF($BS82<=6,SUM($C82:$BP82),SUMPRODUCT(LARGE($C82:$BP82,{1,2,3,4,5,6}))) -> 220 | BV82: =IF(BU82= "","",IFERROR(SUMPRODUCT(LARGE($C82:$BP82,{1,2,3,4})), "")) ->  | BW82: =IF(BV82<>"",(IFERROR(SUMPRODUCT(LARGE($C82:$BP82,{1,2,3,4,5,6,7})),"")),"") ->  | BX82: =IF(BW82<>"",(IFERROR(SUMPRODUCT(LARGE($C82:$BP82,{1,2,3,4,5,6,7,8})),"")),"") -> 
B83: LiC | AV83: 3 | BR83: 3 | BS83: 1 | BT83: =IF($BS83<=6,SUM($C83:$BP83),SUMPRODUCT(LARGE($C83:$BP83,{1,2,3,4,5,6}))) -> 3 | BV83: =IF(BU83= "","",IFERROR(SUMPRODUCT(LARGE($C83:$BP83,{1,2,3,4})), "")) ->  | BW83: =IF(BV83<>"",(IFERROR(SUMPRODUCT(LARGE($C83:$BP83,{1,2,3,4,5,6,7})),"")),"") ->  | BX83: =IF(BW83<>"",(IFERROR(SUMPRODUCT(LARGE($C83:$BP83,{1,2,3,4,5,6,7,8})),"")),"") -> 
B84: LiU | AJ84: 2 | BR84: 2 | BS84: 1 | BT84: =IF($BS84<=6,SUM($C84:$BP84),SUMPRODUCT(LARGE($C84:$BP84,{1,2,3,4,5,6}))) -> 2 | BV84: =IF(BU84= "","",IFERROR(SUMPRODUCT(LARGE($C84:$BP84,{1,2,3,4})), "")) ->  | BW84: =IF(BV84<>"",(IFERROR(SUMPRODUCT(LARGE($C84:$BP84,{1,2,3,4,5,6,7})),"")),"") ->  | BX84: =IF(BW84<>"",(IFERROR(SUMPRODUCT(LARGE($C84:$BP84,{1,2,3,4,5,6,7,8})),"")),"") -> 
B85: LRU | J85: 5 | BR85: 5 | BS85: 1 | BT85: =IF($BS85<=6,SUM($C85:$BP85),SUMPRODUCT(LARGE($C85:$BP85,{1,2,3,4,5,6}))) -> 5 | BV85: =IF(BU85= "","",IFERROR(SUMPRODUCT(LARGE($C85:$BP85,{1,2,3,4})), "")) ->  | BW85: =IF(BV85<>"",(IFERROR(SUMPRODUCT(LARGE($C85:$BP85,{1,2,3,4,5,6,7})),"")),"") ->  | BX85: =IF(BW85<>"",(IFERROR(SUMPRODUCT(LARGE($C85:$BP85,{1,2,3,4,5,6,7,8})),"")),"") -> 
B86: LSU | H86: 9 | AO86: 16 | AX86: 12 | BI86: 26 | BK86: 6 | BR86: 69 | BS86: 5 | BT86: =IF($BS86<=6,SUM($C86:$BP86),SUMPRODUCT(LARGE($C86:$BP86,{1,2,3,4,5,6}))) -> 69 | BV86: =IF(BU86= "","",IFERROR(SUMPRODUCT(LARGE($C86:$BP86,{1,2,3,4})), "")) ->  | BW86: =IF(BV86<>"",(IFERROR(SUMPRODUCT(LARGE($C86:$BP86,{1,2,3,4,5,6,7})),"")),"") ->  | BX86: =IF(BW86<>"",(IFERROR(SUMPRODUCT(LARGE($C86:$BP86,{1,2,3,4,5,6,7,8})),"")),"") -> 
B87: LSUS | C87: 35 | D87: 52 | I87: 51 | O87: 10 | V87: 19 | Y87: 59 | AO87: 63 | AP87: 40 | AX87: 18 | AY87: 80 | BR87: 427 | BS87: 10 | BT87: =IF($BS87<=6,SUM($C87:$BP87),SUMPRODUCT(LARGE($C87:$BP87,{1,2,3,4,5,6}))) -> 345 | BV87: =IF(BU87= "","",IFERROR(SUMPRODUCT(LARGE($C87:$BP87,{1,2,3,4})), "")) ->  | BW87: =IF(BV87<>"",(IFERROR(SUMPRODUCT(LARGE($C87:$BP87,{1,2,3,4,5,6,7})),"")),"") ->  | BX87: =IF(BW87<>"",(IFERROR(SUMPRODUCT(LARGE($C87:$BP87,{1,2,3,4,5,6,7,8})),"")),"") -> 
B88: LTU | C88: 5 | O88: 20 | U88: 3 | V88: 3 | X88: 20 | Y88: 19 | AO88: 37 | AX88: 0 | AY88: 19 | BR88: 126 | BS88: 9 | BT88: =IF($BS88<=6,SUM($C88:$BP88),SUMPRODUCT(LARGE($C88:$BP88,{1,2,3,4,5,6}))) -> 120 | BV88: =IF(BU88= "","",IFERROR(SUMPRODUCT(LARGE($C88:$BP88,{1,2,3,4})), "")) ->  | BW88: =IF(BV88<>"",(IFERROR(SUMPRODUCT(LARGE($C88:$BP88,{1,2,3,4,5,6,7})),"")),"") ->  | BX88: =IF(BW88<>"",(IFERROR(SUMPRODUCT(LARGE($C88:$BP88,{1,2,3,4,5,6,7,8})),"")),"") -> 
B89: LU | Q89: 8 | BR89: 8 | BS89: 1 | BT89: =IF($BS89<=6,SUM($C89:$BP89),SUMPRODUCT(LARGE($C89:$BP89,{1,2,3,4,5,6}))) -> 8 | BV89: =IF(BU89= "","",IFERROR(SUMPRODUCT(LARGE($C89:$BP89,{1,2,3,4})), "")) ->  | BW89: =IF(BV89<>"",(IFERROR(SUMPRODUCT(LARGE($C89:$BP89,{1,2,3,4,5,6,7})),"")),"") ->  | BX89: =IF(BW89<>"",(IFERROR(SUMPRODUCT(LARGE($C89:$BP89,{1,2,3,4,5,6,7,8})),"")),"") -> 
B90: MarU | BI90: 3 | BR90: 3 | BS90: 1 | BT90: =IF($BS90<=6,SUM($C90:$BP90),SUMPRODUCT(LARGE($C90:$BP90,{1,2,3,4,5,6}))) -> 3 | BV90: =IF(BU90= "","",IFERROR(SUMPRODUCT(LARGE($C90:$BP90,{1,2,3,4})), "")) ->  | BW90: =IF(BV90<>"",(IFERROR(SUMPRODUCT(LARGE($C90:$BP90,{1,2,3,4,5,6,7})),"")),"") ->  | BX90: =IF(BW90<>"",(IFERROR(SUMPRODUCT(LARGE($C90:$BP90,{1,2,3,4,5,6,7,8})),"")),"") -> 
B91: McKU | BE91: 15 | BH91: 14 | BR91: 29 | BS91: 2 | BT91: =IF($BS91<=6,SUM($C91:$BP91),SUMPRODUCT(LARGE($C91:$BP91,{1,2,3,4,5,6}))) -> 29 | BV91: =IF(BU91= "","",IFERROR(SUMPRODUCT(LARGE($C91:$BP91,{1,2,3,4})), "")) ->  | BW91: =IF(BV91<>"",(IFERROR(SUMPRODUCT(LARGE($C91:$BP91,{1,2,3,4,5,6,7})),"")),"") ->  | BX91: =IF(BW91<>"",(IFERROR(SUMPRODUCT(LARGE($C91:$BP91,{1,2,3,4,5,6,7,8})),"")),"") -> 
B92: McNU | E92: 0 | BE92: 12 | BI92: 5 | BR92: 17 | BS92: 3 | BT92: =IF($BS92<=6,SUM($C92:$BP92),SUMPRODUCT(LARGE($C92:$BP92,{1,2,3,4,5,6}))) -> 17 | BV92: =IF(BU92= "","",IFERROR(SUMPRODUCT(LARGE($C92:$BP92,{1,2,3,4})), "")) ->  | BW92: =IF(BV92<>"",(IFERROR(SUMPRODUCT(LARGE($C92:$BP92,{1,2,3,4,5,6,7})),"")),"") ->  | BX92: =IF(BW92<>"",(IFERROR(SUMPRODUCT(LARGE($C92:$BP92,{1,2,3,4,5,6,7,8})),"")),"") -> 
B93: MDCK | AA93: 8 | BR93: 8 | BS93: 1 | BT93: =IF($BS93<=6,SUM($C93:$BP93),SUMPRODUCT(LARGE($C93:$BP93,{1,2,3,4,5,6}))) -> 8 | BV93: =IF(BU93= "","",IFERROR(SUMPRODUCT(LARGE($C93:$BP93,{1,2,3,4})), "")) ->  | BW93: =IF(BV93<>"",(IFERROR(SUMPRODUCT(LARGE($C93:$BP93,{1,2,3,4,5,6,7})),"")),"") ->  | BX93: =IF(BW93<>"",(IFERROR(SUMPRODUCT(LARGE($C93:$BP93,{1,2,3,4,5,6,7,8})),"")),"") -> 
B94: MHCC | Z94: 1 | BJ94: 4 | BK94: 10 | BR94: 15 | BS94: 3 | BT94: =IF($BS94<=6,SUM($C94:$BP94),SUMPRODUCT(LARGE($C94:$BP94,{1,2,3,4,5,6}))) -> 15 | BV94: =IF(BU94= "","",IFERROR(SUMPRODUCT(LARGE($C94:$BP94,{1,2,3,4})), "")) ->  | BW94: =IF(BV94<>"",(IFERROR(SUMPRODUCT(LARGE($C94:$BP94,{1,2,3,4,5,6,7})),"")),"") ->  | BX94: =IF(BW94<>"",(IFERROR(SUMPRODUCT(LARGE($C94:$BP94,{1,2,3,4,5,6,7,8})),"")),"") -> 
B95: MiC | BA95: 3 | BR95: 3 | BS95: 1 | BT95: =IF($BS95<=6,SUM($C95:$BP95),SUMPRODUCT(LARGE($C95:$BP95,{1,2,3,4,5,6}))) -> 3 | BV95: =IF(BU95= "","",IFERROR(SUMPRODUCT(LARGE($C95:$BP95,{1,2,3,4})), "")) ->  | BW95: =IF(BV95<>"",(IFERROR(SUMPRODUCT(LARGE($C95:$BP95,{1,2,3,4,5,6,7})),"")),"") ->  | BX95: =IF(BW95<>"",(IFERROR(SUMPRODUCT(LARGE($C95:$BP95,{1,2,3,4,5,6,7,8})),"")),"") -> 
B96: MJC | AJ96: 5 | BL96: 1 | BM96: 1 | BN96: 6 | BO96: 7 | BR96: 20 | BS96: 5 | BT96: =IF($BS96<=6,SUM($C96:$BP96),SUMPRODUCT(LARGE($C96:$BP96,{1,2,3,4,5,6}))) -> 20 | BV96: =IF(BU96= "","",IFERROR(SUMPRODUCT(LARGE($C96:$BP96,{1,2,3,4})), "")) ->  | BW96: =IF(BV96<>"",(IFERROR(SUMPRODUCT(LARGE($C96:$BP96,{1,2,3,4,5,6,7})),"")),"") ->  | BX96: =IF(BW96<>"",(IFERROR(SUMPRODUCT(LARGE($C96:$BP96,{1,2,3,4,5,6,7,8})),"")),"") -> 
B97: MoorC | AC97: 15 | AD97: 33 | AE97: 21 | AG97: 26 | AI97: 26 | AZ97: 18 | BB97: 17 | BR97: 156 | BS97: 7 | BT97: =IF($BS97<=6,SUM($C97:$BP97),SUMPRODUCT(LARGE($C97:$BP97,{1,2,3,4,5,6}))) -> 141 | BV97: =IF(BU97= "","",IFERROR(SUMPRODUCT(LARGE($C97:$BP97,{1,2,3,4})), "")) ->  | BW97: =IF(BV97<>"",(IFERROR(SUMPRODUCT(LARGE($C97:$BP97,{1,2,3,4,5,6,7})),"")),"") ->  | BX97: =IF(BW97<>"",(IFERROR(SUMPRODUCT(LARGE($C97:$BP97,{1,2,3,4,5,6,7,8})),"")),"") -> 
B98: MSAC | AD98: 19 | AE98: 28 | AI98: 22 | BA98: 5 | BB98: 25 | BN98: 18 | BR98: 117 | BS98: 6 | BT98: =IF($BS98<=6,SUM($C98:$BP98),SUMPRODUCT(LARGE($C98:$BP98,{1,2,3,4,5,6}))) -> 117 | BV98: =IF(BU98= "","",IFERROR(SUMPRODUCT(LARGE($C98:$BP98,{1,2,3,4})), "")) ->  | BW98: =IF(BV98<>"",(IFERROR(SUMPRODUCT(LARGE($C98:$BP98,{1,2,3,4,5,6,7})),"")),"") ->  | BX98: =IF(BW98<>"",(IFERROR(SUMPRODUCT(LARGE($C98:$BP98,{1,2,3,4,5,6,7,8})),"")),"") -> 
B99: MSD | AD99: 14 | AG99: 10 | AZ99: 9 | BF99: 39 | BI99: 5 | BR99: 77 | BS99: 5 | BT99: =IF($BS99<=6,SUM($C99:$BP99),SUMPRODUCT(LARGE($C99:$BP99,{1,2,3,4,5,6}))) -> 77 | BV99: =IF(BU99= "","",IFERROR(SUMPRODUCT(LARGE($C99:$BP99,{1,2,3,4})), "")) ->  | BW99: =IF(BV99<>"",(IFERROR(SUMPRODUCT(LARGE($C99:$BP99,{1,2,3,4,5,6,7})),"")),"") ->  | BX99: =IF(BW99<>"",(IFERROR(SUMPRODUCT(LARGE($C99:$BP99,{1,2,3,4,5,6,7,8})),"")),"") -> 
B100: MSJC | AC100: 4 | AD100: 5 | AK100: 1 | BR100: 10 | BS100: 3 | BT100: =IF($BS100<=6,SUM($C100:$BP100),SUMPRODUCT(LARGE($C100:$BP100,{1,2,3,4,5,6}))) -> 10 | BV100: =IF(BU100= "","",IFERROR(SUMPRODUCT(LARGE($C100:$BP100,{1,2,3,4})), "")) ->  | BW100: =IF(BV100<>"",(IFERROR(SUMPRODUCT(LARGE($C100:$BP100,{1,2,3,4,5,6,7})),"")),"") ->  | BX100: =IF(BW100<>"",(IFERROR(SUMPRODUCT(LARGE($C100:$BP100,{1,2,3,4,5,6,7,8})),"")),"") -> 
B101: MslU | G101: 13 | H101: 19 | AQ101: 11 | BI101: 7 | BJ101: 18 | BK101: 20 | BR101: 88 | BS101: 6 | BT101: =IF($BS101<=6,SUM($C101:$BP101),SUMPRODUCT(LARGE($C101:$BP101,{1,2,3,4,5,6}))) -> 88 | BV101: =IF(BU101= "","",IFERROR(SUMPRODUCT(LARGE($C101:$BP101,{1,2,3,4})), "")) ->  | BW101: =IF(BV101<>"",(IFERROR(SUMPRODUCT(LARGE($C101:$BP101,{1,2,3,4,5,6,7})),"")),"") ->  | BX101: =IF(BW101<>"",(IFERROR(SUMPRODUCT(LARGE($C101:$BP101,{1,2,3,4,5,6,7,8})),"")),"") -> 
B102: MSU | C102: 65 | G102: 34 | H102: 37 | K102: 67 | O102: 67 | V102: 23 | AO102: 63 | AP102: 43 | AS102: 28 | AX102: 34 | AY102: 62 | BR102: 523 | BS102: 11 | BT102: =IF($BS102<=6,SUM($C102:$BP102),SUMPRODUCT(LARGE($C102:$BP102,{1,2,3,4,5,6}))) -> 367 | BV102: =IF(BU102= "","",IFERROR(SUMPRODUCT(LARGE($C102:$BP102,{1,2,3,4})), "")) ->  | BW102: =IF(BV102<>"",(IFERROR(SUMPRODUCT(LARGE($C102:$BP102,{1,2,3,4,5,6,7})),"")),"") ->  | BX102: =IF(BW102<>"",(IFERROR(SUMPRODUCT(LARGE($C102:$BP102,{1,2,3,4,5,6,7,8})),"")),"") -> 
B103: MSUM | D103: 10 | V103: 8 | BE103: 12 | BI103: 10 | BR103: 40 | BS103: 4 | BT103: =IF($BS103<=6,SUM($C103:$BP103),SUMPRODUCT(LARGE($C103:$BP103,{1,2,3,4,5,6}))) -> 40 | BV103: =IF(BU103= "","",IFERROR(SUMPRODUCT(LARGE($C103:$BP103,{1,2,3,4})), "")) ->  | BW103: =IF(BV103<>"",(IFERROR(SUMPRODUCT(LARGE($C103:$BP103,{1,2,3,4,5,6,7})),"")),"") ->  | BX103: =IF(BW103<>"",(IFERROR(SUMPRODUCT(LARGE($C103:$BP103,{1,2,3,4,5,6,7,8})),"")),"") -> 
B104: MTSU | J104: 17 | U104: 19 | AO104: 32 | AQ104: 20 | AT104: 33 | AU104: 23 | AX104: 6 | BR104: 150 | BS104: 7 | BT104: =IF($BS104<=6,SUM($C104:$BP104),SUMPRODUCT(LARGE($C104:$BP104,{1,2,3,4,5,6}))) -> 144 | BV104: =IF(BU104= "","",IFERROR(SUMPRODUCT(LARGE($C104:$BP104,{1,2,3,4})), "")) ->  | BW104: =IF(BV104<>"",(IFERROR(SUMPRODUCT(LARGE($C104:$BP104,{1,2,3,4,5,6,7})),"")),"") ->  | BX104: =IF(BW104<>"",(IFERROR(SUMPRODUCT(LARGE($C104:$BP104,{1,2,3,4,5,6,7,8})),"")),"") -> 
B105: MuSU | J105: 6 | K105: 5 | R105: 6 | U105: 9 | AQ105: 6 | BR105: 32 | BS105: 5 | BT105: =IF($BS105<=6,SUM($C105:$BP105),SUMPRODUCT(LARGE($C105:$BP105,{1,2,3,4,5,6}))) -> 32 | BV105: =IF(BU105= "","",IFERROR(SUMPRODUCT(LARGE($C105:$BP105,{1,2,3,4})), "")) ->  | BW105: =IF(BV105<>"",(IFERROR(SUMPRODUCT(LARGE($C105:$BP105,{1,2,3,4,5,6,7})),"")),"") ->  | BX105: =IF(BW105<>"",(IFERROR(SUMPRODUCT(LARGE($C105:$BP105,{1,2,3,4,5,6,7,8})),"")),"") -> 
B106: MVC | BE106: 2 | BH106: 2 | BI106: 2 | BR106: 6 | BS106: 3 | BT106: =IF($BS106<=6,SUM($C106:$BP106),SUMPRODUCT(LARGE($C106:$BP106,{1,2,3,4,5,6}))) -> 6 | BV106: =IF(BU106= "","",IFERROR(SUMPRODUCT(LARGE($C106:$BP106,{1,2,3,4})), "")) ->  | BW106: =IF(BV106<>"",(IFERROR(SUMPRODUCT(LARGE($C106:$BP106,{1,2,3,4,5,6,7})),"")),"") ->  | BX106: =IF(BW106<>"",(IFERROR(SUMPRODUCT(LARGE($C106:$BP106,{1,2,3,4,5,6,7,8})),"")),"") -> 
B107: MVCC | AJ107: 4 | BR107: 4 | BS107: 1 | BT107: =IF($BS107<=6,SUM($C107:$BP107),SUMPRODUCT(LARGE($C107:$BP107,{1,2,3,4,5,6}))) -> 4 | BV107: =IF(BU107= "","",IFERROR(SUMPRODUCT(LARGE($C107:$BP107,{1,2,3,4})), "")) ->  | BW107: =IF(BV107<>"",(IFERROR(SUMPRODUCT(LARGE($C107:$BP107,{1,2,3,4,5,6,7})),"")),"") ->  | BX107: =IF(BW107<>"",(IFERROR(SUMPRODUCT(LARGE($C107:$BP107,{1,2,3,4,5,6,7,8})),"")),"") -> 
B108: NAU | AD108: 23 | AI108: 22 | AL108: 19 | BB108: 15 | BR108: 79 | BS108: 4 | BT108: =IF($BS108<=6,SUM($C108:$BP108),SUMPRODUCT(LARGE($C108:$BP108,{1,2,3,4,5,6}))) -> 79 | BV108: =IF(BU108= "","",IFERROR(SUMPRODUCT(LARGE($C108:$BP108,{1,2,3,4})), "")) ->  | BW108: =IF(BV108<>"",(IFERROR(SUMPRODUCT(LARGE($C108:$BP108,{1,2,3,4,5,6,7})),"")),"") ->  | BX108: =IF(BW108<>"",(IFERROR(SUMPRODUCT(LARGE($C108:$BP108,{1,2,3,4,5,6,7,8})),"")),"") -> 
B109: NC | Q109: 3 | AA109: 2 | BR109: 5 | BS109: 2 | BT109: =IF($BS109<=6,SUM($C109:$BP109),SUMPRODUCT(LARGE($C109:$BP109,{1,2,3,4,5,6}))) -> 5 | BV109: =IF(BU109= "","",IFERROR(SUMPRODUCT(LARGE($C109:$BP109,{1,2,3,4})), "")) ->  | BW109: =IF(BV109<>"",(IFERROR(SUMPRODUCT(LARGE($C109:$BP109,{1,2,3,4,5,6,7})),"")),"") ->  | BX109: =IF(BW109<>"",(IFERROR(SUMPRODUCT(LARGE($C109:$BP109,{1,2,3,4,5,6,7,8})),"")),"") -> 
B110: NFSC | Q110: 1 | AA110: 1 | BR110: 2 | BS110: 2 | BT110: =IF($BS110<=6,SUM($C110:$BP110),SUMPRODUCT(LARGE($C110:$BP110,{1,2,3,4,5,6}))) -> 2 | BV110: =IF(BU110= "","",IFERROR(SUMPRODUCT(LARGE($C110:$BP110,{1,2,3,4})), "")) ->  | BW110: =IF(BV110<>"",(IFERROR(SUMPRODUCT(LARGE($C110:$BP110,{1,2,3,4,5,6,7})),"")),"") ->  | BX110: =IF(BW110<>"",(IFERROR(SUMPRODUCT(LARGE($C110:$BP110,{1,2,3,4,5,6,7,8})),"")),"") -> 
B111: NIU | AJ111: 21 | BA111: 19 | BR111: 40 | BS111: 2 | BT111: =IF($BS111<=6,SUM($C111:$BP111),SUMPRODUCT(LARGE($C111:$BP111,{1,2,3,4,5,6}))) -> 40 | BV111: =IF(BU111= "","",IFERROR(SUMPRODUCT(LARGE($C111:$BP111,{1,2,3,4})), "")) ->  | BW111: =IF(BV111<>"",(IFERROR(SUMPRODUCT(LARGE($C111:$BP111,{1,2,3,4,5,6,7})),"")),"") ->  | BX111: =IF(BW111<>"",(IFERROR(SUMPRODUCT(LARGE($C111:$BP111,{1,2,3,4,5,6,7,8})),"")),"") -> 
B112: NNU | E112: 12 | F112: 3 | AR112: 7 | AW112: 3 | BR112: 25 | BS112: 4 | BT112: =IF($BS112<=6,SUM($C112:$BP112),SUMPRODUCT(LARGE($C112:$BP112,{1,2,3,4,5,6}))) -> 25 | BV112: =IF(BU112= "","",IFERROR(SUMPRODUCT(LARGE($C112:$BP112,{1,2,3,4})), "")) ->  | BW112: =IF(BV112<>"",(IFERROR(SUMPRODUCT(LARGE($C112:$BP112,{1,2,3,4,5,6,7})),"")),"") ->  | BX112: =IF(BW112<>"",(IFERROR(SUMPRODUCT(LARGE($C112:$BP112,{1,2,3,4,5,6,7,8})),"")),"") -> 
B113: NVCC | BA113: 2 | BR113: 2 | BS113: 1 | BT113: =IF($BS113<=6,SUM($C113:$BP113),SUMPRODUCT(LARGE($C113:$BP113,{1,2,3,4,5,6}))) -> 2 | BV113: =IF(BU113= "","",IFERROR(SUMPRODUCT(LARGE($C113:$BP113,{1,2,3,4})), "")) ->  | BW113: =IF(BV113<>"",(IFERROR(SUMPRODUCT(LARGE($C113:$BP113,{1,2,3,4,5,6,7})),"")),"") ->  | BX113: =IF(BW113<>"",(IFERROR(SUMPRODUCT(LARGE($C113:$BP113,{1,2,3,4,5,6,7,8})),"")),"") -> 
B114: NwC | F114: 2 | T114: 10 | AF114: 4 | BG114: 3 | BR114: 19 | BS114: 4 | BT114: =IF($BS114<=6,SUM($C114:$BP114),SUMPRODUCT(LARGE($C114:$BP114,{1,2,3,4,5,6}))) -> 19 | BV114: =IF(BU114= "","",IFERROR(SUMPRODUCT(LARGE($C114:$BP114,{1,2,3,4})), "")) ->  | BW114: =IF(BV114<>"",(IFERROR(SUMPRODUCT(LARGE($C114:$BP114,{1,2,3,4,5,6,7})),"")),"") ->  | BX114: =IF(BW114<>"",(IFERROR(SUMPRODUCT(LARGE($C114:$BP114,{1,2,3,4,5,6,7,8})),"")),"") -> 
B115: NWSU | AO115: 4 | BR115: 4 | BS115: 1 | BT115: =IF($BS115<=6,SUM($C115:$BP115),SUMPRODUCT(LARGE($C115:$BP115,{1,2,3,4,5,6}))) -> 4 | BV115: =IF(BU115= "","",IFERROR(SUMPRODUCT(LARGE($C115:$BP115,{1,2,3,4})), "")) ->  | BW115: =IF(BV115<>"",(IFERROR(SUMPRODUCT(LARGE($C115:$BP115,{1,2,3,4,5,6,7})),"")),"") ->  | BX115: =IF(BW115<>"",(IFERROR(SUMPRODUCT(LARGE($C115:$BP115,{1,2,3,4,5,6,7,8})),"")),"") -> 
B116: OCC | AC116: 12 | AD116: 13 | AG116: 0 | AH116: 25 | AZ116: 18 | BR116: 68 | BS116: 5 | BT116: =IF($BS116<=6,SUM($C116:$BP116),SUMPRODUCT(LARGE($C116:$BP116,{1,2,3,4,5,6}))) -> 68 | BV116: =IF(BU116= "","",IFERROR(SUMPRODUCT(LARGE($C116:$BP116,{1,2,3,4})), "")) ->  | BW116: =IF(BV116<>"",(IFERROR(SUMPRODUCT(LARGE($C116:$BP116,{1,2,3,4,5,6,7})),"")),"") ->  | BX116: =IF(BW116<>"",(IFERROR(SUMPRODUCT(LARGE($C116:$BP116,{1,2,3,4,5,6,7,8})),"")),"") -> 
B117: OhU | L117: 2 | M117: 7 | BI117: 17 | BR117: 26 | BS117: 3 | BT117: =IF($BS117<=6,SUM($C117:$BP117),SUMPRODUCT(LARGE($C117:$BP117,{1,2,3,4,5,6}))) -> 26 | BV117: =IF(BU117= "","",IFERROR(SUMPRODUCT(LARGE($C117:$BP117,{1,2,3,4})), "")) ->  | BW117: =IF(BV117<>"",(IFERROR(SUMPRODUCT(LARGE($C117:$BP117,{1,2,3,4,5,6,7})),"")),"") ->  | BX117: =IF(BW117<>"",(IFERROR(SUMPRODUCT(LARGE($C117:$BP117,{1,2,3,4,5,6,7,8})),"")),"") -> 
B118: OKCU | G118: 10 | T118: 6 | W118: 27 | BD118: 12 | BR118: 55 | BS118: 4 | BT118: =IF($BS118<=6,SUM($C118:$BP118),SUMPRODUCT(LARGE($C118:$BP118,{1,2,3,4,5,6}))) -> 55 | BV118: =IF(BU118= "","",IFERROR(SUMPRODUCT(LARGE($C118:$BP118,{1,2,3,4})), "")) ->  | BW118: =IF(BV118<>"",(IFERROR(SUMPRODUCT(LARGE($C118:$BP118,{1,2,3,4,5,6,7})),"")),"") ->  | BX118: =IF(BW118<>"",(IFERROR(SUMPRODUCT(LARGE($C118:$BP118,{1,2,3,4,5,6,7,8})),"")),"") -> 
B119: ORU | C119: 17 | O119: 21 | AO119: 3 | AS119: 5 | BR119: 46 | BS119: 4 | BT119: =IF($BS119<=6,SUM($C119:$BP119),SUMPRODUCT(LARGE($C119:$BP119,{1,2,3,4,5,6}))) -> 46 | BV119: =IF(BU119= "","",IFERROR(SUMPRODUCT(LARGE($C119:$BP119,{1,2,3,4})), "")) ->  | BW119: =IF(BV119<>"",(IFERROR(SUMPRODUCT(LARGE($C119:$BP119,{1,2,3,4,5,6,7})),"")),"") ->  | BX119: =IF(BW119<>"",(IFERROR(SUMPRODUCT(LARGE($C119:$BP119,{1,2,3,4,5,6,7,8})),"")),"") -> 
B120: OSU | E120: 7 | N120: 4 | T120: 20 | Z120: 21 | AR120: 17 | BC120: 2 | BR120: 71 | BS120: 6 | BT120: =IF($BS120<=6,SUM($C120:$BP120),SUMPRODUCT(LARGE($C120:$BP120,{1,2,3,4,5,6}))) -> 71 | BV120: =IF(BU120= "","",IFERROR(SUMPRODUCT(LARGE($C120:$BP120,{1,2,3,4})), "")) ->  | BW120: =IF(BV120<>"",(IFERROR(SUMPRODUCT(LARGE($C120:$BP120,{1,2,3,4,5,6,7})),"")),"") ->  | BX120: =IF(BW120<>"",(IFERROR(SUMPRODUCT(LARGE($C120:$BP120,{1,2,3,4,5,6,7,8})),"")),"") -> 
B121: OttU | P121: 4 | AS121: 2 | BE121: 4 | BR121: 10 | BS121: 3 | BT121: =IF($BS121<=6,SUM($C121:$BP121),SUMPRODUCT(LARGE($C121:$BP121,{1,2,3,4,5,6}))) -> 10 | BV121: =IF(BU121= "","",IFERROR(SUMPRODUCT(LARGE($C121:$BP121,{1,2,3,4})), "")) ->  | BW121: =IF(BV121<>"",(IFERROR(SUMPRODUCT(LARGE($C121:$BP121,{1,2,3,4,5,6,7})),"")),"") ->  | BX121: =IF(BW121<>"",(IFERROR(SUMPRODUCT(LARGE($C121:$BP121,{1,2,3,4,5,6,7,8})),"")),"") -> 
B122: OU | G122: 2 | H122: 2 | BI122: 0 | BJ122: 14 | BK122: 14 | BR122: 32 | BS122: 5 | BT122: =IF($BS122<=6,SUM($C122:$BP122),SUMPRODUCT(LARGE($C122:$BP122,{1,2,3,4,5,6}))) -> 32 | BV122: =IF(BU122= "","",IFERROR(SUMPRODUCT(LARGE($C122:$BP122,{1,2,3,4})), "")) ->  | BW122: =IF(BV122<>"",(IFERROR(SUMPRODUCT(LARGE($C122:$BP122,{1,2,3,4,5,6,7})),"")),"") ->  | BX122: =IF(BW122<>"",(IFERROR(SUMPRODUCT(LARGE($C122:$BP122,{1,2,3,4,5,6,7,8})),"")),"") -> 
B123: PacU | AV123: 1 | BR123: 1 | BS123: 1 | BT123: =IF($BS123<=6,SUM($C123:$BP123),SUMPRODUCT(LARGE($C123:$BP123,{1,2,3,4,5,6}))) -> 1 | BV123: =IF(BU123= "","",IFERROR(SUMPRODUCT(LARGE($C123:$BP123,{1,2,3,4})), "")) ->  | BW123: =IF(BV123<>"",(IFERROR(SUMPRODUCT(LARGE($C123:$BP123,{1,2,3,4,5,6,7})),"")),"") ->  | BX123: =IF(BW123<>"",(IFERROR(SUMPRODUCT(LARGE($C123:$BP123,{1,2,3,4,5,6,7,8})),"")),"") -> 
B124: PaU | D124: 11 | P124: 12 | T124: 13 | AB124: 3 | BH124: 11 | BR124: 50 | BS124: 5 | BT124: =IF($BS124<=6,SUM($C124:$BP124),SUMPRODUCT(LARGE($C124:$BP124,{1,2,3,4,5,6}))) -> 50 | BV124: =IF(BU124= "","",IFERROR(SUMPRODUCT(LARGE($C124:$BP124,{1,2,3,4})), "")) ->  | BW124: =IF(BV124<>"",(IFERROR(SUMPRODUCT(LARGE($C124:$BP124,{1,2,3,4,5,6,7})),"")),"") ->  | BX124: =IF(BW124<>"",(IFERROR(SUMPRODUCT(LARGE($C124:$BP124,{1,2,3,4,5,6,7,8})),"")),"") -> 
B125: PC | AC125: 4 | AD125: 5 | AK125: 6 | AL125: 6 | AZ125: 1 | BC125: 2 | BR125: 24 | BS125: 6 | BT125: =IF($BS125<=6,SUM($C125:$BP125),SUMPRODUCT(LARGE($C125:$BP125,{1,2,3,4,5,6}))) -> 24 | BV125: =IF(BU125= "","",IFERROR(SUMPRODUCT(LARGE($C125:$BP125,{1,2,3,4})), "")) ->  | BW125: =IF(BV125<>"",(IFERROR(SUMPRODUCT(LARGE($C125:$BP125,{1,2,3,4,5,6,7})),"")),"") ->  | BX125: =IF(BW125<>"",(IFERROR(SUMPRODUCT(LARGE($C125:$BP125,{1,2,3,4,5,6,7,8})),"")),"") -> 
B126: PCC | AC126: 8 | AD126: 6 | AE126: 11 | AI126: 23 | AZ126: 8 | BB126: 6 | BR126: 62 | BS126: 6 | BT126: =IF($BS126<=6,SUM($C126:$BP126),SUMPRODUCT(LARGE($C126:$BP126,{1,2,3,4,5,6}))) -> 62 | BV126: =IF(BU126= "","",IFERROR(SUMPRODUCT(LARGE($C126:$BP126,{1,2,3,4})), "")) ->  | BW126: =IF(BV126<>"",(IFERROR(SUMPRODUCT(LARGE($C126:$BP126,{1,2,3,4,5,6,7})),"")),"") ->  | BX126: =IF(BW126<>"",(IFERROR(SUMPRODUCT(LARGE($C126:$BP126,{1,2,3,4,5,6,7,8})),"")),"") -> 
B127: PHC | K127: 12 | T127: 11 | V127: 14 | AX127: 29 | BA127: 23 | BJ127: 15 | BK127: 13 | BR127: 117 | BS127: 7 | BT127: =IF($BS127<=6,SUM($C127:$BP127),SUMPRODUCT(LARGE($C127:$BP127,{1,2,3,4,5,6}))) -> 106 | BV127: =IF(BU127= "","",IFERROR(SUMPRODUCT(LARGE($C127:$BP127,{1,2,3,4})), "")) ->  | BW127: =IF(BV127<>"",(IFERROR(SUMPRODUCT(LARGE($C127:$BP127,{1,2,3,4,5,6,7})),"")),"") ->  | BX127: =IF(BW127<>"",(IFERROR(SUMPRODUCT(LARGE($C127:$BP127,{1,2,3,4,5,6,7,8})),"")),"") -> 
B128: PLNU | AD128: 54 | AI128: 55 | AK128: 13 | AL128: 48 | AZ128: 55 | BB128: 46 | BC128: 28 | BR128: 299 | BS128: 7 | BT128: =IF($BS128<=6,SUM($C128:$BP128),SUMPRODUCT(LARGE($C128:$BP128,{1,2,3,4,5,6}))) -> 286 | BV128: =IF(BU128= "","",IFERROR(SUMPRODUCT(LARGE($C128:$BP128,{1,2,3,4})), "")) ->  | BW128: =IF(BV128<>"",(IFERROR(SUMPRODUCT(LARGE($C128:$BP128,{1,2,3,4,5,6,7})),"")),"") ->  | BX128: =IF(BW128<>"",(IFERROR(SUMPRODUCT(LARGE($C128:$BP128,{1,2,3,4,5,6,7,8})),"")),"") -> 
B129: PoSC | AA129: 1 | BR129: 1 | BS129: 1 | BT129: =IF($BS129<=6,SUM($C129:$BP129),SUMPRODUCT(LARGE($C129:$BP129,{1,2,3,4,5,6}))) -> 1 | BV129: =IF(BU129= "","",IFERROR(SUMPRODUCT(LARGE($C129:$BP129,{1,2,3,4})), "")) ->  | BW129: =IF(BV129<>"",(IFERROR(SUMPRODUCT(LARGE($C129:$BP129,{1,2,3,4,5,6,7})),"")),"") ->  | BX129: =IF(BW129<>"",(IFERROR(SUMPRODUCT(LARGE($C129:$BP129,{1,2,3,4,5,6,7,8})),"")),"") -> 
B130: PrCC | BA130: 4 | BR130: 4 | BS130: 1 | BT130: =IF($BS130<=6,SUM($C130:$BP130),SUMPRODUCT(LARGE($C130:$BP130,{1,2,3,4,5,6}))) -> 4 | BV130: =IF(BU130= "","",IFERROR(SUMPRODUCT(LARGE($C130:$BP130,{1,2,3,4})), "")) ->  | BW130: =IF(BV130<>"",(IFERROR(SUMPRODUCT(LARGE($C130:$BP130,{1,2,3,4,5,6,7})),"")),"") ->  | BX130: =IF(BW130<>"",(IFERROR(SUMPRODUCT(LARGE($C130:$BP130,{1,2,3,4,5,6,7,8})),"")),"") -> 
B131: PSC | AM131: 9 | BR131: 9 | BS131: 1 | BT131: =IF($BS131<=6,SUM($C131:$BP131),SUMPRODUCT(LARGE($C131:$BP131,{1,2,3,4,5,6}))) -> 9 | BV131: =IF(BU131= "","",IFERROR(SUMPRODUCT(LARGE($C131:$BP131,{1,2,3,4})), "")) ->  | BW131: =IF(BV131<>"",(IFERROR(SUMPRODUCT(LARGE($C131:$BP131,{1,2,3,4,5,6,7})),"")),"") ->  | BX131: =IF(BW131<>"",(IFERROR(SUMPRODUCT(LARGE($C131:$BP131,{1,2,3,4,5,6,7,8})),"")),"") -> 
B132: PSCC | J132: 20 | K132: 14 | AT132: 8 | AU132: 12 | BR132: =SUM($C132:$BQ132) -> 54 | BS132: =COUNTA(C132:BP132) -> 4 | BT132: =IF($BS132<=6,SUM($C132:$BP132),SUMPRODUCT(LARGE($C132:$BP132,{1,2,3,4,5,6}))) -> 54 | BU132: =IF(AND($BS132>=6,BT132=BT133),"Manual Calc Needed","") ->  | BV132: =IF(BU132= "","",IFERROR(SUMPRODUCT(LARGE($C132:$BP132,{1,2,3,4})), "")) ->  | BW132: =IF(BV132<>"",(IFERROR(SUMPRODUCT(LARGE($C132:$BP132,{1,2,3,4,5,6,7})),"")),"") ->  | BX132: =IF(BW132<>"",(IFERROR(SUMPRODUCT(LARGE($C132:$BP132,{1,2,3,4,5,6,7,8})),"")),"") -> 
B133: PSU | H133: 6 | BR133: 6 | BS133: 1 | BT133: =IF($BS133<=6,SUM($C133:$BP133),SUMPRODUCT(LARGE($C133:$BP133,{1,2,3,4,5,6}))) -> 6 | BV133: =IF(BU133= "","",IFERROR(SUMPRODUCT(LARGE($C133:$BP133,{1,2,3,4})), "")) ->  | BW133: =IF(BV133<>"",(IFERROR(SUMPRODUCT(LARGE($C133:$BP133,{1,2,3,4,5,6,7})),"")),"") ->  | BX133: =IF(BW133<>"",(IFERROR(SUMPRODUCT(LARGE($C133:$BP133,{1,2,3,4,5,6,7,8})),"")),"") -> 
B134: QC | S134: 1 | BR134: 1 | BS134: 1 | BT134: =IF($BS134<=6,SUM($C134:$BP134),SUMPRODUCT(LARGE($C134:$BP134,{1,2,3,4,5,6}))) -> 1 | BV134: =IF(BU134= "","",IFERROR(SUMPRODUCT(LARGE($C134:$BP134,{1,2,3,4})), "")) ->  | BW134: =IF(BV134<>"",(IFERROR(SUMPRODUCT(LARGE($C134:$BP134,{1,2,3,4,5,6,7})),"")),"") ->  | BX134: =IF(BW134<>"",(IFERROR(SUMPRODUCT(LARGE($C134:$BP134,{1,2,3,4,5,6,7,8})),"")),"") -> 
B135: RHCC | AD135: 12 | AH135: 8 | AI135: 6 | AL135: 14 | BB135: 5 | BR135: 45 | BS135: 5 | BT135: =IF($BS135<=6,SUM($C135:$BP135),SUMPRODUCT(LARGE($C135:$BP135,{1,2,3,4,5,6}))) -> 45 | BV135: =IF(BU135= "","",IFERROR(SUMPRODUCT(LARGE($C135:$BP135,{1,2,3,4})), "")) ->  | BW135: =IF(BV135<>"",(IFERROR(SUMPRODUCT(LARGE($C135:$BP135,{1,2,3,4,5,6,7})),"")),"") ->  | BX135: =IF(BW135<>"",(IFERROR(SUMPRODUCT(LARGE($C135:$BP135,{1,2,3,4,5,6,7,8})),"")),"") -> 
B136: RU | BC136: 5 | BR136: 5 | BS136: 1 | BT136: =IF($BS136<=6,SUM($C136:$BP136),SUMPRODUCT(LARGE($C136:$BP136,{1,2,3,4,5,6}))) -> 5 | BV136: =IF(BU136= "","",IFERROR(SUMPRODUCT(LARGE($C136:$BP136,{1,2,3,4})), "")) ->  | BW136: =IF(BV136<>"",(IFERROR(SUMPRODUCT(LARGE($C136:$BP136,{1,2,3,4,5,6,7})),"")),"") ->  | BX136: =IF(BW136<>"",(IFERROR(SUMPRODUCT(LARGE($C136:$BP136,{1,2,3,4,5,6,7,8})),"")),"") -> 
B137: RUN | BC137: 2 | BR137: 2 | BS137: 1 | BT137: =IF($BS137<=6,SUM($C137:$BP137),SUMPRODUCT(LARGE($C137:$BP137,{1,2,3,4,5,6}))) -> 2 | BV137: =IF(BU137= "","",IFERROR(SUMPRODUCT(LARGE($C137:$BP137,{1,2,3,4})), "")) ->  | BW137: =IF(BV137<>"",(IFERROR(SUMPRODUCT(LARGE($C137:$BP137,{1,2,3,4,5,6,7})),"")),"") ->  | BX137: =IF(BW137<>"",(IFERROR(SUMPRODUCT(LARGE($C137:$BP137,{1,2,3,4,5,6,7,8})),"")),"") -> 
B138: SAC | S138: 11 | BA138: 4 | BJ138: 1 | BK138: 3 | BR138: 19 | BS138: 4 | BT138: =IF($BS138<=6,SUM($C138:$BP138),SUMPRODUCT(LARGE($C138:$BP138,{1,2,3,4,5,6}))) -> 19 | BV138: =IF(BU138= "","",IFERROR(SUMPRODUCT(LARGE($C138:$BP138,{1,2,3,4})), "")) ->  | BW138: =IF(BV138<>"",(IFERROR(SUMPRODUCT(LARGE($C138:$BP138,{1,2,3,4,5,6,7})),"")),"") ->  | BX138: =IF(BW138<>"",(IFERROR(SUMPRODUCT(LARGE($C138:$BP138,{1,2,3,4,5,6,7,8})),"")),"") -> 
B139: SaCC | AC139: 7 | AD139: 13 | AI139: 16 | BR139: 36 | BS139: 3 | BT139: =IF($BS139<=6,SUM($C139:$BP139),SUMPRODUCT(LARGE($C139:$BP139,{1,2,3,4,5,6}))) -> 36 | BV139: =IF(BU139= "","",IFERROR(SUMPRODUCT(LARGE($C139:$BP139,{1,2,3,4})), "")) ->  | BW139: =IF(BV139<>"",(IFERROR(SUMPRODUCT(LARGE($C139:$BP139,{1,2,3,4,5,6,7})),"")),"") ->  | BX139: =IF(BW139<>"",(IFERROR(SUMPRODUCT(LARGE($C139:$BP139,{1,2,3,4,5,6,7,8})),"")),"") -> 
B140: SadC | AD140: 17 | AI140: 3 | AZ140: 20 | BR140: 40 | BS140: 3 | BT140: =IF($BS140<=6,SUM($C140:$BP140),SUMPRODUCT(LARGE($C140:$BP140,{1,2,3,4,5,6}))) -> 40 | BV140: =IF(BU140= "","",IFERROR(SUMPRODUCT(LARGE($C140:$BP140,{1,2,3,4})), "")) ->  | BW140: =IF(BV140<>"",(IFERROR(SUMPRODUCT(LARGE($C140:$BP140,{1,2,3,4,5,6,7})),"")),"") ->  | BX140: =IF(BW140<>"",(IFERROR(SUMPRODUCT(LARGE($C140:$BP140,{1,2,3,4,5,6,7,8})),"")),"") -> 
B141: SBU | D141: 19 | O141: 16 | P141: 13 | AB141: 6 | BE141: 18 | BH141: 21 | BI141: 11 | BR141: 104 | BS141: 7 | BT141: =IF($BS141<=6,SUM($C141:$BP141),SUMPRODUCT(LARGE($C141:$BP141,{1,2,3,4,5,6}))) -> 98 | BV141: =IF(BU141= "","",IFERROR(SUMPRODUCT(LARGE($C141:$BP141,{1,2,3,4})), "")) ->  | BW141: =IF(BV141<>"",(IFERROR(SUMPRODUCT(LARGE($C141:$BP141,{1,2,3,4,5,6,7})),"")),"") ->  | BX141: =IF(BW141<>"",(IFERROR(SUMPRODUCT(LARGE($C141:$BP141,{1,2,3,4,5,6,7,8})),"")),"") -> 
B142: SC | D142: 34 | P142: 33 | T142: 1 | AB142: 5 | BE142: 40 | BH142: 18 | BI142: 26 | BR142: 157 | BS142: 7 | BT142: =IF($BS142<=6,SUM($C142:$BP142),SUMPRODUCT(LARGE($C142:$BP142,{1,2,3,4,5,6}))) -> 156 | BV142: =IF(BU142= "","",IFERROR(SUMPRODUCT(LARGE($C142:$BP142,{1,2,3,4})), "")) ->  | BW142: =IF(BV142<>"",(IFERROR(SUMPRODUCT(LARGE($C142:$BP142,{1,2,3,4,5,6,7})),"")),"") ->  | BX142: =IF(BW142<>"",(IFERROR(SUMPRODUCT(LARGE($C142:$BP142,{1,2,3,4,5,6,7,8})),"")),"") -> 
B143: SCC | T143: 2 | BR143: 2 | BS143: 1 | BT143: =IF($BS143<=6,SUM($C143:$BP143),SUMPRODUCT(LARGE($C143:$BP143,{1,2,3,4,5,6}))) -> 2 | BV143: =IF(BU143= "","",IFERROR(SUMPRODUCT(LARGE($C143:$BP143,{1,2,3,4})), "")) ->  | BW143: =IF(BV143<>"",(IFERROR(SUMPRODUCT(LARGE($C143:$BP143,{1,2,3,4,5,6,7})),"")),"") ->  | BX143: =IF(BW143<>"",(IFERROR(SUMPRODUCT(LARGE($C143:$BP143,{1,2,3,4,5,6,7,8})),"")),"") -> 
B144: SCSU | BA144: 12 | BR144: 12 | BS144: 1 | BT144: =IF($BS144<=6,SUM($C144:$BP144),SUMPRODUCT(LARGE($C144:$BP144,{1,2,3,4,5,6}))) -> 12 | BV144: =IF(BU144= "","",IFERROR(SUMPRODUCT(LARGE($C144:$BP144,{1,2,3,4})), "")) ->  | BW144: =IF(BV144<>"",(IFERROR(SUMPRODUCT(LARGE($C144:$BP144,{1,2,3,4,5,6,7})),"")),"") ->  | BX144: =IF(BW144<>"",(IFERROR(SUMPRODUCT(LARGE($C144:$BP144,{1,2,3,4,5,6,7,8})),"")),"") -> 
B145: ScU | C145: 2 | AW145: 11 | BR145: 13 | BS145: 2 | BT145: =IF($BS145<=6,SUM($C145:$BP145),SUMPRODUCT(LARGE($C145:$BP145,{1,2,3,4,5,6}))) -> 13 | BV145: =IF(BU145= "","",IFERROR(SUMPRODUCT(LARGE($C145:$BP145,{1,2,3,4})), "")) ->  | BW145: =IF(BV145<>"",(IFERROR(SUMPRODUCT(LARGE($C145:$BP145,{1,2,3,4,5,6,7})),"")),"") ->  | BX145: =IF(BW145<>"",(IFERROR(SUMPRODUCT(LARGE($C145:$BP145,{1,2,3,4,5,6,7,8})),"")),"") -> 
B146: SDMC | AD146: 6 | BR146: 6 | BS146: 1 | BT146: =IF($BS146<=6,SUM($C146:$BP146),SUMPRODUCT(LARGE($C146:$BP146,{1,2,3,4,5,6}))) -> 6 | BV146: =IF(BU146= "","",IFERROR(SUMPRODUCT(LARGE($C146:$BP146,{1,2,3,4})), "")) ->  | BW146: =IF(BV146<>"",(IFERROR(SUMPRODUCT(LARGE($C146:$BP146,{1,2,3,4,5,6,7})),"")),"") ->  | BX146: =IF(BW146<>"",(IFERROR(SUMPRODUCT(LARGE($C146:$BP146,{1,2,3,4,5,6,7,8})),"")),"") -> 
B147: SFCC | P147: 19 | AA147: 19 | AJ147: 0 | BE147: 3 | BH147: 2 | BR147: 43 | BS147: 5 | BT147: =IF($BS147<=6,SUM($C147:$BP147),SUMPRODUCT(LARGE($C147:$BP147,{1,2,3,4,5,6}))) -> 43 | BV147: =IF(BU147= "","",IFERROR(SUMPRODUCT(LARGE($C147:$BP147,{1,2,3,4})), "")) ->  | BW147: =IF(BV147<>"",(IFERROR(SUMPRODUCT(LARGE($C147:$BP147,{1,2,3,4,5,6,7})),"")),"") ->  | BX147: =IF(BW147<>"",(IFERROR(SUMPRODUCT(LARGE($C147:$BP147,{1,2,3,4,5,6,7,8})),"")),"") -> 
B148: SHU | BI148: 2 | BR148: 2 | BS148: 1 | BT148: =IF($BS148<=6,SUM($C148:$BP148),SUMPRODUCT(LARGE($C148:$BP148,{1,2,3,4,5,6}))) -> 2 | BV148: =IF(BU148= "","",IFERROR(SUMPRODUCT(LARGE($C148:$BP148,{1,2,3,4})), "")) ->  | BW148: =IF(BV148<>"",(IFERROR(SUMPRODUCT(LARGE($C148:$BP148,{1,2,3,4,5,6,7})),"")),"") ->  | BX148: =IF(BW148<>"",(IFERROR(SUMPRODUCT(LARGE($C148:$BP148,{1,2,3,4,5,6,7,8})),"")),"") -> 
B149: SJSD | BM149: 7 | BN149: 6 | BO149: 7 | BR149: 20 | BS149: 3 | BT149: =IF($BS149<=6,SUM($C149:$BP149),SUMPRODUCT(LARGE($C149:$BP149,{1,2,3,4,5,6}))) -> 20 | BV149: =IF(BU149= "","",IFERROR(SUMPRODUCT(LARGE($C149:$BP149,{1,2,3,4})), "")) ->  | BW149: =IF(BV149<>"",(IFERROR(SUMPRODUCT(LARGE($C149:$BP149,{1,2,3,4,5,6,7})),"")),"") ->  | BX149: =IF(BW149<>"",(IFERROR(SUMPRODUCT(LARGE($C149:$BP149,{1,2,3,4,5,6,7,8})),"")),"") -> 
B150: SJSU | AN150: 6 | BC150: 4 | BL150: 16 | BM150: 14 | BN150: 17 | BO150: 12 | BR150: 69 | BS150: 6 | BT150: =IF($BS150<=6,SUM($C150:$BP150),SUMPRODUCT(LARGE($C150:$BP150,{1,2,3,4,5,6}))) -> 69 | BV150: =IF(BU150= "","",IFERROR(SUMPRODUCT(LARGE($C150:$BP150,{1,2,3,4})), "")) ->  | BW150: =IF(BV150<>"",(IFERROR(SUMPRODUCT(LARGE($C150:$BP150,{1,2,3,4,5,6,7})),"")),"") ->  | BX150: =IF(BW150<>"",(IFERROR(SUMPRODUCT(LARGE($C150:$BP150,{1,2,3,4,5,6,7,8})),"")),"") -> 
B151: SJU | R151: 6 | BR151: 6 | BS151: 1 | BT151: =IF($BS151<=6,SUM($C151:$BP151),SUMPRODUCT(LARGE($C151:$BP151,{1,2,3,4,5,6}))) -> 6 | BV151: =IF(BU151= "","",IFERROR(SUMPRODUCT(LARGE($C151:$BP151,{1,2,3,4})), "")) ->  | BW151: =IF(BV151<>"",(IFERROR(SUMPRODUCT(LARGE($C151:$BP151,{1,2,3,4,5,6,7})),"")),"") ->  | BX151: =IF(BW151<>"",(IFERROR(SUMPRODUCT(LARGE($C151:$BP151,{1,2,3,4,5,6,7,8})),"")),"") -> 
B152: SkyC | AN152: 6 | BM152: 4 | BR152: 10 | BS152: 2 | BT152: =IF($BS152<=6,SUM($C152:$BP152),SUMPRODUCT(LARGE($C152:$BP152,{1,2,3,4,5,6}))) -> 10 | BV152: =IF(BU152= "","",IFERROR(SUMPRODUCT(LARGE($C152:$BP152,{1,2,3,4})), "")) ->  | BW152: =IF(BV152<>"",(IFERROR(SUMPRODUCT(LARGE($C152:$BP152,{1,2,3,4,5,6,7})),"")),"") ->  | BX152: =IF(BW152<>"",(IFERROR(SUMPRODUCT(LARGE($C152:$BP152,{1,2,3,4,5,6,7,8})),"")),"") -> 
B153: SMC | AH153: 10 | BR153: 10 | BS153: 1 | BT153: =IF($BS153<=6,SUM($C153:$BP153),SUMPRODUCT(LARGE($C153:$BP153,{1,2,3,4,5,6}))) -> 10 | BV153: =IF(BU153= "","",IFERROR(SUMPRODUCT(LARGE($C153:$BP153,{1,2,3,4})), "")) ->  | BW153: =IF(BV153<>"",(IFERROR(SUMPRODUCT(LARGE($C153:$BP153,{1,2,3,4,5,6,7})),"")),"") ->  | BX153: =IF(BW153<>"",(IFERROR(SUMPRODUCT(LARGE($C153:$BP153,{1,2,3,4,5,6,7,8})),"")),"") -> 
B154: SMSU | P154: 1 | BR154: 1 | BS154: 1 | BT154: =IF($BS154<=6,SUM($C154:$BP154),SUMPRODUCT(LARGE($C154:$BP154,{1,2,3,4,5,6}))) -> 1 | BV154: =IF(BU154= "","",IFERROR(SUMPRODUCT(LARGE($C154:$BP154,{1,2,3,4})), "")) ->  | BW154: =IF(BV154<>"",(IFERROR(SUMPRODUCT(LARGE($C154:$BP154,{1,2,3,4,5,6,7})),"")),"") ->  | BX154: =IF(BW154<>"",(IFERROR(SUMPRODUCT(LARGE($C154:$BP154,{1,2,3,4,5,6,7,8})),"")),"") -> 
B155: SMU | C155: 43 | I155: 22 | O155: 17 | W155: 22 | X155: 8 | AO155: 24 | AP155: 26 | AS155: 28 | AY155: 17 | BC155: 16 | BR155: 223 | BS155: 10 | BT155: =IF($BS155<=6,SUM($C155:$BP155),SUMPRODUCT(LARGE($C155:$BP155,{1,2,3,4,5,6}))) -> 165 | BV155: =IF(BU155= "","",IFERROR(SUMPRODUCT(LARGE($C155:$BP155,{1,2,3,4})), "")) ->  | BW155: =IF(BV155<>"",(IFERROR(SUMPRODUCT(LARGE($C155:$BP155,{1,2,3,4,5,6,7})),"")),"") ->  | BX155: =IF(BW155<>"",(IFERROR(SUMPRODUCT(LARGE($C155:$BP155,{1,2,3,4,5,6,7,8})),"")),"") -> 
B156: SoCC | AD156: 8 | AN156: 6 | BL156: 1 | BM156: 3 | BN156: 6 | BO156: 2 | BR156: 26 | BS156: 6 | BT156: =IF($BS156<=6,SUM($C156:$BP156),SUMPRODUCT(LARGE($C156:$BP156,{1,2,3,4,5,6}))) -> 26 | BV156: =IF(BU156= "","",IFERROR(SUMPRODUCT(LARGE($C156:$BP156,{1,2,3,4})), "")) ->  | BW156: =IF(BV156<>"",(IFERROR(SUMPRODUCT(LARGE($C156:$BP156,{1,2,3,4,5,6,7})),"")),"") ->  | BX156: =IF(BW156<>"",(IFERROR(SUMPRODUCT(LARGE($C156:$BP156,{1,2,3,4,5,6,7,8})),"")),"") -> 
B157: SOSU | W157: 6 | X157: 5 | BD157: 4 | BR157: 15 | BS157: 3 | BT157: =IF($BS157<=6,SUM($C157:$BP157),SUMPRODUCT(LARGE($C157:$BP157,{1,2,3,4,5,6}))) -> 15 | BV157: =IF(BU157= "","",IFERROR(SUMPRODUCT(LARGE($C157:$BP157,{1,2,3,4})), "")) ->  | BW157: =IF(BV157<>"",(IFERROR(SUMPRODUCT(LARGE($C157:$BP157,{1,2,3,4,5,6,7})),"")),"") ->  | BX157: =IF(BW157<>"",(IFERROR(SUMPRODUCT(LARGE($C157:$BP157,{1,2,3,4,5,6,7,8})),"")),"") -> 
B158: SpC | AX158: 3 | BK158: 1 | BR158: 4 | BS158: 2 | BT158: =IF($BS158<=6,SUM($C158:$BP158),SUMPRODUCT(LARGE($C158:$BP158,{1,2,3,4,5,6}))) -> 4 | BV158: =IF(BU158= "","",IFERROR(SUMPRODUCT(LARGE($C158:$BP158,{1,2,3,4})), "")) ->  | BW158: =IF(BV158<>"",(IFERROR(SUMPRODUCT(LARGE($C158:$BP158,{1,2,3,4,5,6,7})),"")),"") ->  | BX158: =IF(BW158<>"",(IFERROR(SUMPRODUCT(LARGE($C158:$BP158,{1,2,3,4,5,6,7,8})),"")),"") -> 
B159: SSU | AN159: 14 | BR159: 14 | BS159: 1 | BT159: =IF($BS159<=6,SUM($C159:$BP159),SUMPRODUCT(LARGE($C159:$BP159,{1,2,3,4,5,6}))) -> 14 | BV159: =IF(BU159= "","",IFERROR(SUMPRODUCT(LARGE($C159:$BP159,{1,2,3,4})), "")) ->  | BW159: =IF(BV159<>"",(IFERROR(SUMPRODUCT(LARGE($C159:$BP159,{1,2,3,4,5,6,7})),"")),"") ->  | BX159: =IF(BW159<>"",(IFERROR(SUMPRODUCT(LARGE($C159:$BP159,{1,2,3,4,5,6,7,8})),"")),"") -> 
B160: StC | W160: 7 | BI160: 8 | BR160: 15 | BS160: 2 | BT160: =IF($BS160<=6,SUM($C160:$BP160),SUMPRODUCT(LARGE($C160:$BP160,{1,2,3,4,5,6}))) -> 15 | BV160: =IF(BU160= "","",IFERROR(SUMPRODUCT(LARGE($C160:$BP160,{1,2,3,4})), "")) ->  | BW160: =IF(BV160<>"",(IFERROR(SUMPRODUCT(LARGE($C160:$BP160,{1,2,3,4,5,6,7})),"")),"") ->  | BX160: =IF(BW160<>"",(IFERROR(SUMPRODUCT(LARGE($C160:$BP160,{1,2,3,4,5,6,7,8})),"")),"") -> 
B161: TaCC | Q161: 13 | AA161: 29 | BN161: 17 | BR161: 59 | BS161: 3 | BT161: =IF($BS161<=6,SUM($C161:$BP161),SUMPRODUCT(LARGE($C161:$BP161,{1,2,3,4,5,6}))) -> 59 | BV161: =IF(BU161= "","",IFERROR(SUMPRODUCT(LARGE($C161:$BP161,{1,2,3,4})), "")) ->  | BW161: =IF(BV161<>"",(IFERROR(SUMPRODUCT(LARGE($C161:$BP161,{1,2,3,4,5,6,7})),"")),"") ->  | BX161: =IF(BW161<>"",(IFERROR(SUMPRODUCT(LARGE($C161:$BP161,{1,2,3,4,5,6,7,8})),"")),"") -> 
B162: TCC | D162: 11 | X162: 12 | BA162: 2 | BD162: 14 | BR162: 39 | BS162: 4 | BT162: =IF($BS162<=6,SUM($C162:$BP162),SUMPRODUCT(LARGE($C162:$BP162,{1,2,3,4,5,6}))) -> 39 | BV162: =IF(BU162= "","",IFERROR(SUMPRODUCT(LARGE($C162:$BP162,{1,2,3,4})), "")) ->  | BW162: =IF(BV162<>"",(IFERROR(SUMPRODUCT(LARGE($C162:$BP162,{1,2,3,4,5,6,7})),"")),"") ->  | BX162: =IF(BW162<>"",(IFERROR(SUMPRODUCT(LARGE($C162:$BP162,{1,2,3,4,5,6,7,8})),"")),"") -> 
B163: TCU | I163: 18 | U163: 27 | X163: 11 | AO163: 18 | BD163: 29 | BI163: 22 | BR163: 125 | BS163: 6 | BT163: =IF($BS163<=6,SUM($C163:$BP163),SUMPRODUCT(LARGE($C163:$BP163,{1,2,3,4,5,6}))) -> 125 | BV163: =IF(BU163= "","",IFERROR(SUMPRODUCT(LARGE($C163:$BP163,{1,2,3,4})), "")) ->  | BW163: =IF(BV163<>"",(IFERROR(SUMPRODUCT(LARGE($C163:$BP163,{1,2,3,4,5,6,7})),"")),"") ->  | BX163: =IF(BW163<>"",(IFERROR(SUMPRODUCT(LARGE($C163:$BP163,{1,2,3,4,5,6,7,8})),"")),"") -> 
B164: TranSU | BI164: 3 | BR164: 3 | BS164: 1 | BT164: =IF($BS164<=6,SUM($C164:$BP164),SUMPRODUCT(LARGE($C164:$BP164,{1,2,3,4,5,6}))) -> 3 | BV164: =IF(BU164= "","",IFERROR(SUMPRODUCT(LARGE($C164:$BP164,{1,2,3,4})), "")) ->  | BW164: =IF(BV164<>"",(IFERROR(SUMPRODUCT(LARGE($C164:$BP164,{1,2,3,4,5,6,7})),"")),"") ->  | BX164: =IF(BW164<>"",(IFERROR(SUMPRODUCT(LARGE($C164:$BP164,{1,2,3,4,5,6,7,8})),"")),"") -> 
B165: TrU | Q165: 6 | AA165: 8 | BA165: 6 | BJ165: 4 | BR165: 24 | BS165: 4 | BT165: =IF($BS165<=6,SUM($C165:$BP165),SUMPRODUCT(LARGE($C165:$BP165,{1,2,3,4,5,6}))) -> 24 | BV165: =IF(BU165= "","",IFERROR(SUMPRODUCT(LARGE($C165:$BP165,{1,2,3,4})), "")) ->  | BW165: =IF(BV165<>"",(IFERROR(SUMPRODUCT(LARGE($C165:$BP165,{1,2,3,4,5,6,7})),"")),"") ->  | BX165: =IF(BW165<>"",(IFERROR(SUMPRODUCT(LARGE($C165:$BP165,{1,2,3,4,5,6,7,8})),"")),"") -> 
B166: TruSU | BH166: 8 | BR166: 8 | BS166: 1 | BT166: =IF($BS166<=6,SUM($C166:$BP166),SUMPRODUCT(LARGE($C166:$BP166,{1,2,3,4,5,6}))) -> 8 | BV166: =IF(BU166= "","",IFERROR(SUMPRODUCT(LARGE($C166:$BP166,{1,2,3,4})), "")) ->  | BW166: =IF(BV166<>"",(IFERROR(SUMPRODUCT(LARGE($C166:$BP166,{1,2,3,4,5,6,7})),"")),"") ->  | BX166: =IF(BW166<>"",(IFERROR(SUMPRODUCT(LARGE($C166:$BP166,{1,2,3,4,5,6,7,8})),"")),"") -> 
B167: TSU | P167: 14 | R167: 10 | AU167: 18 | BC167: 1 | BR167: 43 | BS167: 4 | BT167: =IF($BS167<=6,SUM($C167:$BP167),SUMPRODUCT(LARGE($C167:$BP167,{1,2,3,4,5,6}))) -> 43 | BV167: =IF(BU167= "","",IFERROR(SUMPRODUCT(LARGE($C167:$BP167,{1,2,3,4})), "")) ->  | BW167: =IF(BV167<>"",(IFERROR(SUMPRODUCT(LARGE($C167:$BP167,{1,2,3,4,5,6,7})),"")),"") ->  | BX167: =IF(BW167<>"",(IFERROR(SUMPRODUCT(LARGE($C167:$BP167,{1,2,3,4,5,6,7,8})),"")),"") -> 
B168: TTU | J168: 10 | BR168: 10 | BS168: 1 | BT168: =IF($BS168<=6,SUM($C168:$BP168),SUMPRODUCT(LARGE($C168:$BP168,{1,2,3,4,5,6}))) -> 10 | BV168: =IF(BU168= "","",IFERROR(SUMPRODUCT(LARGE($C168:$BP168,{1,2,3,4})), "")) ->  | BW168: =IF(BV168<>"",(IFERROR(SUMPRODUCT(LARGE($C168:$BP168,{1,2,3,4,5,6,7})),"")),"") ->  | BX168: =IF(BW168<>"",(IFERROR(SUMPRODUCT(LARGE($C168:$BP168,{1,2,3,4,5,6,7,8})),"")),"") -> 
B169: TU | AC169: 5 | AK169: 11 | AL169: 38 | BR169: 54 | BS169: 3 | BT169: =IF($BS169<=6,SUM($C169:$BP169),SUMPRODUCT(LARGE($C169:$BP169,{1,2,3,4,5,6}))) -> 54 | BV169: =IF(BU169= "","",IFERROR(SUMPRODUCT(LARGE($C169:$BP169,{1,2,3,4})), "")) ->  | BW169: =IF(BV169<>"",(IFERROR(SUMPRODUCT(LARGE($C169:$BP169,{1,2,3,4,5,6,7})),"")),"") ->  | BX169: =IF(BW169<>"",(IFERROR(SUMPRODUCT(LARGE($C169:$BP169,{1,2,3,4,5,6,7,8})),"")),"") -> 
B170: TuU | E170: 4 | BR170: 4 | BS170: 1 | BT170: =IF($BS170<=6,SUM($C170:$BP170),SUMPRODUCT(LARGE($C170:$BP170,{1,2,3,4,5,6}))) -> 4 | BV170: =IF(BU170= "","",IFERROR(SUMPRODUCT(LARGE($C170:$BP170,{1,2,3,4})), "")) ->  | BW170: =IF(BV170<>"",(IFERROR(SUMPRODUCT(LARGE($C170:$BP170,{1,2,3,4,5,6,7})),"")),"") ->  | BX170: =IF(BW170<>"",(IFERROR(SUMPRODUCT(LARGE($C170:$BP170,{1,2,3,4,5,6,7,8})),"")),"") -> 
B171: TxSU | G171: 5 | H171: 5 | BA171: 10 | BE171: 6 | BR171: 26 | BS171: 4 | BT171: =IF($BS171<=6,SUM($C171:$BP171),SUMPRODUCT(LARGE($C171:$BP171,{1,2,3,4,5,6}))) -> 26 | BV171: =IF(BU171= "","",IFERROR(SUMPRODUCT(LARGE($C171:$BP171,{1,2,3,4})), "")) ->  | BW171: =IF(BV171<>"",(IFERROR(SUMPRODUCT(LARGE($C171:$BP171,{1,2,3,4,5,6,7})),"")),"") ->  | BX171: =IF(BW171<>"",(IFERROR(SUMPRODUCT(LARGE($C171:$BP171,{1,2,3,4,5,6,7,8})),"")),"") -> 
B172: TxTu | I172: 6 | S172: 2 | BI172: 6 | BR172: 14 | BS172: 3 | BT172: =IF($BS172<=6,SUM($C172:$BP172),SUMPRODUCT(LARGE($C172:$BP172,{1,2,3,4,5,6}))) -> 14 | BV172: =IF(BU172= "","",IFERROR(SUMPRODUCT(LARGE($C172:$BP172,{1,2,3,4})), "")) ->  | BW172: =IF(BV172<>"",(IFERROR(SUMPRODUCT(LARGE($C172:$BP172,{1,2,3,4,5,6,7})),"")),"") ->  | BX172: =IF(BW172<>"",(IFERROR(SUMPRODUCT(LARGE($C172:$BP172,{1,2,3,4,5,6,7,8})),"")),"") -> 
B173: UA | C173: 29 | D173: 43 | O173: 53 | V173: 19 | AO173: 56 | AP173: 38 | AS173: 45 | AX173: 27 | BR173: 310 | BS173: 8 | BT173: =IF($BS173<=6,SUM($C173:$BP173),SUMPRODUCT(LARGE($C173:$BP173,{1,2,3,4,5,6}))) -> 264 | BV173: =IF(BU173= "","",IFERROR(SUMPRODUCT(LARGE($C173:$BP173,{1,2,3,4})), "")) ->  | BW173: =IF(BV173<>"",(IFERROR(SUMPRODUCT(LARGE($C173:$BP173,{1,2,3,4,5,6,7})),"")),"") ->  | BX173: =IF(BW173<>"",(IFERROR(SUMPRODUCT(LARGE($C173:$BP173,{1,2,3,4,5,6,7,8})),"")),"") -> 
B174: UACCB | O174: 8 | AP174: 5 | AS174: 7 | BR174: 20 | BS174: 3 | BT174: =IF($BS174<=6,SUM($C174:$BP174),SUMPRODUCT(LARGE($C174:$BP174,{1,2,3,4,5,6}))) -> 20 | BV174: =IF(BU174= "","",IFERROR(SUMPRODUCT(LARGE($C174:$BP174,{1,2,3,4})), "")) ->  | BW174: =IF(BV174<>"",(IFERROR(SUMPRODUCT(LARGE($C174:$BP174,{1,2,3,4,5,6,7})),"")),"") ->  | BX174: =IF(BW174<>"",(IFERROR(SUMPRODUCT(LARGE($C174:$BP174,{1,2,3,4,5,6,7,8})),"")),"") -> 
B175: UAM | AS175: 2 | AY175: 1 | BR175: 3 | BS175: 2 | BT175: =IF($BS175<=6,SUM($C175:$BP175),SUMPRODUCT(LARGE($C175:$BP175,{1,2,3,4,5,6}))) -> 3 | BV175: =IF(BU175= "","",IFERROR(SUMPRODUCT(LARGE($C175:$BP175,{1,2,3,4})), "")) ->  | BW175: =IF(BV175<>"",(IFERROR(SUMPRODUCT(LARGE($C175:$BP175,{1,2,3,4,5,6,7})),"")),"") ->  | BX175: =IF(BW175<>"",(IFERROR(SUMPRODUCT(LARGE($C175:$BP175,{1,2,3,4,5,6,7,8})),"")),"") -> 
B176: Ubama | H176: 13 | U176: 6 | AT176: 13 | BA176: 10 | BR176: 42 | BS176: 4 | BT176: =IF($BS176<=6,SUM($C176:$BP176),SUMPRODUCT(LARGE($C176:$BP176,{1,2,3,4,5,6}))) -> 42 | BV176: =IF(BU176= "","",IFERROR(SUMPRODUCT(LARGE($C176:$BP176,{1,2,3,4})), "")) ->  | BW176: =IF(BV176<>"",(IFERROR(SUMPRODUCT(LARGE($C176:$BP176,{1,2,3,4,5,6,7})),"")),"") ->  | BX176: =IF(BW176<>"",(IFERROR(SUMPRODUCT(LARGE($C176:$BP176,{1,2,3,4,5,6,7,8})),"")),"") -> 
B177: UCA | C177: 17 | K177: 5 | O177: 24 | W177: 9 | AS177: 20 | BR177: 75 | BS177: 5 | BT177: =IF($BS177<=6,SUM($C177:$BP177),SUMPRODUCT(LARGE($C177:$BP177,{1,2,3,4,5,6}))) -> 75 | BV177: =IF(BU177= "","",IFERROR(SUMPRODUCT(LARGE($C177:$BP177,{1,2,3,4})), "")) ->  | BW177: =IF(BV177<>"",(IFERROR(SUMPRODUCT(LARGE($C177:$BP177,{1,2,3,4,5,6,7})),"")),"") ->  | BX177: =IF(BW177<>"",(IFERROR(SUMPRODUCT(LARGE($C177:$BP177,{1,2,3,4,5,6,7,8})),"")),"") -> 
B178: UCB | AL178: 2 | BR178: 2 | BS178: 1 | BT178: =IF($BS178<=6,SUM($C178:$BP178),SUMPRODUCT(LARGE($C178:$BP178,{1,2,3,4,5,6}))) -> 2 | BV178: =IF(BU178= "","",IFERROR(SUMPRODUCT(LARGE($C178:$BP178,{1,2,3,4})), "")) ->  | BW178: =IF(BV178<>"",(IFERROR(SUMPRODUCT(LARGE($C178:$BP178,{1,2,3,4,5,6,7})),"")),"") ->  | BX178: =IF(BW178<>"",(IFERROR(SUMPRODUCT(LARGE($C178:$BP178,{1,2,3,4,5,6,7,8})),"")),"") -> 
B179: UCF | J179: 4 | Q179: 26 | AA179: 21 | BI179: 22 | BR179: 73 | BS179: 4 | BT179: =IF($BS179<=6,SUM($C179:$BP179),SUMPRODUCT(LARGE($C179:$BP179,{1,2,3,4,5,6}))) -> 73 | BV179: =IF(BU179= "","",IFERROR(SUMPRODUCT(LARGE($C179:$BP179,{1,2,3,4})), "")) ->  | BW179: =IF(BV179<>"",(IFERROR(SUMPRODUCT(LARGE($C179:$BP179,{1,2,3,4,5,6,7})),"")),"") ->  | BX179: =IF(BW179<>"",(IFERROR(SUMPRODUCT(LARGE($C179:$BP179,{1,2,3,4,5,6,7,8})),"")),"") -> 
B180: UCM | D180: 34 | P180: 25 | Q180: 10 | S180: 18 | AA180: 20 | BE180: 42 | BH180: 42 | BI180: 30 | BR180: 221 | BS180: 8 | BT180: =IF($BS180<=6,SUM($C180:$BP180),SUMPRODUCT(LARGE($C180:$BP180,{1,2,3,4,5,6}))) -> 193 | BV180: =IF(BU180= "","",IFERROR(SUMPRODUCT(LARGE($C180:$BP180,{1,2,3,4})), "")) ->  | BW180: =IF(BV180<>"",(IFERROR(SUMPRODUCT(LARGE($C180:$BP180,{1,2,3,4,5,6,7})),"")),"") ->  | BX180: =IF(BW180<>"",(IFERROR(SUMPRODUCT(LARGE($C180:$BP180,{1,2,3,4,5,6,7,8})),"")),"") -> 
B181: UCSD | V181: 12 | AC181: 15 | AD181: 66 | AI181: 54 | AK181: 14 | AL181: 45 | AZ181: 58 | BB181: 53 | BI181: 29 | BR181: 346 | BS181: 9 | BT181: =IF($BS181<=6,SUM($C181:$BP181),SUMPRODUCT(LARGE($C181:$BP181,{1,2,3,4,5,6}))) -> 305 | BV181: =IF(BU181= "","",IFERROR(SUMPRODUCT(LARGE($C181:$BP181,{1,2,3,4})), "")) ->  | BW181: =IF(BV181<>"",(IFERROR(SUMPRODUCT(LARGE($C181:$BP181,{1,2,3,4,5,6,7})),"")),"") ->  | BX181: =IF(BW181<>"",(IFERROR(SUMPRODUCT(LARGE($C181:$BP181,{1,2,3,4,5,6,7,8})),"")),"") -> 
B182: UCSF | BN182: 8 | BR182: 8 | BS182: 1 | BT182: =IF($BS182<=6,SUM($C182:$BP182),SUMPRODUCT(LARGE($C182:$BP182,{1,2,3,4,5,6}))) -> 8 | BV182: =IF(BU182= "","",IFERROR(SUMPRODUCT(LARGE($C182:$BP182,{1,2,3,4})), "")) ->  | BW182: =IF(BV182<>"",(IFERROR(SUMPRODUCT(LARGE($C182:$BP182,{1,2,3,4,5,6,7})),"")),"") ->  | BX182: =IF(BW182<>"",(IFERROR(SUMPRODUCT(LARGE($C182:$BP182,{1,2,3,4,5,6,7,8})),"")),"") -> 
B183: UF | Q183: 18 | AA183: 11 | BR183: 29 | BS183: 2 | BT183: =IF($BS183<=6,SUM($C183:$BP183),SUMPRODUCT(LARGE($C183:$BP183,{1,2,3,4,5,6}))) -> 29 | BV183: =IF(BU183= "","",IFERROR(SUMPRODUCT(LARGE($C183:$BP183,{1,2,3,4})), "")) ->  | BW183: =IF(BV183<>"",(IFERROR(SUMPRODUCT(LARGE($C183:$BP183,{1,2,3,4,5,6,7})),"")),"") ->  | BX183: =IF(BW183<>"",(IFERROR(SUMPRODUCT(LARGE($C183:$BP183,{1,2,3,4,5,6,7,8})),"")),"") -> 
B184: UI | BC184: 0 | BR184: 0 | BS184: 1 | BT184: =IF($BS184<=6,SUM($C184:$BP184),SUMPRODUCT(LARGE($C184:$BP184,{1,2,3,4,5,6}))) -> 0 | BV184: =IF(BU184= "","",IFERROR(SUMPRODUCT(LARGE($C184:$BP184,{1,2,3,4})), "")) ->  | BW184: =IF(BV184<>"",(IFERROR(SUMPRODUCT(LARGE($C184:$BP184,{1,2,3,4,5,6,7})),"")),"") ->  | BX184: =IF(BW184<>"",(IFERROR(SUMPRODUCT(LARGE($C184:$BP184,{1,2,3,4,5,6,7,8})),"")),"") -> 
B185: UIC | AJ185: 11 | BR185: 11 | BS185: 1 | BT185: =IF($BS185<=6,SUM($C185:$BP185),SUMPRODUCT(LARGE($C185:$BP185,{1,2,3,4,5,6}))) -> 11 | BV185: =IF(BU185= "","",IFERROR(SUMPRODUCT(LARGE($C185:$BP185,{1,2,3,4})), "")) ->  | BW185: =IF(BV185<>"",(IFERROR(SUMPRODUCT(LARGE($C185:$BP185,{1,2,3,4,5,6,7})),"")),"") ->  | BX185: =IF(BW185<>"",(IFERROR(SUMPRODUCT(LARGE($C185:$BP185,{1,2,3,4,5,6,7,8})),"")),"") -> 
B186: UIUC | BE186: 2 | BR186: 2 | BS186: 1 | BT186: =IF($BS186<=6,SUM($C186:$BP186),SUMPRODUCT(LARGE($C186:$BP186,{1,2,3,4,5,6}))) -> 2 | BV186: =IF(BU186= "","",IFERROR(SUMPRODUCT(LARGE($C186:$BP186,{1,2,3,4})), "")) ->  | BW186: =IF(BV186<>"",(IFERROR(SUMPRODUCT(LARGE($C186:$BP186,{1,2,3,4,5,6,7})),"")),"") ->  | BX186: =IF(BW186<>"",(IFERROR(SUMPRODUCT(LARGE($C186:$BP186,{1,2,3,4,5,6,7,8})),"")),"") -> 
B187: UJ | V187: 8 | BR187: 8 | BS187: 1 | BT187: =IF($BS187<=6,SUM($C187:$BP187),SUMPRODUCT(LARGE($C187:$BP187,{1,2,3,4,5,6}))) -> 8 | BV187: =IF(BU187= "","",IFERROR(SUMPRODUCT(LARGE($C187:$BP187,{1,2,3,4})), "")) ->  | BW187: =IF(BV187<>"",(IFERROR(SUMPRODUCT(LARGE($C187:$BP187,{1,2,3,4,5,6,7})),"")),"") ->  | BX187: =IF(BW187<>"",(IFERROR(SUMPRODUCT(LARGE($C187:$BP187,{1,2,3,4,5,6,7,8})),"")),"") -> 
B188: ULL | X188: 20 | AO188: 16 | BC188: 5 | BR188: 41 | BS188: 3 | BT188: =IF($BS188<=6,SUM($C188:$BP188),SUMPRODUCT(LARGE($C188:$BP188,{1,2,3,4,5,6}))) -> 41 | BV188: =IF(BU188= "","",IFERROR(SUMPRODUCT(LARGE($C188:$BP188,{1,2,3,4})), "")) ->  | BW188: =IF(BV188<>"",(IFERROR(SUMPRODUCT(LARGE($C188:$BP188,{1,2,3,4,5,6,7})),"")),"") ->  | BX188: =IF(BW188<>"",(IFERROR(SUMPRODUCT(LARGE($C188:$BP188,{1,2,3,4,5,6,7,8})),"")),"") -> 
B189: UMH | AW189: 4 | BR189: 4 | BS189: 1 | BT189: =IF($BS189<=6,SUM($C189:$BP189),SUMPRODUCT(LARGE($C189:$BP189,{1,2,3,4,5,6}))) -> 4 | BV189: =IF(BU189= "","",IFERROR(SUMPRODUCT(LARGE($C189:$BP189,{1,2,3,4})), "")) ->  | BW189: =IF(BV189<>"",(IFERROR(SUMPRODUCT(LARGE($C189:$BP189,{1,2,3,4,5,6,7})),"")),"") ->  | BX189: =IF(BW189<>"",(IFERROR(SUMPRODUCT(LARGE($C189:$BP189,{1,2,3,4,5,6,7,8})),"")),"") -> 
B190: UMi | D190: 22 | P190: 21 | T190: 2 | AB190: 11 | AJ190: 13 | BH190: 18 | BR190: 87 | BS190: 6 | BT190: =IF($BS190<=6,SUM($C190:$BP190),SUMPRODUCT(LARGE($C190:$BP190,{1,2,3,4,5,6}))) -> 87 | BV190: =IF(BU190= "","",IFERROR(SUMPRODUCT(LARGE($C190:$BP190,{1,2,3,4})), "")) ->  | BW190: =IF(BV190<>"",(IFERROR(SUMPRODUCT(LARGE($C190:$BP190,{1,2,3,4,5,6,7})),"")),"") ->  | BX190: =IF(BW190<>"",(IFERROR(SUMPRODUCT(LARGE($C190:$BP190,{1,2,3,4,5,6,7,8})),"")),"") -> 
B191: UMo | N191: 3 | T191: 28 | BI191: 21 | BJ191: 13 | BR191: 65 | BS191: 4 | BT191: =IF($BS191<=6,SUM($C191:$BP191),SUMPRODUCT(LARGE($C191:$BP191,{1,2,3,4,5,6}))) -> 65 | BV191: =IF(BU191= "","",IFERROR(SUMPRODUCT(LARGE($C191:$BP191,{1,2,3,4})), "")) ->  | BW191: =IF(BV191<>"",(IFERROR(SUMPRODUCT(LARGE($C191:$BP191,{1,2,3,4,5,6,7})),"")),"") ->  | BX191: =IF(BW191<>"",(IFERROR(SUMPRODUCT(LARGE($C191:$BP191,{1,2,3,4,5,6,7,8})),"")),"") -> 
B192: UND | AO192: 5 | AS192: 6 | BR192: 11 | BS192: 2 | BT192: =IF($BS192<=6,SUM($C192:$BP192),SUMPRODUCT(LARGE($C192:$BP192,{1,2,3,4,5,6}))) -> 11 | BV192: =IF(BU192= "","",IFERROR(SUMPRODUCT(LARGE($C192:$BP192,{1,2,3,4})), "")) ->  | BW192: =IF(BV192<>"",(IFERROR(SUMPRODUCT(LARGE($C192:$BP192,{1,2,3,4,5,6,7})),"")),"") ->  | BX192: =IF(BW192<>"",(IFERROR(SUMPRODUCT(LARGE($C192:$BP192,{1,2,3,4,5,6,7,8})),"")),"") -> 
B193: UNLV | AN193: 8 | BB193: 7 | BR193: 15 | BS193: 2 | BT193: =IF($BS193<=6,SUM($C193:$BP193),SUMPRODUCT(LARGE($C193:$BP193,{1,2,3,4,5,6}))) -> 15 | BV193: =IF(BU193= "","",IFERROR(SUMPRODUCT(LARGE($C193:$BP193,{1,2,3,4})), "")) ->  | BW193: =IF(BV193<>"",(IFERROR(SUMPRODUCT(LARGE($C193:$BP193,{1,2,3,4,5,6,7})),"")),"") ->  | BX193: =IF(BW193<>"",(IFERROR(SUMPRODUCT(LARGE($C193:$BP193,{1,2,3,4,5,6,7,8})),"")),"") -> 
B194: UNR | F194: 13 | T194: 2 | Y194: 17 | AN194: 35 | BA194: 21 | BI194: 30 | BL194: 21 | BM194: 32 | BN194: 12 | BO194: 23 | BR194: 206 | BS194: 10 | BT194: =IF($BS194<=6,SUM($C194:$BP194),SUMPRODUCT(LARGE($C194:$BP194,{1,2,3,4,5,6}))) -> 162 | BV194: =IF(BU194= "","",IFERROR(SUMPRODUCT(LARGE($C194:$BP194,{1,2,3,4})), "")) ->  | BW194: =IF(BV194<>"",(IFERROR(SUMPRODUCT(LARGE($C194:$BP194,{1,2,3,4,5,6,7})),"")),"") ->  | BX194: =IF(BW194<>"",(IFERROR(SUMPRODUCT(LARGE($C194:$BP194,{1,2,3,4,5,6,7,8})),"")),"") -> 
B195: UNT | G195: 22 | H195: 3 | R195: 24 | AX195: 4 | BC195: 18 | BJ195: 12 | BK195: 15 | BR195: 98 | BS195: 7 | BT195: =IF($BS195<=6,SUM($C195:$BP195),SUMPRODUCT(LARGE($C195:$BP195,{1,2,3,4,5,6}))) -> 95 | BV195: =IF(BU195= "","",IFERROR(SUMPRODUCT(LARGE($C195:$BP195,{1,2,3,4})), "")) ->  | BW195: =IF(BV195<>"",(IFERROR(SUMPRODUCT(LARGE($C195:$BP195,{1,2,3,4,5,6,7})),"")),"") ->  | BX195: =IF(BW195<>"",(IFERROR(SUMPRODUCT(LARGE($C195:$BP195,{1,2,3,4,5,6,7,8})),"")),"") -> 
B196: UoP | BM196: 11 | BR196: =SUM($C196:$BQ196) -> 11 | BS196: =COUNTA(C196:BP196) -> 1 | BT196: =IF($BS196<=6,SUM($C196:$BP196),SUMPRODUCT(LARGE($C196:$BP196,{1,2,3,4,5,6}))) -> 11 | BU196: =IF(AND($BS196>=6,BT196=BT197),"Manual Calc Needed","") ->  | BV196: =IF(BU196= "","",IFERROR(SUMPRODUCT(LARGE($C196:$BP196,{1,2,3,4})), "")) ->  | BW196: =IF(BV196<>"",(IFERROR(SUMPRODUCT(LARGE($C196:$BP196,{1,2,3,4,5,6,7})),"")),"") ->  | BX196: =IF(BW196<>"",(IFERROR(SUMPRODUCT(LARGE($C196:$BP196,{1,2,3,4,5,6,7,8})),"")),"") -> 
B197: USM | G197: 4 | H197: 4 | K197: 34 | L197: 12 | M197: 17 | O197: 20 | U197: 0 | Y197: 16 | AO197: 20 | AQ197: 34 | AY197: 13 | BR197: 174 | BS197: 11 | BT197: =IF($BS197<=6,SUM($C197:$BP197),SUMPRODUCT(LARGE($C197:$BP197,{1,2,3,4,5,6}))) -> 141 | BV197: =IF(BU197= "","",IFERROR(SUMPRODUCT(LARGE($C197:$BP197,{1,2,3,4})), "")) ->  | BW197: =IF(BV197<>"",(IFERROR(SUMPRODUCT(LARGE($C197:$BP197,{1,2,3,4,5,6,7})),"")),"") ->  | BX197: =IF(BW197<>"",(IFERROR(SUMPRODUCT(LARGE($C197:$BP197,{1,2,3,4,5,6,7,8})),"")),"") -> 
B198: USU | N198: 6 | T198: 9 | Z198: 6 | AR198: 8 | BR198: 29 | BS198: 4 | BT198: =IF($BS198<=6,SUM($C198:$BP198),SUMPRODUCT(LARGE($C198:$BP198,{1,2,3,4,5,6}))) -> 29 | BV198: =IF(BU198= "","",IFERROR(SUMPRODUCT(LARGE($C198:$BP198,{1,2,3,4})), "")) ->  | BW198: =IF(BV198<>"",(IFERROR(SUMPRODUCT(LARGE($C198:$BP198,{1,2,3,4,5,6,7})),"")),"") ->  | BX198: =IF(BW198<>"",(IFERROR(SUMPRODUCT(LARGE($C198:$BP198,{1,2,3,4,5,6,7,8})),"")),"") -> 
B199: USUL | BI199: 20 | BR199: 20 | BS199: 1 | BT199: =IF($BS199<=6,SUM($C199:$BP199),SUMPRODUCT(LARGE($C199:$BP199,{1,2,3,4,5,6}))) -> 20 | BV199: =IF(BU199= "","",IFERROR(SUMPRODUCT(LARGE($C199:$BP199,{1,2,3,4})), "")) ->  | BW199: =IF(BV199<>"",(IFERROR(SUMPRODUCT(LARGE($C199:$BP199,{1,2,3,4,5,6,7})),"")),"") ->  | BX199: =IF(BW199<>"",(IFERROR(SUMPRODUCT(LARGE($C199:$BP199,{1,2,3,4,5,6,7,8})),"")),"") -> 
B200: UTD | I200: 5 | X200: 12 | AO200: 5 | BR200: 22 | BS200: 3 | BT200: =IF($BS200<=6,SUM($C200:$BP200),SUMPRODUCT(LARGE($C200:$BP200,{1,2,3,4,5,6}))) -> 22 | BV200: =IF(BU200= "","",IFERROR(SUMPRODUCT(LARGE($C200:$BP200,{1,2,3,4})), "")) ->  | BW200: =IF(BV200<>"",(IFERROR(SUMPRODUCT(LARGE($C200:$BP200,{1,2,3,4,5,6,7})),"")),"") ->  | BX200: =IF(BW200<>"",(IFERROR(SUMPRODUCT(LARGE($C200:$BP200,{1,2,3,4,5,6,7,8})),"")),"") -> 
... 101 more rows

Sheet Founders
C1: Lee | D1: UCM | E1: L&CC | F1: CSI | G1: BGSU1 | H1: BGSU2 | I1: ACU | J1: CSCC | K1: MTSU | L1: Abam1 | M1: Abam2 | N1: WhU | O1: LSUS | P1: SBU | Q1: UWF | R1: QC | S1: SAC | T1: LiC | U1: USM | V1: UJ | W1: CaU | X1: TCU | Y1: LTU | Z1: OSU | AA1: UCF | AB1: WebU | AC1: PSCFAW | AD1: PSCFAFC | AE1: CSUN | AF1: ColC | AG1: ECCA | AH1: ECCB | AI1: GC | AJ1: MVCC | AK1: PC | AL1: PLNU | AM1: PSC | AN1: UNR | AO1: SFC | AP1: UCA | AQ1: MusU | AR1: PacU | AS1: DBU | AT1: PSCC | AU1: TIFA | AV1: LCC | AW1: NCCFI | AX1: UU | AY1: BPCC | AZ1: PSCFASC | BA1: NOFC | BB1: CUI | BC1: IFA | BD1: OIFA | BE1: WebUS | BF1: SDSU | BG1: UTEP | BH1: MAFA | BI1: PKD | BJ1: BGSU3 | BK1: BGSU4 | BL1: UoPW | BM1: NCFAS | BN1: LPC | BO1: SFSU | BU1: S/L Ranking | BV1: Head to Head | BW1: H/L | BX1: 7th Tourn. | BY1: 8th Tourn.
B2: Size of Field | C2: =IF(COUNTIFS(C$4:C$1000,"<>"),COUNTIFS(C$4:C$1000,"<>")," ") -> 16 | D2: 13 | E2: 14 | F2: 10 | G2: 16 | H2: 14 | I2: 9 | J2: 11 | K2: 13 | L2: 4 | M2: 6 | O2: =IF(COUNTIFS(O$4:O$1000,"<>"),COUNTIFS(O$4:O$1000,"<>")," ") -> 18 | P2: 14 | Q2: 13 | R2: 5 | S2: 8 | T2: 25 | U2: 8 | V2: 16 | W2: 7 | X2: 11 | Y2: 6 | Z2: 6 | AA2: 16 | AB2: 6 | AC2: 10
A3: RANK | B3: Squad Formula: 1 pt per prelim win; 1 pts for breaking, 2 pts per elim win. *Partial breaks don't earn points; only Top 3 competitors count per Division* | C3: Lee College | D3: Unv Central Missouri | E3: Lewis & Clark College | F3: College of Southern Idaho | G3: Bowling Green 1 | H3: Bowling Green 2 | I3: Abilene Christian Unv | J3: Cleveland State | K3: Middle Tennessee State Unv | L3: Alabama 1 Alum | M3: Alabama 2 Crimson | N3: Whitworth University | O3: LSU - Shreveport | P3: Southwest Baptist Univ | Q3: Univ West Florida | R3: Queens College | S3: St. Anselm College | T3: Linfield College | U3: Univ of Southern Miss | V3: Univ Jamestown | W3: Cameron Univ | X3: Texas Christian Univ | Y3: Louisiana Tech Univ | Z3: Oregon State University | AA3: Univ Central Florida | AB3: Webster Univ | AC3: Pacific Southeast Warm | AD3: Pacific Southeast Fall | AE3: Cal Sate Northridge | AF3: Colorado College | AG3: El Camino A | AH3: El Camino B | AI3: Grossmont College | AJ3: Moraine Valley CC | AK3: Palomar College | AL3: Point Loma Nazar Uni | AM3: Praire State Collge | AN3: Univ Nevada Reno | AO3: Southern Forens Champ | AP3: Univ Central Arkansas | AQ3: Murray State Univ | AR3: Pacific University | AS3: Dallas Baptist Univ | AT3: Pellissippi State CC | AU3: Tenn Intercoll Forn Tourn | AV3: Lower Columbia College | AW3: Nat Christian Coll For | AX3: Union University | AY3: Bossier Parish CC | AZ3: South West Spring Champ | BA3: National Online For Champ | BB3: Concordia Univ Irvine | BC3: International Frns Assoc | BD3: Oklahoma Intr Frns Asc | BE3: Webster University Spring | BF3: San Diego State Univ | BG3: Univ Texas El Paso | BH3: Missouri Assoc Frnsc Activ | BI3: Pi Kappa Delta Nats | BJ3: Bowling Green 3 70 | BK3: Bowling Green 4 90 | BL3: Univ of the Pacific - Winters | BM3: NCFA Spring Champs | BN3: Las Positas College | BO3: San Francisco State University | BR3: over 6/2nd host | BS3: Total Points | BT3: Tournament Count | BU3: Best Top 6 (National Rank) | BV3: 1st Tie Breaker | BW3: 2nd Tie Breaker | BX3: 3rd Tie Breaker | BY3: 4th Tie Breaker
B4: ACU | C4: 76 | I4: 35 | O4: 61 | V4: 57 | AO4: 49 | AS4: 63 | AX4: 78 | AY4: 55 | BS4: =SUM($C4:$BR4) -> 474 | BT4: =COUNTA(C4:BQ4) -> 8 | BU4: =IF($BT4<=6,SUM($C4:$BQ4),SUMPRODUCT(LARGE($C4:$BQ4,{1,2,3,4,5,6}))) -> 390 | BV4: =IF(AND($BT4>=6,BU4=BU5),"Manual Calc Needed","") ->  | BW4: =IF(BV4= "","",IFERROR(SUMPRODUCT(LARGE($C4:$BQ4,{1,2,3,4})), "")) ->  | BX4: =IF(BW4<>"",(IFERROR(SUMPRODUCT(LARGE($C4:$BQ4,{1,2,3,4,5,6,7})),"")),"") ->  | BY4: =IF(BX4<>"",(IFERROR(SUMPRODUCT(LARGE($C4:$BQ4,{1,2,3,4,5,6,7,8})),"")),"") -> 
B5: ApSU | BI5: 1 | BS5: 1 | BT5: 1 | BU5: =IF($BT5<=6,SUM($C5:$BQ5),SUMPRODUCT(LARGE($C5:$BQ5,{1,2,3,4,5,6}))) -> 1 | BW5: =IF(BV5= "","",IFERROR(SUMPRODUCT(LARGE($C5:$BQ5,{1,2,3,4})), "")) ->  | BX5: =IF(BW5<>"",(IFERROR(SUMPRODUCT(LARGE($C5:$BQ5,{1,2,3,4,5,6,7})),"")),"") ->  | BY5: =IF(BX5<>"",(IFERROR(SUMPRODUCT(LARGE($C5:$BQ5,{1,2,3,4,5,6,7,8})),"")),"") -> 
B6: ASU | P6: 20 | X6: 15 | BS6: 35 | BT6: 2 | BU6: =IF($BT6<=6,SUM($C6:$BQ6),SUMPRODUCT(LARGE($C6:$BQ6,{1,2,3,4,5,6}))) -> 35 | BW6: =IF(BV6= "","",IFERROR(SUMPRODUCT(LARGE($C6:$BQ6,{1,2,3,4})), "")) ->  | BX6: =IF(BW6<>"",(IFERROR(SUMPRODUCT(LARGE($C6:$BQ6,{1,2,3,4,5,6,7})),"")),"") ->  | BY6: =IF(BX6<>"",(IFERROR(SUMPRODUCT(LARGE($C6:$BQ6,{1,2,3,4,5,6,7,8})),"")),"") -> 
B7: ATU | D7: 7 | AP7: 8 | AX7: 8 | AY7: 13 | BS7: 36 | BT7: 4 | BU7: =IF($BT7<=6,SUM($C7:$BQ7),SUMPRODUCT(LARGE($C7:$BQ7,{1,2,3,4,5,6}))) -> 36 | BW7: =IF(BV7= "","",IFERROR(SUMPRODUCT(LARGE($C7:$BQ7,{1,2,3,4})), "")) ->  | BX7: =IF(BW7<>"",(IFERROR(SUMPRODUCT(LARGE($C7:$BQ7,{1,2,3,4,5,6,7})),"")),"") ->  | BY7: =IF(BX7<>"",(IFERROR(SUMPRODUCT(LARGE($C7:$BQ7,{1,2,3,4,5,6,7,8})),"")),"") -> 
B8: AzSU | BI8: 4 | BS8: 4 | BT8: 1 | BU8: =IF($BT8<=6,SUM($C8:$BQ8),SUMPRODUCT(LARGE($C8:$BQ8,{1,2,3,4,5,6}))) -> 4 | BW8: =IF(BV8= "","",IFERROR(SUMPRODUCT(LARGE($C8:$BQ8,{1,2,3,4})), "")) ->  | BX8: =IF(BW8<>"",(IFERROR(SUMPRODUCT(LARGE($C8:$BQ8,{1,2,3,4,5,6,7})),"")),"") ->  | BY8: =IF(BX8<>"",(IFERROR(SUMPRODUCT(LARGE($C8:$BQ8,{1,2,3,4,5,6,7,8})),"")),"") -> 
B9: BasU | AQ9: 9 | BS9: 9 | BT9: 1 | BU9: =IF($BT9<=6,SUM($C9:$BQ9),SUMPRODUCT(LARGE($C9:$BQ9,{1,2,3,4,5,6}))) -> 9 | BW9: =IF(BV9= "","",IFERROR(SUMPRODUCT(LARGE($C9:$BQ9,{1,2,3,4})), "")) ->  | BX9: =IF(BW9<>"",(IFERROR(SUMPRODUCT(LARGE($C9:$BQ9,{1,2,3,4,5,6,7})),"")),"") ->  | BY9: =IF(BX9<>"",(IFERROR(SUMPRODUCT(LARGE($C9:$BQ9,{1,2,3,4,5,6,7,8})),"")),"") -> 
B10: BGSU | G10: 1 | M10: 4 | BS10: 5 | BT10: 2 | BU10: =IF($BT10<=6,SUM($C10:$BQ10),SUMPRODUCT(LARGE($C10:$BQ10,{1,2,3,4,5,6}))) -> 5 | BW10: =IF(BV10= "","",IFERROR(SUMPRODUCT(LARGE($C10:$BQ10,{1,2,3,4})), "")) ->  | BX10: =IF(BW10<>"",(IFERROR(SUMPRODUCT(LARGE($C10:$BQ10,{1,2,3,4,5,6,7})),"")),"") ->  | BY10: =IF(BX10<>"",(IFERROR(SUMPRODUCT(LARGE($C10:$BQ10,{1,2,3,4,5,6,7,8})),"")),"") -> 
B11: BPCC | C11: 5 | I11: 21 | O11: 15 | V11: 17 | Y11: 11 | AO11: 24 | AP11: 21 | AS11: 11 | AX11: 20 | BS11: 145 | BT11: 9 | BU11: =IF($BT11<=6,SUM($C11:$BQ11),SUMPRODUCT(LARGE($C11:$BQ11,{1,2,3,4,5,6}))) -> 118 | BW11: =IF(BV11= "","",IFERROR(SUMPRODUCT(LARGE($C11:$BQ11,{1,2,3,4})), "")) ->  | BX11: =IF(BW11<>"",(IFERROR(SUMPRODUCT(LARGE($C11:$BQ11,{1,2,3,4,5,6,7})),"")),"") ->  | BY11: =IF(BX11<>"",(IFERROR(SUMPRODUCT(LARGE($C11:$BQ11,{1,2,3,4,5,6,7,8})),"")),"") -> 
B12: BrC | BK12: 3 | BS12: 3 | BT12: 1 | BU12: =IF($BT12<=6,SUM($C12:$BQ12),SUMPRODUCT(LARGE($C12:$BQ12,{1,2,3,4,5,6}))) -> 3 | BW12: =IF(BV12= "","",IFERROR(SUMPRODUCT(LARGE($C12:$BQ12,{1,2,3,4})), "")) ->  | BX12: =IF(BW12<>"",(IFERROR(SUMPRODUCT(LARGE($C12:$BQ12,{1,2,3,4,5,6,7})),"")),"") ->  | BY12: =IF(BX12<>"",(IFERROR(SUMPRODUCT(LARGE($C12:$BQ12,{1,2,3,4,5,6,7,8})),"")),"") -> 
B13: BSU | E13: 40 | F13: 29 | T13: 53 | AR13: 30 | BC13: 16 | BS13: 168 | BT13: 5 | BU13: =IF($BT13<=6,SUM($C13:$BQ13),SUMPRODUCT(LARGE($C13:$BQ13,{1,2,3,4,5,6}))) -> 168 | BW13: =IF(BV13= "","",IFERROR(SUMPRODUCT(LARGE($C13:$BQ13,{1,2,3,4})), "")) ->  | BX13: =IF(BW13<>"",(IFERROR(SUMPRODUCT(LARGE($C13:$BQ13,{1,2,3,4,5,6,7})),"")),"") ->  | BY13: =IF(BX13<>"",(IFERROR(SUMPRODUCT(LARGE($C13:$BQ13,{1,2,3,4,5,6,7,8})),"")),"") -> 
B14: BU | J14: 37 | K14: 15 | AQ14: 18 | AU14: 44 | AW14: 22 | BS14: 136 | BT14: 5 | BU14: =IF($BT14<=6,SUM($C14:$BQ14),SUMPRODUCT(LARGE($C14:$BQ14,{1,2,3,4,5,6}))) -> 136 | BW14: =IF(BV14= "","",IFERROR(SUMPRODUCT(LARGE($C14:$BQ14,{1,2,3,4})), "")) ->  | BX14: =IF(BW14<>"",(IFERROR(SUMPRODUCT(LARGE($C14:$BQ14,{1,2,3,4,5,6,7})),"")),"") ->  | BY14: =IF(BX14<>"",(IFERROR(SUMPRODUCT(LARGE($C14:$BQ14,{1,2,3,4,5,6,7,8})),"")),"") -> 
B15: ButU | Q15: 30 | AA15: 18 | AJ15: 4 | BI15: 27 | BS15: 79 | BT15: 4 | BU15: =IF($BT15<=6,SUM($C15:$BQ15),SUMPRODUCT(LARGE($C15:$BQ15,{1,2,3,4,5,6}))) -> 79 | BW15: =IF(BV15= "","",IFERROR(SUMPRODUCT(LARGE($C15:$BQ15,{1,2,3,4})), "")) ->  | BX15: =IF(BW15<>"",(IFERROR(SUMPRODUCT(LARGE($C15:$BQ15,{1,2,3,4,5,6,7})),"")),"") ->  | BY15: =IF(BX15<>"",(IFERROR(SUMPRODUCT(LARGE($C15:$BQ15,{1,2,3,4,5,6,7,8})),"")),"") -> 
B16: CasC | F16: 18 | T16: 16 | AF16: 20 | BC16: 9 | BS16: 63 | BT16: 4 | BU16: =IF($BT16<=6,SUM($C16:$BQ16),SUMPRODUCT(LARGE($C16:$BQ16,{1,2,3,4,5,6}))) -> 63 | BW16: =IF(BV16= "","",IFERROR(SUMPRODUCT(LARGE($C16:$BQ16,{1,2,3,4})), "")) ->  | BX16: =IF(BW16<>"",(IFERROR(SUMPRODUCT(LARGE($C16:$BQ16,{1,2,3,4,5,6,7})),"")),"") ->  | BY16: =IF(BX16<>"",(IFERROR(SUMPRODUCT(LARGE($C16:$BQ16,{1,2,3,4,5,6,7,8})),"")),"") -> 
B17: CaU | P17: 1 | BD17: 6 | BI17: 3 | BL17: 1 | BS17: 11 | BT17: 4 | BU17: =IF($BT17<=6,SUM($C17:$BQ17),SUMPRODUCT(LARGE($C17:$BQ17,{1,2,3,4,5,6}))) -> 11 | BW17: =IF(BV17= "","",IFERROR(SUMPRODUCT(LARGE($C17:$BQ17,{1,2,3,4})), "")) ->  | BX17: =IF(BW17<>"",(IFERROR(SUMPRODUCT(LARGE($C17:$BQ17,{1,2,3,4,5,6,7})),"")),"") ->  | BY17: =IF(BX17<>"",(IFERROR(SUMPRODUCT(LARGE($C17:$BQ17,{1,2,3,4,5,6,7,8})),"")),"") -> 
B18: CBU | AD18: 14 | AW18: 11 | BF18: 6 | BS18: 31 | BT18: 3 | BU18: =IF($BT18<=6,SUM($C18:$BQ18),SUMPRODUCT(LARGE($C18:$BQ18,{1,2,3,4,5,6}))) -> 31 | BW18: =IF(BV18= "","",IFERROR(SUMPRODUCT(LARGE($C18:$BQ18,{1,2,3,4})), "")) ->  | BX18: =IF(BW18<>"",(IFERROR(SUMPRODUCT(LARGE($C18:$BQ18,{1,2,3,4,5,6,7})),"")),"") ->  | BY18: =IF(BX18<>"",(IFERROR(SUMPRODUCT(LARGE($C18:$BQ18,{1,2,3,4,5,6,7,8})),"")),"") -> 
B19: CC | AC19: 9 | AD19: 3 | AE19: 6 | AG19: 21 | AH19: 5 | AZ19: 7 | BS19: 51 | BT19: 6 | BU19: =IF($BT19<=6,SUM($C19:$BQ19),SUMPRODUCT(LARGE($C19:$BQ19,{1,2,3,4,5,6}))) -> 51 | BW19: =IF(BV19= "","",IFERROR(SUMPRODUCT(LARGE($C19:$BQ19,{1,2,3,4})), "")) ->  | BX19: =IF(BW19<>"",(IFERROR(SUMPRODUCT(LARGE($C19:$BQ19,{1,2,3,4,5,6,7})),"")),"") ->  | BY19: =IF(BX19<>"",(IFERROR(SUMPRODUCT(LARGE($C19:$BQ19,{1,2,3,4,5,6,7,8})),"")),"") -> 
B20: CCC | AJ20: 6 | BL20: 8 | BS20: 14 | BT20: 2 | BU20: =IF($BT20<=6,SUM($C20:$BQ20),SUMPRODUCT(LARGE($C20:$BQ20,{1,2,3,4,5,6}))) -> 14 | BW20: =IF(BV20= "","",IFERROR(SUMPRODUCT(LARGE($C20:$BQ20,{1,2,3,4})), "")) ->  | BX20: =IF(BW20<>"",(IFERROR(SUMPRODUCT(LARGE($C20:$BQ20,{1,2,3,4,5,6,7})),"")),"") ->  | BY20: =IF(BX20<>"",(IFERROR(SUMPRODUCT(LARGE($C20:$BQ20,{1,2,3,4,5,6,7,8})),"")),"") -> 
B21: CCSF | AN21: 3 | BG21: 2 | BL21: 5 | BM21: 9 | BN21: 8 | BO21: 2 | BS21: 29 | BT21: 6 | BU21: =IF($BT21<=6,SUM($C21:$BQ21),SUMPRODUCT(LARGE($C21:$BQ21,{1,2,3,4,5,6}))) -> 29 | BW21: =IF(BV21= "","",IFERROR(SUMPRODUCT(LARGE($C21:$BQ21,{1,2,3,4})), "")) ->  | BX21: =IF(BW21<>"",(IFERROR(SUMPRODUCT(LARGE($C21:$BQ21,{1,2,3,4,5,6,7})),"")),"") ->  | BY21: =IF(BX21<>"",(IFERROR(SUMPRODUCT(LARGE($C21:$BQ21,{1,2,3,4,5,6,7,8})),"")),"") -> 
B22: CCU | P22: 27 | T22: 23 | AF22: 14 | AW22: 45 | BF22: 20 | BS22: 129 | BT22: 5 | BU22: =IF($BT22<=6,SUM($C22:$BQ22),SUMPRODUCT(LARGE($C22:$BQ22,{1,2,3,4,5,6}))) -> 129 | BW22: =IF(BV22= "","",IFERROR(SUMPRODUCT(LARGE($C22:$BQ22,{1,2,3,4})), "")) ->  | BX22: =IF(BW22<>"",(IFERROR(SUMPRODUCT(LARGE($C22:$BQ22,{1,2,3,4,5,6,7})),"")),"") ->  | BY22: =IF(BX22<>"",(IFERROR(SUMPRODUCT(LARGE($C22:$BQ22,{1,2,3,4,5,6,7,8})),"")),"") -> 
B23: CD | AJ23: 16 | AM23: 16 | BN23: 8 | BS23: 40 | BT23: 3 | BU23: =IF($BT23<=6,SUM($C23:$BQ23),SUMPRODUCT(LARGE($C23:$BQ23,{1,2,3,4,5,6}))) -> 40 | BW23: =IF(BV23= "","",IFERROR(SUMPRODUCT(LARGE($C23:$BQ23,{1,2,3,4})), "")) ->  | BX23: =IF(BW23<>"",(IFERROR(SUMPRODUCT(LARGE($C23:$BQ23,{1,2,3,4,5,6,7})),"")),"") ->  | BY23: =IF(BX23<>"",(IFERROR(SUMPRODUCT(LARGE($C23:$BQ23,{1,2,3,4,5,6,7,8})),"")),"") -> 
B24: CerC | AD24: 1 | AG24: 4 | AH24: 4 | AI24: 10 | AZ24: 7 | BB24: 2 | BC24: 1 | BS24: 29 | BT24: 7 | BU24: =IF($BT24<=6,SUM($C24:$BQ24),SUMPRODUCT(LARGE($C24:$BQ24,{1,2,3,4,5,6}))) -> 28 | BW24: =IF(BV24= "","",IFERROR(SUMPRODUCT(LARGE($C24:$BQ24,{1,2,3,4})), "")) ->  | BX24: =IF(BW24<>"",(IFERROR(SUMPRODUCT(LARGE($C24:$BQ24,{1,2,3,4,5,6,7})),"")),"") ->  | BY24: =IF(BX24<>"",(IFERROR(SUMPRODUCT(LARGE($C24:$BQ24,{1,2,3,4,5,6,7,8})),"")),"") -> 
B25: ChaC | AD25: 2 | BS25: 2 | BT25: 1 | BU25: =IF($BT25<=6,SUM($C25:$BQ25),SUMPRODUCT(LARGE($C25:$BQ25,{1,2,3,4,5,6}))) -> 2 | BW25: =IF(BV25= "","",IFERROR(SUMPRODUCT(LARGE($C25:$BQ25,{1,2,3,4})), "")) ->  | BX25: =IF(BW25<>"",(IFERROR(SUMPRODUCT(LARGE($C25:$BQ25,{1,2,3,4,5,6,7})),"")),"") ->  | BY25: =IF(BX25<>"",(IFERROR(SUMPRODUCT(LARGE($C25:$BQ25,{1,2,3,4,5,6,7,8})),"")),"") -> 
B26: ChC | BL26: 1 | BM26: 6 | BN26: 4 | BO26: 13 | BS26: 24 | BT26: 4 | BU26: =IF($BT26<=6,SUM($C26:$BQ26),SUMPRODUCT(LARGE($C26:$BQ26,{1,2,3,4,5,6}))) -> 24 | BW26: =IF(BV26= "","",IFERROR(SUMPRODUCT(LARGE($C26:$BQ26,{1,2,3,4})), "")) ->  | BX26: =IF(BW26<>"",(IFERROR(SUMPRODUCT(LARGE($C26:$BQ26,{1,2,3,4,5,6,7})),"")),"") ->  | BY26: =IF(BX26<>"",(IFERROR(SUMPRODUCT(LARGE($C26:$BQ26,{1,2,3,4,5,6,7,8})),"")),"") -> 
B27: CLC | AJ27: 3 | AM27: 2 | BS27: 5 | BT27: 2 | BU27: =IF($BT27<=6,SUM($C27:$BQ27),SUMPRODUCT(LARGE($C27:$BQ27,{1,2,3,4,5,6}))) -> 5 | BW27: =IF(BV27= "","",IFERROR(SUMPRODUCT(LARGE($C27:$BQ27,{1,2,3,4})), "")) ->  | BX27: =IF(BW27<>"",(IFERROR(SUMPRODUCT(LARGE($C27:$BQ27,{1,2,3,4,5,6,7})),"")),"") ->  | BY27: =IF(BX27<>"",(IFERROR(SUMPRODUCT(LARGE($C27:$BQ27,{1,2,3,4,5,6,7,8})),"")),"") -> 
B28: ClCC | AD28: 23 | AZ28: 12 | BB28: 2 | BS28: 37 | BT28: 3 | BU28: =IF($BT28<=6,SUM($C28:$BQ28),SUMPRODUCT(LARGE($C28:$BQ28,{1,2,3,4,5,6}))) -> 37 | BW28: =IF(BV28= "","",IFERROR(SUMPRODUCT(LARGE($C28:$BQ28,{1,2,3,4})), "")) ->  | BX28: =IF(BW28<>"",(IFERROR(SUMPRODUCT(LARGE($C28:$BQ28,{1,2,3,4,5,6,7})),"")),"") ->  | BY28: =IF(BX28<>"",(IFERROR(SUMPRODUCT(LARGE($C28:$BQ28,{1,2,3,4,5,6,7,8})),"")),"") -> 
B29: ColC | AF29: 15 | BC29: 4 | BS29: 19 | BT29: 2 | BU29: =IF($BT29<=6,SUM($C29:$BQ29),SUMPRODUCT(LARGE($C29:$BQ29,{1,2,3,4,5,6}))) -> 19 | BW29: =IF(BV29= "","",IFERROR(SUMPRODUCT(LARGE($C29:$BQ29,{1,2,3,4})), "")) ->  | BX29: =IF(BW29<>"",(IFERROR(SUMPRODUCT(LARGE($C29:$BQ29,{1,2,3,4,5,6,7})),"")),"") ->  | BY29: =IF(BX29<>"",(IFERROR(SUMPRODUCT(LARGE($C29:$BQ29,{1,2,3,4,5,6,7,8})),"")),"") -> 
B30: CrC | AY30: 8 | BS30: 8 | BT30: 1 | BU30: =IF($BT30<=6,SUM($C30:$BQ30),SUMPRODUCT(LARGE($C30:$BQ30,{1,2,3,4,5,6}))) -> 8 | BW30: =IF(BV30= "","",IFERROR(SUMPRODUCT(LARGE($C30:$BQ30,{1,2,3,4})), "")) ->  | BX30: =IF(BW30<>"",(IFERROR(SUMPRODUCT(LARGE($C30:$BQ30,{1,2,3,4,5,6,7})),"")),"") ->  | BY30: =IF(BX30<>"",(IFERROR(SUMPRODUCT(LARGE($C30:$BQ30,{1,2,3,4,5,6,7,8})),"")),"") -> 
B31: CSCC | J31: 5 | BS31: 5 | BT31: 1 | BU31: =IF($BT31<=6,SUM($C31:$BQ31),SUMPRODUCT(LARGE($C31:$BQ31,{1,2,3,4,5,6}))) -> 5 | BW31: =IF(BV31= "","",IFERROR(SUMPRODUCT(LARGE($C31:$BQ31,{1,2,3,4})), "")) ->  | BX31: =IF(BW31<>"",(IFERROR(SUMPRODUCT(LARGE($C31:$BQ31,{1,2,3,4,5,6,7})),"")),"") ->  | BY31: =IF(BX31<>"",(IFERROR(SUMPRODUCT(LARGE($C31:$BQ31,{1,2,3,4,5,6,7,8})),"")),"") -> 
B32: CSI | E32: 24 | F32: 19 | T32: 24 | BC32: 15 | BS32: 82 | BT32: 4 | BU32: =IF($BT32<=6,SUM($C32:$BQ32),SUMPRODUCT(LARGE($C32:$BQ32,{1,2,3,4,5,6}))) -> 82 | BW32: =IF(BV32= "","",IFERROR(SUMPRODUCT(LARGE($C32:$BQ32,{1,2,3,4})), "")) ->  | BX32: =IF(BW32<>"",(IFERROR(SUMPRODUCT(LARGE($C32:$BQ32,{1,2,3,4,5,6,7})),"")),"") ->  | BY32: =IF(BX32<>"",(IFERROR(SUMPRODUCT(LARGE($C32:$BQ32,{1,2,3,4,5,6,7,8})),"")),"") -> 
B33: CSUC | BI33: 9 | BM33: 11 | BS33: 20 | BT33: 2 | BU33: =IF($BT33<=6,SUM($C33:$BQ33),SUMPRODUCT(LARGE($C33:$BQ33,{1,2,3,4,5,6}))) -> 20 | BW33: =IF(BV33= "","",IFERROR(SUMPRODUCT(LARGE($C33:$BQ33,{1,2,3,4})), "")) ->  | BX33: =IF(BW33<>"",(IFERROR(SUMPRODUCT(LARGE($C33:$BQ33,{1,2,3,4,5,6,7})),"")),"") ->  | BY33: =IF(BX33<>"",(IFERROR(SUMPRODUCT(LARGE($C33:$BQ33,{1,2,3,4,5,6,7,8})),"")),"") -> 
B34: CSUF | AD34: 4 | AE34: 2 | AI34: 1 | AZ34: 1 | BA34: 3 | BS34: 11 | BT34: 5 | BU34: =IF($BT34<=6,SUM($C34:$BQ34),SUMPRODUCT(LARGE($C34:$BQ34,{1,2,3,4,5,6}))) -> 11 | BW34: =IF(BV34= "","",IFERROR(SUMPRODUCT(LARGE($C34:$BQ34,{1,2,3,4})), "")) ->  | BX34: =IF(BW34<>"",(IFERROR(SUMPRODUCT(LARGE($C34:$BQ34,{1,2,3,4,5,6,7})),"")),"") ->  | BY34: =IF(BX34<>"",(IFERROR(SUMPRODUCT(LARGE($C34:$BQ34,{1,2,3,4,5,6,7,8})),"")),"") -> 
B35: CSULA | AC35: 9 | AD35: 11 | AG35: 1 | AH35: 1 | AL35: 7 | AZ35: 8 | BB35: 2 | BS35: 39 | BT35: 7 | BU35: =IF($BT35<=6,SUM($C35:$BQ35),SUMPRODUCT(LARGE($C35:$BQ35,{1,2,3,4,5,6}))) -> 38 | BW35: =IF(BV35= "","",IFERROR(SUMPRODUCT(LARGE($C35:$BQ35,{1,2,3,4})), "")) ->  | BX35: =IF(BW35<>"",(IFERROR(SUMPRODUCT(LARGE($C35:$BQ35,{1,2,3,4,5,6,7})),"")),"") ->  | BY35: =IF(BX35<>"",(IFERROR(SUMPRODUCT(LARGE($C35:$BQ35,{1,2,3,4,5,6,7,8})),"")),"") -> 
B36: CSULB | AD36: 8 | AE36: 5 | AZ36: 19 | BC36: 13 | BS36: 45 | BT36: 4 | BU36: =IF($BT36<=6,SUM($C36:$BQ36),SUMPRODUCT(LARGE($C36:$BQ36,{1,2,3,4,5,6}))) -> 45 | BW36: =IF(BV36= "","",IFERROR(SUMPRODUCT(LARGE($C36:$BQ36,{1,2,3,4})), "")) ->  | BX36: =IF(BW36<>"",(IFERROR(SUMPRODUCT(LARGE($C36:$BQ36,{1,2,3,4,5,6,7})),"")),"") ->  | BY36: =IF(BX36<>"",(IFERROR(SUMPRODUCT(LARGE($C36:$BQ36,{1,2,3,4,5,6,7,8})),"")),"") -> 
B37: CSUN | AE37: 2 | AZ37: 14 | BS37: 16 | BT37: 2 | BU37: =IF($BT37<=6,SUM($C37:$BQ37),SUMPRODUCT(LARGE($C37:$BQ37,{1,2,3,4,5,6}))) -> 16 | BW37: =IF(BV37= "","",IFERROR(SUMPRODUCT(LARGE($C37:$BQ37,{1,2,3,4})), "")) ->  | BX37: =IF(BW37<>"",(IFERROR(SUMPRODUCT(LARGE($C37:$BQ37,{1,2,3,4,5,6,7})),"")),"") ->  | BY37: =IF(BX37<>"",(IFERROR(SUMPRODUCT(LARGE($C37:$BQ37,{1,2,3,4,5,6,7,8})),"")),"") -> 
B38: CSUSM | AD38: 2 | AG38: 8 | AK38: 4 | AL38: 5 | AZ38: 4 | BB38: 1 | BF38: 2 | BS38: 26 | BT38: 7 | BU38: =IF($BT38<=6,SUM($C38:$BQ38),SUMPRODUCT(LARGE($C38:$BQ38,{1,2,3,4,5,6}))) -> 25 | BW38: =IF(BV38= "","",IFERROR(SUMPRODUCT(LARGE($C38:$BQ38,{1,2,3,4})), "")) ->  | BX38: =IF(BW38<>"",(IFERROR(SUMPRODUCT(LARGE($C38:$BQ38,{1,2,3,4,5,6,7})),"")),"") ->  | BY38: =IF(BX38<>"",(IFERROR(SUMPRODUCT(LARGE($C38:$BQ38,{1,2,3,4,5,6,7,8})),"")),"") -> 
B39: CU | BS39: 0 | BT39: 0 | BU39: =IF($BT39<=6,SUM($C39:$BQ39),SUMPRODUCT(LARGE($C39:$BQ39,{1,2,3,4,5,6}))) -> 0 | BW39: =IF(BV39= "","",IFERROR(SUMPRODUCT(LARGE($C39:$BQ39,{1,2,3,4})), "")) ->  | BX39: =IF(BW39<>"",(IFERROR(SUMPRODUCT(LARGE($C39:$BQ39,{1,2,3,4,5,6,7})),"")),"") ->  | BY39: =IF(BX39<>"",(IFERROR(SUMPRODUCT(LARGE($C39:$BQ39,{1,2,3,4,5,6,7,8})),"")),"") -> 
B40: CUI | AD40: 31 | AL40: 37 | AZ40: 24 | BB40: 35 | BF40: 2 | BI40: 15 | BL40: 20 | BS40: 164 | BT40: 7 | BU40: =IF($BT40<=6,SUM($C40:$BQ40),SUMPRODUCT(LARGE($C40:$BQ40,{1,2,3,4,5,6}))) -> 162 | BW40: =IF(BV40= "","",IFERROR(SUMPRODUCT(LARGE($C40:$BQ40,{1,2,3,4})), "")) ->  | BX40: =IF(BW40<>"",(IFERROR(SUMPRODUCT(LARGE($C40:$BQ40,{1,2,3,4,5,6,7})),"")),"") ->  | BY40: =IF(BX40<>"",(IFERROR(SUMPRODUCT(LARGE($C40:$BQ40,{1,2,3,4,5,6,7,8})),"")),"") -> 
B41: CUN | BS41: 0 | BT41: 0 | BU41: =IF($BT41<=6,SUM($C41:$BQ41),SUMPRODUCT(LARGE($C41:$BQ41,{1,2,3,4,5,6}))) -> 0 | BW41: =IF(BV41= "","",IFERROR(SUMPRODUCT(LARGE($C41:$BQ41,{1,2,3,4})), "")) ->  | BX41: =IF(BW41<>"",(IFERROR(SUMPRODUCT(LARGE($C41:$BQ41,{1,2,3,4,5,6,7})),"")),"") ->  | BY41: =IF(BX41<>"",(IFERROR(SUMPRODUCT(LARGE($C41:$BQ41,{1,2,3,4,5,6,7,8})),"")),"") -> 
B42: CUNYBC | BC42: 6 | BS42: 6 | BT42: 1 | BU42: =IF($BT42<=6,SUM($C42:$BQ42),SUMPRODUCT(LARGE($C42:$BQ42,{1,2,3,4,5,6}))) -> 6 | BW42: =IF(BV42= "","",IFERROR(SUMPRODUCT(LARGE($C42:$BQ42,{1,2,3,4})), "")) ->  | BX42: =IF(BW42<>"",(IFERROR(SUMPRODUCT(LARGE($C42:$BQ42,{1,2,3,4,5,6,7})),"")),"") ->  | BY42: =IF(BX42<>"",(IFERROR(SUMPRODUCT(LARGE($C42:$BQ42,{1,2,3,4,5,6,7,8})),"")),"") -> 
B43: CWI | E43: 33 | F43: 38 | T43: 28 | BS43: 99 | BT43: 3 | BU43: =IF($BT43<=6,SUM($C43:$BQ43),SUMPRODUCT(LARGE($C43:$BQ43,{1,2,3,4,5,6}))) -> 99 | BW43: =IF(BV43= "","",IFERROR(SUMPRODUCT(LARGE($C43:$BQ43,{1,2,3,4})), "")) ->  | BX43: =IF(BW43<>"",(IFERROR(SUMPRODUCT(LARGE($C43:$BQ43,{1,2,3,4,5,6,7})),"")),"") ->  | BY43: =IF(BX43<>"",(IFERROR(SUMPRODUCT(LARGE($C43:$BQ43,{1,2,3,4,5,6,7,8})),"")),"") -> 
B44: DBU | C44: 47 | I44: 50 | O44: 69 | V44: 31 | X44: 43 | AO44: 50 | AP44: 56 | AS44: 14 | AX44: 51 | AY44: 58 | BS44: 469 | BT44: 10 | BU44: =IF($BT44<=6,SUM($C44:$BQ44),SUMPRODUCT(LARGE($C44:$BQ44,{1,2,3,4,5,6}))) -> 334 | BW44: =IF(BV44= "","",IFERROR(SUMPRODUCT(LARGE($C44:$BQ44,{1,2,3,4})), "")) ->  | BX44: =IF(BW44<>"",(IFERROR(SUMPRODUCT(LARGE($C44:$BQ44,{1,2,3,4,5,6,7})),"")),"") ->  | BY44: =IF(BX44<>"",(IFERROR(SUMPRODUCT(LARGE($C44:$BQ44,{1,2,3,4,5,6,7,8})),"")),"") -> 
B45: DCC | S45: 8 | BI45: 9 | BK45: 16 | BS45: 33 | BT45: 3 | BU45: =IF($BT45<=6,SUM($C45:$BQ45),SUMPRODUCT(LARGE($C45:$BQ45,{1,2,3,4,5,6}))) -> 33 | BW45: =IF(BV45= "","",IFERROR(SUMPRODUCT(LARGE($C45:$BQ45,{1,2,3,4})), "")) ->  | BX45: =IF(BW45<>"",(IFERROR(SUMPRODUCT(LARGE($C45:$BQ45,{1,2,3,4,5,6,7})),"")),"") ->  | BY45: =IF(BX45<>"",(IFERROR(SUMPRODUCT(LARGE($C45:$BQ45,{1,2,3,4,5,6,7,8})),"")),"") -> 
B46: DepU | AJ46: 10 | AM46: 7 | BS46: 17 | BT46: 2 | BU46: =IF($BT46<=6,SUM($C46:$BQ46),SUMPRODUCT(LARGE($C46:$BQ46,{1,2,3,4,5,6}))) -> 17 | BW46: =IF(BV46= "","",IFERROR(SUMPRODUCT(LARGE($C46:$BQ46,{1,2,3,4})), "")) ->  | BX46: =IF(BW46<>"",(IFERROR(SUMPRODUCT(LARGE($C46:$BQ46,{1,2,3,4,5,6,7})),"")),"") ->  | BY46: =IF(BX46<>"",(IFERROR(SUMPRODUCT(LARGE($C46:$BQ46,{1,2,3,4,5,6,7,8})),"")),"") -> 
B47: DeU | G47: 13 | BS47: 13 | BT47: 1 | BU47: =IF($BT47<=6,SUM($C47:$BQ47),SUMPRODUCT(LARGE($C47:$BQ47,{1,2,3,4,5,6}))) -> 13 | BW47: =IF(BV47= "","",IFERROR(SUMPRODUCT(LARGE($C47:$BQ47,{1,2,3,4})), "")) ->  | BX47: =IF(BW47<>"",(IFERROR(SUMPRODUCT(LARGE($C47:$BQ47,{1,2,3,4,5,6,7})),"")),"") ->  | BY47: =IF(BX47<>"",(IFERROR(SUMPRODUCT(LARGE($C47:$BQ47,{1,2,3,4,5,6,7,8})),"")),"") -> 
B48: DorU | G48: 7 | S48: 3 | BJ48: 2 | BS48: 12 | BT48: 3 | BU48: =IF($BT48<=6,SUM($C48:$BQ48),SUMPRODUCT(LARGE($C48:$BQ48,{1,2,3,4,5,6}))) -> 12 | BW48: =IF(BV48= "","",IFERROR(SUMPRODUCT(LARGE($C48:$BQ48,{1,2,3,4})), "")) ->  | BX48: =IF(BW48<>"",(IFERROR(SUMPRODUCT(LARGE($C48:$BQ48,{1,2,3,4,5,6,7})),"")),"") ->  | BY48: =IF(BX48<>"",(IFERROR(SUMPRODUCT(LARGE($C48:$BQ48,{1,2,3,4,5,6,7,8})),"")),"") -> 
B49: DVC | AD49: 2 | AN49: 2 | BL49: 6 | BM49: 18 | BN49: 10 | BO49: 10 | BS49: 48 | BT49: 6 | BU49: =IF($BT49<=6,SUM($C49:$BQ49),SUMPRODUCT(LARGE($C49:$BQ49,{1,2,3,4,5,6}))) -> 48 | BW49: =IF(BV49= "","",IFERROR(SUMPRODUCT(LARGE($C49:$BQ49,{1,2,3,4})), "")) ->  | BX49: =IF(BW49<>"",(IFERROR(SUMPRODUCT(LARGE($C49:$BQ49,{1,2,3,4,5,6,7})),"")),"") ->  | BY49: =IF(BX49<>"",(IFERROR(SUMPRODUCT(LARGE($C49:$BQ49,{1,2,3,4,5,6,7,8})),"")),"") -> 
B50: EC | R50: 13 | AA50: 20 | BC50: 12 | BJ50: 4 | BS50: 49 | BT50: 4 | BU50: =IF($BT50<=6,SUM($C50:$BQ50),SUMPRODUCT(LARGE($C50:$BQ50,{1,2,3,4,5,6}))) -> 49 | BW50: =IF(BV50= "","",IFERROR(SUMPRODUCT(LARGE($C50:$BQ50,{1,2,3,4})), "")) ->  | BX50: =IF(BW50<>"",(IFERROR(SUMPRODUCT(LARGE($C50:$BQ50,{1,2,3,4,5,6,7})),"")),"") ->  | BY50: =IF(BX50<>"",(IFERROR(SUMPRODUCT(LARGE($C50:$BQ50,{1,2,3,4,5,6,7,8})),"")),"") -> 
B51: ECC | AD51: 26 | AG51: 2 | AZ51: 10 | BB51: 21 | BC51: 15 | BF51: 4 | BS51: 78 | BT51: 6 | BU51: =IF($BT51<=6,SUM($C51:$BQ51),SUMPRODUCT(LARGE($C51:$BQ51,{1,2,3,4,5,6}))) -> 78 | BW51: =IF(BV51= "","",IFERROR(SUMPRODUCT(LARGE($C51:$BQ51,{1,2,3,4})), "")) ->  | BX51: =IF(BW51<>"",(IFERROR(SUMPRODUCT(LARGE($C51:$BQ51,{1,2,3,4,5,6,7})),"")),"") ->  | BY51: =IF(BX51<>"",(IFERROR(SUMPRODUCT(LARGE($C51:$BQ51,{1,2,3,4,5,6,7,8})),"")),"") -> 
B52: EPCC | AF52: 1 | BC52: 3 | BO52: 2 | BS52: 6 | BT52: 3 | BU52: =IF($BT52<=6,SUM($C52:$BQ52),SUMPRODUCT(LARGE($C52:$BQ52,{1,2,3,4,5,6}))) -> 6 | BW52: =IF(BV52= "","",IFERROR(SUMPRODUCT(LARGE($C52:$BQ52,{1,2,3,4})), "")) ->  | BX52: =IF(BW52<>"",(IFERROR(SUMPRODUCT(LARGE($C52:$BQ52,{1,2,3,4,5,6,7})),"")),"") ->  | BY52: =IF(BX52<>"",(IFERROR(SUMPRODUCT(LARGE($C52:$BQ52,{1,2,3,4,5,6,7,8})),"")),"") -> 
B53: ErC | J53: 13 | AT53: 13 | BS53: 26 | BT53: 2 | BU53: =IF($BT53<=6,SUM($C53:$BQ53),SUMPRODUCT(LARGE($C53:$BQ53,{1,2,3,4,5,6}))) -> 26 | BW53: =IF(BV53= "","",IFERROR(SUMPRODUCT(LARGE($C53:$BQ53,{1,2,3,4})), "")) ->  | BX53: =IF(BW53<>"",(IFERROR(SUMPRODUCT(LARGE($C53:$BQ53,{1,2,3,4,5,6,7})),"")),"") ->  | BY53: =IF(BX53<>"",(IFERROR(SUMPRODUCT(LARGE($C53:$BQ53,{1,2,3,4,5,6,7,8})),"")),"") -> 
B54: ETSU | G54: 0 | BS54: 0 | BT54: 1 | BU54: =IF($BT54<=6,SUM($C54:$BQ54),SUMPRODUCT(LARGE($C54:$BQ54,{1,2,3,4,5,6}))) -> 0 | BW54: =IF(BV54= "","",IFERROR(SUMPRODUCT(LARGE($C54:$BQ54,{1,2,3,4})), "")) ->  | BX54: =IF(BW54<>"",(IFERROR(SUMPRODUCT(LARGE($C54:$BQ54,{1,2,3,4,5,6,7})),"")),"") ->  | BY54: =IF(BX54<>"",(IFERROR(SUMPRODUCT(LARGE($C54:$BQ54,{1,2,3,4,5,6,7,8})),"")),"") -> 
B55: FCC | BL55: 12 | BS55: 12 | BT55: 1 | BU55: =IF($BT55<=6,SUM($C55:$BQ55),SUMPRODUCT(LARGE($C55:$BQ55,{1,2,3,4,5,6}))) -> 12 | BW55: =IF(BV55= "","",IFERROR(SUMPRODUCT(LARGE($C55:$BQ55,{1,2,3,4})), "")) ->  | BX55: =IF(BW55<>"",(IFERROR(SUMPRODUCT(LARGE($C55:$BQ55,{1,2,3,4,5,6,7})),"")),"") ->  | BY55: =IF(BX55<>"",(IFERROR(SUMPRODUCT(LARGE($C55:$BQ55,{1,2,3,4,5,6,7,8})),"")),"") -> 
B56: FHU | K56: 9 | BS56: 9 | BT56: 1 | BU56: =IF($BT56<=6,SUM($C56:$BQ56),SUMPRODUCT(LARGE($C56:$BQ56,{1,2,3,4,5,6}))) -> 9 | BW56: =IF(BV56= "","",IFERROR(SUMPRODUCT(LARGE($C56:$BQ56,{1,2,3,4})), "")) ->  | BX56: =IF(BW56<>"",(IFERROR(SUMPRODUCT(LARGE($C56:$BQ56,{1,2,3,4,5,6,7})),"")),"") ->  | BY56: =IF(BX56<>"",(IFERROR(SUMPRODUCT(LARGE($C56:$BQ56,{1,2,3,4,5,6,7,8})),"")),"") -> 
B57: FS | AN57: 13 | BM57: 11 | BN57: 8 | BO57: 17 | BS57: 49 | BT57: 4 | BU57: =IF($BT57<=6,SUM($C57:$BQ57),SUMPRODUCT(LARGE($C57:$BQ57,{1,2,3,4,5,6}))) -> 49 | BW57: =IF(BV57= "","",IFERROR(SUMPRODUCT(LARGE($C57:$BQ57,{1,2,3,4})), "")) ->  | BX57: =IF(BW57<>"",(IFERROR(SUMPRODUCT(LARGE($C57:$BQ57,{1,2,3,4,5,6,7})),"")),"") ->  | BY57: =IF(BX57<>"",(IFERROR(SUMPRODUCT(LARGE($C57:$BQ57,{1,2,3,4,5,6,7,8})),"")),"") -> 
B58: FSCJ | G58: 5 | H58: 1 | AA58: 8 | BJ58: 2 | BS58: 16 | BT58: 4 | BU58: =IF($BT58<=6,SUM($C58:$BQ58),SUMPRODUCT(LARGE($C58:$BQ58,{1,2,3,4,5,6}))) -> 16 | BW58: =IF(BV58= "","",IFERROR(SUMPRODUCT(LARGE($C58:$BQ58,{1,2,3,4})), "")) ->  | BX58: =IF(BW58<>"",(IFERROR(SUMPRODUCT(LARGE($C58:$BQ58,{1,2,3,4,5,6,7})),"")),"") ->  | BY58: =IF(BX58<>"",(IFERROR(SUMPRODUCT(LARGE($C58:$BQ58,{1,2,3,4,5,6,7,8})),"")),"") -> 
B59: FSU | Q59: 2 | BS59: 2 | BT59: 1 | BU59: =IF($BT59<=6,SUM($C59:$BQ59),SUMPRODUCT(LARGE($C59:$BQ59,{1,2,3,4,5,6}))) -> 2 | BW59: =IF(BV59= "","",IFERROR(SUMPRODUCT(LARGE($C59:$BQ59,{1,2,3,4})), "")) ->  | BX59: =IF(BW59<>"",(IFERROR(SUMPRODUCT(LARGE($C59:$BQ59,{1,2,3,4,5,6,7})),"")),"") ->  | BY59: =IF(BX59<>"",(IFERROR(SUMPRODUCT(LARGE($C59:$BQ59,{1,2,3,4,5,6,7,8})),"")),"") -> 
B60: GC | AD60: 8 | AI60: 22 | AK60: 4 | AL60: 13 | AZ60: 9 | BC60: 12 | BF60: 11 | BS60: 79 | BT60: 7 | BU60: =IF($BT60<=6,SUM($C60:$BQ60),SUMPRODUCT(LARGE($C60:$BQ60,{1,2,3,4,5,6}))) -> 75 | BW60: =IF(BV60= "","",IFERROR(SUMPRODUCT(LARGE($C60:$BQ60,{1,2,3,4})), "")) ->  | BX60: =IF(BW60<>"",(IFERROR(SUMPRODUCT(LARGE($C60:$BQ60,{1,2,3,4,5,6,7})),"")),"") ->  | BY60: =IF(BX60<>"",(IFERROR(SUMPRODUCT(LARGE($C60:$BQ60,{1,2,3,4,5,6,7,8})),"")),"") -> 
B61: GCC | G61: 18 | H61: 5 | AW61: 18 | BJ61: 13 | BK61: 13 | BS61: 67 | BT61: 5 | BU61: =IF($BT61<=6,SUM($C61:$BQ61),SUMPRODUCT(LARGE($C61:$BQ61,{1,2,3,4,5,6}))) -> 67 | BW61: =IF(BV61= "","",IFERROR(SUMPRODUCT(LARGE($C61:$BQ61,{1,2,3,4})), "")) ->  | BX61: =IF(BW61<>"",(IFERROR(SUMPRODUCT(LARGE($C61:$BQ61,{1,2,3,4,5,6,7})),"")),"") ->  | BY61: =IF(BX61<>"",(IFERROR(SUMPRODUCT(LARGE($C61:$BQ61,{1,2,3,4,5,6,7,8})),"")),"") -> 
B62: GCSU | Q62: 2 | AA62: 1 | BS62: 3 | BT62: 2 | BU62: =IF($BT62<=6,SUM($C62:$BQ62),SUMPRODUCT(LARGE($C62:$BQ62,{1,2,3,4,5,6}))) -> 3 | BW62: =IF(BV62= "","",IFERROR(SUMPRODUCT(LARGE($C62:$BQ62,{1,2,3,4})), "")) ->  | BX62: =IF(BW62<>"",(IFERROR(SUMPRODUCT(LARGE($C62:$BQ62,{1,2,3,4,5,6,7})),"")),"") ->  | BY62: =IF(BX62<>"",(IFERROR(SUMPRODUCT(LARGE($C62:$BQ62,{1,2,3,4,5,6,7,8})),"")),"") -> 
B63: GCU | G63: 5 | H63: 3 | Z63: 4 | AW63: 10 | AZ63: 6 | BB63: 13 | BJ63: 2 | BK63: 1 | BS63: 44 | BT63: 8 | BU63: =IF($BT63<=6,SUM($C63:$BQ63),SUMPRODUCT(LARGE($C63:$BQ63,{1,2,3,4,5,6}))) -> 41 | BW63: =IF(BV63= "","",IFERROR(SUMPRODUCT(LARGE($C63:$BQ63,{1,2,3,4})), "")) ->  | BX63: =IF(BW63<>"",(IFERROR(SUMPRODUCT(LARGE($C63:$BQ63,{1,2,3,4,5,6,7})),"")),"") ->  | BY63: =IF(BX63<>"",(IFERROR(SUMPRODUCT(LARGE($C63:$BQ63,{1,2,3,4,5,6,7,8})),"")),"") -> 
B64: GIT | V64: 3 | AY64: 3 | BA64: 5 | BS64: 11 | BT64: 3 | BU64: =IF($BT64<=6,SUM($C64:$BQ64),SUMPRODUCT(LARGE($C64:$BQ64,{1,2,3,4,5,6}))) -> 11 | BW64: =IF(BV64= "","",IFERROR(SUMPRODUCT(LARGE($C64:$BQ64,{1,2,3,4})), "")) ->  | BX64: =IF(BW64<>"",(IFERROR(SUMPRODUCT(LARGE($C64:$BQ64,{1,2,3,4,5,6,7})),"")),"") ->  | BY64: =IF(BX64<>"",(IFERROR(SUMPRODUCT(LARGE($C64:$BQ64,{1,2,3,4,5,6,7,8})),"")),"") -> 
B65: HC | AJ65: 9 | AM65: 19 | BE65: 31 | BS65: 59 | BT65: 3 | BU65: =IF($BT65<=6,SUM($C65:$BQ65),SUMPRODUCT(LARGE($C65:$BQ65,{1,2,3,4,5,6}))) -> 59 | BW65: =IF(BV65= "","",IFERROR(SUMPRODUCT(LARGE($C65:$BQ65,{1,2,3,4})), "")) ->  | BX65: =IF(BW65<>"",(IFERROR(SUMPRODUCT(LARGE($C65:$BQ65,{1,2,3,4,5,6,7})),"")),"") ->  | BY65: =IF(BX65<>"",(IFERROR(SUMPRODUCT(LARGE($C65:$BQ65,{1,2,3,4,5,6,7,8})),"")),"") -> 
B66: HCC | AJ66: 1 | BS66: 1 | BT66: 1 | BU66: =IF($BT66<=6,SUM($C66:$BQ66),SUMPRODUCT(LARGE($C66:$BQ66,{1,2,3,4,5,6}))) -> 1 | BW66: =IF(BV66= "","",IFERROR(SUMPRODUCT(LARGE($C66:$BQ66,{1,2,3,4})), "")) ->  | BX66: =IF(BW66<>"",(IFERROR(SUMPRODUCT(LARGE($C66:$BQ66,{1,2,3,4,5,6,7})),"")),"") ->  | BY66: =IF(BX66<>"",(IFERROR(SUMPRODUCT(LARGE($C66:$BQ66,{1,2,3,4,5,6,7,8})),"")),"") -> 
B67: HolU | T67: 0 | BS67: 0 | BT67: 1 | BU67: =IF($BT67<=6,SUM($C67:$BQ67),SUMPRODUCT(LARGE($C67:$BQ67,{1,2,3,4,5,6}))) -> 0 | BW67: =IF(BV67= "","",IFERROR(SUMPRODUCT(LARGE($C67:$BQ67,{1,2,3,4})), "")) ->  | BX67: =IF(BW67<>"",(IFERROR(SUMPRODUCT(LARGE($C67:$BQ67,{1,2,3,4,5,6,7})),"")),"") ->  | BY67: =IF(BX67<>"",(IFERROR(SUMPRODUCT(LARGE($C67:$BQ67,{1,2,3,4,5,6,7,8})),"")),"") -> 
B68: HoU | S68: 2 | BS68: =SUM($C68:$BR68) -> 2 | BT68: =COUNTA(C68:BQ68) -> 1 | BU68: =IF($BT68<=6,SUM($C68:$BQ68),SUMPRODUCT(LARGE($C68:$BQ68,{1,2,3,4,5,6}))) -> 2 | BV68: =IF(AND($BT68>=6,BU68=BU69),"Manual Calc Needed","") ->  | BW68: =IF(BV68= "","",IFERROR(SUMPRODUCT(LARGE($C68:$BQ68,{1,2,3,4})), "")) ->  | BX68: =IF(BW68<>"",(IFERROR(SUMPRODUCT(LARGE($C68:$BQ68,{1,2,3,4,5,6,7})),"")),"") ->  | BY68: =IF(BX68<>"",(IFERROR(SUMPRODUCT(LARGE($C68:$BQ68,{1,2,3,4,5,6,7,8})),"")),"") -> 
B69: HPU | C69: 17 | H69: 14 | BK69: 12 | BS69: 43 | BT69: 3 | BU69: =IF($BT69<=6,SUM($C69:$BQ69),SUMPRODUCT(LARGE($C69:$BQ69,{1,2,3,4,5,6}))) -> 43 | BW69: =IF(BV69= "","",IFERROR(SUMPRODUCT(LARGE($C69:$BQ69,{1,2,3,4})), "")) ->  | BX69: =IF(BW69<>"",(IFERROR(SUMPRODUCT(LARGE($C69:$BQ69,{1,2,3,4,5,6,7})),"")),"") ->  | BY69: =IF(BX69<>"",(IFERROR(SUMPRODUCT(LARGE($C69:$BQ69,{1,2,3,4,5,6,7,8})),"")),"") -> 
B70: HU | G70: 7 | P70: 7 | X70: 3 | AO70: 10 | AP70: 22 | BA70: 16 | BS70: 65 | BT70: 6 | BU70: =IF($BT70<=6,SUM($C70:$BQ70),SUMPRODUCT(LARGE($C70:$BQ70,{1,2,3,4,5,6}))) -> 65 | BW70: =IF(BV70= "","",IFERROR(SUMPRODUCT(LARGE($C70:$BQ70,{1,2,3,4})), "")) ->  | BX70: =IF(BW70<>"",(IFERROR(SUMPRODUCT(LARGE($C70:$BQ70,{1,2,3,4,5,6,7})),"")),"") ->  | BY70: =IF(BX70<>"",(IFERROR(SUMPRODUCT(LARGE($C70:$BQ70,{1,2,3,4,5,6,7,8})),"")),"") -> 
B71: ILSU | BE71: 1 | BN71: 6 | BS71: 7 | BT71: 2 | BU71: =IF($BT71<=6,SUM($C71:$BQ71),SUMPRODUCT(LARGE($C71:$BQ71,{1,2,3,4,5,6}))) -> 7 | BW71: =IF(BV71= "","",IFERROR(SUMPRODUCT(LARGE($C71:$BQ71,{1,2,3,4})), "")) ->  | BX71: =IF(BW71<>"",(IFERROR(SUMPRODUCT(LARGE($C71:$BQ71,{1,2,3,4,5,6,7})),"")),"") ->  | BY71: =IF(BX71<>"",(IFERROR(SUMPRODUCT(LARGE($C71:$BQ71,{1,2,3,4,5,6,7,8})),"")),"") -> 
B72: ISU | E72: 28 | F72: 29 | T72: 10 | BG72: 11 | BI72: 23 | BS72: 101 | BT72: 5 | BU72: =IF($BT72<=6,SUM($C72:$BQ72),SUMPRODUCT(LARGE($C72:$BQ72,{1,2,3,4,5,6}))) -> 101 | BW72: =IF(BV72= "","",IFERROR(SUMPRODUCT(LARGE($C72:$BQ72,{1,2,3,4})), "")) ->  | BX72: =IF(BW72<>"",(IFERROR(SUMPRODUCT(LARGE($C72:$BQ72,{1,2,3,4,5,6,7})),"")),"") ->  | BY72: =IF(BX72<>"",(IFERROR(SUMPRODUCT(LARGE($C72:$BQ72,{1,2,3,4,5,6,7,8})),"")),"") -> 
B73: IVC | AD73: 30 | AI73: 17 | AK73: 19 | BA73: 16 | BB73: 22 | BC73: 18 | BS73: 122 | BT73: 6 | BU73: =IF($BT73<=6,SUM($C73:$BQ73),SUMPRODUCT(LARGE($C73:$BQ73,{1,2,3,4,5,6}))) -> 122 | BW73: =IF(BV73= "","",IFERROR(SUMPRODUCT(LARGE($C73:$BQ73,{1,2,3,4})), "")) ->  | BX73: =IF(BW73<>"",(IFERROR(SUMPRODUCT(LARGE($C73:$BQ73,{1,2,3,4,5,6,7})),"")),"") ->  | BY73: =IF(BX73<>"",(IFERROR(SUMPRODUCT(LARGE($C73:$BQ73,{1,2,3,4,5,6,7,8})),"")),"") -> 
B74: JCU | BI74: 9 | BS74: 9 | BT74: 1 | BU74: =IF($BT74<=6,SUM($C74:$BQ74),SUMPRODUCT(LARGE($C74:$BQ74,{1,2,3,4,5,6}))) -> 9 | BW74: =IF(BV74= "","",IFERROR(SUMPRODUCT(LARGE($C74:$BQ74,{1,2,3,4})), "")) ->  | BX74: =IF(BW74<>"",(IFERROR(SUMPRODUCT(LARGE($C74:$BQ74,{1,2,3,4,5,6,7})),"")),"") ->  | BY74: =IF(BX74<>"",(IFERROR(SUMPRODUCT(LARGE($C74:$BQ74,{1,2,3,4,5,6,7,8})),"")),"") -> 
B75: JSCC | K75: 16 | M75: 7 | O75: 10 | V75: 26 | AO75: 9 | AT75: 22 | AX75: 15 | AY75: 3 | BA75: 13 | BJ75: 7 | BS75: 128 | BT75: 10 | BU75: =IF($BT75<=6,SUM($C75:$BQ75),SUMPRODUCT(LARGE($C75:$BQ75,{1,2,3,4,5,6}))) -> 102 | BW75: =IF(BV75= "","",IFERROR(SUMPRODUCT(LARGE($C75:$BQ75,{1,2,3,4})), "")) ->  | BX75: =IF(BW75<>"",(IFERROR(SUMPRODUCT(LARGE($C75:$BQ75,{1,2,3,4,5,6,7})),"")),"") ->  | BY75: =IF(BX75<>"",(IFERROR(SUMPRODUCT(LARGE($C75:$BQ75,{1,2,3,4,5,6,7,8})),"")),"") -> 
B76: KCCC | BE76: 12 | BH76: 8 | BS76: 20 | BT76: 2 | BU76: =IF($BT76<=6,SUM($C76:$BQ76),SUMPRODUCT(LARGE($C76:$BQ76,{1,2,3,4,5,6}))) -> 20 | BW76: =IF(BV76= "","",IFERROR(SUMPRODUCT(LARGE($C76:$BQ76,{1,2,3,4})), "")) ->  | BX76: =IF(BW76<>"",(IFERROR(SUMPRODUCT(LARGE($C76:$BQ76,{1,2,3,4,5,6,7})),"")),"") ->  | BY76: =IF(BX76<>"",(IFERROR(SUMPRODUCT(LARGE($C76:$BQ76,{1,2,3,4,5,6,7,8})),"")),"") -> 
B77: KWU | W77: 12 | BI77: 3 | BJ77: 2 | BS77: 17 | BT77: 3 | BU77: =IF($BT77<=6,SUM($C77:$BQ77),SUMPRODUCT(LARGE($C77:$BQ77,{1,2,3,4,5,6}))) -> 17 | BW77: =IF(BV77= "","",IFERROR(SUMPRODUCT(LARGE($C77:$BQ77,{1,2,3,4})), "")) ->  | BX77: =IF(BW77<>"",(IFERROR(SUMPRODUCT(LARGE($C77:$BQ77,{1,2,3,4,5,6,7})),"")),"") ->  | BY77: =IF(BX77<>"",(IFERROR(SUMPRODUCT(LARGE($C77:$BQ77,{1,2,3,4,5,6,7,8})),"")),"") -> 
B78: L&CC | E78: 9 | N78: 25 | T78: 22 | Z78: 13 | AR78: 25 | AV78: 19 | BA78: 13 | BC78: 23 | BS78: 149 | BT78: 8 | BU78: =IF($BT78<=6,SUM($C78:$BQ78),SUMPRODUCT(LARGE($C78:$BQ78,{1,2,3,4,5,6}))) -> 127 | BW78: =IF(BV78= "","",IFERROR(SUMPRODUCT(LARGE($C78:$BQ78,{1,2,3,4})), "")) ->  | BX78: =IF(BW78<>"",(IFERROR(SUMPRODUCT(LARGE($C78:$BQ78,{1,2,3,4,5,6,7})),"")),"") ->  | BY78: =IF(BX78<>"",(IFERROR(SUMPRODUCT(LARGE($C78:$BQ78,{1,2,3,4,5,6,7,8})),"")),"") -> 
B79: LACC | AD79: 11 | BS79: 11 | BT79: 1 | BU79: =IF($BT79<=6,SUM($C79:$BQ79),SUMPRODUCT(LARGE($C79:$BQ79,{1,2,3,4,5,6}))) -> 11 | BW79: =IF(BV79= "","",IFERROR(SUMPRODUCT(LARGE($C79:$BQ79,{1,2,3,4})), "")) ->  | BX79: =IF(BW79<>"",(IFERROR(SUMPRODUCT(LARGE($C79:$BQ79,{1,2,3,4,5,6,7})),"")),"") ->  | BY79: =IF(BX79<>"",(IFERROR(SUMPRODUCT(LARGE($C79:$BQ79,{1,2,3,4,5,6,7,8})),"")),"") -> 
B80: LCC | E80: 13 | F80: 11 | N80: 13 | T80: 17 | Z80: 21 | AR80: 27 | AV80: 17 | BS80: 119 | BT80: 7 | BU80: =IF($BT80<=6,SUM($C80:$BQ80),SUMPRODUCT(LARGE($C80:$BQ80,{1,2,3,4,5,6}))) -> 108 | BW80: =IF(BV80= "","",IFERROR(SUMPRODUCT(LARGE($C80:$BQ80,{1,2,3,4})), "")) ->  | BX80: =IF(BW80<>"",(IFERROR(SUMPRODUCT(LARGE($C80:$BQ80,{1,2,3,4,5,6,7})),"")),"") ->  | BY80: =IF(BX80<>"",(IFERROR(SUMPRODUCT(LARGE($C80:$BQ80,{1,2,3,4,5,6,7,8})),"")),"") -> 
B81: LCU | C81: 27 | O81: 19 | V81: 5 | AY81: 17 | BJ81: 5 | BS81: 73 | BT81: 5 | BU81: =IF($BT81<=6,SUM($C81:$BQ81),SUMPRODUCT(LARGE($C81:$BQ81,{1,2,3,4,5,6}))) -> 73 | BW81: =IF(BV81= "","",IFERROR(SUMPRODUCT(LARGE($C81:$BQ81,{1,2,3,4})), "")) ->  | BX81: =IF(BW81<>"",(IFERROR(SUMPRODUCT(LARGE($C81:$BQ81,{1,2,3,4,5,6,7})),"")),"") ->  | BY81: =IF(BX81<>"",(IFERROR(SUMPRODUCT(LARGE($C81:$BQ81,{1,2,3,4,5,6,7,8})),"")),"") -> 
B82: Lee | C82: 13 | D82: 18 | I82: 53 | O82: 51 | V82: 31 | Y82: 50 | AO82: 36 | AP82: 41 | AX82: 35 | AY82: 56 | BA82: 8 | BS82: 392 | BT82: 11 | BU82: =IF($BT82<=6,SUM($C82:$BQ82),SUMPRODUCT(LARGE($C82:$BQ82,{1,2,3,4,5,6}))) -> 287 | BW82: =IF(BV82= "","",IFERROR(SUMPRODUCT(LARGE($C82:$BQ82,{1,2,3,4})), "")) ->  | BX82: =IF(BW82<>"",(IFERROR(SUMPRODUCT(LARGE($C82:$BQ82,{1,2,3,4,5,6,7})),"")),"") ->  | BY82: =IF(BX82<>"",(IFERROR(SUMPRODUCT(LARGE($C82:$BQ82,{1,2,3,4,5,6,7,8})),"")),"") -> 
B83: LiC | AV83: 3 | BS83: 3 | BT83: 1 | BU83: =IF($BT83<=6,SUM($C83:$BQ83),SUMPRODUCT(LARGE($C83:$BQ83,{1,2,3,4,5,6}))) -> 3 | BW83: =IF(BV83= "","",IFERROR(SUMPRODUCT(LARGE($C83:$BQ83,{1,2,3,4})), "")) ->  | BX83: =IF(BW83<>"",(IFERROR(SUMPRODUCT(LARGE($C83:$BQ83,{1,2,3,4,5,6,7})),"")),"") ->  | BY83: =IF(BX83<>"",(IFERROR(SUMPRODUCT(LARGE($C83:$BQ83,{1,2,3,4,5,6,7,8})),"")),"") -> 
B84: LiU | AJ84: 2 | BS84: 2 | BT84: 1 | BU84: =IF($BT84<=6,SUM($C84:$BQ84),SUMPRODUCT(LARGE($C84:$BQ84,{1,2,3,4,5,6}))) -> 2 | BW84: =IF(BV84= "","",IFERROR(SUMPRODUCT(LARGE($C84:$BQ84,{1,2,3,4})), "")) ->  | BX84: =IF(BW84<>"",(IFERROR(SUMPRODUCT(LARGE($C84:$BQ84,{1,2,3,4,5,6,7})),"")),"") ->  | BY84: =IF(BX84<>"",(IFERROR(SUMPRODUCT(LARGE($C84:$BQ84,{1,2,3,4,5,6,7,8})),"")),"") -> 
B85: LRU | J85: 5 | BS85: 5 | BT85: 1 | BU85: =IF($BT85<=6,SUM($C85:$BQ85),SUMPRODUCT(LARGE($C85:$BQ85,{1,2,3,4,5,6}))) -> 5 | BW85: =IF(BV85= "","",IFERROR(SUMPRODUCT(LARGE($C85:$BQ85,{1,2,3,4})), "")) ->  | BX85: =IF(BW85<>"",(IFERROR(SUMPRODUCT(LARGE($C85:$BQ85,{1,2,3,4,5,6,7})),"")),"") ->  | BY85: =IF(BX85<>"",(IFERROR(SUMPRODUCT(LARGE($C85:$BQ85,{1,2,3,4,5,6,7,8})),"")),"") -> 
B86: LSU | H86: 9 | AO86: 16 | AX86: 12 | BI86: 26 | BK86: 6 | BS86: 69 | BT86: 5 | BU86: =IF($BT86<=6,SUM($C86:$BQ86),SUMPRODUCT(LARGE($C86:$BQ86,{1,2,3,4,5,6}))) -> 69 | BW86: =IF(BV86= "","",IFERROR(SUMPRODUCT(LARGE($C86:$BQ86,{1,2,3,4})), "")) ->  | BX86: =IF(BW86<>"",(IFERROR(SUMPRODUCT(LARGE($C86:$BQ86,{1,2,3,4,5,6,7})),"")),"") ->  | BY86: =IF(BX86<>"",(IFERROR(SUMPRODUCT(LARGE($C86:$BQ86,{1,2,3,4,5,6,7,8})),"")),"") -> 
B87: LSUS | C87: 47 | D87: 69 | I87: 59 | O87: 10 | V87: 19 | Y87: 69 | AO87: 73 | AP87: 56 | AX87: 21 | AY87: 93 | BS87: 516 | BT87: 10 | BU87: =IF($BT87<=6,SUM($C87:$BQ87),SUMPRODUCT(LARGE($C87:$BQ87,{1,2,3,4,5,6}))) -> 419 | BW87: =IF(BV87= "","",IFERROR(SUMPRODUCT(LARGE($C87:$BQ87,{1,2,3,4})), "")) ->  | BX87: =IF(BW87<>"",(IFERROR(SUMPRODUCT(LARGE($C87:$BQ87,{1,2,3,4,5,6,7})),"")),"") ->  | BY87: =IF(BX87<>"",(IFERROR(SUMPRODUCT(LARGE($C87:$BQ87,{1,2,3,4,5,6,7,8})),"")),"") -> 
B88: LTU | C88: 8 | O88: 23 | U88: 18 | V88: 7 | X88: 20 | Y88: 24 | AO88: 48 | AX88: 7 | AY88: 28 | BS88: 183 | BT88: 9 | BU88: =IF($BT88<=6,SUM($C88:$BQ88),SUMPRODUCT(LARGE($C88:$BQ88,{1,2,3,4,5,6}))) -> 161 | BW88: =IF(BV88= "","",IFERROR(SUMPRODUCT(LARGE($C88:$BQ88,{1,2,3,4})), "")) ->  | BX88: =IF(BW88<>"",(IFERROR(SUMPRODUCT(LARGE($C88:$BQ88,{1,2,3,4,5,6,7})),"")),"") ->  | BY88: =IF(BX88<>"",(IFERROR(SUMPRODUCT(LARGE($C88:$BQ88,{1,2,3,4,5,6,7,8})),"")),"") -> 
B89: LU | Q89: 8 | BS89: 8 | BT89: 1 | BU89: =IF($BT89<=6,SUM($C89:$BQ89),SUMPRODUCT(LARGE($C89:$BQ89,{1,2,3,4,5,6}))) -> 8 | BW89: =IF(BV89= "","",IFERROR(SUMPRODUCT(LARGE($C89:$BQ89,{1,2,3,4})), "")) ->  | BX89: =IF(BW89<>"",(IFERROR(SUMPRODUCT(LARGE($C89:$BQ89,{1,2,3,4,5,6,7})),"")),"") ->  | BY89: =IF(BX89<>"",(IFERROR(SUMPRODUCT(LARGE($C89:$BQ89,{1,2,3,4,5,6,7,8})),"")),"") -> 
B90: MarU | BI90: 3 | BS90: 3 | BT90: 1 | BU90: =IF($BT90<=6,SUM($C90:$BQ90),SUMPRODUCT(LARGE($C90:$BQ90,{1,2,3,4,5,6}))) -> 3 | BW90: =IF(BV90= "","",IFERROR(SUMPRODUCT(LARGE($C90:$BQ90,{1,2,3,4})), "")) ->  | BX90: =IF(BW90<>"",(IFERROR(SUMPRODUCT(LARGE($C90:$BQ90,{1,2,3,4,5,6,7})),"")),"") ->  | BY90: =IF(BX90<>"",(IFERROR(SUMPRODUCT(LARGE($C90:$BQ90,{1,2,3,4,5,6,7,8})),"")),"") -> 
B91: McKU | BE91: 15 | BH91: 14 | BS91: 29 | BT91: 2 | BU91: =IF($BT91<=6,SUM($C91:$BQ91),SUMPRODUCT(LARGE($C91:$BQ91,{1,2,3,4,5,6}))) -> 29 | BW91: =IF(BV91= "","",IFERROR(SUMPRODUCT(LARGE($C91:$BQ91,{1,2,3,4})), "")) ->  | BX91: =IF(BW91<>"",(IFERROR(SUMPRODUCT(LARGE($C91:$BQ91,{1,2,3,4,5,6,7})),"")),"") ->  | BY91: =IF(BX91<>"",(IFERROR(SUMPRODUCT(LARGE($C91:$BQ91,{1,2,3,4,5,6,7,8})),"")),"") -> 
B92: McNU | E92: 0 | BE92: 12 | BI92: 5 | BS92: 17 | BT92: 3 | BU92: =IF($BT92<=6,SUM($C92:$BQ92),SUMPRODUCT(LARGE($C92:$BQ92,{1,2,3,4,5,6}))) -> 17 | BW92: =IF(BV92= "","",IFERROR(SUMPRODUCT(LARGE($C92:$BQ92,{1,2,3,4})), "")) ->  | BX92: =IF(BW92<>"",(IFERROR(SUMPRODUCT(LARGE($C92:$BQ92,{1,2,3,4,5,6,7})),"")),"") ->  | BY92: =IF(BX92<>"",(IFERROR(SUMPRODUCT(LARGE($C92:$BQ92,{1,2,3,4,5,6,7,8})),"")),"") -> 
B93: MDCK | AA93: 8 | BS93: 8 | BT93: 1 | BU93: =IF($BT93<=6,SUM($C93:$BQ93),SUMPRODUCT(LARGE($C93:$BQ93,{1,2,3,4,5,6}))) -> 8 | BW93: =IF(BV93= "","",IFERROR(SUMPRODUCT(LARGE($C93:$BQ93,{1,2,3,4})), "")) ->  | BX93: =IF(BW93<>"",(IFERROR(SUMPRODUCT(LARGE($C93:$BQ93,{1,2,3,4,5,6,7})),"")),"") ->  | BY93: =IF(BX93<>"",(IFERROR(SUMPRODUCT(LARGE($C93:$BQ93,{1,2,3,4,5,6,7,8})),"")),"") -> 
B94: MHCC | Z94: 1 | BJ94: 4 | BK94: 10 | BS94: 15 | BT94: 3 | BU94: =IF($BT94<=6,SUM($C94:$BQ94),SUMPRODUCT(LARGE($C94:$BQ94,{1,2,3,4,5,6}))) -> 15 | BW94: =IF(BV94= "","",IFERROR(SUMPRODUCT(LARGE($C94:$BQ94,{1,2,3,4})), "")) ->  | BX94: =IF(BW94<>"",(IFERROR(SUMPRODUCT(LARGE($C94:$BQ94,{1,2,3,4,5,6,7})),"")),"") ->  | BY94: =IF(BX94<>"",(IFERROR(SUMPRODUCT(LARGE($C94:$BQ94,{1,2,3,4,5,6,7,8})),"")),"") -> 
B95: MiC | BA95: 3 | BS95: 3 | BT95: 1 | BU95: =IF($BT95<=6,SUM($C95:$BQ95),SUMPRODUCT(LARGE($C95:$BQ95,{1,2,3,4,5,6}))) -> 3 | BW95: =IF(BV95= "","",IFERROR(SUMPRODUCT(LARGE($C95:$BQ95,{1,2,3,4})), "")) ->  | BX95: =IF(BW95<>"",(IFERROR(SUMPRODUCT(LARGE($C95:$BQ95,{1,2,3,4,5,6,7})),"")),"") ->  | BY95: =IF(BX95<>"",(IFERROR(SUMPRODUCT(LARGE($C95:$BQ95,{1,2,3,4,5,6,7,8})),"")),"") -> 
B96: MJC | AJ96: 5 | BL96: 1 | BM96: 1 | BN96: 6 | BO96: 7 | BS96: 20 | BT96: 5 | BU96: =IF($BT96<=6,SUM($C96:$BQ96),SUMPRODUCT(LARGE($C96:$BQ96,{1,2,3,4,5,6}))) -> 20 | BW96: =IF(BV96= "","",IFERROR(SUMPRODUCT(LARGE($C96:$BQ96,{1,2,3,4})), "")) ->  | BX96: =IF(BW96<>"",(IFERROR(SUMPRODUCT(LARGE($C96:$BQ96,{1,2,3,4,5,6,7})),"")),"") ->  | BY96: =IF(BX96<>"",(IFERROR(SUMPRODUCT(LARGE($C96:$BQ96,{1,2,3,4,5,6,7,8})),"")),"") -> 
B97: MoorC | AC97: 15 | AD97: 33 | AE97: 21 | AG97: 26 | AI97: 26 | AZ97: 18 | BB97: 17 | BS97: 156 | BT97: 7 | BU97: =IF($BT97<=6,SUM($C97:$BQ97),SUMPRODUCT(LARGE($C97:$BQ97,{1,2,3,4,5,6}))) -> 141 | BW97: =IF(BV97= "","",IFERROR(SUMPRODUCT(LARGE($C97:$BQ97,{1,2,3,4})), "")) ->  | BX97: =IF(BW97<>"",(IFERROR(SUMPRODUCT(LARGE($C97:$BQ97,{1,2,3,4,5,6,7})),"")),"") ->  | BY97: =IF(BX97<>"",(IFERROR(SUMPRODUCT(LARGE($C97:$BQ97,{1,2,3,4,5,6,7,8})),"")),"") -> 
B98: MSAC | AD98: 19 | AE98: 28 | AI98: 22 | BA98: 5 | BB98: 25 | BN98: 18 | BS98: 117 | BT98: 6 | BU98: =IF($BT98<=6,SUM($C98:$BQ98),SUMPRODUCT(LARGE($C98:$BQ98,{1,2,3,4,5,6}))) -> 117 | BW98: =IF(BV98= "","",IFERROR(SUMPRODUCT(LARGE($C98:$BQ98,{1,2,3,4})), "")) ->  | BX98: =IF(BW98<>"",(IFERROR(SUMPRODUCT(LARGE($C98:$BQ98,{1,2,3,4,5,6,7})),"")),"") ->  | BY98: =IF(BX98<>"",(IFERROR(SUMPRODUCT(LARGE($C98:$BQ98,{1,2,3,4,5,6,7,8})),"")),"") -> 
B99: MSD | AD99: 14 | AG99: 10 | AZ99: 9 | BF99: 10 | BI99: 5 | BS99: 48 | BT99: 5 | BU99: =IF($BT99<=6,SUM($C99:$BQ99),SUMPRODUCT(LARGE($C99:$BQ99,{1,2,3,4,5,6}))) -> 48 | BW99: =IF(BV99= "","",IFERROR(SUMPRODUCT(LARGE($C99:$BQ99,{1,2,3,4})), "")) ->  | BX99: =IF(BW99<>"",(IFERROR(SUMPRODUCT(LARGE($C99:$BQ99,{1,2,3,4,5,6,7})),"")),"") ->  | BY99: =IF(BX99<>"",(IFERROR(SUMPRODUCT(LARGE($C99:$BQ99,{1,2,3,4,5,6,7,8})),"")),"") -> 
B100: MSJC | AC100: 4 | AD100: 5 | AK100: 1 | BS100: 10 | BT100: 3 | BU100: =IF($BT100<=6,SUM($C100:$BQ100),SUMPRODUCT(LARGE($C100:$BQ100,{1,2,3,4,5,6}))) -> 10 | BW100: =IF(BV100= "","",IFERROR(SUMPRODUCT(LARGE($C100:$BQ100,{1,2,3,4})), "")) ->  | BX100: =IF(BW100<>"",(IFERROR(SUMPRODUCT(LARGE($C100:$BQ100,{1,2,3,4,5,6,7})),"")),"") ->  | BY100: =IF(BX100<>"",(IFERROR(SUMPRODUCT(LARGE($C100:$BQ100,{1,2,3,4,5,6,7,8})),"")),"") -> 
B101: MslU | G101: 13 | H101: 19 | AQ101: 11 | BI101: 7 | BJ101: 18 | BK101: 20 | BS101: 88 | BT101: 6 | BU101: =IF($BT101<=6,SUM($C101:$BQ101),SUMPRODUCT(LARGE($C101:$BQ101,{1,2,3,4,5,6}))) -> 88 | BW101: =IF(BV101= "","",IFERROR(SUMPRODUCT(LARGE($C101:$BQ101,{1,2,3,4})), "")) ->  | BX101: =IF(BW101<>"",(IFERROR(SUMPRODUCT(LARGE($C101:$BQ101,{1,2,3,4,5,6,7})),"")),"") ->  | BY101: =IF(BX101<>"",(IFERROR(SUMPRODUCT(LARGE($C101:$BQ101,{1,2,3,4,5,6,7,8})),"")),"") -> 
B102: MSU | C102: 87 | G102: 34 | H102: 37 | K102: 77 | O102: 86 | V102: 33 | AO102: 80 | AP102: 61 | AS102: 44 | AX102: 42 | AY102: 78 | BS102: 659 | BT102: 11 | BU102: =IF($BT102<=6,SUM($C102:$BQ102),SUMPRODUCT(LARGE($C102:$BQ102,{1,2,3,4,5,6}))) -> 469 | BW102: =IF(BV102= "","",IFERROR(SUMPRODUCT(LARGE($C102:$BQ102,{1,2,3,4})), "")) ->  | BX102: =IF(BW102<>"",(IFERROR(SUMPRODUCT(LARGE($C102:$BQ102,{1,2,3,4,5,6,7})),"")),"") ->  | BY102: =IF(BX102<>"",(IFERROR(SUMPRODUCT(LARGE($C102:$BQ102,{1,2,3,4,5,6,7,8})),"")),"") -> 
B103: MSUM | D103: 10 | V103: 8 | BE103: 12 | BI103: 10 | BS103: 40 | BT103: 4 | BU103: =IF($BT103<=6,SUM($C103:$BQ103),SUMPRODUCT(LARGE($C103:$BQ103,{1,2,3,4,5,6}))) -> 40 | BW103: =IF(BV103= "","",IFERROR(SUMPRODUCT(LARGE($C103:$BQ103,{1,2,3,4})), "")) ->  | BX103: =IF(BW103<>"",(IFERROR(SUMPRODUCT(LARGE($C103:$BQ103,{1,2,3,4,5,6,7})),"")),"") ->  | BY103: =IF(BX103<>"",(IFERROR(SUMPRODUCT(LARGE($C103:$BQ103,{1,2,3,4,5,6,7,8})),"")),"") -> 
B104: MTSU | J104: 17 | U104: 27 | AO104: 32 | AQ104: 20 | AT104: 33 | AU104: 23 | BS104: 152 | BT104: 6 | BU104: =IF($BT104<=6,SUM($C104:$BQ104),SUMPRODUCT(LARGE($C104:$BQ104,{1,2,3,4,5,6}))) -> 152 | BW104: =IF(BV104= "","",IFERROR(SUMPRODUCT(LARGE($C104:$BQ104,{1,2,3,4})), "")) ->  | BX104: =IF(BW104<>"",(IFERROR(SUMPRODUCT(LARGE($C104:$BQ104,{1,2,3,4,5,6,7})),"")),"") ->  | BY104: =IF(BX104<>"",(IFERROR(SUMPRODUCT(LARGE($C104:$BQ104,{1,2,3,4,5,6,7,8})),"")),"") -> 
B105: MuSU | J105: 6 | K105: 5 | R105: 6 | U105: 9 | AQ105: 6 | BS105: 32 | BT105: 5 | BU105: =IF($BT105<=6,SUM($C105:$BQ105),SUMPRODUCT(LARGE($C105:$BQ105,{1,2,3,4,5,6}))) -> 32 | BW105: =IF(BV105= "","",IFERROR(SUMPRODUCT(LARGE($C105:$BQ105,{1,2,3,4})), "")) ->  | BX105: =IF(BW105<>"",(IFERROR(SUMPRODUCT(LARGE($C105:$BQ105,{1,2,3,4,5,6,7})),"")),"") ->  | BY105: =IF(BX105<>"",(IFERROR(SUMPRODUCT(LARGE($C105:$BQ105,{1,2,3,4,5,6,7,8})),"")),"") -> 
B106: MVC | BE106: 2 | BH106: 2 | BI106: 2 | BS106: 6 | BT106: 3 | BU106: =IF($BT106<=6,SUM($C106:$BQ106),SUMPRODUCT(LARGE($C106:$BQ106,{1,2,3,4,5,6}))) -> 6 | BW106: =IF(BV106= "","",IFERROR(SUMPRODUCT(LARGE($C106:$BQ106,{1,2,3,4})), "")) ->  | BX106: =IF(BW106<>"",(IFERROR(SUMPRODUCT(LARGE($C106:$BQ106,{1,2,3,4,5,6,7})),"")),"") ->  | BY106: =IF(BX106<>"",(IFERROR(SUMPRODUCT(LARGE($C106:$BQ106,{1,2,3,4,5,6,7,8})),"")),"") -> 
B107: MVCC | AJ107: 4 | BS107: 4 | BT107: 1 | BU107: =IF($BT107<=6,SUM($C107:$BQ107),SUMPRODUCT(LARGE($C107:$BQ107,{1,2,3,4,5,6}))) -> 4 | BW107: =IF(BV107= "","",IFERROR(SUMPRODUCT(LARGE($C107:$BQ107,{1,2,3,4})), "")) ->  | BX107: =IF(BW107<>"",(IFERROR(SUMPRODUCT(LARGE($C107:$BQ107,{1,2,3,4,5,6,7})),"")),"") ->  | BY107: =IF(BX107<>"",(IFERROR(SUMPRODUCT(LARGE($C107:$BQ107,{1,2,3,4,5,6,7,8})),"")),"") -> 
B108: NAU | AD108: 23 | AI108: 22 | AL108: 19 | BB108: 15 | BS108: 79 | BT108: 4 | BU108: =IF($BT108<=6,SUM($C108:$BQ108),SUMPRODUCT(LARGE($C108:$BQ108,{1,2,3,4,5,6}))) -> 79 | BW108: =IF(BV108= "","",IFERROR(SUMPRODUCT(LARGE($C108:$BQ108,{1,2,3,4})), "")) ->  | BX108: =IF(BW108<>"",(IFERROR(SUMPRODUCT(LARGE($C108:$BQ108,{1,2,3,4,5,6,7})),"")),"") ->  | BY108: =IF(BX108<>"",(IFERROR(SUMPRODUCT(LARGE($C108:$BQ108,{1,2,3,4,5,6,7,8})),"")),"") -> 
B109: NC | Q109: 3 | AA109: 2 | BS109: 5 | BT109: 2 | BU109: =IF($BT109<=6,SUM($C109:$BQ109),SUMPRODUCT(LARGE($C109:$BQ109,{1,2,3,4,5,6}))) -> 5 | BW109: =IF(BV109= "","",IFERROR(SUMPRODUCT(LARGE($C109:$BQ109,{1,2,3,4})), "")) ->  | BX109: =IF(BW109<>"",(IFERROR(SUMPRODUCT(LARGE($C109:$BQ109,{1,2,3,4,5,6,7})),"")),"") ->  | BY109: =IF(BX109<>"",(IFERROR(SUMPRODUCT(LARGE($C109:$BQ109,{1,2,3,4,5,6,7,8})),"")),"") -> 
B110: NFSC | Q110: 1 | AA110: 1 | BS110: 2 | BT110: 2 | BU110: =IF($BT110<=6,SUM($C110:$BQ110),SUMPRODUCT(LARGE($C110:$BQ110,{1,2,3,4,5,6}))) -> 2 | BW110: =IF(BV110= "","",IFERROR(SUMPRODUCT(LARGE($C110:$BQ110,{1,2,3,4})), "")) ->  | BX110: =IF(BW110<>"",(IFERROR(SUMPRODUCT(LARGE($C110:$BQ110,{1,2,3,4,5,6,7})),"")),"") ->  | BY110: =IF(BX110<>"",(IFERROR(SUMPRODUCT(LARGE($C110:$BQ110,{1,2,3,4,5,6,7,8})),"")),"") -> 
B111: NIU | AJ111: 21 | BA111: 19 | BS111: 40 | BT111: 2 | BU111: =IF($BT111<=6,SUM($C111:$BQ111),SUMPRODUCT(LARGE($C111:$BQ111,{1,2,3,4,5,6}))) -> 40 | BW111: =IF(BV111= "","",IFERROR(SUMPRODUCT(LARGE($C111:$BQ111,{1,2,3,4})), "")) ->  | BX111: =IF(BW111<>"",(IFERROR(SUMPRODUCT(LARGE($C111:$BQ111,{1,2,3,4,5,6,7})),"")),"") ->  | BY111: =IF(BX111<>"",(IFERROR(SUMPRODUCT(LARGE($C111:$BQ111,{1,2,3,4,5,6,7,8})),"")),"") -> 
B112: NNU | E112: 12 | G112: 3 | AR112: 7 | AW112: 3 | BS112: 25 | BT112: 4 | BU112: =IF($BT112<=6,SUM($C112:$BQ112),SUMPRODUCT(LARGE($C112:$BQ112,{1,2,3,4,5,6}))) -> 25 | BW112: =IF(BV112= "","",IFERROR(SUMPRODUCT(LARGE($C112:$BQ112,{1,2,3,4})), "")) ->  | BX112: =IF(BW112<>"",(IFERROR(SUMPRODUCT(LARGE($C112:$BQ112,{1,2,3,4,5,6,7})),"")),"") ->  | BY112: =IF(BX112<>"",(IFERROR(SUMPRODUCT(LARGE($C112:$BQ112,{1,2,3,4,5,6,7,8})),"")),"") -> 
B113: NVCC | BA113: 2 | BS113: 2 | BT113: 1 | BU113: =IF($BT113<=6,SUM($C113:$BQ113),SUMPRODUCT(LARGE($C113:$BQ113,{1,2,3,4,5,6}))) -> 2 | BW113: =IF(BV113= "","",IFERROR(SUMPRODUCT(LARGE($C113:$BQ113,{1,2,3,4})), "")) ->  | BX113: =IF(BW113<>"",(IFERROR(SUMPRODUCT(LARGE($C113:$BQ113,{1,2,3,4,5,6,7})),"")),"") ->  | BY113: =IF(BX113<>"",(IFERROR(SUMPRODUCT(LARGE($C113:$BQ113,{1,2,3,4,5,6,7,8})),"")),"") -> 
B114: NwC | F114: 2 | T114: 10 | AF114: 4 | BG114: 3 | BS114: 19 | BT114: 4 | BU114: =IF($BT114<=6,SUM($C114:$BQ114),SUMPRODUCT(LARGE($C114:$BQ114,{1,2,3,4,5,6}))) -> 19 | BW114: =IF(BV114= "","",IFERROR(SUMPRODUCT(LARGE($C114:$BQ114,{1,2,3,4})), "")) ->  | BX114: =IF(BW114<>"",(IFERROR(SUMPRODUCT(LARGE($C114:$BQ114,{1,2,3,4,5,6,7})),"")),"") ->  | BY114: =IF(BX114<>"",(IFERROR(SUMPRODUCT(LARGE($C114:$BQ114,{1,2,3,4,5,6,7,8})),"")),"") -> 
B115: NWSU | C115: 2 | AO115: 4 | AY115: 9 | BS115: 15 | BT115: 3 | BU115: =IF($BT115<=6,SUM($C115:$BQ115),SUMPRODUCT(LARGE($C115:$BQ115,{1,2,3,4,5,6}))) -> 15 | BW115: =IF(BV115= "","",IFERROR(SUMPRODUCT(LARGE($C115:$BQ115,{1,2,3,4})), "")) ->  | BX115: =IF(BW115<>"",(IFERROR(SUMPRODUCT(LARGE($C115:$BQ115,{1,2,3,4,5,6,7})),"")),"") ->  | BY115: =IF(BX115<>"",(IFERROR(SUMPRODUCT(LARGE($C115:$BQ115,{1,2,3,4,5,6,7,8})),"")),"") -> 
B116: NWSU | BS116: 0 | BT116: 0 | BU116: =IF($BT116<=6,SUM($C116:$BQ116),SUMPRODUCT(LARGE($C116:$BQ116,{1,2,3,4,5,6}))) -> 0 | BW116: =IF(BV116= "","",IFERROR(SUMPRODUCT(LARGE($C116:$BQ116,{1,2,3,4})), "")) ->  | BX116: =IF(BW116<>"",(IFERROR(SUMPRODUCT(LARGE($C116:$BQ116,{1,2,3,4,5,6,7})),"")),"") ->  | BY116: =IF(BX116<>"",(IFERROR(SUMPRODUCT(LARGE($C116:$BQ116,{1,2,3,4,5,6,7,8})),"")),"") -> 
B117: OCC | AC117: 12 | AD117: 13 | AG117: 0 | AH117: 25 | AZ117: 18 | BS117: 68 | BT117: 5 | BU117: =IF($BT117<=6,SUM($C117:$BQ117),SUMPRODUCT(LARGE($C117:$BQ117,{1,2,3,4,5,6}))) -> 68 | BW117: =IF(BV117= "","",IFERROR(SUMPRODUCT(LARGE($C117:$BQ117,{1,2,3,4})), "")) ->  | BX117: =IF(BW117<>"",(IFERROR(SUMPRODUCT(LARGE($C117:$BQ117,{1,2,3,4,5,6,7})),"")),"") ->  | BY117: =IF(BX117<>"",(IFERROR(SUMPRODUCT(LARGE($C117:$BQ117,{1,2,3,4,5,6,7,8})),"")),"") -> 
B118: OhU | L118: 2 | M118: 7 | BI118: 17 | BS118: 26 | BT118: 3 | BU118: =IF($BT118<=6,SUM($C118:$BQ118),SUMPRODUCT(LARGE($C118:$BQ118,{1,2,3,4,5,6}))) -> 26 | BW118: =IF(BV118= "","",IFERROR(SUMPRODUCT(LARGE($C118:$BQ118,{1,2,3,4})), "")) ->  | BX118: =IF(BW118<>"",(IFERROR(SUMPRODUCT(LARGE($C118:$BQ118,{1,2,3,4,5,6,7})),"")),"") ->  | BY118: =IF(BX118<>"",(IFERROR(SUMPRODUCT(LARGE($C118:$BQ118,{1,2,3,4,5,6,7,8})),"")),"") -> 
B119: OKCU | G119: 10 | T119: 6 | W119: 27 | BD119: 12 | BS119: 55 | BT119: 4 | BU119: =IF($BT119<=6,SUM($C119:$BQ119),SUMPRODUCT(LARGE($C119:$BQ119,{1,2,3,4,5,6}))) -> 55 | BW119: =IF(BV119= "","",IFERROR(SUMPRODUCT(LARGE($C119:$BQ119,{1,2,3,4})), "")) ->  | BX119: =IF(BW119<>"",(IFERROR(SUMPRODUCT(LARGE($C119:$BQ119,{1,2,3,4,5,6,7})),"")),"") ->  | BY119: =IF(BX119<>"",(IFERROR(SUMPRODUCT(LARGE($C119:$BQ119,{1,2,3,4,5,6,7,8})),"")),"") -> 
B120: ORU | C120: 17 | O120: 21 | AO120: 3 | AS120: 5 | BS120: 46 | BT120: 4 | BU120: =IF($BT120<=6,SUM($C120:$BQ120),SUMPRODUCT(LARGE($C120:$BQ120,{1,2,3,4,5,6}))) -> 46 | BW120: =IF(BV120= "","",IFERROR(SUMPRODUCT(LARGE($C120:$BQ120,{1,2,3,4})), "")) ->  | BX120: =IF(BW120<>"",(IFERROR(SUMPRODUCT(LARGE($C120:$BQ120,{1,2,3,4,5,6,7})),"")),"") ->  | BY120: =IF(BX120<>"",(IFERROR(SUMPRODUCT(LARGE($C120:$BQ120,{1,2,3,4,5,6,7,8})),"")),"") -> 
B121: OSU | E121: 7 | N121: 4 | T121: 20 | Z121: 21 | AR121: 17 | BC121: 2 | BS121: 71 | BT121: 6 | BU121: =IF($BT121<=6,SUM($C121:$BQ121),SUMPRODUCT(LARGE($C121:$BQ121,{1,2,3,4,5,6}))) -> 71 | BW121: =IF(BV121= "","",IFERROR(SUMPRODUCT(LARGE($C121:$BQ121,{1,2,3,4})), "")) ->  | BX121: =IF(BW121<>"",(IFERROR(SUMPRODUCT(LARGE($C121:$BQ121,{1,2,3,4,5,6,7})),"")),"") ->  | BY121: =IF(BX121<>"",(IFERROR(SUMPRODUCT(LARGE($C121:$BQ121,{1,2,3,4,5,6,7,8})),"")),"") -> 
B122: OttU | P122: 4 | AS122: 2 | BE122: 4 | BS122: 10 | BT122: 3 | BU122: =IF($BT122<=6,SUM($C122:$BQ122),SUMPRODUCT(LARGE($C122:$BQ122,{1,2,3,4,5,6}))) -> 10 | BW122: =IF(BV122= "","",IFERROR(SUMPRODUCT(LARGE($C122:$BQ122,{1,2,3,4})), "")) ->  | BX122: =IF(BW122<>"",(IFERROR(SUMPRODUCT(LARGE($C122:$BQ122,{1,2,3,4,5,6,7})),"")),"") ->  | BY122: =IF(BX122<>"",(IFERROR(SUMPRODUCT(LARGE($C122:$BQ122,{1,2,3,4,5,6,7,8})),"")),"") -> 
B123: OU | G123: 2 | H123: 2 | BI123: 0 | BJ123: 14 | BK123: 14 | BS123: 32 | BT123: 5 | BU123: =IF($BT123<=6,SUM($C123:$BQ123),SUMPRODUCT(LARGE($C123:$BQ123,{1,2,3,4,5,6}))) -> 32 | BW123: =IF(BV123= "","",IFERROR(SUMPRODUCT(LARGE($C123:$BQ123,{1,2,3,4})), "")) ->  | BX123: =IF(BW123<>"",(IFERROR(SUMPRODUCT(LARGE($C123:$BQ123,{1,2,3,4,5,6,7})),"")),"") ->  | BY123: =IF(BX123<>"",(IFERROR(SUMPRODUCT(LARGE($C123:$BQ123,{1,2,3,4,5,6,7,8})),"")),"") -> 
B124: PacU | AV124: 1 | BS124: 1 | BT124: 1 | BU124: =IF($BT124<=6,SUM($C124:$BQ124),SUMPRODUCT(LARGE($C124:$BQ124,{1,2,3,4,5,6}))) -> 1 | BW124: =IF(BV124= "","",IFERROR(SUMPRODUCT(LARGE($C124:$BQ124,{1,2,3,4})), "")) ->  | BX124: =IF(BW124<>"",(IFERROR(SUMPRODUCT(LARGE($C124:$BQ124,{1,2,3,4,5,6,7})),"")),"") ->  | BY124: =IF(BX124<>"",(IFERROR(SUMPRODUCT(LARGE($C124:$BQ124,{1,2,3,4,5,6,7,8})),"")),"") -> 
B125: PaU | D125: 11 | P125: 12 | T125: 13 | AB125: 3 | BH125: 11 | BS125: 50 | BT125: 5 | BU125: =IF($BT125<=6,SUM($C125:$BQ125),SUMPRODUCT(LARGE($C125:$BQ125,{1,2,3,4,5,6}))) -> 50 | BW125: =IF(BV125= "","",IFERROR(SUMPRODUCT(LARGE($C125:$BQ125,{1,2,3,4})), "")) ->  | BX125: =IF(BW125<>"",(IFERROR(SUMPRODUCT(LARGE($C125:$BQ125,{1,2,3,4,5,6,7})),"")),"") ->  | BY125: =IF(BX125<>"",(IFERROR(SUMPRODUCT(LARGE($C125:$BQ125,{1,2,3,4,5,6,7,8})),"")),"") -> 
B126: PC | AC126: 4 | AD126: 5 | AK126: 6 | AL126: 6 | AZ126: 1 | BC126: 2 | BF126: 2 | BS126: 26 | BT126: 7 | BU126: =IF($BT126<=6,SUM($C126:$BQ126),SUMPRODUCT(LARGE($C126:$BQ126,{1,2,3,4,5,6}))) -> 25 | BW126: =IF(BV126= "","",IFERROR(SUMPRODUCT(LARGE($C126:$BQ126,{1,2,3,4})), "")) ->  | BX126: =IF(BW126<>"",(IFERROR(SUMPRODUCT(LARGE($C126:$BQ126,{1,2,3,4,5,6,7})),"")),"") ->  | BY126: =IF(BX126<>"",(IFERROR(SUMPRODUCT(LARGE($C126:$BQ126,{1,2,3,4,5,6,7,8})),"")),"") -> 
B127: PCC | AC127: 8 | AD127: 6 | AE127: 11 | AI127: 23 | AZ127: 8 | BB127: 6 | BS127: 62 | BT127: 6 | BU127: =IF($BT127<=6,SUM($C127:$BQ127),SUMPRODUCT(LARGE($C127:$BQ127,{1,2,3,4,5,6}))) -> 62 | BW127: =IF(BV127= "","",IFERROR(SUMPRODUCT(LARGE($C127:$BQ127,{1,2,3,4})), "")) ->  | BX127: =IF(BW127<>"",(IFERROR(SUMPRODUCT(LARGE($C127:$BQ127,{1,2,3,4,5,6,7})),"")),"") ->  | BY127: =IF(BX127<>"",(IFERROR(SUMPRODUCT(LARGE($C127:$BQ127,{1,2,3,4,5,6,7,8})),"")),"") -> 
B128: PHC | K128: 12 | T128: 11 | V128: 14 | AX128: 29 | BA128: 23 | BJ128: 15 | BK128: 13 | BS128: 117 | BT128: 7 | BU128: =IF($BT128<=6,SUM($C128:$BQ128),SUMPRODUCT(LARGE($C128:$BQ128,{1,2,3,4,5,6}))) -> 106 | BW128: =IF(BV128= "","",IFERROR(SUMPRODUCT(LARGE($C128:$BQ128,{1,2,3,4})), "")) ->  | BX128: =IF(BW128<>"",(IFERROR(SUMPRODUCT(LARGE($C128:$BQ128,{1,2,3,4,5,6,7})),"")),"") ->  | BY128: =IF(BX128<>"",(IFERROR(SUMPRODUCT(LARGE($C128:$BQ128,{1,2,3,4,5,6,7,8})),"")),"") -> 
B129: PLNU | AD129: 54 | AI129: 55 | AK129: 13 | AL129: 48 | AZ129: 55 | BB129: 46 | BC129: 28 | BF129: 39 | BS129: 338 | BT129: 8 | BU129: =IF($BT129<=6,SUM($C129:$BQ129),SUMPRODUCT(LARGE($C129:$BQ129,{1,2,3,4,5,6}))) -> 297 | BW129: =IF(BV129= "","",IFERROR(SUMPRODUCT(LARGE($C129:$BQ129,{1,2,3,4})), "")) ->  | BX129: =IF(BW129<>"",(IFERROR(SUMPRODUCT(LARGE($C129:$BQ129,{1,2,3,4,5,6,7})),"")),"") ->  | BY129: =IF(BX129<>"",(IFERROR(SUMPRODUCT(LARGE($C129:$BQ129,{1,2,3,4,5,6,7,8})),"")),"") -> 
B130: PoSC | AA130: 1 | BS130: 1 | BT130: 1 | BU130: =IF($BT130<=6,SUM($C130:$BQ130),SUMPRODUCT(LARGE($C130:$BQ130,{1,2,3,4,5,6}))) -> 1 | BW130: =IF(BV130= "","",IFERROR(SUMPRODUCT(LARGE($C130:$BQ130,{1,2,3,4})), "")) ->  | BX130: =IF(BW130<>"",(IFERROR(SUMPRODUCT(LARGE($C130:$BQ130,{1,2,3,4,5,6,7})),"")),"") ->  | BY130: =IF(BX130<>"",(IFERROR(SUMPRODUCT(LARGE($C130:$BQ130,{1,2,3,4,5,6,7,8})),"")),"") -> 
B131: PrCC | BA131: 4 | BS131: 4 | BT131: 1 | BU131: =IF($BT131<=6,SUM($C131:$BQ131),SUMPRODUCT(LARGE($C131:$BQ131,{1,2,3,4,5,6}))) -> 4 | BW131: =IF(BV131= "","",IFERROR(SUMPRODUCT(LARGE($C131:$BQ131,{1,2,3,4})), "")) ->  | BX131: =IF(BW131<>"",(IFERROR(SUMPRODUCT(LARGE($C131:$BQ131,{1,2,3,4,5,6,7})),"")),"") ->  | BY131: =IF(BX131<>"",(IFERROR(SUMPRODUCT(LARGE($C131:$BQ131,{1,2,3,4,5,6,7,8})),"")),"") -> 
B132: PSC | AM132: 9 | BS132: =SUM($C132:$BR132) -> 9 | BT132: =COUNTA(C132:BQ132) -> 1 | BU132: =IF($BT132<=6,SUM($C132:$BQ132),SUMPRODUCT(LARGE($C132:$BQ132,{1,2,3,4,5,6}))) -> 9 | BV132: =IF(AND($BT132>=6,BU132=BU133),"Manual Calc Needed","") ->  | BW132: =IF(BV132= "","",IFERROR(SUMPRODUCT(LARGE($C132:$BQ132,{1,2,3,4})), "")) ->  | BX132: =IF(BW132<>"",(IFERROR(SUMPRODUCT(LARGE($C132:$BQ132,{1,2,3,4,5,6,7})),"")),"") ->  | BY132: =IF(BX132<>"",(IFERROR(SUMPRODUCT(LARGE($C132:$BQ132,{1,2,3,4,5,6,7,8})),"")),"") -> 
B133: PSCC | J133: 20 | K133: 14 | AT133: 8 | AU133: 12 | BS133: 54 | BT133: 4 | BU133: =IF($BT133<=6,SUM($C133:$BQ133),SUMPRODUCT(LARGE($C133:$BQ133,{1,2,3,4,5,6}))) -> 54 | BW133: =IF(BV133= "","",IFERROR(SUMPRODUCT(LARGE($C133:$BQ133,{1,2,3,4})), "")) ->  | BX133: =IF(BW133<>"",(IFERROR(SUMPRODUCT(LARGE($C133:$BQ133,{1,2,3,4,5,6,7})),"")),"") ->  | BY133: =IF(BX133<>"",(IFERROR(SUMPRODUCT(LARGE($C133:$BQ133,{1,2,3,4,5,6,7,8})),"")),"") -> 
B134: PSU | H134: 6 | BS134: 6 | BT134: 1 | BU134: =IF($BT134<=6,SUM($C134:$BQ134),SUMPRODUCT(LARGE($C134:$BQ134,{1,2,3,4,5,6}))) -> 6 | BW134: =IF(BV134= "","",IFERROR(SUMPRODUCT(LARGE($C134:$BQ134,{1,2,3,4})), "")) ->  | BX134: =IF(BW134<>"",(IFERROR(SUMPRODUCT(LARGE($C134:$BQ134,{1,2,3,4,5,6,7})),"")),"") ->  | BY134: =IF(BX134<>"",(IFERROR(SUMPRODUCT(LARGE($C134:$BQ134,{1,2,3,4,5,6,7,8})),"")),"") -> 
B135: QC | S135: 1 | BS135: 1 | BT135: 1 | BU135: =IF($BT135<=6,SUM($C135:$BQ135),SUMPRODUCT(LARGE($C135:$BQ135,{1,2,3,4,5,6}))) -> 1 | BW135: =IF(BV135= "","",IFERROR(SUMPRODUCT(LARGE($C135:$BQ135,{1,2,3,4})), "")) ->  | BX135: =IF(BW135<>"",(IFERROR(SUMPRODUCT(LARGE($C135:$BQ135,{1,2,3,4,5,6,7})),"")),"") ->  | BY135: =IF(BX135<>"",(IFERROR(SUMPRODUCT(LARGE($C135:$BQ135,{1,2,3,4,5,6,7,8})),"")),"") -> 
B136: RHCC | AD136: 12 | AH136: 8 | AI136: 6 | AL136: 14 | BB136: 5 | BS136: 45 | BT136: 5 | BU136: =IF($BT136<=6,SUM($C136:$BQ136),SUMPRODUCT(LARGE($C136:$BQ136,{1,2,3,4,5,6}))) -> 45 | BW136: =IF(BV136= "","",IFERROR(SUMPRODUCT(LARGE($C136:$BQ136,{1,2,3,4})), "")) ->  | BX136: =IF(BW136<>"",(IFERROR(SUMPRODUCT(LARGE($C136:$BQ136,{1,2,3,4,5,6,7})),"")),"") ->  | BY136: =IF(BX136<>"",(IFERROR(SUMPRODUCT(LARGE($C136:$BQ136,{1,2,3,4,5,6,7,8})),"")),"") -> 
B137: RU | BC137: 5 | BS137: 5 | BT137: 1 | BU137: =IF($BT137<=6,SUM($C137:$BQ137),SUMPRODUCT(LARGE($C137:$BQ137,{1,2,3,4,5,6}))) -> 5 | BW137: =IF(BV137= "","",IFERROR(SUMPRODUCT(LARGE($C137:$BQ137,{1,2,3,4})), "")) ->  | BX137: =IF(BW137<>"",(IFERROR(SUMPRODUCT(LARGE($C137:$BQ137,{1,2,3,4,5,6,7})),"")),"") ->  | BY137: =IF(BX137<>"",(IFERROR(SUMPRODUCT(LARGE($C137:$BQ137,{1,2,3,4,5,6,7,8})),"")),"") -> 
B138: RUN | BC138: 2 | BS138: 2 | BT138: 1 | BU138: =IF($BT138<=6,SUM($C138:$BQ138),SUMPRODUCT(LARGE($C138:$BQ138,{1,2,3,4,5,6}))) -> 2 | BW138: =IF(BV138= "","",IFERROR(SUMPRODUCT(LARGE($C138:$BQ138,{1,2,3,4})), "")) ->  | BX138: =IF(BW138<>"",(IFERROR(SUMPRODUCT(LARGE($C138:$BQ138,{1,2,3,4,5,6,7})),"")),"") ->  | BY138: =IF(BX138<>"",(IFERROR(SUMPRODUCT(LARGE($C138:$BQ138,{1,2,3,4,5,6,7,8})),"")),"") -> 
B139: SAC | S139: 11 | BA139: 4 | BJ139: 1 | BK139: 3 | BS139: 19 | BT139: 4 | BU139: =IF($BT139<=6,SUM($C139:$BQ139),SUMPRODUCT(LARGE($C139:$BQ139,{1,2,3,4,5,6}))) -> 19 | BW139: =IF(BV139= "","",IFERROR(SUMPRODUCT(LARGE($C139:$BQ139,{1,2,3,4})), "")) ->  | BX139: =IF(BW139<>"",(IFERROR(SUMPRODUCT(LARGE($C139:$BQ139,{1,2,3,4,5,6,7})),"")),"") ->  | BY139: =IF(BX139<>"",(IFERROR(SUMPRODUCT(LARGE($C139:$BQ139,{1,2,3,4,5,6,7,8})),"")),"") -> 
B140: SaCC | AC140: 7 | AD140: 13 | AI140: 16 | BS140: 36 | BT140: 3 | BU140: =IF($BT140<=6,SUM($C140:$BQ140),SUMPRODUCT(LARGE($C140:$BQ140,{1,2,3,4,5,6}))) -> 36 | BW140: =IF(BV140= "","",IFERROR(SUMPRODUCT(LARGE($C140:$BQ140,{1,2,3,4})), "")) ->  | BX140: =IF(BW140<>"",(IFERROR(SUMPRODUCT(LARGE($C140:$BQ140,{1,2,3,4,5,6,7})),"")),"") ->  | BY140: =IF(BX140<>"",(IFERROR(SUMPRODUCT(LARGE($C140:$BQ140,{1,2,3,4,5,6,7,8})),"")),"") -> 
B141: SadC | AD141: 17 | AI141: 3 | AZ141: 20 | BS141: 40 | BT141: 3 | BU141: =IF($BT141<=6,SUM($C141:$BQ141),SUMPRODUCT(LARGE($C141:$BQ141,{1,2,3,4,5,6}))) -> 40 | BW141: =IF(BV141= "","",IFERROR(SUMPRODUCT(LARGE($C141:$BQ141,{1,2,3,4})), "")) ->  | BX141: =IF(BW141<>"",(IFERROR(SUMPRODUCT(LARGE($C141:$BQ141,{1,2,3,4,5,6,7})),"")),"") ->  | BY141: =IF(BX141<>"",(IFERROR(SUMPRODUCT(LARGE($C141:$BQ141,{1,2,3,4,5,6,7,8})),"")),"") -> 
B142: SBU | D142: 11 | O142: 16 | P142: 13 | AB142: 6 | BE142: 18 | BH142: 21 | BI142: 11 | BS142: 96 | BT142: 7 | BU142: =IF($BT142<=6,SUM($C142:$BQ142),SUMPRODUCT(LARGE($C142:$BQ142,{1,2,3,4,5,6}))) -> 90 | BW142: =IF(BV142= "","",IFERROR(SUMPRODUCT(LARGE($C142:$BQ142,{1,2,3,4})), "")) ->  | BX142: =IF(BW142<>"",(IFERROR(SUMPRODUCT(LARGE($C142:$BQ142,{1,2,3,4,5,6,7})),"")),"") ->  | BY142: =IF(BX142<>"",(IFERROR(SUMPRODUCT(LARGE($C142:$BQ142,{1,2,3,4,5,6,7,8})),"")),"") -> 
B143: SC | D143: 34 | P143: 33 | T143: 1 | AB143: 5 | BE143: 40 | BH143: 18 | BI143: 26 | BS143: 157 | BT143: 7 | BU143: =IF($BT143<=6,SUM($C143:$BQ143),SUMPRODUCT(LARGE($C143:$BQ143,{1,2,3,4,5,6}))) -> 156 | BW143: =IF(BV143= "","",IFERROR(SUMPRODUCT(LARGE($C143:$BQ143,{1,2,3,4})), "")) ->  | BX143: =IF(BW143<>"",(IFERROR(SUMPRODUCT(LARGE($C143:$BQ143,{1,2,3,4,5,6,7})),"")),"") ->  | BY143: =IF(BX143<>"",(IFERROR(SUMPRODUCT(LARGE($C143:$BQ143,{1,2,3,4,5,6,7,8})),"")),"") -> 
B144: SCC | T144: 2 | BS144: 2 | BT144: 1 | BU144: =IF($BT144<=6,SUM($C144:$BQ144),SUMPRODUCT(LARGE($C144:$BQ144,{1,2,3,4,5,6}))) -> 2 | BW144: =IF(BV144= "","",IFERROR(SUMPRODUCT(LARGE($C144:$BQ144,{1,2,3,4})), "")) ->  | BX144: =IF(BW144<>"",(IFERROR(SUMPRODUCT(LARGE($C144:$BQ144,{1,2,3,4,5,6,7})),"")),"") ->  | BY144: =IF(BX144<>"",(IFERROR(SUMPRODUCT(LARGE($C144:$BQ144,{1,2,3,4,5,6,7,8})),"")),"") -> 
B145: SCSU | BA145: 12 | BS145: 12 | BT145: 1 | BU145: =IF($BT145<=6,SUM($C145:$BQ145),SUMPRODUCT(LARGE($C145:$BQ145,{1,2,3,4,5,6}))) -> 12 | BW145: =IF(BV145= "","",IFERROR(SUMPRODUCT(LARGE($C145:$BQ145,{1,2,3,4})), "")) ->  | BX145: =IF(BW145<>"",(IFERROR(SUMPRODUCT(LARGE($C145:$BQ145,{1,2,3,4,5,6,7})),"")),"") ->  | BY145: =IF(BX145<>"",(IFERROR(SUMPRODUCT(LARGE($C145:$BQ145,{1,2,3,4,5,6,7,8})),"")),"") -> 
B146: ScU | C146: 2 | AW146: 11 | BS146: 13 | BT146: 2 | BU146: =IF($BT146<=6,SUM($C146:$BQ146),SUMPRODUCT(LARGE($C146:$BQ146,{1,2,3,4,5,6}))) -> 13 | BW146: =IF(BV146= "","",IFERROR(SUMPRODUCT(LARGE($C146:$BQ146,{1,2,3,4})), "")) ->  | BX146: =IF(BW146<>"",(IFERROR(SUMPRODUCT(LARGE($C146:$BQ146,{1,2,3,4,5,6,7})),"")),"") ->  | BY146: =IF(BX146<>"",(IFERROR(SUMPRODUCT(LARGE($C146:$BQ146,{1,2,3,4,5,6,7,8})),"")),"") -> 
B147: SDMC | AD147: 6 | BS147: 6 | BT147: 1 | BU147: =IF($BT147<=6,SUM($C147:$BQ147),SUMPRODUCT(LARGE($C147:$BQ147,{1,2,3,4,5,6}))) -> 6 | BW147: =IF(BV147= "","",IFERROR(SUMPRODUCT(LARGE($C147:$BQ147,{1,2,3,4})), "")) ->  | BX147: =IF(BW147<>"",(IFERROR(SUMPRODUCT(LARGE($C147:$BQ147,{1,2,3,4,5,6,7})),"")),"") ->  | BY147: =IF(BX147<>"",(IFERROR(SUMPRODUCT(LARGE($C147:$BQ147,{1,2,3,4,5,6,7,8})),"")),"") -> 
B148: SFCC | P148: 19 | AA148: 19 | AJ148: 0 | BE148: 3 | BH148: 2 | BS148: 43 | BT148: 5 | BU148: =IF($BT148<=6,SUM($C148:$BQ148),SUMPRODUCT(LARGE($C148:$BQ148,{1,2,3,4,5,6}))) -> 43 | BW148: =IF(BV148= "","",IFERROR(SUMPRODUCT(LARGE($C148:$BQ148,{1,2,3,4})), "")) ->  | BX148: =IF(BW148<>"",(IFERROR(SUMPRODUCT(LARGE($C148:$BQ148,{1,2,3,4,5,6,7})),"")),"") ->  | BY148: =IF(BX148<>"",(IFERROR(SUMPRODUCT(LARGE($C148:$BQ148,{1,2,3,4,5,6,7,8})),"")),"") -> 
B149: SHU | BI149: 2 | BS149: 2 | BT149: 1 | BU149: =IF($BT149<=6,SUM($C149:$BQ149),SUMPRODUCT(LARGE($C149:$BQ149,{1,2,3,4,5,6}))) -> 2 | BW149: =IF(BV149= "","",IFERROR(SUMPRODUCT(LARGE($C149:$BQ149,{1,2,3,4})), "")) ->  | BX149: =IF(BW149<>"",(IFERROR(SUMPRODUCT(LARGE($C149:$BQ149,{1,2,3,4,5,6,7})),"")),"") ->  | BY149: =IF(BX149<>"",(IFERROR(SUMPRODUCT(LARGE($C149:$BQ149,{1,2,3,4,5,6,7,8})),"")),"") -> 
B150: SJSD | BM150: 7 | BN150: 6 | BO150: 7 | BS150: 20 | BT150: 3 | BU150: =IF($BT150<=6,SUM($C150:$BQ150),SUMPRODUCT(LARGE($C150:$BQ150,{1,2,3,4,5,6}))) -> 20 | BW150: =IF(BV150= "","",IFERROR(SUMPRODUCT(LARGE($C150:$BQ150,{1,2,3,4})), "")) ->  | BX150: =IF(BW150<>"",(IFERROR(SUMPRODUCT(LARGE($C150:$BQ150,{1,2,3,4,5,6,7})),"")),"") ->  | BY150: =IF(BX150<>"",(IFERROR(SUMPRODUCT(LARGE($C150:$BQ150,{1,2,3,4,5,6,7,8})),"")),"") -> 
B151: SJSU | AN151: 6 | BC151: 4 | BL151: 16 | BM151: 14 | BN151: 17 | BO151: 12 | BS151: 69 | BT151: 6 | BU151: =IF($BT151<=6,SUM($C151:$BQ151),SUMPRODUCT(LARGE($C151:$BQ151,{1,2,3,4,5,6}))) -> 69 | BW151: =IF(BV151= "","",IFERROR(SUMPRODUCT(LARGE($C151:$BQ151,{1,2,3,4})), "")) ->  | BX151: =IF(BW151<>"",(IFERROR(SUMPRODUCT(LARGE($C151:$BQ151,{1,2,3,4,5,6,7})),"")),"") ->  | BY151: =IF(BX151<>"",(IFERROR(SUMPRODUCT(LARGE($C151:$BQ151,{1,2,3,4,5,6,7,8})),"")),"") -> 
B152: SJU | R152: 6 | BS152: 6 | BT152: 1 | BU152: =IF($BT152<=6,SUM($C152:$BQ152),SUMPRODUCT(LARGE($C152:$BQ152,{1,2,3,4,5,6}))) -> 6 | BW152: =IF(BV152= "","",IFERROR(SUMPRODUCT(LARGE($C152:$BQ152,{1,2,3,4})), "")) ->  | BX152: =IF(BW152<>"",(IFERROR(SUMPRODUCT(LARGE($C152:$BQ152,{1,2,3,4,5,6,7})),"")),"") ->  | BY152: =IF(BX152<>"",(IFERROR(SUMPRODUCT(LARGE($C152:$BQ152,{1,2,3,4,5,6,7,8})),"")),"") -> 
B153: SkyC | AN153: 6 | BM153: 4 | BS153: 10 | BT153: 2 | BU153: =IF($BT153<=6,SUM($C153:$BQ153),SUMPRODUCT(LARGE($C153:$BQ153,{1,2,3,4,5,6}))) -> 10 | BW153: =IF(BV153= "","",IFERROR(SUMPRODUCT(LARGE($C153:$BQ153,{1,2,3,4})), "")) ->  | BX153: =IF(BW153<>"",(IFERROR(SUMPRODUCT(LARGE($C153:$BQ153,{1,2,3,4,5,6,7})),"")),"") ->  | BY153: =IF(BX153<>"",(IFERROR(SUMPRODUCT(LARGE($C153:$BQ153,{1,2,3,4,5,6,7,8})),"")),"") -> 
B154: SMC | AH154: 10 | BS154: 10 | BT154: 1 | BU154: =IF($BT154<=6,SUM($C154:$BQ154),SUMPRODUCT(LARGE($C154:$BQ154,{1,2,3,4,5,6}))) -> 10 | BW154: =IF(BV154= "","",IFERROR(SUMPRODUCT(LARGE($C154:$BQ154,{1,2,3,4})), "")) ->  | BX154: =IF(BW154<>"",(IFERROR(SUMPRODUCT(LARGE($C154:$BQ154,{1,2,3,4,5,6,7})),"")),"") ->  | BY154: =IF(BX154<>"",(IFERROR(SUMPRODUCT(LARGE($C154:$BQ154,{1,2,3,4,5,6,7,8})),"")),"") -> 
B155: SMSU | P155: 1 | BS155: 1 | BT155: 1 | BU155: =IF($BT155<=6,SUM($C155:$BQ155),SUMPRODUCT(LARGE($C155:$BQ155,{1,2,3,4,5,6}))) -> 1 | BW155: =IF(BV155= "","",IFERROR(SUMPRODUCT(LARGE($C155:$BQ155,{1,2,3,4})), "")) ->  | BX155: =IF(BW155<>"",(IFERROR(SUMPRODUCT(LARGE($C155:$BQ155,{1,2,3,4,5,6,7})),"")),"") ->  | BY155: =IF(BX155<>"",(IFERROR(SUMPRODUCT(LARGE($C155:$BQ155,{1,2,3,4,5,6,7,8})),"")),"") -> 
B156: SMU | C156: 43 | I156: 22 | O156: 17 | W156: 22 | X156: 8 | AO156: 24 | AP156: 26 | AS156: 37 | AY156: 19 | BC156: 16 | BS156: 234 | BT156: 10 | BU156: =IF($BT156<=6,SUM($C156:$BQ156),SUMPRODUCT(LARGE($C156:$BQ156,{1,2,3,4,5,6}))) -> 174 | BW156: =IF(BV156= "","",IFERROR(SUMPRODUCT(LARGE($C156:$BQ156,{1,2,3,4})), "")) ->  | BX156: =IF(BW156<>"",(IFERROR(SUMPRODUCT(LARGE($C156:$BQ156,{1,2,3,4,5,6,7})),"")),"") ->  | BY156: =IF(BX156<>"",(IFERROR(SUMPRODUCT(LARGE($C156:$BQ156,{1,2,3,4,5,6,7,8})),"")),"") -> 
B157: SoCC | AD157: 8 | AN157: 6 | BL157: 1 | BM157: 3 | BN157: 6 | BO157: 2 | BS157: 26 | BT157: 6 | BU157: =IF($BT157<=6,SUM($C157:$BQ157),SUMPRODUCT(LARGE($C157:$BQ157,{1,2,3,4,5,6}))) -> 26 | BW157: =IF(BV157= "","",IFERROR(SUMPRODUCT(LARGE($C157:$BQ157,{1,2,3,4})), "")) ->  | BX157: =IF(BW157<>"",(IFERROR(SUMPRODUCT(LARGE($C157:$BQ157,{1,2,3,4,5,6,7})),"")),"") ->  | BY157: =IF(BX157<>"",(IFERROR(SUMPRODUCT(LARGE($C157:$BQ157,{1,2,3,4,5,6,7,8})),"")),"") -> 
B158: SOSU | W158: 6 | X158: 5 | BD158: 4 | BS158: 15 | BT158: 3 | BU158: =IF($BT158<=6,SUM($C158:$BQ158),SUMPRODUCT(LARGE($C158:$BQ158,{1,2,3,4,5,6}))) -> 15 | BW158: =IF(BV158= "","",IFERROR(SUMPRODUCT(LARGE($C158:$BQ158,{1,2,3,4})), "")) ->  | BX158: =IF(BW158<>"",(IFERROR(SUMPRODUCT(LARGE($C158:$BQ158,{1,2,3,4,5,6,7})),"")),"") ->  | BY158: =IF(BX158<>"",(IFERROR(SUMPRODUCT(LARGE($C158:$BQ158,{1,2,3,4,5,6,7,8})),"")),"") -> 
B159: SpC | AX159: 3 | BK159: 1 | BS159: 4 | BT159: 2 | BU159: =IF($BT159<=6,SUM($C159:$BQ159),SUMPRODUCT(LARGE($C159:$BQ159,{1,2,3,4,5,6}))) -> 4 | BW159: =IF(BV159= "","",IFERROR(SUMPRODUCT(LARGE($C159:$BQ159,{1,2,3,4})), "")) ->  | BX159: =IF(BW159<>"",(IFERROR(SUMPRODUCT(LARGE($C159:$BQ159,{1,2,3,4,5,6,7})),"")),"") ->  | BY159: =IF(BX159<>"",(IFERROR(SUMPRODUCT(LARGE($C159:$BQ159,{1,2,3,4,5,6,7,8})),"")),"") -> 
B160: SSU | AN160: 14 | BS160: 14 | BT160: 1 | BU160: =IF($BT160<=6,SUM($C160:$BQ160),SUMPRODUCT(LARGE($C160:$BQ160,{1,2,3,4,5,6}))) -> 14 | BW160: =IF(BV160= "","",IFERROR(SUMPRODUCT(LARGE($C160:$BQ160,{1,2,3,4})), "")) ->  | BX160: =IF(BW160<>"",(IFERROR(SUMPRODUCT(LARGE($C160:$BQ160,{1,2,3,4,5,6,7})),"")),"") ->  | BY160: =IF(BX160<>"",(IFERROR(SUMPRODUCT(LARGE($C160:$BQ160,{1,2,3,4,5,6,7,8})),"")),"") -> 
B161: StC | W161: 7 | BI161: 8 | BS161: 15 | BT161: 2 | BU161: =IF($BT161<=6,SUM($C161:$BQ161),SUMPRODUCT(LARGE($C161:$BQ161,{1,2,3,4,5,6}))) -> 15 | BW161: =IF(BV161= "","",IFERROR(SUMPRODUCT(LARGE($C161:$BQ161,{1,2,3,4})), "")) ->  | BX161: =IF(BW161<>"",(IFERROR(SUMPRODUCT(LARGE($C161:$BQ161,{1,2,3,4,5,6,7})),"")),"") ->  | BY161: =IF(BX161<>"",(IFERROR(SUMPRODUCT(LARGE($C161:$BQ161,{1,2,3,4,5,6,7,8})),"")),"") -> 
B162: TaCC | Q162: 13 | AA162: 29 | BN162: 17 | BS162: 59 | BT162: 3 | BU162: =IF($BT162<=6,SUM($C162:$BQ162),SUMPRODUCT(LARGE($C162:$BQ162,{1,2,3,4,5,6}))) -> 59 | BW162: =IF(BV162= "","",IFERROR(SUMPRODUCT(LARGE($C162:$BQ162,{1,2,3,4})), "")) ->  | BX162: =IF(BW162<>"",(IFERROR(SUMPRODUCT(LARGE($C162:$BQ162,{1,2,3,4,5,6,7})),"")),"") ->  | BY162: =IF(BX162<>"",(IFERROR(SUMPRODUCT(LARGE($C162:$BQ162,{1,2,3,4,5,6,7,8})),"")),"") -> 
B163: TCC | D163: 11 | X163: 12 | BA163: 2 | BD163: 14 | BS163: 39 | BT163: 4 | BU163: =IF($BT163<=6,SUM($C163:$BQ163),SUMPRODUCT(LARGE($C163:$BQ163,{1,2,3,4,5,6}))) -> 39 | BW163: =IF(BV163= "","",IFERROR(SUMPRODUCT(LARGE($C163:$BQ163,{1,2,3,4})), "")) ->  | BX163: =IF(BW163<>"",(IFERROR(SUMPRODUCT(LARGE($C163:$BQ163,{1,2,3,4,5,6,7})),"")),"") ->  | BY163: =IF(BX163<>"",(IFERROR(SUMPRODUCT(LARGE($C163:$BQ163,{1,2,3,4,5,6,7,8})),"")),"") -> 
B164: TCU | I164: 18 | X164: 11 | AO164: 18 | BD164: 29 | BI164: 22 | BS164: 98 | BT164: 5 | BU164: =IF($BT164<=6,SUM($C164:$BQ164),SUMPRODUCT(LARGE($C164:$BQ164,{1,2,3,4,5,6}))) -> 98 | BW164: =IF(BV164= "","",IFERROR(SUMPRODUCT(LARGE($C164:$BQ164,{1,2,3,4})), "")) ->  | BX164: =IF(BW164<>"",(IFERROR(SUMPRODUCT(LARGE($C164:$BQ164,{1,2,3,4,5,6,7})),"")),"") ->  | BY164: =IF(BX164<>"",(IFERROR(SUMPRODUCT(LARGE($C164:$BQ164,{1,2,3,4,5,6,7,8})),"")),"") -> 
B165: TranSU | BI165: 3 | BS165: 3 | BT165: 1 | BU165: =IF($BT165<=6,SUM($C165:$BQ165),SUMPRODUCT(LARGE($C165:$BQ165,{1,2,3,4,5,6}))) -> 3 | BW165: =IF(BV165= "","",IFERROR(SUMPRODUCT(LARGE($C165:$BQ165,{1,2,3,4})), "")) ->  | BX165: =IF(BW165<>"",(IFERROR(SUMPRODUCT(LARGE($C165:$BQ165,{1,2,3,4,5,6,7})),"")),"") ->  | BY165: =IF(BX165<>"",(IFERROR(SUMPRODUCT(LARGE($C165:$BQ165,{1,2,3,4,5,6,7,8})),"")),"") -> 
B166: TrU | Q166: 6 | AA166: 8 | BA166: 6 | BS166: 20 | BT166: 3 | BU166: =IF($BT166<=6,SUM($C166:$BQ166),SUMPRODUCT(LARGE($C166:$BQ166,{1,2,3,4,5,6}))) -> 20 | BW166: =IF(BV166= "","",IFERROR(SUMPRODUCT(LARGE($C166:$BQ166,{1,2,3,4})), "")) ->  | BX166: =IF(BW166<>"",(IFERROR(SUMPRODUCT(LARGE($C166:$BQ166,{1,2,3,4,5,6,7})),"")),"") ->  | BY166: =IF(BX166<>"",(IFERROR(SUMPRODUCT(LARGE($C166:$BQ166,{1,2,3,4,5,6,7,8})),"")),"") -> 
B167: TruSU | BH167: 8 | BS167: 8 | BT167: 1 | BU167: =IF($BT167<=6,SUM($C167:$BQ167),SUMPRODUCT(LARGE($C167:$BQ167,{1,2,3,4,5,6}))) -> 8 | BW167: =IF(BV167= "","",IFERROR(SUMPRODUCT(LARGE($C167:$BQ167,{1,2,3,4})), "")) ->  | BX167: =IF(BW167<>"",(IFERROR(SUMPRODUCT(LARGE($C167:$BQ167,{1,2,3,4,5,6,7})),"")),"") ->  | BY167: =IF(BX167<>"",(IFERROR(SUMPRODUCT(LARGE($C167:$BQ167,{1,2,3,4,5,6,7,8})),"")),"") -> 
B168: TSU | P168: 14 | R168: 10 | U168: 27 | AU168: 18 | BC168: 1 | BS168: 70 | BT168: 5 | BU168: =IF($BT168<=6,SUM($C168:$BQ168),SUMPRODUCT(LARGE($C168:$BQ168,{1,2,3,4,5,6}))) -> 70 | BW168: =IF(BV168= "","",IFERROR(SUMPRODUCT(LARGE($C168:$BQ168,{1,2,3,4})), "")) ->  | BX168: =IF(BW168<>"",(IFERROR(SUMPRODUCT(LARGE($C168:$BQ168,{1,2,3,4,5,6,7})),"")),"") ->  | BY168: =IF(BX168<>"",(IFERROR(SUMPRODUCT(LARGE($C168:$BQ168,{1,2,3,4,5,6,7,8})),"")),"") -> 
B169: TTU | J169: 10 | AX169: 3 | BS169: 13 | BT169: 2 | BU169: =IF($BT169<=6,SUM($C169:$BQ169),SUMPRODUCT(LARGE($C169:$BQ169,{1,2,3,4,5,6}))) -> 13 | BW169: =IF(BV169= "","",IFERROR(SUMPRODUCT(LARGE($C169:$BQ169,{1,2,3,4})), "")) ->  | BX169: =IF(BW169<>"",(IFERROR(SUMPRODUCT(LARGE($C169:$BQ169,{1,2,3,4,5,6,7})),"")),"") ->  | BY169: =IF(BX169<>"",(IFERROR(SUMPRODUCT(LARGE($C169:$BQ169,{1,2,3,4,5,6,7,8})),"")),"") -> 
B170: TU | AC170: 5 | AK170: 11 | AL170: 38 | BS170: 54 | BT170: 3 | BU170: =IF($BT170<=6,SUM($C170:$BQ170),SUMPRODUCT(LARGE($C170:$BQ170,{1,2,3,4,5,6}))) -> 54 | BW170: =IF(BV170= "","",IFERROR(SUMPRODUCT(LARGE($C170:$BQ170,{1,2,3,4})), "")) ->  | BX170: =IF(BW170<>"",(IFERROR(SUMPRODUCT(LARGE($C170:$BQ170,{1,2,3,4,5,6,7})),"")),"") ->  | BY170: =IF(BX170<>"",(IFERROR(SUMPRODUCT(LARGE($C170:$BQ170,{1,2,3,4,5,6,7,8})),"")),"") -> 
B171: TuU | E171: 4 | BJ171: 4 | BS171: 8 | BT171: 2 | BU171: =IF($BT171<=6,SUM($C171:$BQ171),SUMPRODUCT(LARGE($C171:$BQ171,{1,2,3,4,5,6}))) -> 8 | BW171: =IF(BV171= "","",IFERROR(SUMPRODUCT(LARGE($C171:$BQ171,{1,2,3,4})), "")) ->  | BX171: =IF(BW171<>"",(IFERROR(SUMPRODUCT(LARGE($C171:$BQ171,{1,2,3,4,5,6,7})),"")),"") ->  | BY171: =IF(BX171<>"",(IFERROR(SUMPRODUCT(LARGE($C171:$BQ171,{1,2,3,4,5,6,7,8})),"")),"") -> 
B172: TxSU | G172: 5 | H172: 5 | BA172: 10 | BS172: 20 | BT172: 3 | BU172: =IF($BT172<=6,SUM($C172:$BQ172),SUMPRODUCT(LARGE($C172:$BQ172,{1,2,3,4,5,6}))) -> 20 | BW172: =IF(BV172= "","",IFERROR(SUMPRODUCT(LARGE($C172:$BQ172,{1,2,3,4})), "")) ->  | BX172: =IF(BW172<>"",(IFERROR(SUMPRODUCT(LARGE($C172:$BQ172,{1,2,3,4,5,6,7})),"")),"") ->  | BY172: =IF(BX172<>"",(IFERROR(SUMPRODUCT(LARGE($C172:$BQ172,{1,2,3,4,5,6,7,8})),"")),"") -> 
B173: TxTU | I173: 6 | S173: 2 | BE173: 6 | BI173: 6 | BS173: 20 | BT173: 4 | BU173: =IF($BT173<=6,SUM($C173:$BQ173),SUMPRODUCT(LARGE($C173:$BQ173,{1,2,3,4,5,6}))) -> 20 | BW173: =IF(BV173= "","",IFERROR(SUMPRODUCT(LARGE($C173:$BQ173,{1,2,3,4})), "")) ->  | BX173: =IF(BW173<>"",(IFERROR(SUMPRODUCT(LARGE($C173:$BQ173,{1,2,3,4,5,6,7})),"")),"") ->  | BY173: =IF(BX173<>"",(IFERROR(SUMPRODUCT(LARGE($C173:$BQ173,{1,2,3,4,5,6,7,8})),"")),"") -> 
B174: UA | C174: 34 | D174: 51 | O174: 59 | V174: 27 | AO174: 57 | AP174: 40 | AS174: 45 | AX174: 36 | BS174: 349 | BT174: 8 | BU174: =IF($BT174<=6,SUM($C174:$BQ174),SUMPRODUCT(LARGE($C174:$BQ174,{1,2,3,4,5,6}))) -> 288 | BW174: =IF(BV174= "","",IFERROR(SUMPRODUCT(LARGE($C174:$BQ174,{1,2,3,4})), "")) ->  | BX174: =IF(BW174<>"",(IFERROR(SUMPRODUCT(LARGE($C174:$BQ174,{1,2,3,4,5,6,7})),"")),"") ->  | BY174: =IF(BX174<>"",(IFERROR(SUMPRODUCT(LARGE($C174:$BQ174,{1,2,3,4,5,6,7,8})),"")),"") -> 
B175: UACCB | O175: 8 | AP175: 5 | AS175: 7 | BS175: 20 | BT175: 3 | BU175: =IF($BT175<=6,SUM($C175:$BQ175),SUMPRODUCT(LARGE($C175:$BQ175,{1,2,3,4,5,6}))) -> 20 | BW175: =IF(BV175= "","",IFERROR(SUMPRODUCT(LARGE($C175:$BQ175,{1,2,3,4})), "")) ->  | BX175: =IF(BW175<>"",(IFERROR(SUMPRODUCT(LARGE($C175:$BQ175,{1,2,3,4,5,6,7})),"")),"") ->  | BY175: =IF(BX175<>"",(IFERROR(SUMPRODUCT(LARGE($C175:$BQ175,{1,2,3,4,5,6,7,8})),"")),"") -> 
B176: UAM | AS176: 2 | AX176: 3 | AY176: 1 | BS176: 6 | BT176: 3 | BU176: =IF($BT176<=6,SUM($C176:$BQ176),SUMPRODUCT(LARGE($C176:$BQ176,{1,2,3,4,5,6}))) -> 6 | BW176: =IF(BV176= "","",IFERROR(SUMPRODUCT(LARGE($C176:$BQ176,{1,2,3,4})), "")) ->  | BX176: =IF(BW176<>"",(IFERROR(SUMPRODUCT(LARGE($C176:$BQ176,{1,2,3,4,5,6,7})),"")),"") ->  | BY176: =IF(BX176<>"",(IFERROR(SUMPRODUCT(LARGE($C176:$BQ176,{1,2,3,4,5,6,7,8})),"")),"") -> 
B177: Ubama | H177: 13 | U177: 6 | AT177: 13 | BA177: 10 | BS177: 42 | BT177: 4 | BU177: =IF($BT177<=6,SUM($C177:$BQ177),SUMPRODUCT(LARGE($C177:$BQ177,{1,2,3,4,5,6}))) -> 42 | BW177: =IF(BV177= "","",IFERROR(SUMPRODUCT(LARGE($C177:$BQ177,{1,2,3,4})), "")) ->  | BX177: =IF(BW177<>"",(IFERROR(SUMPRODUCT(LARGE($C177:$BQ177,{1,2,3,4,5,6,7})),"")),"") ->  | BY177: =IF(BX177<>"",(IFERROR(SUMPRODUCT(LARGE($C177:$BQ177,{1,2,3,4,5,6,7,8})),"")),"") -> 
B178: UCA | C178: 17 | K178: 5 | O178: 24 | W178: 9 | AO178: 13 | AS178: 20 | BS178: 88 | BT178: 6 | BU178: =IF($BT178<=6,SUM($C178:$BQ178),SUMPRODUCT(LARGE($C178:$BQ178,{1,2,3,4,5,6}))) -> 88 | BW178: =IF(BV178= "","",IFERROR(SUMPRODUCT(LARGE($C178:$BQ178,{1,2,3,4})), "")) ->  | BX178: =IF(BW178<>"",(IFERROR(SUMPRODUCT(LARGE($C178:$BQ178,{1,2,3,4,5,6,7})),"")),"") ->  | BY178: =IF(BX178<>"",(IFERROR(SUMPRODUCT(LARGE($C178:$BQ178,{1,2,3,4,5,6,7,8})),"")),"") -> 
B179: UCB | AL179: 2 | BS179: 2 | BT179: 1 | BU179: =IF($BT179<=6,SUM($C179:$BQ179),SUMPRODUCT(LARGE($C179:$BQ179,{1,2,3,4,5,6}))) -> 2 | BW179: =IF(BV179= "","",IFERROR(SUMPRODUCT(LARGE($C179:$BQ179,{1,2,3,4})), "")) ->  | BX179: =IF(BW179<>"",(IFERROR(SUMPRODUCT(LARGE($C179:$BQ179,{1,2,3,4,5,6,7})),"")),"") ->  | BY179: =IF(BX179<>"",(IFERROR(SUMPRODUCT(LARGE($C179:$BQ179,{1,2,3,4,5,6,7,8})),"")),"") -> 
B180: UCF | J180: 4 | Q180: 26 | AA180: 21 | BI180: 22 | BS180: 73 | BT180: 4 | BU180: =IF($BT180<=6,SUM($C180:$BQ180),SUMPRODUCT(LARGE($C180:$BQ180,{1,2,3,4,5,6}))) -> 73 | BW180: =IF(BV180= "","",IFERROR(SUMPRODUCT(LARGE($C180:$BQ180,{1,2,3,4})), "")) ->  | BX180: =IF(BW180<>"",(IFERROR(SUMPRODUCT(LARGE($C180:$BQ180,{1,2,3,4,5,6,7})),"")),"") ->  | BY180: =IF(BX180<>"",(IFERROR(SUMPRODUCT(LARGE($C180:$BQ180,{1,2,3,4,5,6,7,8})),"")),"") -> 
B181: UCM | D181: 44 | P181: 25 | Q181: 10 | S181: 18 | AA181: 20 | AB181: 5 | BE181: 42 | BH181: 42 | BI181: 30 | BS181: 236 | BT181: 9 | BU181: =IF($BT181<=6,SUM($C181:$BQ181),SUMPRODUCT(LARGE($C181:$BQ181,{1,2,3,4,5,6}))) -> 203 | BW181: =IF(BV181= "","",IFERROR(SUMPRODUCT(LARGE($C181:$BQ181,{1,2,3,4})), "")) ->  | BX181: =IF(BW181<>"",(IFERROR(SUMPRODUCT(LARGE($C181:$BQ181,{1,2,3,4,5,6,7})),"")),"") ->  | BY181: =IF(BX181<>"",(IFERROR(SUMPRODUCT(LARGE($C181:$BQ181,{1,2,3,4,5,6,7,8})),"")),"") -> 
B182: UCSD | V182: 12 | AC182: 15 | AD182: 66 | AI182: 54 | AK182: 14 | AL182: 45 | BB182: 53 | BI182: 29 | BS182: 288 | BT182: 8 | BU182: =IF($BT182<=6,SUM($C182:$BQ182),SUMPRODUCT(LARGE($C182:$BQ182,{1,2,3,4,5,6}))) -> 262 | BW182: =IF(BV182= "","",IFERROR(SUMPRODUCT(LARGE($C182:$BQ182,{1,2,3,4})), "")) ->  | BX182: =IF(BW182<>"",(IFERROR(SUMPRODUCT(LARGE($C182:$BQ182,{1,2,3,4,5,6,7})),"")),"") ->  | BY182: =IF(BX182<>"",(IFERROR(SUMPRODUCT(LARGE($C182:$BQ182,{1,2,3,4,5,6,7,8})),"")),"") -> 
B183: UCSF | BS183: 0 | BT183: 0 | BU183: =IF($BT183<=6,SUM($C183:$BQ183),SUMPRODUCT(LARGE($C183:$BQ183,{1,2,3,4,5,6}))) -> 0 | BW183: =IF(BV183= "","",IFERROR(SUMPRODUCT(LARGE($C183:$BQ183,{1,2,3,4})), "")) ->  | BX183: =IF(BW183<>"",(IFERROR(SUMPRODUCT(LARGE($C183:$BQ183,{1,2,3,4,5,6,7})),"")),"") ->  | BY183: =IF(BX183<>"",(IFERROR(SUMPRODUCT(LARGE($C183:$BQ183,{1,2,3,4,5,6,7,8})),"")),"") -> 
B184: UF | Q184: 18 | AA184: 11 | BS184: 29 | BT184: 2 | BU184: =IF($BT184<=6,SUM($C184:$BQ184),SUMPRODUCT(LARGE($C184:$BQ184,{1,2,3,4,5,6}))) -> 29 | BW184: =IF(BV184= "","",IFERROR(SUMPRODUCT(LARGE($C184:$BQ184,{1,2,3,4})), "")) ->  | BX184: =IF(BW184<>"",(IFERROR(SUMPRODUCT(LARGE($C184:$BQ184,{1,2,3,4,5,6,7})),"")),"") ->  | BY184: =IF(BX184<>"",(IFERROR(SUMPRODUCT(LARGE($C184:$BQ184,{1,2,3,4,5,6,7,8})),"")),"") -> 
B185: UI | BC185: 0 | BS185: 0 | BT185: 1 | BU185: =IF($BT185<=6,SUM($C185:$BQ185),SUMPRODUCT(LARGE($C185:$BQ185,{1,2,3,4,5,6}))) -> 0 | BW185: =IF(BV185= "","",IFERROR(SUMPRODUCT(LARGE($C185:$BQ185,{1,2,3,4})), "")) ->  | BX185: =IF(BW185<>"",(IFERROR(SUMPRODUCT(LARGE($C185:$BQ185,{1,2,3,4,5,6,7})),"")),"") ->  | BY185: =IF(BX185<>"",(IFERROR(SUMPRODUCT(LARGE($C185:$BQ185,{1,2,3,4,5,6,7,8})),"")),"") -> 
B186: UIC | AJ186: 11 | BS186: 11 | BT186: 1 | BU186: =IF($BT186<=6,SUM($C186:$BQ186),SUMPRODUCT(LARGE($C186:$BQ186,{1,2,3,4,5,6}))) -> 11 | BW186: =IF(BV186= "","",IFERROR(SUMPRODUCT(LARGE($C186:$BQ186,{1,2,3,4})), "")) ->  | BX186: =IF(BW186<>"",(IFERROR(SUMPRODUCT(LARGE($C186:$BQ186,{1,2,3,4,5,6,7})),"")),"") ->  | BY186: =IF(BX186<>"",(IFERROR(SUMPRODUCT(LARGE($C186:$BQ186,{1,2,3,4,5,6,7,8})),"")),"") -> 
B187: UIUC | BE187: 2 | BS187: 2 | BT187: 1 | BU187: =IF($BT187<=6,SUM($C187:$BQ187),SUMPRODUCT(LARGE($C187:$BQ187,{1,2,3,4,5,6}))) -> 2 | BW187: =IF(BV187= "","",IFERROR(SUMPRODUCT(LARGE($C187:$BQ187,{1,2,3,4})), "")) ->  | BX187: =IF(BW187<>"",(IFERROR(SUMPRODUCT(LARGE($C187:$BQ187,{1,2,3,4,5,6,7})),"")),"") ->  | BY187: =IF(BX187<>"",(IFERROR(SUMPRODUCT(LARGE($C187:$BQ187,{1,2,3,4,5,6,7,8})),"")),"") -> 
B188: UJ | V188: 8 | BS188: 8 | BT188: 1 | BU188: =IF($BT188<=6,SUM($C188:$BQ188),SUMPRODUCT(LARGE($C188:$BQ188,{1,2,3,4,5,6}))) -> 8 | BW188: =IF(BV188= "","",IFERROR(SUMPRODUCT(LARGE($C188:$BQ188,{1,2,3,4})), "")) ->  | BX188: =IF(BW188<>"",(IFERROR(SUMPRODUCT(LARGE($C188:$BQ188,{1,2,3,4,5,6,7})),"")),"") ->  | BY188: =IF(BX188<>"",(IFERROR(SUMPRODUCT(LARGE($C188:$BQ188,{1,2,3,4,5,6,7,8})),"")),"") -> 
B189: ULL | X189: 20 | AO189: 16 | BC189: 5 | BS189: 41 | BT189: 3 | BU189: =IF($BT189<=6,SUM($C189:$BQ189),SUMPRODUCT(LARGE($C189:$BQ189,{1,2,3,4,5,6}))) -> 41 | BW189: =IF(BV189= "","",IFERROR(SUMPRODUCT(LARGE($C189:$BQ189,{1,2,3,4})), "")) ->  | BX189: =IF(BW189<>"",(IFERROR(SUMPRODUCT(LARGE($C189:$BQ189,{1,2,3,4,5,6,7})),"")),"") ->  | BY189: =IF(BX189<>"",(IFERROR(SUMPRODUCT(LARGE($C189:$BQ189,{1,2,3,4,5,6,7,8})),"")),"") -> 
B190: UMH | AW190: 4 | BS190: 4 | BT190: 1 | BU190: =IF($BT190<=6,SUM($C190:$BQ190),SUMPRODUCT(LARGE($C190:$BQ190,{1,2,3,4,5,6}))) -> 4 | BW190: =IF(BV190= "","",IFERROR(SUMPRODUCT(LARGE($C190:$BQ190,{1,2,3,4})), "")) ->  | BX190: =IF(BW190<>"",(IFERROR(SUMPRODUCT(LARGE($C190:$BQ190,{1,2,3,4,5,6,7})),"")),"") ->  | BY190: =IF(BX190<>"",(IFERROR(SUMPRODUCT(LARGE($C190:$BQ190,{1,2,3,4,5,6,7,8})),"")),"") -> 
B191: UMi | D191: 22 | P191: 21 | T191: 2 | AB191: 11 | AJ191: 13 | BH191: 18 | BS191: 87 | BT191: 6 | BU191: =IF($BT191<=6,SUM($C191:$BQ191),SUMPRODUCT(LARGE($C191:$BQ191,{1,2,3,4,5,6}))) -> 87 | BW191: =IF(BV191= "","",IFERROR(SUMPRODUCT(LARGE($C191:$BQ191,{1,2,3,4})), "")) ->  | BX191: =IF(BW191<>"",(IFERROR(SUMPRODUCT(LARGE($C191:$BQ191,{1,2,3,4,5,6,7})),"")),"") ->  | BY191: =IF(BX191<>"",(IFERROR(SUMPRODUCT(LARGE($C191:$BQ191,{1,2,3,4,5,6,7,8})),"")),"") -> 
B192: UMo | N192: 3 | T192: 28 | BI192: 21 | BJ192: 13 | BS192: 65 | BT192: 4 | BU192: =IF($BT192<=6,SUM($C192:$BQ192),SUMPRODUCT(LARGE($C192:$BQ192,{1,2,3,4,5,6}))) -> 65 | BW192: =IF(BV192= "","",IFERROR(SUMPRODUCT(LARGE($C192:$BQ192,{1,2,3,4})), "")) ->  | BX192: =IF(BW192<>"",(IFERROR(SUMPRODUCT(LARGE($C192:$BQ192,{1,2,3,4,5,6,7})),"")),"") ->  | BY192: =IF(BX192<>"",(IFERROR(SUMPRODUCT(LARGE($C192:$BQ192,{1,2,3,4,5,6,7,8})),"")),"") -> 
B193: UND | AO193: 5 | AS193: 6 | BS193: 11 | BT193: 2 | BU193: =IF($BT193<=6,SUM($C193:$BQ193),SUMPRODUCT(LARGE($C193:$BQ193,{1,2,3,4,5,6}))) -> 11 | BW193: =IF(BV193= "","",IFERROR(SUMPRODUCT(LARGE($C193:$BQ193,{1,2,3,4})), "")) ->  | BX193: =IF(BW193<>"",(IFERROR(SUMPRODUCT(LARGE($C193:$BQ193,{1,2,3,4,5,6,7})),"")),"") ->  | BY193: =IF(BX193<>"",(IFERROR(SUMPRODUCT(LARGE($C193:$BQ193,{1,2,3,4,5,6,7,8})),"")),"") -> 
B194: UNLV | AN194: 8 | BB194: 7 | BS194: 15 | BT194: 2 | BU194: =IF($BT194<=6,SUM($C194:$BQ194),SUMPRODUCT(LARGE($C194:$BQ194,{1,2,3,4,5,6}))) -> 15 | BW194: =IF(BV194= "","",IFERROR(SUMPRODUCT(LARGE($C194:$BQ194,{1,2,3,4})), "")) ->  | BX194: =IF(BW194<>"",(IFERROR(SUMPRODUCT(LARGE($C194:$BQ194,{1,2,3,4,5,6,7})),"")),"") ->  | BY194: =IF(BX194<>"",(IFERROR(SUMPRODUCT(LARGE($C194:$BQ194,{1,2,3,4,5,6,7,8})),"")),"") -> 
B195: UNR | F195: 13 | T195: 2 | Y195: 17 | AN195: 35 | BA195: 21 | BI195: 30 | BL195: 21 | BM195: 32 | BN195: 12 | BO195: 23 | BS195: 206 | BT195: 10 | BU195: =IF($BT195<=6,SUM($C195:$BQ195),SUMPRODUCT(LARGE($C195:$BQ195,{1,2,3,4,5,6}))) -> 162 | BW195: =IF(BV195= "","",IFERROR(SUMPRODUCT(LARGE($C195:$BQ195,{1,2,3,4})), "")) ->  | BX195: =IF(BW195<>"",(IFERROR(SUMPRODUCT(LARGE($C195:$BQ195,{1,2,3,4,5,6,7})),"")),"") ->  | BY195: =IF(BX195<>"",(IFERROR(SUMPRODUCT(LARGE($C195:$BQ195,{1,2,3,4,5,6,7,8})),"")),"") -> 
B196: UNT | G196: 22 | H196: 3 | R196: 24 | AX196: 4 | BC196: 18 | BJ196: 12 | BK196: 15 | BS196: =SUM($C196:$BR196) -> 98 | BT196: =COUNTA(C196:BQ196) -> 7 | BU196: =IF($BT196<=6,SUM($C196:$BQ196),SUMPRODUCT(LARGE($C196:$BQ196,{1,2,3,4,5,6}))) -> 95 | BV196: =IF(AND($BT196>=6,BU196=BU197),"Manual Calc Needed","") ->  | BW196: =IF(BV196= "","",IFERROR(SUMPRODUCT(LARGE($C196:$BQ196,{1,2,3,4})), "")) ->  | BX196: =IF(BW196<>"",(IFERROR(SUMPRODUCT(LARGE($C196:$BQ196,{1,2,3,4,5,6,7})),"")),"") ->  | BY196: =IF(BX196<>"",(IFERROR(SUMPRODUCT(LARGE($C196:$BQ196,{1,2,3,4,5,6,7,8})),"")),"") -> 
B197: UoP | BM197: 11 | BS197: 11 | BT197: 1 | BU197: =IF($BT197<=6,SUM($C197:$BQ197),SUMPRODUCT(LARGE($C197:$BQ197,{1,2,3,4,5,6}))) -> 11 | BW197: =IF(BV197= "","",IFERROR(SUMPRODUCT(LARGE($C197:$BQ197,{1,2,3,4})), "")) ->  | BX197: =IF(BW197<>"",(IFERROR(SUMPRODUCT(LARGE($C197:$BQ197,{1,2,3,4,5,6,7})),"")),"") ->  | BY197: =IF(BX197<>"",(IFERROR(SUMPRODUCT(LARGE($C197:$BQ197,{1,2,3,4,5,6,7,8})),"")),"") -> 
B198: USM | G198: 4 | H198: 4 | K198: 35 | L198: 12 | M198: 17 | O198: 20 | U198: 1 | Y198: 16 | AO198: 20 | AQ198: 34 | AY198: 13 | BS198: 176 | BT198: 11 | BU198: =IF($BT198<=6,SUM($C198:$BQ198),SUMPRODUCT(LARGE($C198:$BQ198,{1,2,3,4,5,6}))) -> 142 | BW198: =IF(BV198= "","",IFERROR(SUMPRODUCT(LARGE($C198:$BQ198,{1,2,3,4})), "")) ->  | BX198: =IF(BW198<>"",(IFERROR(SUMPRODUCT(LARGE($C198:$BQ198,{1,2,3,4,5,6,7})),"")),"") ->  | BY198: =IF(BX198<>"",(IFERROR(SUMPRODUCT(LARGE($C198:$BQ198,{1,2,3,4,5,6,7,8})),"")),"") -> 
B199: USU | N199: 6 | T199: 9 | AR199: 8 | BS199: 23 | BT199: 3 | BU199: =IF($BT199<=6,SUM($C199:$BQ199),SUMPRODUCT(LARGE($C199:$BQ199,{1,2,3,4,5,6}))) -> 23 | BW199: =IF(BV199= "","",IFERROR(SUMPRODUCT(LARGE($C199:$BQ199,{1,2,3,4})), "")) ->  | BX199: =IF(BW199<>"",(IFERROR(SUMPRODUCT(LARGE($C199:$BQ199,{1,2,3,4,5,6,7})),"")),"") ->  | BY199: =IF(BX199<>"",(IFERROR(SUMPRODUCT(LARGE($C199:$BQ199,{1,2,3,4,5,6,7,8})),"")),"") -> 
B200: USUL | BI200: 20 | BS200: 20 | BT200: 1 | BU200: =IF($BT200<=6,SUM($C200:$BQ200),SUMPRODUCT(LARGE($C200:$BQ200,{1,2,3,4,5,6}))) -> 20 | BW200: =IF(BV200= "","",IFERROR(SUMPRODUCT(LARGE($C200:$BQ200,{1,2,3,4})), "")) ->  | BX200: =IF(BW200<>"",(IFERROR(SUMPRODUCT(LARGE($C200:$BQ200,{1,2,3,4,5,6,7})),"")),"") ->  | BY200: =IF(BX200<>"",(IFERROR(SUMPRODUCT(LARGE($C200:$BQ200,{1,2,3,4,5,6,7,8})),"")),"") -> 
... 101 more rows

Sheet CC List (hidden)
A1: BCC
A2: BeC | AR2: =SUM(C2:AP2) -> 0
A3: BPCC | AR3: =SUM(C3:AP3) -> 0
A4: BuCC | AR4: 0
A5: CasC | AR5: 0
A6: CeC | AR6: 0
A7: ClC | AR7: 0
A8: CoM | AR8: 0
A9: CrC | AR9: 0
A10: CSI | AR10: 0
A11: CTC | AR11: 0
A12: CWI | AR12: 0
A13: CyC | AR13: 0
A14: DCC | AR14: 0
A15: DVC | AR15: 0
A16: ECC | AR16: 0
A17: ELAC | AR17: 0
A18: EPCC | AR18: 0
A19: EWC | AR19: 0
A20: FC | AR20: 0
A21: GCC | AR21: 0
A22: GCTC | AR22: 0
A23: GrCC | AR23: 0
A24: HCC | AR24: 0
A25: ICC | AR25: 0
A26: IllC | AR26: 0
A27: IVC | AR27: 0
A28: KCCC | AR28: 0
A29: LaCC | AR29: 0
A30: LAVC | AR30: 0
A31: LCC | AR31: 0
A32: Lee | AR32: 0
A33: LSC | AR33: 0
A34: LSCO | AR34: 0
A35: MHCC | AR35: 0
A36: MpC | AR36: 0
A37: MSAC | AR37: 0
A38: MSCC | AR38: 0
A39: MVC | AR39: 0
A40: NCC | AR40: 0
A41: NwC | AR41: 0
A42: OCC | AR42: 0
A43: OCTC | AR43: 0
A44: PaC | AR44: 0
A45: PCC | AR45: 0
A46: PSCC | AR46: 0
A47: RC | AR47: 0
A48: RCC | AR48: 0
A49: RHC | AR49: 0
A50: SaC | AR50: 0
A51: SCC | AR51: 0
A52: SFCC | AR52: 0
A53: SJC | AR53: 0
A54: SJCN | AR54: 0
A55: SnC | AR55: 0
A56: SoC | AR56: 0
A57: StC | AR57: 0
A58: TCC | AR58: 0
A59: TCCNE | AR59: 0
A60: TJC | AR60: 0
A61: TVCC | AR61: 0
A62: VSCC | AR62: 0
A63: WNCC | AR63: 0
A64: WSCC | AR64: 0
A65: WSCC | AR65: 0
A66: WWCC | AR66: 0
AR67: =SUM(C67:AP67) -> 0
AR68: 0
AR69: 0
AR70: 0
AR71: 0
AR72: 0
AR73: 0
AR74: 0
AR75: 0
AR76: 0
AR77: 0
AR78: 0
AR79: 0
AR80: 0
AR81: 0
AR82: 0
AR83: 0
AR84: 0
AR85: 0
AR86: 0
AR87: 0
AR88: 0
AR89: 0
AR90: 0
AR91: 0
AR92: 0
AR93: 0
AR94: 0
AR95: 0
AR96: 0
AR97: 0
AR98: 0
AR99: 0
AR100: 0
AR101: 0
AR102: 0
AR103: 0
AR104: 0
AR105: 0
AR106: 0
AR107: 0
AR108: 0
AR109: 0
AR110: 0
AR111: 0
AR112: 0
AR113: 0
AR114: 0
AR115: 0
AR116: 0
AR117: 0
AR118: 0
AR119: 0
AR120: 0
AR121: 0
AR122: 0
AR123: 0
AR124: 0
AR125: 0
AR126: 0
AR127: 0
AR128: 0
AR129: 0
AR130: 0
AR131: =SUM(C131:AP131) -> 0
AR132: 0
AR133: 0
AR134: 0
AR135: 0
AR136: 0
AR137: 0
AR138: 0
AR139: 0
AR140: 0
AR141: 0
AR142: 0
AR143: 0
AR144: 0
AR145: 0
AR146: 0
AR147: 0
AR148: 0
AR149: 0
AR150: 0
AR151: 0
AR152: 0
AR153: 0
AR154: 0
AR155: 0
AR156: 0
AR157: 0
AR158: 0
AR159: 0
AR160: 0
AR161: 0
AR162: 0
AR163: 0
AR164: 0
AR165: 0
AR166: 0
AR167: 0
AR168: 0
AR169: 0
AR170: 0
AR171: 0
AR172: 0
AR173: 0
AR174: 0
AR175: 0
AR176: 0
AR177: 0
AR178: 0
AR179: 0
AR180: 0
AR181: 0
AR182: 0
AR183: 0
AR184: 0
AR185: 0
AR186: 0
AR187: 0
AR188: 0
AR189: 0
AR190: 0
AR191: 0
AR192: 0
AR193: 0
AR194: 0
AR195: =SUM(C195:AP195) -> 0
AR196: 0
AR197: 0
AR198: 0
AR199: 0
AR200: 0
... 39 more rows

Sheet CC
C1: Lee | D1: UCM | E1: L&CC | F1: CSI | G1: BGSU1 | H1: BGSU2 | I1: ACU | J1: CSCC | K1: MTSU | L1: Abam2 | M1: WhU | N1: LSUS | O1: SBU | P1: UWF | Q1: SAC | R1: LiC | S1: UJ | T1: TCU | U1: LTU | V1: OSU | W1: UCF | X1: WebU | Y1: PSCFAW | Z1: PSCFAFC | AA1: CSUN | AB1: ColC | AC1: ECCA | AD1: ECCB | AE1: GC | AF1: MVCC | AG1: PC | AH1: PLNU | AI1: PSC | AJ1: UNR | AK1: SFC | AL1: UCA | AM1: PacU | AN1: DBU | AO1: PSCC | AP1: TIFA | AQ1: LCC | AR1: UU | AS1: BPCC | AT1: PSCFASC | AU1: NOFC | AV1: CUI | AW1: IFA | AX1: OIFA | AY1: WebUS | AZ1: SDSU | BA1: UTEP | BB1: MAFA | BC1: PKD | BD1: BGSU3 | BE1: BGSU4 | BF1: UoPW | BG1: NCFAS | BH1: LPC | BI1: SFSU | BQ1: S/L Ranking | BR1: Head to Head | BS1: H/L | BT1: 7th Tourn. | BU1: 8th Tourn.
B2: Size of Field | C2: =IF(COUNTIFS(C$4:C$1000,"<>"),COUNTIFS(C$4:C$1000,"<>")," ") -> 2 | D2: 2 | E2: 3 | F2: 4 | G2: 1 | H2: 1 | I2: 2 | J2: 2 | K2: 2 | L2: 1 | N2: =IF(COUNTIFS(N$4:N$1000,"<>"),COUNTIFS(N$4:N$1000,"<>")," ") -> 4 | O2: 1 | P2: 1 | Q2: 1 | R2: 5 | S2: 3 | T2: 1 | U2: 2 | V2: 2 | W2: 4 | Y2: 7
A3: RANK | B3: Squad Formula: 1 pt per prelim win; 1 pts for breaking, 2 pts per elim win. *Partial breaks don't earn points; only Top 3 competitors count per Division* | C3: Lee College | D3: Unv Central Missouri | E3: Lewis & Clark College | F3: College of Southern Idaho | G3: Bowling Green 1 | H3: Bowling Green 2 | I3: Abilene Christian Unv | J3: Cleveland State | K3: Middle Tennessee State Unv | L3: Alabama 2 Crimson | M3: Whitworth University | N3: LSU - Shreveport | O3: Southwest Baptist Univ | P3: Univ West Florida | Q3: St. Anselm College | R3: Linfield College | S3: Univ Jamestown | T3: Texas Christian Univ | U3: Louisiana Tech Univ | V3: Oregon State University | W3: Univ Central Florida | X3: Webster Univ | Y3: Pacific Southeast Warm | Z3: Pacific Southeast Fall | AA3: Cal Sate Northridge | AB3: Colorado College | AC3: El Camino A | AD3: El Camino B | AE3: Grossmont College | AF3: Moraine Valley CC | AG3: Palomar College | AH3: Point Loma Nazar Uni | AI3: Praire State Collge | AJ3: Univ Nevada Reno | AK3: Southern Forens Champ | AL3: Univ Central Arkansas | AM3: Pacific University | AN3: Dallas Baptist Univ | AO3: Pellissippi State CC | AP3: Tenn Intercoll Forn Tourn | AQ3: Lower Columbia College | AR3: Union University | AS3: Bossier Parish CC | AT3: South West Spring Champ | AU3: National Online For Champ | AV3: Concordia Univ Irvine | AW3: International Frns Assoc | AX3: Oklahoma Intr Frns Asc | AY3: Webster University Spring | AZ3: San Diego State Univ | BA3: Univ Texas El Paso | BB3: Missouri Assoc Frnsc Activ | BC3: Pi Kappa Delta Nats | BD3: Bowling Green 3 70 | BE3: Bowling Green 4 90 | BF3: Univ of the Pacific - Winters | BG3: NCFA Spring Champs | BH3: Las Positas College | BI3: San Francisco State University | BN3: over 6/2nd host | BO3: Total Points | BP3: Tournament Count | BQ3: Best Top 6 (National Rank) | BR3: 1st Tie Breaker | BS3: 2nd Tie Breaker | BT3: 3rd Tie Breaker | BU3: 4th Tie Breaker
B4: BPCC | C4: 5 | I4: 21 | N4: 15 | S4: 17 | U4: 11 | AK4: 24 | AL4: 21 | AN4: 11 | AR4: 20 | BO4: =SUM($C4:$BN4) -> 145 | BP4: =COUNTA(C4:BM4) -> 9 | BQ4: =IF($BP4<=6,SUM($C4:$BM4),SUMPRODUCT(LARGE($C4:$BM4,{1,2,3,4,5,6}))) -> 118 | BR4: =IF(AND($BP4>=6,BQ4=BQ5),"Manual Calc Needed","") ->  | BS4: =IF(BR4= "","",IFERROR(SUMPRODUCT(LARGE($C4:$BM4,{1,2,3,4})), "")) ->  | BT4: =IF(BS4<>"",(IFERROR(SUMPRODUCT(LARGE($C4:$BM4,{1,2,3,4,5,6,7})),"")),"") ->  | BU4: =IF(BT4<>"",(IFERROR(SUMPRODUCT(LARGE($C4:$BM4,{1,2,3,4,5,6,7,8})),"")),"") -> 
B5: CasC | F5: 18 | R5: 16 | AB5: 20 | AW5: 9 | BO5: 63 | BP5: 4 | BQ5: =IF($BP5<=6,SUM($C5:$BM5),SUMPRODUCT(LARGE($C5:$BM5,{1,2,3,4,5,6}))) -> 63 | BS5: =IF(BR5= "","",IFERROR(SUMPRODUCT(LARGE($C5:$BM5,{1,2,3,4})), "")) ->  | BT5: =IF(BS5<>"",(IFERROR(SUMPRODUCT(LARGE($C5:$BM5,{1,2,3,4,5,6,7})),"")),"") ->  | BU5: =IF(BT5<>"",(IFERROR(SUMPRODUCT(LARGE($C5:$BM5,{1,2,3,4,5,6,7,8})),"")),"") -> 
B6: CC | Y6: 9 | Z6: 3 | AA6: 6 | AC6: 21 | AD6: 5 | AT6: 7 | BO6: 51 | BP6: 6 | BQ6: =IF($BP6<=6,SUM($C6:$BM6),SUMPRODUCT(LARGE($C6:$BM6,{1,2,3,4,5,6}))) -> 51 | BS6: =IF(BR6= "","",IFERROR(SUMPRODUCT(LARGE($C6:$BM6,{1,2,3,4})), "")) ->  | BT6: =IF(BS6<>"",(IFERROR(SUMPRODUCT(LARGE($C6:$BM6,{1,2,3,4,5,6,7})),"")),"") ->  | BU6: =IF(BT6<>"",(IFERROR(SUMPRODUCT(LARGE($C6:$BM6,{1,2,3,4,5,6,7,8})),"")),"") -> 
B7: CCC | AF7: 6 | BF7: 8 | BO7: 14 | BP7: 2 | BQ7: =IF($BP7<=6,SUM($C7:$BM7),SUMPRODUCT(LARGE($C7:$BM7,{1,2,3,4,5,6}))) -> 14 | BS7: =IF(BR7= "","",IFERROR(SUMPRODUCT(LARGE($C7:$BM7,{1,2,3,4})), "")) ->  | BT7: =IF(BS7<>"",(IFERROR(SUMPRODUCT(LARGE($C7:$BM7,{1,2,3,4,5,6,7})),"")),"") ->  | BU7: =IF(BT7<>"",(IFERROR(SUMPRODUCT(LARGE($C7:$BM7,{1,2,3,4,5,6,7,8})),"")),"") -> 
B8: CCSF | AJ8: 3 | BF8: 5 | BG8: 9 | BH8: 8 | BI8: 2 | BO8: 27 | BP8: 5 | BQ8: =IF($BP8<=6,SUM($C8:$BM8),SUMPRODUCT(LARGE($C8:$BM8,{1,2,3,4,5,6}))) -> 27 | BS8: =IF(BR8= "","",IFERROR(SUMPRODUCT(LARGE($C8:$BM8,{1,2,3,4})), "")) ->  | BT8: =IF(BS8<>"",(IFERROR(SUMPRODUCT(LARGE($C8:$BM8,{1,2,3,4,5,6,7})),"")),"") ->  | BU8: =IF(BT8<>"",(IFERROR(SUMPRODUCT(LARGE($C8:$BM8,{1,2,3,4,5,6,7,8})),"")),"") -> 
B9: CD | AF9: 16 | AI9: 16 | BH9: 8 | BO9: 40 | BP9: 3 | BQ9: =IF($BP9<=6,SUM($C9:$BM9),SUMPRODUCT(LARGE($C9:$BM9,{1,2,3,4,5,6}))) -> 40 | BS9: =IF(BR9= "","",IFERROR(SUMPRODUCT(LARGE($C9:$BM9,{1,2,3,4})), "")) ->  | BT9: =IF(BS9<>"",(IFERROR(SUMPRODUCT(LARGE($C9:$BM9,{1,2,3,4,5,6,7})),"")),"") ->  | BU9: =IF(BT9<>"",(IFERROR(SUMPRODUCT(LARGE($C9:$BM9,{1,2,3,4,5,6,7,8})),"")),"") -> 
B10: CerC | Z10: 1 | AC10: 4 | AD10: 4 | AE10: 10 | AT10: 7 | AV10: 2 | AW10: 1 | BO10: 29 | BP10: 7 | BQ10: =IF($BP10<=6,SUM($C10:$BM10),SUMPRODUCT(LARGE($C10:$BM10,{1,2,3,4,5,6}))) -> 28 | BS10: =IF(BR10= "","",IFERROR(SUMPRODUCT(LARGE($C10:$BM10,{1,2,3,4})), "")) ->  | BT10: =IF(BS10<>"",(IFERROR(SUMPRODUCT(LARGE($C10:$BM10,{1,2,3,4,5,6,7})),"")),"") ->  | BU10: =IF(BT10<>"",(IFERROR(SUMPRODUCT(LARGE($C10:$BM10,{1,2,3,4,5,6,7,8})),"")),"") -> 
B11: ChaC | Z11: 2 | BO11: 2 | BP11: 1 | BQ11: =IF($BP11<=6,SUM($C11:$BM11),SUMPRODUCT(LARGE($C11:$BM11,{1,2,3,4,5,6}))) -> 2 | BS11: =IF(BR11= "","",IFERROR(SUMPRODUCT(LARGE($C11:$BM11,{1,2,3,4})), "")) ->  | BT11: =IF(BS11<>"",(IFERROR(SUMPRODUCT(LARGE($C11:$BM11,{1,2,3,4,5,6,7})),"")),"") ->  | BU11: =IF(BT11<>"",(IFERROR(SUMPRODUCT(LARGE($C11:$BM11,{1,2,3,4,5,6,7,8})),"")),"") -> 
B12: ChC | BF12: 1 | BG12: 6 | BH12: 4 | BI12: 13 | BO12: 24 | BP12: 4 | BQ12: =IF($BP12<=6,SUM($C12:$BM12),SUMPRODUCT(LARGE($C12:$BM12,{1,2,3,4,5,6}))) -> 24 | BS12: =IF(BR12= "","",IFERROR(SUMPRODUCT(LARGE($C12:$BM12,{1,2,3,4})), "")) ->  | BT12: =IF(BS12<>"",(IFERROR(SUMPRODUCT(LARGE($C12:$BM12,{1,2,3,4,5,6,7})),"")),"") ->  | BU12: =IF(BT12<>"",(IFERROR(SUMPRODUCT(LARGE($C12:$BM12,{1,2,3,4,5,6,7,8})),"")),"") -> 
B13: CLC | AF13: 3 | AI13: 2 | BO13: 5 | BP13: 2 | BQ13: =IF($BP13<=6,SUM($C13:$BM13),SUMPRODUCT(LARGE($C13:$BM13,{1,2,3,4,5,6}))) -> 5 | BS13: =IF(BR13= "","",IFERROR(SUMPRODUCT(LARGE($C13:$BM13,{1,2,3,4})), "")) ->  | BT13: =IF(BS13<>"",(IFERROR(SUMPRODUCT(LARGE($C13:$BM13,{1,2,3,4,5,6,7})),"")),"") ->  | BU13: =IF(BT13<>"",(IFERROR(SUMPRODUCT(LARGE($C13:$BM13,{1,2,3,4,5,6,7,8})),"")),"") -> 
B14: ClCC | Z14: 23 | AT14: 12 | AV14: 2 | BF14: 11 | BO14: 48 | BP14: 4 | BQ14: =IF($BP14<=6,SUM($C14:$BM14),SUMPRODUCT(LARGE($C14:$BM14,{1,2,3,4,5,6}))) -> 48 | BS14: =IF(BR14= "","",IFERROR(SUMPRODUCT(LARGE($C14:$BM14,{1,2,3,4})), "")) ->  | BT14: =IF(BS14<>"",(IFERROR(SUMPRODUCT(LARGE($C14:$BM14,{1,2,3,4,5,6,7})),"")),"") ->  | BU14: =IF(BT14<>"",(IFERROR(SUMPRODUCT(LARGE($C14:$BM14,{1,2,3,4,5,6,7,8})),"")),"") -> 
B15: CSCC | J15: 5 | BO15: 5 | BP15: 1 | BQ15: =IF($BP15<=6,SUM($C15:$BM15),SUMPRODUCT(LARGE($C15:$BM15,{1,2,3,4,5,6}))) -> 5 | BS15: =IF(BR15= "","",IFERROR(SUMPRODUCT(LARGE($C15:$BM15,{1,2,3,4})), "")) ->  | BT15: =IF(BS15<>"",(IFERROR(SUMPRODUCT(LARGE($C15:$BM15,{1,2,3,4,5,6,7})),"")),"") ->  | BU15: =IF(BT15<>"",(IFERROR(SUMPRODUCT(LARGE($C15:$BM15,{1,2,3,4,5,6,7,8})),"")),"") -> 
B16: CSI | E16: 24 | F16: 19 | R16: 24 | AW16: 15 | BO16: 82 | BP16: 4 | BQ16: =IF($BP16<=6,SUM($C16:$BM16),SUMPRODUCT(LARGE($C16:$BM16,{1,2,3,4,5,6}))) -> 82 | BS16: =IF(BR16= "","",IFERROR(SUMPRODUCT(LARGE($C16:$BM16,{1,2,3,4})), "")) ->  | BT16: =IF(BS16<>"",(IFERROR(SUMPRODUCT(LARGE($C16:$BM16,{1,2,3,4,5,6,7})),"")),"") ->  | BU16: =IF(BT16<>"",(IFERROR(SUMPRODUCT(LARGE($C16:$BM16,{1,2,3,4,5,6,7,8})),"")),"") -> 
B17: CWI | E17: 33 | F17: 38 | R17: 28 | BO17: 99 | BP17: 3 | BQ17: =IF($BP17<=6,SUM($C17:$BM17),SUMPRODUCT(LARGE($C17:$BM17,{1,2,3,4,5,6}))) -> 99 | BS17: =IF(BR17= "","",IFERROR(SUMPRODUCT(LARGE($C17:$BM17,{1,2,3,4})), "")) ->  | BT17: =IF(BS17<>"",(IFERROR(SUMPRODUCT(LARGE($C17:$BM17,{1,2,3,4,5,6,7})),"")),"") ->  | BU17: =IF(BT17<>"",(IFERROR(SUMPRODUCT(LARGE($C17:$BM17,{1,2,3,4,5,6,7,8})),"")),"") -> 
B18: DCC | Q18: 8 | BC18: 9 | BO18: 17 | BP18: 2 | BQ18: =IF($BP18<=6,SUM($C18:$BM18),SUMPRODUCT(LARGE($C18:$BM18,{1,2,3,4,5,6}))) -> 17 | BS18: =IF(BR18= "","",IFERROR(SUMPRODUCT(LARGE($C18:$BM18,{1,2,3,4})), "")) ->  | BT18: =IF(BS18<>"",(IFERROR(SUMPRODUCT(LARGE($C18:$BM18,{1,2,3,4,5,6,7})),"")),"") ->  | BU18: =IF(BT18<>"",(IFERROR(SUMPRODUCT(LARGE($C18:$BM18,{1,2,3,4,5,6,7,8})),"")),"") -> 
B19: DVC | Z19: 2 | AJ19: 2 | BF19: 6 | BH19: 10 | BI19: 10 | BO19: 30 | BP19: 5 | BQ19: =IF($BP19<=6,SUM($C19:$BM19),SUMPRODUCT(LARGE($C19:$BM19,{1,2,3,4,5,6}))) -> 30 | BS19: =IF(BR19= "","",IFERROR(SUMPRODUCT(LARGE($C19:$BM19,{1,2,3,4})), "")) ->  | BT19: =IF(BS19<>"",(IFERROR(SUMPRODUCT(LARGE($C19:$BM19,{1,2,3,4,5,6,7})),"")),"") ->  | BU19: =IF(BT19<>"",(IFERROR(SUMPRODUCT(LARGE($C19:$BM19,{1,2,3,4,5,6,7,8})),"")),"") -> 
B20: ECC | Z20: 26 | AC20: 2 | AT20: 10 | AV20: 21 | AW20: 15 | AZ20: 4 | BO20: 78 | BP20: 6 | BQ20: =IF($BP20<=6,SUM($C20:$BM20),SUMPRODUCT(LARGE($C20:$BM20,{1,2,3,4,5,6}))) -> 78 | BS20: =IF(BR20= "","",IFERROR(SUMPRODUCT(LARGE($C20:$BM20,{1,2,3,4})), "")) ->  | BT20: =IF(BS20<>"",(IFERROR(SUMPRODUCT(LARGE($C20:$BM20,{1,2,3,4,5,6,7})),"")),"") ->  | BU20: =IF(BT20<>"",(IFERROR(SUMPRODUCT(LARGE($C20:$BM20,{1,2,3,4,5,6,7,8})),"")),"") -> 
B21: EPCC | AB21: 1 | AW21: 3 | BI21: 2 | BO21: 6 | BP21: 3 | BQ21: =IF($BP21<=6,SUM($C21:$BM21),SUMPRODUCT(LARGE($C21:$BM21,{1,2,3,4,5,6}))) -> 6 | BS21: =IF(BR21= "","",IFERROR(SUMPRODUCT(LARGE($C21:$BM21,{1,2,3,4})), "")) ->  | BT21: =IF(BS21<>"",(IFERROR(SUMPRODUCT(LARGE($C21:$BM21,{1,2,3,4,5,6,7})),"")),"") ->  | BU21: =IF(BT21<>"",(IFERROR(SUMPRODUCT(LARGE($C21:$BM21,{1,2,3,4,5,6,7,8})),"")),"") -> 
B22: FCC | BF22: 12 | BO22: 12 | BP22: 1 | BQ22: =IF($BP22<=6,SUM($C22:$BM22),SUMPRODUCT(LARGE($C22:$BM22,{1,2,3,4,5,6}))) -> 12 | BS22: =IF(BR22= "","",IFERROR(SUMPRODUCT(LARGE($C22:$BM22,{1,2,3,4})), "")) ->  | BT22: =IF(BS22<>"",(IFERROR(SUMPRODUCT(LARGE($C22:$BM22,{1,2,3,4,5,6,7})),"")),"") ->  | BU22: =IF(BT22<>"",(IFERROR(SUMPRODUCT(LARGE($C22:$BM22,{1,2,3,4,5,6,7,8})),"")),"") -> 
B23: FSCJ | G23: 5 | H23: 1 | W23: 8 | BD23: 2 | BO23: 16 | BP23: 4 | BQ23: =IF($BP23<=6,SUM($C23:$BM23),SUMPRODUCT(LARGE($C23:$BM23,{1,2,3,4,5,6}))) -> 16 | BS23: =IF(BR23= "","",IFERROR(SUMPRODUCT(LARGE($C23:$BM23,{1,2,3,4})), "")) ->  | BT23: =IF(BS23<>"",(IFERROR(SUMPRODUCT(LARGE($C23:$BM23,{1,2,3,4,5,6,7})),"")),"") ->  | BU23: =IF(BT23<>"",(IFERROR(SUMPRODUCT(LARGE($C23:$BM23,{1,2,3,4,5,6,7,8})),"")),"") -> 
B24: GC | Z24: 8 | AE24: 22 | AG24: 4 | AH24: 13 | AT24: 9 | AW24: 12 | AZ24: 11 | BO24: 79 | BP24: 7 | BQ24: =IF($BP24<=6,SUM($C24:$BM24),SUMPRODUCT(LARGE($C24:$BM24,{1,2,3,4,5,6}))) -> 75 | BS24: =IF(BR24= "","",IFERROR(SUMPRODUCT(LARGE($C24:$BM24,{1,2,3,4})), "")) ->  | BT24: =IF(BS24<>"",(IFERROR(SUMPRODUCT(LARGE($C24:$BM24,{1,2,3,4,5,6,7})),"")),"") ->  | BU24: =IF(BT24<>"",(IFERROR(SUMPRODUCT(LARGE($C24:$BM24,{1,2,3,4,5,6,7,8})),"")),"") -> 
B25: HC | AF25: 9 | AI25: 19 | BO25: 28 | BP25: 2 | BQ25: =IF($BP25<=6,SUM($C25:$BM25),SUMPRODUCT(LARGE($C25:$BM25,{1,2,3,4,5,6}))) -> 28 | BS25: =IF(BR25= "","",IFERROR(SUMPRODUCT(LARGE($C25:$BM25,{1,2,3,4})), "")) ->  | BT25: =IF(BS25<>"",(IFERROR(SUMPRODUCT(LARGE($C25:$BM25,{1,2,3,4,5,6,7})),"")),"") ->  | BU25: =IF(BT25<>"",(IFERROR(SUMPRODUCT(LARGE($C25:$BM25,{1,2,3,4,5,6,7,8})),"")),"") -> 
B26: HCC | AF26: 1 | BO26: 1 | BP26: 1 | BQ26: =IF($BP26<=6,SUM($C26:$BM26),SUMPRODUCT(LARGE($C26:$BM26,{1,2,3,4,5,6}))) -> 1 | BS26: =IF(BR26= "","",IFERROR(SUMPRODUCT(LARGE($C26:$BM26,{1,2,3,4})), "")) ->  | BT26: =IF(BS26<>"",(IFERROR(SUMPRODUCT(LARGE($C26:$BM26,{1,2,3,4,5,6,7})),"")),"") ->  | BU26: =IF(BT26<>"",(IFERROR(SUMPRODUCT(LARGE($C26:$BM26,{1,2,3,4,5,6,7,8})),"")),"") -> 
B27: IVC | Z27: 30 | AE27: 17 | AG27: 19 | AU27: 16 | AV27: 22 | AW27: 18 | BO27: 122 | BP27: 6 | BQ27: =IF($BP27<=6,SUM($C27:$BM27),SUMPRODUCT(LARGE($C27:$BM27,{1,2,3,4,5,6}))) -> 122 | BS27: =IF(BR27= "","",IFERROR(SUMPRODUCT(LARGE($C27:$BM27,{1,2,3,4})), "")) ->  | BT27: =IF(BS27<>"",(IFERROR(SUMPRODUCT(LARGE($C27:$BM27,{1,2,3,4,5,6,7})),"")),"") ->  | BU27: =IF(BT27<>"",(IFERROR(SUMPRODUCT(LARGE($C27:$BM27,{1,2,3,4,5,6,7,8})),"")),"") -> 
B28: JSCC | K28: 16 | L28: 7 | N28: 10 | S28: 26 | AK28: 9 | AO28: 22 | AR28: 15 | AS28: 3 | AU28: 13 | BD28: 7 | BO28: 128 | BP28: 10 | BQ28: =IF($BP28<=6,SUM($C28:$BM28),SUMPRODUCT(LARGE($C28:$BM28,{1,2,3,4,5,6}))) -> 102 | BS28: =IF(BR28= "","",IFERROR(SUMPRODUCT(LARGE($C28:$BM28,{1,2,3,4})), "")) ->  | BT28: =IF(BS28<>"",(IFERROR(SUMPRODUCT(LARGE($C28:$BM28,{1,2,3,4,5,6,7})),"")),"") ->  | BU28: =IF(BT28<>"",(IFERROR(SUMPRODUCT(LARGE($C28:$BM28,{1,2,3,4,5,6,7,8})),"")),"") -> 
B29: KCCC | AY29: 12 | BB29: 8 | BO29: 20 | BP29: 2 | BQ29: =IF($BP29<=6,SUM($C29:$BM29),SUMPRODUCT(LARGE($C29:$BM29,{1,2,3,4,5,6}))) -> 20 | BS29: =IF(BR29= "","",IFERROR(SUMPRODUCT(LARGE($C29:$BM29,{1,2,3,4})), "")) ->  | BT29: =IF(BS29<>"",(IFERROR(SUMPRODUCT(LARGE($C29:$BM29,{1,2,3,4,5,6,7})),"")),"") ->  | BU29: =IF(BT29<>"",(IFERROR(SUMPRODUCT(LARGE($C29:$BM29,{1,2,3,4,5,6,7,8})),"")),"") -> 
B30: LACC | Z30: 11 | BO30: 11 | BP30: 1 | BQ30: =IF($BP30<=6,SUM($C30:$BM30),SUMPRODUCT(LARGE($C30:$BM30,{1,2,3,4,5,6}))) -> 11 | BS30: =IF(BR30= "","",IFERROR(SUMPRODUCT(LARGE($C30:$BM30,{1,2,3,4})), "")) ->  | BT30: =IF(BS30<>"",(IFERROR(SUMPRODUCT(LARGE($C30:$BM30,{1,2,3,4,5,6,7})),"")),"") ->  | BU30: =IF(BT30<>"",(IFERROR(SUMPRODUCT(LARGE($C30:$BM30,{1,2,3,4,5,6,7,8})),"")),"") -> 
B31: LCC | E31: 13 | M31: 13 | R31: 17 | V31: 21 | AM31: 27 | AQ31: 17 | BO31: 108 | BP31: 6 | BQ31: =IF($BP31<=6,SUM($C31:$BM31),SUMPRODUCT(LARGE($C31:$BM31,{1,2,3,4,5,6}))) -> 108 | BS31: =IF(BR31= "","",IFERROR(SUMPRODUCT(LARGE($C31:$BM31,{1,2,3,4})), "")) ->  | BT31: =IF(BS31<>"",(IFERROR(SUMPRODUCT(LARGE($C31:$BM31,{1,2,3,4,5,6,7})),"")),"") ->  | BU31: =IF(BT31<>"",(IFERROR(SUMPRODUCT(LARGE($C31:$BM31,{1,2,3,4,5,6,7,8})),"")),"") -> 
B32: Lee | C32: 13 | D32: 18 | I32: 53 | N32: 51 | S32: 31 | U32: 50 | AK32: 36 | AL32: 41 | AR32: 35 | AS32: 56 | AU32: 8 | BO32: 392 | BP32: 11 | BQ32: =IF($BP32<=6,SUM($C32:$BM32),SUMPRODUCT(LARGE($C32:$BM32,{1,2,3,4,5,6}))) -> 287 | BS32: =IF(BR32= "","",IFERROR(SUMPRODUCT(LARGE($C32:$BM32,{1,2,3,4})), "")) ->  | BT32: =IF(BS32<>"",(IFERROR(SUMPRODUCT(LARGE($C32:$BM32,{1,2,3,4,5,6,7})),"")),"") ->  | BU32: =IF(BT32<>"",(IFERROR(SUMPRODUCT(LARGE($C32:$BM32,{1,2,3,4,5,6,7,8})),"")),"") -> 
B33: MDCK | W33: 8 | BO33: 8 | BP33: 1 | BQ33: =IF($BP33<=6,SUM($C33:$BM33),SUMPRODUCT(LARGE($C33:$BM33,{1,2,3,4,5,6}))) -> 8 | BS33: =IF(BR33= "","",IFERROR(SUMPRODUCT(LARGE($C33:$BM33,{1,2,3,4})), "")) ->  | BT33: =IF(BS33<>"",(IFERROR(SUMPRODUCT(LARGE($C33:$BM33,{1,2,3,4,5,6,7})),"")),"") ->  | BU33: =IF(BT33<>"",(IFERROR(SUMPRODUCT(LARGE($C33:$BM33,{1,2,3,4,5,6,7,8})),"")),"") -> 
B34: MHCC | V34: 1 | BD34: 4 | BE34: 10 | BO34: 15 | BP34: 3 | BQ34: =IF($BP34<=6,SUM($C34:$BM34),SUMPRODUCT(LARGE($C34:$BM34,{1,2,3,4,5,6}))) -> 15 | BS34: =IF(BR34= "","",IFERROR(SUMPRODUCT(LARGE($C34:$BM34,{1,2,3,4})), "")) ->  | BT34: =IF(BS34<>"",(IFERROR(SUMPRODUCT(LARGE($C34:$BM34,{1,2,3,4,5,6,7})),"")),"") ->  | BU34: =IF(BT34<>"",(IFERROR(SUMPRODUCT(LARGE($C34:$BM34,{1,2,3,4,5,6,7,8})),"")),"") -> 
B35: MiC | AU35: 3 | BO35: 3 | BP35: 1 | BQ35: =IF($BP35<=6,SUM($C35:$BM35),SUMPRODUCT(LARGE($C35:$BM35,{1,2,3,4,5,6}))) -> 3 | BS35: =IF(BR35= "","",IFERROR(SUMPRODUCT(LARGE($C35:$BM35,{1,2,3,4})), "")) ->  | BT35: =IF(BS35<>"",(IFERROR(SUMPRODUCT(LARGE($C35:$BM35,{1,2,3,4,5,6,7})),"")),"") ->  | BU35: =IF(BT35<>"",(IFERROR(SUMPRODUCT(LARGE($C35:$BM35,{1,2,3,4,5,6,7,8})),"")),"") -> 
B36: MJC | BG36: 1 | BH36: 6 | BI36: 7 | BO36: =SUM($C36:$BN36) -> 14 | BP36: =COUNTA(C36:BM36) -> 3 | BQ36: =IF($BP36<=6,SUM($C36:$BM36),SUMPRODUCT(LARGE($C36:$BM36,{1,2,3,4,5,6}))) -> 14 | BR36: =IF(AND($BP36>=6,BQ36=BQ37),"Manual Calc Needed","") ->  | BS36: =IF(BR36= "","",IFERROR(SUMPRODUCT(LARGE($C36:$BM36,{1,2,3,4})), "")) ->  | BT36: =IF(BS36<>"",(IFERROR(SUMPRODUCT(LARGE($C36:$BM36,{1,2,3,4,5,6,7})),"")),"") ->  | BU36: =IF(BT36<>"",(IFERROR(SUMPRODUCT(LARGE($C36:$BM36,{1,2,3,4,5,6,7,8})),"")),"") -> 
B37: MoorC | Y37: 15 | Z37: 33 | AA37: 21 | AC37: 26 | AE37: 26 | AT37: 18 | AV37: 17 | BO37: 156 | BP37: 7 | BQ37: =IF($BP37<=6,SUM($C37:$BM37),SUMPRODUCT(LARGE($C37:$BM37,{1,2,3,4,5,6}))) -> 141 | BS37: =IF(BR37= "","",IFERROR(SUMPRODUCT(LARGE($C37:$BM37,{1,2,3,4})), "")) ->  | BT37: =IF(BS37<>"",(IFERROR(SUMPRODUCT(LARGE($C37:$BM37,{1,2,3,4,5,6,7})),"")),"") ->  | BU37: =IF(BT37<>"",(IFERROR(SUMPRODUCT(LARGE($C37:$BM37,{1,2,3,4,5,6,7,8})),"")),"") -> 
B38: MSAC | Z38: 19 | AA38: 28 | AE38: 22 | AV38: 25 | BH38: 18 | BO38: 112 | BP38: 5 | BQ38: =IF($BP38<=6,SUM($C38:$BM38),SUMPRODUCT(LARGE($C38:$BM38,{1,2,3,4,5,6}))) -> 112 | BS38: =IF(BR38= "","",IFERROR(SUMPRODUCT(LARGE($C38:$BM38,{1,2,3,4})), "")) ->  | BT38: =IF(BS38<>"",(IFERROR(SUMPRODUCT(LARGE($C38:$BM38,{1,2,3,4,5,6,7})),"")),"") ->  | BU38: =IF(BT38<>"",(IFERROR(SUMPRODUCT(LARGE($C38:$BM38,{1,2,3,4,5,6,7,8})),"")),"") -> 
B39: MSD | Z39: 14 | AC39: 10 | AT39: 9 | AZ39: 10 | BC39: 5 | BO39: 48 | BP39: 5 | BQ39: =IF($BP39<=6,SUM($C39:$BM39),SUMPRODUCT(LARGE($C39:$BM39,{1,2,3,4,5,6}))) -> 48 | BS39: =IF(BR39= "","",IFERROR(SUMPRODUCT(LARGE($C39:$BM39,{1,2,3,4})), "")) ->  | BT39: =IF(BS39<>"",(IFERROR(SUMPRODUCT(LARGE($C39:$BM39,{1,2,3,4,5,6,7})),"")),"") ->  | BU39: =IF(BT39<>"",(IFERROR(SUMPRODUCT(LARGE($C39:$BM39,{1,2,3,4,5,6,7,8})),"")),"") -> 
B40: MSJC | Y40: 4 | Z40: 5 | AG40: 1 | BO40: 10 | BP40: 3 | BQ40: =IF($BP40<=6,SUM($C40:$BM40),SUMPRODUCT(LARGE($C40:$BM40,{1,2,3,4,5,6}))) -> 10 | BS40: =IF(BR40= "","",IFERROR(SUMPRODUCT(LARGE($C40:$BM40,{1,2,3,4})), "")) ->  | BT40: =IF(BS40<>"",(IFERROR(SUMPRODUCT(LARGE($C40:$BM40,{1,2,3,4,5,6,7})),"")),"") ->  | BU40: =IF(BT40<>"",(IFERROR(SUMPRODUCT(LARGE($C40:$BM40,{1,2,3,4,5,6,7,8})),"")),"") -> 
B41: MVC | AY41: 2 | BB41: 2 | BC41: 2 | BO41: 6 | BP41: 3 | BQ41: =IF($BP41<=6,SUM($C41:$BM41),SUMPRODUCT(LARGE($C41:$BM41,{1,2,3,4,5,6}))) -> 6 | BS41: =IF(BR41= "","",IFERROR(SUMPRODUCT(LARGE($C41:$BM41,{1,2,3,4})), "")) ->  | BT41: =IF(BS41<>"",(IFERROR(SUMPRODUCT(LARGE($C41:$BM41,{1,2,3,4,5,6,7})),"")),"") ->  | BU41: =IF(BT41<>"",(IFERROR(SUMPRODUCT(LARGE($C41:$BM41,{1,2,3,4,5,6,7,8})),"")),"") -> 
B42: MVCC | AF42: 4 | BO42: 4 | BP42: 1 | BQ42: =IF($BP42<=6,SUM($C42:$BM42),SUMPRODUCT(LARGE($C42:$BM42,{1,2,3,4,5,6}))) -> 4 | BS42: =IF(BR42= "","",IFERROR(SUMPRODUCT(LARGE($C42:$BM42,{1,2,3,4})), "")) ->  | BT42: =IF(BS42<>"",(IFERROR(SUMPRODUCT(LARGE($C42:$BM42,{1,2,3,4,5,6,7})),"")),"") ->  | BU42: =IF(BT42<>"",(IFERROR(SUMPRODUCT(LARGE($C42:$BM42,{1,2,3,4,5,6,7,8})),"")),"") -> 
B43: NVCC | AU43: 2 | BO43: 2 | BP43: 1 | BQ43: =IF($BP43<=6,SUM($C43:$BM43),SUMPRODUCT(LARGE($C43:$BM43,{1,2,3,4,5,6}))) -> 2 | BS43: =IF(BR43= "","",IFERROR(SUMPRODUCT(LARGE($C43:$BM43,{1,2,3,4})), "")) ->  | BT43: =IF(BS43<>"",(IFERROR(SUMPRODUCT(LARGE($C43:$BM43,{1,2,3,4,5,6,7})),"")),"") ->  | BU43: =IF(BT43<>"",(IFERROR(SUMPRODUCT(LARGE($C43:$BM43,{1,2,3,4,5,6,7,8})),"")),"") -> 
B44: NwC | F44: 2 | R44: 10 | AB44: 4 | BA44: 3 | BO44: 19 | BP44: 4 | BQ44: =IF($BP44<=6,SUM($C44:$BM44),SUMPRODUCT(LARGE($C44:$BM44,{1,2,3,4,5,6}))) -> 19 | BS44: =IF(BR44= "","",IFERROR(SUMPRODUCT(LARGE($C44:$BM44,{1,2,3,4})), "")) ->  | BT44: =IF(BS44<>"",(IFERROR(SUMPRODUCT(LARGE($C44:$BM44,{1,2,3,4,5,6,7})),"")),"") ->  | BU44: =IF(BT44<>"",(IFERROR(SUMPRODUCT(LARGE($C44:$BM44,{1,2,3,4,5,6,7,8})),"")),"") -> 
B45: OCC | Y45: 12 | Z45: 13 | AC45: 0 | AD45: 25 | AT45: 18 | BO45: 68 | BP45: 5 | BQ45: =IF($BP45<=6,SUM($C45:$BM45),SUMPRODUCT(LARGE($C45:$BM45,{1,2,3,4,5,6}))) -> 68 | BS45: =IF(BR45= "","",IFERROR(SUMPRODUCT(LARGE($C45:$BM45,{1,2,3,4})), "")) ->  | BT45: =IF(BS45<>"",(IFERROR(SUMPRODUCT(LARGE($C45:$BM45,{1,2,3,4,5,6,7})),"")),"") ->  | BU45: =IF(BT45<>"",(IFERROR(SUMPRODUCT(LARGE($C45:$BM45,{1,2,3,4,5,6,7,8})),"")),"") -> 
B46: PC | Y46: 4 | Z46: 5 | AG46: 6 | AH46: 6 | AT46: 1 | AW46: 2 | AZ46: 2 | BO46: 26 | BP46: 7 | BQ46: =IF($BP46<=6,SUM($C46:$BM46),SUMPRODUCT(LARGE($C46:$BM46,{1,2,3,4,5,6}))) -> 25 | BS46: =IF(BR46= "","",IFERROR(SUMPRODUCT(LARGE($C46:$BM46,{1,2,3,4})), "")) ->  | BT46: =IF(BS46<>"",(IFERROR(SUMPRODUCT(LARGE($C46:$BM46,{1,2,3,4,5,6,7})),"")),"") ->  | BU46: =IF(BT46<>"",(IFERROR(SUMPRODUCT(LARGE($C46:$BM46,{1,2,3,4,5,6,7,8})),"")),"") -> 
B47: PCC | Y47: 8 | Z47: 6 | AA47: 11 | AE47: 23 | AT47: 8 | AV47: 6 | BO47: 62 | BP47: 6 | BQ47: =IF($BP47<=6,SUM($C47:$BM47),SUMPRODUCT(LARGE($C47:$BM47,{1,2,3,4,5,6}))) -> 62 | BS47: =IF(BR47= "","",IFERROR(SUMPRODUCT(LARGE($C47:$BM47,{1,2,3,4})), "")) ->  | BT47: =IF(BS47<>"",(IFERROR(SUMPRODUCT(LARGE($C47:$BM47,{1,2,3,4,5,6,7})),"")),"") ->  | BU47: =IF(BT47<>"",(IFERROR(SUMPRODUCT(LARGE($C47:$BM47,{1,2,3,4,5,6,7,8})),"")),"") -> 
B48: PSC | AI48: 9 | BO48: 9 | BP48: 1 | BQ48: =IF($BP48<=6,SUM($C48:$BM48),SUMPRODUCT(LARGE($C48:$BM48,{1,2,3,4,5,6}))) -> 9 | BS48: =IF(BR48= "","",IFERROR(SUMPRODUCT(LARGE($C48:$BM48,{1,2,3,4})), "")) ->  | BT48: =IF(BS48<>"",(IFERROR(SUMPRODUCT(LARGE($C48:$BM48,{1,2,3,4,5,6,7})),"")),"") ->  | BU48: =IF(BT48<>"",(IFERROR(SUMPRODUCT(LARGE($C48:$BM48,{1,2,3,4,5,6,7,8})),"")),"") -> 
B49: PSCC | J49: 20 | K49: 14 | AO49: 8 | AP49: 12 | BO49: 54 | BP49: 4 | BQ49: =IF($BP49<=6,SUM($C49:$BM49),SUMPRODUCT(LARGE($C49:$BM49,{1,2,3,4,5,6}))) -> 54 | BS49: =IF(BR49= "","",IFERROR(SUMPRODUCT(LARGE($C49:$BM49,{1,2,3,4})), "")) ->  | BT49: =IF(BS49<>"",(IFERROR(SUMPRODUCT(LARGE($C49:$BM49,{1,2,3,4,5,6,7})),"")),"") ->  | BU49: =IF(BT49<>"",(IFERROR(SUMPRODUCT(LARGE($C49:$BM49,{1,2,3,4,5,6,7,8})),"")),"") -> 
B50: RHCC | Z50: 12 | AD50: 8 | AE50: 6 | AH50: 14 | AV50: 5 | BO50: 45 | BP50: 5 | BQ50: =IF($BP50<=6,SUM($C50:$BM50),SUMPRODUCT(LARGE($C50:$BM50,{1,2,3,4,5,6}))) -> 45 | BS50: =IF(BR50= "","",IFERROR(SUMPRODUCT(LARGE($C50:$BM50,{1,2,3,4})), "")) ->  | BT50: =IF(BS50<>"",(IFERROR(SUMPRODUCT(LARGE($C50:$BM50,{1,2,3,4,5,6,7})),"")),"") ->  | BU50: =IF(BT50<>"",(IFERROR(SUMPRODUCT(LARGE($C50:$BM50,{1,2,3,4,5,6,7,8})),"")),"") -> 
B51: SaCC | Y51: 7 | Z51: 13 | AE51: 16 | BO51: 36 | BP51: 3 | BQ51: =IF($BP51<=6,SUM($C51:$BM51),SUMPRODUCT(LARGE($C51:$BM51,{1,2,3,4,5,6}))) -> 36 | BS51: =IF(BR51= "","",IFERROR(SUMPRODUCT(LARGE($C51:$BM51,{1,2,3,4})), "")) ->  | BT51: =IF(BS51<>"",(IFERROR(SUMPRODUCT(LARGE($C51:$BM51,{1,2,3,4,5,6,7})),"")),"") ->  | BU51: =IF(BT51<>"",(IFERROR(SUMPRODUCT(LARGE($C51:$BM51,{1,2,3,4,5,6,7,8})),"")),"") -> 
B52: SadC | Z52: 17 | AE52: 3 | AT52: 20 | BO52: 40 | BP52: 3 | BQ52: =IF($BP52<=6,SUM($C52:$BM52),SUMPRODUCT(LARGE($C52:$BM52,{1,2,3,4,5,6}))) -> 40 | BS52: =IF(BR52= "","",IFERROR(SUMPRODUCT(LARGE($C52:$BM52,{1,2,3,4})), "")) ->  | BT52: =IF(BS52<>"",(IFERROR(SUMPRODUCT(LARGE($C52:$BM52,{1,2,3,4,5,6,7})),"")),"") ->  | BU52: =IF(BT52<>"",(IFERROR(SUMPRODUCT(LARGE($C52:$BM52,{1,2,3,4,5,6,7,8})),"")),"") -> 
B53: SDMC | Z53: 6 | BO53: 6 | BP53: 1 | BQ53: =IF($BP53<=6,SUM($C53:$BM53),SUMPRODUCT(LARGE($C53:$BM53,{1,2,3,4,5,6}))) -> 6 | BS53: =IF(BR53= "","",IFERROR(SUMPRODUCT(LARGE($C53:$BM53,{1,2,3,4})), "")) ->  | BT53: =IF(BS53<>"",(IFERROR(SUMPRODUCT(LARGE($C53:$BM53,{1,2,3,4,5,6,7})),"")),"") ->  | BU53: =IF(BT53<>"",(IFERROR(SUMPRODUCT(LARGE($C53:$BM53,{1,2,3,4,5,6,7,8})),"")),"") -> 
B54: SFCC | O54: 19 | W54: 19 | AF54: 0 | AY54: 3 | BB54: 2 | BO54: 43 | BP54: 5 | BQ54: =IF($BP54<=6,SUM($C54:$BM54),SUMPRODUCT(LARGE($C54:$BM54,{1,2,3,4,5,6}))) -> 43 | BS54: =IF(BR54= "","",IFERROR(SUMPRODUCT(LARGE($C54:$BM54,{1,2,3,4})), "")) ->  | BT54: =IF(BS54<>"",(IFERROR(SUMPRODUCT(LARGE($C54:$BM54,{1,2,3,4,5,6,7})),"")),"") ->  | BU54: =IF(BT54<>"",(IFERROR(SUMPRODUCT(LARGE($C54:$BM54,{1,2,3,4,5,6,7,8})),"")),"") -> 
B55: SJSD | BG55: 7 | BH55: 6 | BI55: 7 | BO55: 20 | BP55: 3 | BQ55: =IF($BP55<=6,SUM($C55:$BM55),SUMPRODUCT(LARGE($C55:$BM55,{1,2,3,4,5,6}))) -> 20 | BS55: =IF(BR55= "","",IFERROR(SUMPRODUCT(LARGE($C55:$BM55,{1,2,3,4})), "")) ->  | BT55: =IF(BS55<>"",(IFERROR(SUMPRODUCT(LARGE($C55:$BM55,{1,2,3,4,5,6,7})),"")),"") ->  | BU55: =IF(BT55<>"",(IFERROR(SUMPRODUCT(LARGE($C55:$BM55,{1,2,3,4,5,6,7,8})),"")),"") -> 
B56: SkyC | AJ56: 6 | BG56: 4 | BO56: 10 | BP56: 2 | BQ56: =IF($BP56<=6,SUM($C56:$BM56),SUMPRODUCT(LARGE($C56:$BM56,{1,2,3,4,5,6}))) -> 10 | BS56: =IF(BR56= "","",IFERROR(SUMPRODUCT(LARGE($C56:$BM56,{1,2,3,4})), "")) ->  | BT56: =IF(BS56<>"",(IFERROR(SUMPRODUCT(LARGE($C56:$BM56,{1,2,3,4,5,6,7})),"")),"") ->  | BU56: =IF(BT56<>"",(IFERROR(SUMPRODUCT(LARGE($C56:$BM56,{1,2,3,4,5,6,7,8})),"")),"") -> 
B57: SMC | AD57: 10 | BO57: 10 | BP57: 1 | BQ57: =IF($BP57<=6,SUM($C57:$BM57),SUMPRODUCT(LARGE($C57:$BM57,{1,2,3,4,5,6}))) -> 10 | BS57: =IF(BR57= "","",IFERROR(SUMPRODUCT(LARGE($C57:$BM57,{1,2,3,4})), "")) ->  | BT57: =IF(BS57<>"",(IFERROR(SUMPRODUCT(LARGE($C57:$BM57,{1,2,3,4,5,6,7})),"")),"") ->  | BU57: =IF(BT57<>"",(IFERROR(SUMPRODUCT(LARGE($C57:$BM57,{1,2,3,4,5,6,7,8})),"")),"") -> 
B58: SoCC | Z58: 8 | AJ58: 6 | BF58: 1 | BG58: 3 | BH58: 6 | BI58: 2 | BO58: 26 | BP58: 6 | BQ58: =IF($BP58<=6,SUM($C58:$BM58),SUMPRODUCT(LARGE($C58:$BM58,{1,2,3,4,5,6}))) -> 26 | BS58: =IF(BR58= "","",IFERROR(SUMPRODUCT(LARGE($C58:$BM58,{1,2,3,4})), "")) ->  | BT58: =IF(BS58<>"",(IFERROR(SUMPRODUCT(LARGE($C58:$BM58,{1,2,3,4,5,6,7})),"")),"") ->  | BU58: =IF(BT58<>"",(IFERROR(SUMPRODUCT(LARGE($C58:$BM58,{1,2,3,4,5,6,7,8})),"")),"") -> 
B59: TaCC | P59: 13 | W59: 29 | BH59: 17 | BO59: 59 | BP59: 3 | BQ59: =IF($BP59<=6,SUM($C59:$BM59),SUMPRODUCT(LARGE($C59:$BM59,{1,2,3,4,5,6}))) -> 59 | BS59: =IF(BR59= "","",IFERROR(SUMPRODUCT(LARGE($C59:$BM59,{1,2,3,4})), "")) ->  | BT59: =IF(BS59<>"",(IFERROR(SUMPRODUCT(LARGE($C59:$BM59,{1,2,3,4,5,6,7})),"")),"") ->  | BU59: =IF(BT59<>"",(IFERROR(SUMPRODUCT(LARGE($C59:$BM59,{1,2,3,4,5,6,7,8})),"")),"") -> 
B60: TCC | D60: 11 | T60: 12 | AU60: 2 | AX60: 14 | BO60: 39 | BP60: 4 | BQ60: =IF($BP60<=6,SUM($C60:$BM60),SUMPRODUCT(LARGE($C60:$BM60,{1,2,3,4,5,6}))) -> 39 | BS60: =IF(BR60= "","",IFERROR(SUMPRODUCT(LARGE($C60:$BM60,{1,2,3,4})), "")) ->  | BT60: =IF(BS60<>"",(IFERROR(SUMPRODUCT(LARGE($C60:$BM60,{1,2,3,4,5,6,7})),"")),"") ->  | BU60: =IF(BT60<>"",(IFERROR(SUMPRODUCT(LARGE($C60:$BM60,{1,2,3,4,5,6,7,8})),"")),"") -> 
B61: UACCB | N61: 8 | AL61: 5 | AN61: 7 | BO61: 20 | BP61: 3 | BQ61: =IF($BP61<=6,SUM($C61:$BM61),SUMPRODUCT(LARGE($C61:$BM61,{1,2,3,4,5,6}))) -> 20 | BS61: =IF(BR61= "","",IFERROR(SUMPRODUCT(LARGE($C61:$BM61,{1,2,3,4})), "")) ->  | BT61: =IF(BS61<>"",(IFERROR(SUMPRODUCT(LARGE($C61:$BM61,{1,2,3,4,5,6,7})),"")),"") ->  | BU61: =IF(BT61<>"",(IFERROR(SUMPRODUCT(LARGE($C61:$BM61,{1,2,3,4,5,6,7,8})),"")),"") -> 
BO62: =SUM($C62:$BN62) -> 0 | BP62: =COUNTA(C62:BM62) -> 0 | BQ62: =IF($BP62<=6,SUM($C62:$BM62),SUMPRODUCT(LARGE($C62:$BM62,{1,2,3,4,5,6}))) -> 0 | BR62: =IF(AND($BP62>=6,BQ62=BQ63),"Manual Calc Needed","") ->  | BS62: =IF(BR62= "","",IFERROR(SUMPRODUCT(LARGE($C62:$BM62,{1,2,3,4})), "")) ->  | BT62: =IF(BS62<>"",(IFERROR(SUMPRODUCT(LARGE($C62:$BM62,{1,2,3,4,5,6,7})),"")),"") ->  | BU62: =IF(BT62<>"",(IFERROR(SUMPRODUCT(LARGE($C62:$BM62,{1,2,3,4,5,6,7,8})),"")),"") -> 
BO63: 0 | BP63: 0 | BQ63: =IF($BP63<=6,SUM($C63:$BM63),SUMPRODUCT(LARGE($C63:$BM63,{1,2,3,4,5,6}))) -> 0 | BS63: =IF(BR63= "","",IFERROR(SUMPRODUCT(LARGE($C63:$BM63,{1,2,3,4})), "")) ->  | BT63: =IF(BS63<>"",(IFERROR(SUMPRODUCT(LARGE($C63:$BM63,{1,2,3,4,5,6,7})),"")),"") ->  | BU63: =IF(BT63<>"",(IFERROR(SUMPRODUCT(LARGE($C63:$BM63,{1,2,3,4,5,6,7,8})),"")),"") -> 
BO64: 0 | BP64: 0 | BQ64: =IF($BP64<=6,SUM($C64:$BM64),SUMPRODUCT(LARGE($C64:$BM64,{1,2,3,4,5,6}))) -> 0 | BS64: =IF(BR64= "","",IFERROR(SUMPRODUCT(LARGE($C64:$BM64,{1,2,3,4})), "")) ->  | BT64: =IF(BS64<>"",(IFERROR(SUMPRODUCT(LARGE($C64:$BM64,{1,2,3,4,5,6,7})),"")),"") ->  | BU64: =IF(BT64<>"",(IFERROR(SUMPRODUCT(LARGE($C64:$BM64,{1,2,3,4,5,6,7,8})),"")),"") -> 
BO65: 0 | BP65: 0 | BQ65: =IF($BP65<=6,SUM($C65:$BM65),SUMPRODUCT(LARGE($C65:$BM65,{1,2,3,4,5,6}))) -> 0 | BS65: =IF(BR65= "","",IFERROR(SUMPRODUCT(LARGE($C65:$BM65,{1,2,3,4})), "")) ->  | BT65: =IF(BS65<>"",(IFERROR(SUMPRODUCT(LARGE($C65:$BM65,{1,2,3,4,5,6,7})),"")),"") ->  | BU65: =IF(BT65<>"",(IFERROR(SUMPRODUCT(LARGE($C65:$BM65,{1,2,3,4,5,6,7,8})),"")),"") -> 
BO66: 0 | BP66: 0 | BQ66: =IF($BP66<=6,SUM($C66:$BM66),SUMPRODUCT(LARGE($C66:$BM66,{1,2,3,4,5,6}))) -> 0 | BS66: =IF(BR66= "","",IFERROR(SUMPRODUCT(LARGE($C66:$BM66,{1,2,3,4})), "")) ->  | BT66: =IF(BS66<>"",(IFERROR(SUMPRODUCT(LARGE($C66:$BM66,{1,2,3,4,5,6,7})),"")),"") ->  | BU66: =IF(BT66<>"",(IFERROR(SUMPRODUCT(LARGE($C66:$BM66,{1,2,3,4,5,6,7,8})),"")),"") -> 
BO67: 0 | BP67: 0 | BQ67: =IF($BP67<=6,SUM($C67:$BM67),SUMPRODUCT(LARGE($C67:$BM67,{1,2,3,4,5,6}))) -> 0 | BS67: =IF(BR67= "","",IFERROR(SUMPRODUCT(LARGE($C67:$BM67,{1,2,3,4})), "")) ->  | BT67: =IF(BS67<>"",(IFERROR(SUMPRODUCT(LARGE($C67:$BM67,{1,2,3,4,5,6,7})),"")),"") ->  | BU67: =IF(BT67<>"",(IFERROR(SUMPRODUCT(LARGE($C67:$BM67,{1,2,3,4,5,6,7,8})),"")),"") -> 
BO68: =SUM($C68:$BN68) -> 0 | BP68: 0 | BQ68: =IF($BP68<=6,SUM($C68:$BM68),SUMPRODUCT(LARGE($C68:$BM68,{1,2,3,4,5,6}))) -> 0 | BS68: =IF(BR68= "","",IFERROR(SUMPRODUCT(LARGE($C68:$BM68,{1,2,3,4})), "")) ->  | BT68: =IF(BS68<>"",(IFERROR(SUMPRODUCT(LARGE($C68:$BM68,{1,2,3,4,5,6,7})),"")),"") ->  | BU68: =IF(BT68<>"",(IFERROR(SUMPRODUCT(LARGE($C68:$BM68,{1,2,3,4,5,6,7,8})),"")),"") -> 
BO69: 0 | BP69: 0 | BQ69: =IF($BP69<=6,SUM($C69:$BM69),SUMPRODUCT(LARGE($C69:$BM69,{1,2,3,4,5,6}))) -> 0 | BR69: =IF(AND($BP69>=6,BQ69=BQ70),"Manual Calc Needed","") ->  | BS69: =IF(BR69= "","",IFERROR(SUMPRODUCT(LARGE($C69:$BM69,{1,2,3,4})), "")) ->  | BT69: =IF(BS69<>"",(IFERROR(SUMPRODUCT(LARGE($C69:$BM69,{1,2,3,4,5,6,7})),"")),"") ->  | BU69: =IF(BT69<>"",(IFERROR(SUMPRODUCT(LARGE($C69:$BM69,{1,2,3,4,5,6,7,8})),"")),"") -> 
BO70: 0 | BP70: 0 | BQ70: =IF($BP70<=6,SUM($C70:$BM70),SUMPRODUCT(LARGE($C70:$BM70,{1,2,3,4,5,6}))) -> 0 | BS70: =IF(BR70= "","",IFERROR(SUMPRODUCT(LARGE($C70:$BM70,{1,2,3,4})), "")) ->  | BT70: =IF(BS70<>"",(IFERROR(SUMPRODUCT(LARGE($C70:$BM70,{1,2,3,4,5,6,7})),"")),"") ->  | BU70: =IF(BT70<>"",(IFERROR(SUMPRODUCT(LARGE($C70:$BM70,{1,2,3,4,5,6,7,8})),"")),"") -> 
BO71: 0 | BP71: 0 | BQ71: =IF($BP71<=6,SUM($C71:$BM71),SUMPRODUCT(LARGE($C71:$BM71,{1,2,3,4,5,6}))) -> 0 | BS71: =IF(BR71= "","",IFERROR(SUMPRODUCT(LARGE($C71:$BM71,{1,2,3,4})), "")) ->  | BT71: =IF(BS71<>"",(IFERROR(SUMPRODUCT(LARGE($C71:$BM71,{1,2,3,4,5,6,7})),"")),"") ->  | BU71: =IF(BT71<>"",(IFERROR(SUMPRODUCT(LARGE($C71:$BM71,{1,2,3,4,5,6,7,8})),"")),"") -> 
BO72: 0 | BP72: 0 | BQ72: =IF($BP72<=6,SUM($C72:$BM72),SUMPRODUCT(LARGE($C72:$BM72,{1,2,3,4,5,6}))) -> 0 | BS72: =IF(BR72= "","",IFERROR(SUMPRODUCT(LARGE($C72:$BM72,{1,2,3,4})), "")) ->  | BT72: =IF(BS72<>"",(IFERROR(SUMPRODUCT(LARGE($C72:$BM72,{1,2,3,4,5,6,7})),"")),"") ->  | BU72: =IF(BT72<>"",(IFERROR(SUMPRODUCT(LARGE($C72:$BM72,{1,2,3,4,5,6,7,8})),"")),"") -> 
BO73: 0 | BP73: 0 | BQ73: =IF($BP73<=6,SUM($C73:$BM73),SUMPRODUCT(LARGE($C73:$BM73,{1,2,3,4,5,6}))) -> 0 | BS73: =IF(BR73= "","",IFERROR(SUMPRODUCT(LARGE($C73:$BM73,{1,2,3,4})), "")) ->  | BT73: =IF(BS73<>"",(IFERROR(SUMPRODUCT(LARGE($C73:$BM73,{1,2,3,4,5,6,7})),"")),"") ->  | BU73: =IF(BT73<>"",(IFERROR(SUMPRODUCT(LARGE($C73:$BM73,{1,2,3,4,5,6,7,8})),"")),"") -> 
BO74: 0 | BP74: 0 | BQ74: =IF($BP74<=6,SUM($C74:$BM74),SUMPRODUCT(LARGE($C74:$BM74,{1,2,3,4,5,6}))) -> 0 | BS74: =IF(BR74= "","",IFERROR(SUMPRODUCT(LARGE($C74:$BM74,{1,2,3,4})), "")) ->  | BT74: =IF(BS74<>"",(IFERROR(SUMPRODUCT(LARGE($C74:$BM74,{1,2,3,4,5,6,7})),"")),"") ->  | BU74: =IF(BT74<>"",(IFERROR(SUMPRODUCT(LARGE($C74:$BM74,{1,2,3,4,5,6,7,8})),"")),"") -> 
BO75: 0 | BP75: 0 | BQ75: =IF($BP75<=6,SUM($C75:$BM75),SUMPRODUCT(LARGE($C75:$BM75,{1,2,3,4,5,6}))) -> 0 | BS75: =IF(BR75= "","",IFERROR(SUMPRODUCT(LARGE($C75:$BM75,{1,2,3,4})), "")) ->  | BT75: =IF(BS75<>"",(IFERROR(SUMPRODUCT(LARGE($C75:$BM75,{1,2,3,4,5,6,7})),"")),"") ->  | BU75: =IF(BT75<>"",(IFERROR(SUMPRODUCT(LARGE($C75:$BM75,{1,2,3,4,5,6,7,8})),"")),"") -> 
BO76: 0 | BP76: 0 | BQ76: =IF($BP76<=6,SUM($C76:$BM76),SUMPRODUCT(LARGE($C76:$BM76,{1,2,3,4,5,6}))) -> 0 | BS76: =IF(BR76= "","",IFERROR(SUMPRODUCT(LARGE($C76:$BM76,{1,2,3,4})), "")) ->  | BT76: =IF(BS76<>"",(IFERROR(SUMPRODUCT(LARGE($C76:$BM76,{1,2,3,4,5,6,7})),"")),"") ->  | BU76: =IF(BT76<>"",(IFERROR(SUMPRODUCT(LARGE($C76:$BM76,{1,2,3,4,5,6,7,8})),"")),"") -> 
BO77: 0 | BP77: 0 | BQ77: =IF($BP77<=6,SUM($C77:$BM77),SUMPRODUCT(LARGE($C77:$BM77,{1,2,3,4,5,6}))) -> 0 | BS77: =IF(BR77= "","",IFERROR(SUMPRODUCT(LARGE($C77:$BM77,{1,2,3,4})), "")) ->  | BT77: =IF(BS77<>"",(IFERROR(SUMPRODUCT(LARGE($C77:$BM77,{1,2,3,4,5,6,7})),"")),"") ->  | BU77: =IF(BT77<>"",(IFERROR(SUMPRODUCT(LARGE($C77:$BM77,{1,2,3,4,5,6,7,8})),"")),"") -> 
BO78: 0 | BP78: 0 | BQ78: =IF($BP78<=6,SUM($C78:$BM78),SUMPRODUCT(LARGE($C78:$BM78,{1,2,3,4,5,6}))) -> 0 | BS78: =IF(BR78= "","",IFERROR(SUMPRODUCT(LARGE($C78:$BM78,{1,2,3,4})), "")) ->  | BT78: =IF(BS78<>"",(IFERROR(SUMPRODUCT(LARGE($C78:$BM78,{1,2,3,4,5,6,7})),"")),"") ->  | BU78: =IF(BT78<>"",(IFERROR(SUMPRODUCT(LARGE($C78:$BM78,{1,2,3,4,5,6,7,8})),"")),"") -> 
BO79: 0 | BP79: 0 | BQ79: =IF($BP79<=6,SUM($C79:$BM79),SUMPRODUCT(LARGE($C79:$BM79,{1,2,3,4,5,6}))) -> 0 | BS79: =IF(BR79= "","",IFERROR(SUMPRODUCT(LARGE($C79:$BM79,{1,2,3,4})), "")) ->  | BT79: =IF(BS79<>"",(IFERROR(SUMPRODUCT(LARGE($C79:$BM79,{1,2,3,4,5,6,7})),"")),"") ->  | BU79: =IF(BT79<>"",(IFERROR(SUMPRODUCT(LARGE($C79:$BM79,{1,2,3,4,5,6,7,8})),"")),"") -> 
BO80: 0 | BP80: 0 | BQ80: =IF($BP80<=6,SUM($C80:$BM80),SUMPRODUCT(LARGE($C80:$BM80,{1,2,3,4,5,6}))) -> 0 | BS80: =IF(BR80= "","",IFERROR(SUMPRODUCT(LARGE($C80:$BM80,{1,2,3,4})), "")) ->  | BT80: =IF(BS80<>"",(IFERROR(SUMPRODUCT(LARGE($C80:$BM80,{1,2,3,4,5,6,7})),"")),"") ->  | BU80: =IF(BT80<>"",(IFERROR(SUMPRODUCT(LARGE($C80:$BM80,{1,2,3,4,5,6,7,8})),"")),"") -> 
BO81: 0 | BP81: 0 | BQ81: =IF($BP81<=6,SUM($C81:$BM81),SUMPRODUCT(LARGE($C81:$BM81,{1,2,3,4,5,6}))) -> 0 | BS81: =IF(BR81= "","",IFERROR(SUMPRODUCT(LARGE($C81:$BM81,{1,2,3,4})), "")) ->  | BT81: =IF(BS81<>"",(IFERROR(SUMPRODUCT(LARGE($C81:$BM81,{1,2,3,4,5,6,7})),"")),"") ->  | BU81: =IF(BT81<>"",(IFERROR(SUMPRODUCT(LARGE($C81:$BM81,{1,2,3,4,5,6,7,8})),"")),"") -> 
BO82: 0 | BP82: 0 | BQ82: =IF($BP82<=6,SUM($C82:$BM82),SUMPRODUCT(LARGE($C82:$BM82,{1,2,3,4,5,6}))) -> 0 | BS82: =IF(BR82= "","",IFERROR(SUMPRODUCT(LARGE($C82:$BM82,{1,2,3,4})), "")) ->  | BT82: =IF(BS82<>"",(IFERROR(SUMPRODUCT(LARGE($C82:$BM82,{1,2,3,4,5,6,7})),"")),"") ->  | BU82: =IF(BT82<>"",(IFERROR(SUMPRODUCT(LARGE($C82:$BM82,{1,2,3,4,5,6,7,8})),"")),"") -> 
BO83: 0 | BP83: 0 | BQ83: =IF($BP83<=6,SUM($C83:$BM83),SUMPRODUCT(LARGE($C83:$BM83,{1,2,3,4,5,6}))) -> 0 | BS83: =IF(BR83= "","",IFERROR(SUMPRODUCT(LARGE($C83:$BM83,{1,2,3,4})), "")) ->  | BT83: =IF(BS83<>"",(IFERROR(SUMPRODUCT(LARGE($C83:$BM83,{1,2,3,4,5,6,7})),"")),"") ->  | BU83: =IF(BT83<>"",(IFERROR(SUMPRODUCT(LARGE($C83:$BM83,{1,2,3,4,5,6,7,8})),"")),"") -> 
BO84: 0 | BP84: 0 | BQ84: =IF($BP84<=6,SUM($C84:$BM84),SUMPRODUCT(LARGE($C84:$BM84,{1,2,3,4,5,6}))) -> 0 | BS84: =IF(BR84= "","",IFERROR(SUMPRODUCT(LARGE($C84:$BM84,{1,2,3,4})), "")) ->  | BT84: =IF(BS84<>"",(IFERROR(SUMPRODUCT(LARGE($C84:$BM84,{1,2,3,4,5,6,7})),"")),"") ->  | BU84: =IF(BT84<>"",(IFERROR(SUMPRODUCT(LARGE($C84:$BM84,{1,2,3,4,5,6,7,8})),"")),"") -> 
BO85: 0 | BP85: 0 | BQ85: =IF($BP85<=6,SUM($C85:$BM85),SUMPRODUCT(LARGE($C85:$BM85,{1,2,3,4,5,6}))) -> 0 | BS85: =IF(BR85= "","",IFERROR(SUMPRODUCT(LARGE($C85:$BM85,{1,2,3,4})), "")) ->  | BT85: =IF(BS85<>"",(IFERROR(SUMPRODUCT(LARGE($C85:$BM85,{1,2,3,4,5,6,7})),"")),"") ->  | BU85: =IF(BT85<>"",(IFERROR(SUMPRODUCT(LARGE($C85:$BM85,{1,2,3,4,5,6,7,8})),"")),"") -> 
BO86: 0 | BP86: 0 | BQ86: =IF($BP86<=6,SUM($C86:$BM86),SUMPRODUCT(LARGE($C86:$BM86,{1,2,3,4,5,6}))) -> 0 | BS86: =IF(BR86= "","",IFERROR(SUMPRODUCT(LARGE($C86:$BM86,{1,2,3,4})), "")) ->  | BT86: =IF(BS86<>"",(IFERROR(SUMPRODUCT(LARGE($C86:$BM86,{1,2,3,4,5,6,7})),"")),"") ->  | BU86: =IF(BT86<>"",(IFERROR(SUMPRODUCT(LARGE($C86:$BM86,{1,2,3,4,5,6,7,8})),"")),"") -> 
BO87: 0 | BP87: 0 | BQ87: =IF($BP87<=6,SUM($C87:$BM87),SUMPRODUCT(LARGE($C87:$BM87,{1,2,3,4,5,6}))) -> 0 | BS87: =IF(BR87= "","",IFERROR(SUMPRODUCT(LARGE($C87:$BM87,{1,2,3,4})), "")) ->  | BT87: =IF(BS87<>"",(IFERROR(SUMPRODUCT(LARGE($C87:$BM87,{1,2,3,4,5,6,7})),"")),"") ->  | BU87: =IF(BT87<>"",(IFERROR(SUMPRODUCT(LARGE($C87:$BM87,{1,2,3,4,5,6,7,8})),"")),"") -> 
BO88: 0 | BP88: 0 | BQ88: =IF($BP88<=6,SUM($C88:$BM88),SUMPRODUCT(LARGE($C88:$BM88,{1,2,3,4,5,6}))) -> 0 | BS88: =IF(BR88= "","",IFERROR(SUMPRODUCT(LARGE($C88:$BM88,{1,2,3,4})), "")) ->  | BT88: =IF(BS88<>"",(IFERROR(SUMPRODUCT(LARGE($C88:$BM88,{1,2,3,4,5,6,7})),"")),"") ->  | BU88: =IF(BT88<>"",(IFERROR(SUMPRODUCT(LARGE($C88:$BM88,{1,2,3,4,5,6,7,8})),"")),"") -> 
BO89: 0 | BP89: 0 | BQ89: =IF($BP89<=6,SUM($C89:$BM89),SUMPRODUCT(LARGE($C89:$BM89,{1,2,3,4,5,6}))) -> 0 | BS89: =IF(BR89= "","",IFERROR(SUMPRODUCT(LARGE($C89:$BM89,{1,2,3,4})), "")) ->  | BT89: =IF(BS89<>"",(IFERROR(SUMPRODUCT(LARGE($C89:$BM89,{1,2,3,4,5,6,7})),"")),"") ->  | BU89: =IF(BT89<>"",(IFERROR(SUMPRODUCT(LARGE($C89:$BM89,{1,2,3,4,5,6,7,8})),"")),"") -> 
BO90: 0 | BP90: 0 | BQ90: =IF($BP90<=6,SUM($C90:$BM90),SUMPRODUCT(LARGE($C90:$BM90,{1,2,3,4,5,6}))) -> 0 | BS90: =IF(BR90= "","",IFERROR(SUMPRODUCT(LARGE($C90:$BM90,{1,2,3,4})), "")) ->  | BT90: =IF(BS90<>"",(IFERROR(SUMPRODUCT(LARGE($C90:$BM90,{1,2,3,4,5,6,7})),"")),"") ->  | BU90: =IF(BT90<>"",(IFERROR(SUMPRODUCT(LARGE($C90:$BM90,{1,2,3,4,5,6,7,8})),"")),"") -> 
BO91: 0 | BP91: 0 | BQ91: =IF($BP91<=6,SUM($C91:$BM91),SUMPRODUCT(LARGE($C91:$BM91,{1,2,3,4,5,6}))) -> 0 | BS91: =IF(BR91= "","",IFERROR(SUMPRODUCT(LARGE($C91:$BM91,{1,2,3,4})), "")) ->  | BT91: =IF(BS91<>"",(IFERROR(SUMPRODUCT(LARGE($C91:$BM91,{1,2,3,4,5,6,7})),"")),"") ->  | BU91: =IF(BT91<>"",(IFERROR(SUMPRODUCT(LARGE($C91:$BM91,{1,2,3,4,5,6,7,8})),"")),"") -> 
BO92: 0 | BP92: 0 | BQ92: =IF($BP92<=6,SUM($C92:$BM92),SUMPRODUCT(LARGE($C92:$BM92,{1,2,3,4,5,6}))) -> 0 | BS92: =IF(BR92= "","",IFERROR(SUMPRODUCT(LARGE($C92:$BM92,{1,2,3,4})), "")) ->  | BT92: =IF(BS92<>"",(IFERROR(SUMPRODUCT(LARGE($C92:$BM92,{1,2,3,4,5,6,7})),"")),"") ->  | BU92: =IF(BT92<>"",(IFERROR(SUMPRODUCT(LARGE($C92:$BM92,{1,2,3,4,5,6,7,8})),"")),"") -> 
BO93: 0 | BP93: 0 | BQ93: =IF($BP93<=6,SUM($C93:$BM93),SUMPRODUCT(LARGE($C93:$BM93,{1,2,3,4,5,6}))) -> 0 | BS93: =IF(BR93= "","",IFERROR(SUMPRODUCT(LARGE($C93:$BM93,{1,2,3,4})), "")) ->  | BT93: =IF(BS93<>"",(IFERROR(SUMPRODUCT(LARGE($C93:$BM93,{1,2,3,4,5,6,7})),"")),"") ->  | BU93: =IF(BT93<>"",(IFERROR(SUMPRODUCT(LARGE($C93:$BM93,{1,2,3,4,5,6,7,8})),"")),"") -> 
BO94: 0 | BP94: 0 | BQ94: =IF($BP94<=6,SUM($C94:$BM94),SUMPRODUCT(LARGE($C94:$BM94,{1,2,3,4,5,6}))) -> 0 | BS94: =IF(BR94= "","",IFERROR(SUMPRODUCT(LARGE($C94:$BM94,{1,2,3,4})), "")) ->  | BT94: =IF(BS94<>"",(IFERROR(SUMPRODUCT(LARGE($C94:$BM94,{1,2,3,4,5,6,7})),"")),"") ->  | BU94: =IF(BT94<>"",(IFERROR(SUMPRODUCT(LARGE($C94:$BM94,{1,2,3,4,5,6,7,8})),"")),"") -> 
BO95: 0 | BP95: 0 | BQ95: =IF($BP95<=6,SUM($C95:$BM95),SUMPRODUCT(LARGE($C95:$BM95,{1,2,3,4,5,6}))) -> 0 | BS95: =IF(BR95= "","",IFERROR(SUMPRODUCT(LARGE($C95:$BM95,{1,2,3,4})), "")) ->  | BT95: =IF(BS95<>"",(IFERROR(SUMPRODUCT(LARGE($C95:$BM95,{1,2,3,4,5,6,7})),"")),"") ->  | BU95: =IF(BT95<>"",(IFERROR(SUMPRODUCT(LARGE($C95:$BM95,{1,2,3,4,5,6,7,8})),"")),"") -> 
BO96: 0 | BP96: 0 | BQ96: =IF($BP96<=6,SUM($C96:$BM96),SUMPRODUCT(LARGE($C96:$BM96,{1,2,3,4,5,6}))) -> 0 | BS96: =IF(BR96= "","",IFERROR(SUMPRODUCT(LARGE($C96:$BM96,{1,2,3,4})), "")) ->  | BT96: =IF(BS96<>"",(IFERROR(SUMPRODUCT(LARGE($C96:$BM96,{1,2,3,4,5,6,7})),"")),"") ->  | BU96: =IF(BT96<>"",(IFERROR(SUMPRODUCT(LARGE($C96:$BM96,{1,2,3,4,5,6,7,8})),"")),"") -> 
BO97: 0 | BP97: 0 | BQ97: =IF($BP97<=6,SUM($C97:$BM97),SUMPRODUCT(LARGE($C97:$BM97,{1,2,3,4,5,6}))) -> 0 | BS97: =IF(BR97= "","",IFERROR(SUMPRODUCT(LARGE($C97:$BM97,{1,2,3,4})), "")) ->  | BT97: =IF(BS97<>"",(IFERROR(SUMPRODUCT(LARGE($C97:$BM97,{1,2,3,4,5,6,7})),"")),"") ->  | BU97: =IF(BT97<>"",(IFERROR(SUMPRODUCT(LARGE($C97:$BM97,{1,2,3,4,5,6,7,8})),"")),"") -> 
BO98: 0 | BP98: 0 | BQ98: =IF($BP98<=6,SUM($C98:$BM98),SUMPRODUCT(LARGE($C98:$BM98,{1,2,3,4,5,6}))) -> 0 | BS98: =IF(BR98= "","",IFERROR(SUMPRODUCT(LARGE($C98:$BM98,{1,2,3,4})), "")) ->  | BT98: =IF(BS98<>"",(IFERROR(SUMPRODUCT(LARGE($C98:$BM98,{1,2,3,4,5,6,7})),"")),"") ->  | BU98: =IF(BT98<>"",(IFERROR(SUMPRODUCT(LARGE($C98:$BM98,{1,2,3,4,5,6,7,8})),"")),"") -> 
BO99: 0 | BP99: 0 | BQ99: =IF($BP99<=6,SUM($C99:$BM99),SUMPRODUCT(LARGE($C99:$BM99,{1,2,3,4,5,6}))) -> 0 | BS99: =IF(BR99= "","",IFERROR(SUMPRODUCT(LARGE($C99:$BM99,{1,2,3,4})), "")) ->  | BT99: =IF(BS99<>"",(IFERROR(SUMPRODUCT(LARGE($C99:$BM99,{1,2,3,4,5,6,7})),"")),"") ->  | BU99: =IF(BT99<>"",(IFERROR(SUMPRODUCT(LARGE($C99:$BM99,{1,2,3,4,5,6,7,8})),"")),"") -> 
BO100: 0 | BP100: 0 | BQ100: =IF($BP100<=6,SUM($C100:$BM100),SUMPRODUCT(LARGE($C100:$BM100,{1,2,3,4,5,6}))) -> 0 | BS100: =IF(BR100= "","",IFERROR(SUMPRODUCT(LARGE($C100:$BM100,{1,2,3,4})), "")) ->  | BT100: =IF(BS100<>"",(IFERROR(SUMPRODUCT(LARGE($C100:$BM100,{1,2,3,4,5,6,7})),"")),"") ->  | BU100: =IF(BT100<>"",(IFERROR(SUMPRODUCT(LARGE($C100:$BM100,{1,2,3,4,5,6,7,8})),"")),"") -> 
BO101: 0 | BP101: 0 | BQ101: =IF($BP101<=6,SUM($C101:$BM101),SUMPRODUCT(LARGE($C101:$BM101,{1,2,3,4,5,6}))) -> 0 | BS101: =IF(BR101= "","",IFERROR(SUMPRODUCT(LARGE($C101:$BM101,{1,2,3,4})), "")) ->  | BT101: =IF(BS101<>"",(IFERROR(SUMPRODUCT(LARGE($C101:$BM101,{1,2,3,4,5,6,7})),"")),"") ->  | BU101: =IF(BT101<>"",(IFERROR(SUMPRODUCT(LARGE($C101:$BM101,{1,2,3,4,5,6,7,8})),"")),"") -> 
BO102: 0 | BP102: 0 | BQ102: =IF($BP102<=6,SUM($C102:$BM102),SUMPRODUCT(LARGE($C102:$BM102,{1,2,3,4,5,6}))) -> 0 | BS102: =IF(BR102= "","",IFERROR(SUMPRODUCT(LARGE($C102:$BM102,{1,2,3,4})), "")) ->  | BT102: =IF(BS102<>"",(IFERROR(SUMPRODUCT(LARGE($C102:$BM102,{1,2,3,4,5,6,7})),"")),"") ->  | BU102: =IF(BT102<>"",(IFERROR(SUMPRODUCT(LARGE($C102:$BM102,{1,2,3,4,5,6,7,8})),"")),"") -> 
BO103: 0 | BP103: 0 | BQ103: =IF($BP103<=6,SUM($C103:$BM103),SUMPRODUCT(LARGE($C103:$BM103,{1,2,3,4,5,6}))) -> 0 | BS103: =IF(BR103= "","",IFERROR(SUMPRODUCT(LARGE($C103:$BM103,{1,2,3,4})), "")) ->  | BT103: =IF(BS103<>"",(IFERROR(SUMPRODUCT(LARGE($C103:$BM103,{1,2,3,4,5,6,7})),"")),"") ->  | BU103: =IF(BT103<>"",(IFERROR(SUMPRODUCT(LARGE($C103:$BM103,{1,2,3,4,5,6,7,8})),"")),"") -> 
BO104: 0 | BP104: 0 | BQ104: =IF($BP104<=6,SUM($C104:$BM104),SUMPRODUCT(LARGE($C104:$BM104,{1,2,3,4,5,6}))) -> 0 | BS104: =IF(BR104= "","",IFERROR(SUMPRODUCT(LARGE($C104:$BM104,{1,2,3,4})), "")) ->  | BT104: =IF(BS104<>"",(IFERROR(SUMPRODUCT(LARGE($C104:$BM104,{1,2,3,4,5,6,7})),"")),"") ->  | BU104: =IF(BT104<>"",(IFERROR(SUMPRODUCT(LARGE($C104:$BM104,{1,2,3,4,5,6,7,8})),"")),"") -> 
BO105: 0 | BP105: 0 | BQ105: =IF($BP105<=6,SUM($C105:$BM105),SUMPRODUCT(LARGE($C105:$BM105,{1,2,3,4,5,6}))) -> 0 | BS105: =IF(BR105= "","",IFERROR(SUMPRODUCT(LARGE($C105:$BM105,{1,2,3,4})), "")) ->  | BT105: =IF(BS105<>"",(IFERROR(SUMPRODUCT(LARGE($C105:$BM105,{1,2,3,4,5,6,7})),"")),"") ->  | BU105: =IF(BT105<>"",(IFERROR(SUMPRODUCT(LARGE($C105:$BM105,{1,2,3,4,5,6,7,8})),"")),"") -> 
BO106: 0 | BP106: 0 | BQ106: =IF($BP106<=6,SUM($C106:$BM106),SUMPRODUCT(LARGE($C106:$BM106,{1,2,3,4,5,6}))) -> 0 | BS106: =IF(BR106= "","",IFERROR(SUMPRODUCT(LARGE($C106:$BM106,{1,2,3,4})), "")) ->  | BT106: =IF(BS106<>"",(IFERROR(SUMPRODUCT(LARGE($C106:$BM106,{1,2,3,4,5,6,7})),"")),"") ->  | BU106: =IF(BT106<>"",(IFERROR(SUMPRODUCT(LARGE($C106:$BM106,{1,2,3,4,5,6,7,8})),"")),"") -> 
BO107: 0 | BP107: 0 | BQ107: =IF($BP107<=6,SUM($C107:$BM107),SUMPRODUCT(LARGE($C107:$BM107,{1,2,3,4,5,6}))) -> 0 | BS107: =IF(BR107= "","",IFERROR(SUMPRODUCT(LARGE($C107:$BM107,{1,2,3,4})), "")) ->  | BT107: =IF(BS107<>"",(IFERROR(SUMPRODUCT(LARGE($C107:$BM107,{1,2,3,4,5,6,7})),"")),"") ->  | BU107: =IF(BT107<>"",(IFERROR(SUMPRODUCT(LARGE($C107:$BM107,{1,2,3,4,5,6,7,8})),"")),"") -> 
BO108: 0 | BP108: 0 | BQ108: =IF($BP108<=6,SUM($C108:$BM108),SUMPRODUCT(LARGE($C108:$BM108,{1,2,3,4,5,6}))) -> 0 | BS108: =IF(BR108= "","",IFERROR(SUMPRODUCT(LARGE($C108:$BM108,{1,2,3,4})), "")) ->  | BT108: =IF(BS108<>"",(IFERROR(SUMPRODUCT(LARGE($C108:$BM108,{1,2,3,4,5,6,7})),"")),"") ->  | BU108: =IF(BT108<>"",(IFERROR(SUMPRODUCT(LARGE($C108:$BM108,{1,2,3,4,5,6,7,8})),"")),"") -> 
BO109: 0 | BP109: 0 | BQ109: =IF($BP109<=6,SUM($C109:$BM109),SUMPRODUCT(LARGE($C109:$BM109,{1,2,3,4,5,6}))) -> 0 | BS109: =IF(BR109= "","",IFERROR(SUMPRODUCT(LARGE($C109:$BM109,{1,2,3,4})), "")) ->  | BT109: =IF(BS109<>"",(IFERROR(SUMPRODUCT(LARGE($C109:$BM109,{1,2,3,4,5,6,7})),"")),"") ->  | BU109: =IF(BT109<>"",(IFERROR(SUMPRODUCT(LARGE($C109:$BM109,{1,2,3,4,5,6,7,8})),"")),"") -> 
BO110: 0 | BP110: 0 | BQ110: =IF($BP110<=6,SUM($C110:$BM110),SUMPRODUCT(LARGE($C110:$BM110,{1,2,3,4,5,6}))) -> 0 | BS110: =IF(BR110= "","",IFERROR(SUMPRODUCT(LARGE($C110:$BM110,{1,2,3,4})), "")) ->  | BT110: =IF(BS110<>"",(IFERROR(SUMPRODUCT(LARGE($C110:$BM110,{1,2,3,4,5,6,7})),"")),"") ->  | BU110: =IF(BT110<>"",(IFERROR(SUMPRODUCT(LARGE($C110:$BM110,{1,2,3,4,5,6,7,8})),"")),"") -> 
BO111: 0 | BP111: 0 | BQ111: =IF($BP111<=6,SUM($C111:$BM111),SUMPRODUCT(LARGE($C111:$BM111,{1,2,3,4,5,6}))) -> 0 | BS111: =IF(BR111= "","",IFERROR(SUMPRODUCT(LARGE($C111:$BM111,{1,2,3,4})), "")) ->  | BT111: =IF(BS111<>"",(IFERROR(SUMPRODUCT(LARGE($C111:$BM111,{1,2,3,4,5,6,7})),"")),"") ->  | BU111: =IF(BT111<>"",(IFERROR(SUMPRODUCT(LARGE($C111:$BM111,{1,2,3,4,5,6,7,8})),"")),"") -> 
BO112: 0 | BP112: 0 | BQ112: =IF($BP112<=6,SUM($C112:$BM112),SUMPRODUCT(LARGE($C112:$BM112,{1,2,3,4,5,6}))) -> 0 | BS112: =IF(BR112= "","",IFERROR(SUMPRODUCT(LARGE($C112:$BM112,{1,2,3,4})), "")) ->  | BT112: =IF(BS112<>"",(IFERROR(SUMPRODUCT(LARGE($C112:$BM112,{1,2,3,4,5,6,7})),"")),"") ->  | BU112: =IF(BT112<>"",(IFERROR(SUMPRODUCT(LARGE($C112:$BM112,{1,2,3,4,5,6,7,8})),"")),"") -> 
BO113: 0 | BP113: 0 | BQ113: =IF($BP113<=6,SUM($C113:$BM113),SUMPRODUCT(LARGE($C113:$BM113,{1,2,3,4,5,6}))) -> 0 | BS113: =IF(BR113= "","",IFERROR(SUMPRODUCT(LARGE($C113:$BM113,{1,2,3,4})), "")) ->  | BT113: =IF(BS113<>"",(IFERROR(SUMPRODUCT(LARGE($C113:$BM113,{1,2,3,4,5,6,7})),"")),"") ->  | BU113: =IF(BT113<>"",(IFERROR(SUMPRODUCT(LARGE($C113:$BM113,{1,2,3,4,5,6,7,8})),"")),"") -> 
BO114: 0 | BP114: 0 | BQ114: =IF($BP114<=6,SUM($C114:$BM114),SUMPRODUCT(LARGE($C114:$BM114,{1,2,3,4,5,6}))) -> 0 | BS114: =IF(BR114= "","",IFERROR(SUMPRODUCT(LARGE($C114:$BM114,{1,2,3,4})), "")) ->  | BT114: =IF(BS114<>"",(IFERROR(SUMPRODUCT(LARGE($C114:$BM114,{1,2,3,4,5,6,7})),"")),"") ->  | BU114: =IF(BT114<>"",(IFERROR(SUMPRODUCT(LARGE($C114:$BM114,{1,2,3,4,5,6,7,8})),"")),"") -> 
BO115: 0 | BP115: 0 | BQ115: =IF($BP115<=6,SUM($C115:$BM115),SUMPRODUCT(LARGE($C115:$BM115,{1,2,3,4,5,6}))) -> 0 | BS115: =IF(BR115= "","",IFERROR(SUMPRODUCT(LARGE($C115:$BM115,{1,2,3,4})), "")) ->  | BT115: =IF(BS115<>"",(IFERROR(SUMPRODUCT(LARGE($C115:$BM115,{1,2,3,4,5,6,7})),"")),"") ->  | BU115: =IF(BT115<>"",(IFERROR(SUMPRODUCT(LARGE($C115:$BM115,{1,2,3,4,5,6,7,8})),"")),"") -> 
BO116: 0 | BP116: 0 | BQ116: =IF($BP116<=6,SUM($C116:$BM116),SUMPRODUCT(LARGE($C116:$BM116,{1,2,3,4,5,6}))) -> 0 | BS116: =IF(BR116= "","",IFERROR(SUMPRODUCT(LARGE($C116:$BM116,{1,2,3,4})), "")) ->  | BT116: =IF(BS116<>"",(IFERROR(SUMPRODUCT(LARGE($C116:$BM116,{1,2,3,4,5,6,7})),"")),"") ->  | BU116: =IF(BT116<>"",(IFERROR(SUMPRODUCT(LARGE($C116:$BM116,{1,2,3,4,5,6,7,8})),"")),"") -> 
BO117: 0 | BP117: 0 | BQ117: =IF($BP117<=6,SUM($C117:$BM117),SUMPRODUCT(LARGE($C117:$BM117,{1,2,3,4,5,6}))) -> 0 | BS117: =IF(BR117= "","",IFERROR(SUMPRODUCT(LARGE($C117:$BM117,{1,2,3,4})), "")) ->  | BT117: =IF(BS117<>"",(IFERROR(SUMPRODUCT(LARGE($C117:$BM117,{1,2,3,4,5,6,7})),"")),"") ->  | BU117: =IF(BT117<>"",(IFERROR(SUMPRODUCT(LARGE($C117:$BM117,{1,2,3,4,5,6,7,8})),"")),"") -> 
BO118: 0 | BP118: 0 | BQ118: =IF($BP118<=6,SUM($C118:$BM118),SUMPRODUCT(LARGE($C118:$BM118,{1,2,3,4,5,6}))) -> 0 | BS118: =IF(BR118= "","",IFERROR(SUMPRODUCT(LARGE($C118:$BM118,{1,2,3,4})), "")) ->  | BT118: =IF(BS118<>"",(IFERROR(SUMPRODUCT(LARGE($C118:$BM118,{1,2,3,4,5,6,7})),"")),"") ->  | BU118: =IF(BT118<>"",(IFERROR(SUMPRODUCT(LARGE($C118:$BM118,{1,2,3,4,5,6,7,8})),"")),"") -> 
BO119: 0 | BP119: 0 | BQ119: =IF($BP119<=6,SUM($C119:$BM119),SUMPRODUCT(LARGE($C119:$BM119,{1,2,3,4,5,6}))) -> 0 | BS119: =IF(BR119= "","",IFERROR(SUMPRODUCT(LARGE($C119:$BM119,{1,2,3,4})), "")) ->  | BT119: =IF(BS119<>"",(IFERROR(SUMPRODUCT(LARGE($C119:$BM119,{1,2,3,4,5,6,7})),"")),"") ->  | BU119: =IF(BT119<>"",(IFERROR(SUMPRODUCT(LARGE($C119:$BM119,{1,2,3,4,5,6,7,8})),"")),"") -> 
BO120: 0 | BP120: 0 | BQ120: =IF($BP120<=6,SUM($C120:$BM120),SUMPRODUCT(LARGE($C120:$BM120,{1,2,3,4,5,6}))) -> 0 | BS120: =IF(BR120= "","",IFERROR(SUMPRODUCT(LARGE($C120:$BM120,{1,2,3,4})), "")) ->  | BT120: =IF(BS120<>"",(IFERROR(SUMPRODUCT(LARGE($C120:$BM120,{1,2,3,4,5,6,7})),"")),"") ->  | BU120: =IF(BT120<>"",(IFERROR(SUMPRODUCT(LARGE($C120:$BM120,{1,2,3,4,5,6,7,8})),"")),"") -> 
BO121: 0 | BP121: 0 | BQ121: =IF($BP121<=6,SUM($C121:$BM121),SUMPRODUCT(LARGE($C121:$BM121,{1,2,3,4,5,6}))) -> 0 | BS121: =IF(BR121= "","",IFERROR(SUMPRODUCT(LARGE($C121:$BM121,{1,2,3,4})), "")) ->  | BT121: =IF(BS121<>"",(IFERROR(SUMPRODUCT(LARGE($C121:$BM121,{1,2,3,4,5,6,7})),"")),"") ->  | BU121: =IF(BT121<>"",(IFERROR(SUMPRODUCT(LARGE($C121:$BM121,{1,2,3,4,5,6,7,8})),"")),"") -> 
BO122: 0 | BP122: 0 | BQ122: =IF($BP122<=6,SUM($C122:$BM122),SUMPRODUCT(LARGE($C122:$BM122,{1,2,3,4,5,6}))) -> 0 | BS122: =IF(BR122= "","",IFERROR(SUMPRODUCT(LARGE($C122:$BM122,{1,2,3,4})), "")) ->  | BT122: =IF(BS122<>"",(IFERROR(SUMPRODUCT(LARGE($C122:$BM122,{1,2,3,4,5,6,7})),"")),"") ->  | BU122: =IF(BT122<>"",(IFERROR(SUMPRODUCT(LARGE($C122:$BM122,{1,2,3,4,5,6,7,8})),"")),"") -> 
BO123: 0 | BP123: =COUNTA(C123:BM123) -> 0 | BQ123: =IF($BP123<=6,SUM($C123:$BM123),SUMPRODUCT(LARGE($C123:$BM123,{1,2,3,4,5,6}))) -> 0 | BS123: =IF(BR123= "","",IFERROR(SUMPRODUCT(LARGE($C123:$BM123,{1,2,3,4})), "")) ->  | BT123: =IF(BS123<>"",(IFERROR(SUMPRODUCT(LARGE($C123:$BM123,{1,2,3,4,5,6,7})),"")),"") ->  | BU123: =IF(BT123<>"",(IFERROR(SUMPRODUCT(LARGE($C123:$BM123,{1,2,3,4,5,6,7,8})),"")),"") -> 
BO124: 0 | BP124: 0 | BQ124: =IF($BP124<=6,SUM($C124:$BM124),SUMPRODUCT(LARGE($C124:$BM124,{1,2,3,4,5,6}))) -> 0 | BS124: =IF(BR124= "","",IFERROR(SUMPRODUCT(LARGE($C124:$BM124,{1,2,3,4})), "")) ->  | BT124: =IF(BS124<>"",(IFERROR(SUMPRODUCT(LARGE($C124:$BM124,{1,2,3,4,5,6,7})),"")),"") ->  | BU124: =IF(BT124<>"",(IFERROR(SUMPRODUCT(LARGE($C124:$BM124,{1,2,3,4,5,6,7,8})),"")),"") -> 
BO125: 0 | BP125: 0 | BQ125: =IF($BP125<=6,SUM($C125:$BM125),SUMPRODUCT(LARGE($C125:$BM125,{1,2,3,4,5,6}))) -> 0 | BS125: =IF(BR125= "","",IFERROR(SUMPRODUCT(LARGE($C125:$BM125,{1,2,3,4})), "")) ->  | BT125: =IF(BS125<>"",(IFERROR(SUMPRODUCT(LARGE($C125:$BM125,{1,2,3,4,5,6,7})),"")),"") ->  | BU125: =IF(BT125<>"",(IFERROR(SUMPRODUCT(LARGE($C125:$BM125,{1,2,3,4,5,6,7,8})),"")),"") -> 
BO126: 0 | BP126: 0 | BQ126: =IF($BP126<=6,SUM($C126:$BM126),SUMPRODUCT(LARGE($C126:$BM126,{1,2,3,4,5,6}))) -> 0 | BS126: =IF(BR126= "","",IFERROR(SUMPRODUCT(LARGE($C126:$BM126,{1,2,3,4})), "")) ->  | BT126: =IF(BS126<>"",(IFERROR(SUMPRODUCT(LARGE($C126:$BM126,{1,2,3,4,5,6,7})),"")),"") ->  | BU126: =IF(BT126<>"",(IFERROR(SUMPRODUCT(LARGE($C126:$BM126,{1,2,3,4,5,6,7,8})),"")),"") -> 
BO127: 0 | BP127: 0 | BQ127: =IF($BP127<=6,SUM($C127:$BM127),SUMPRODUCT(LARGE($C127:$BM127,{1,2,3,4,5,6}))) -> 0 | BS127: =IF(BR127= "","",IFERROR(SUMPRODUCT(LARGE($C127:$BM127,{1,2,3,4})), "")) ->  | BT127: =IF(BS127<>"",(IFERROR(SUMPRODUCT(LARGE($C127:$BM127,{1,2,3,4,5,6,7})),"")),"") ->  | BU127: =IF(BT127<>"",(IFERROR(SUMPRODUCT(LARGE($C127:$BM127,{1,2,3,4,5,6,7,8})),"")),"") -> 
BO128: 0 | BP128: 0 | BQ128: =IF($BP128<=6,SUM($C128:$BM128),SUMPRODUCT(LARGE($C128:$BM128,{1,2,3,4,5,6}))) -> 0 | BS128: =IF(BR128= "","",IFERROR(SUMPRODUCT(LARGE($C128:$BM128,{1,2,3,4})), "")) ->  | BT128: =IF(BS128<>"",(IFERROR(SUMPRODUCT(LARGE($C128:$BM128,{1,2,3,4,5,6,7})),"")),"") ->  | BU128: =IF(BT128<>"",(IFERROR(SUMPRODUCT(LARGE($C128:$BM128,{1,2,3,4,5,6,7,8})),"")),"") -> 
